Workbook

Sheet Index
C1: JEN 2021-26 Capex Forecast Model | J1: Key: | K1: Input (hard code) | L1: External Link | M1: Internal Link | N1: Drop down Selection | O1: Calculation | P1: Unique calculation | Q1: Empty cell
C2: =MID(CELL("filename",A1),FIND("]",CELL("filename",A1))+1,255) -> Index | E2: Overall Check: | F2: ='Check|List'!$F$2 -> OK
B5: Copyright Jemena Limited. All rights reserved. Jemena is not liable for any loss caused by reliance on this document.
B7: Model Index
C9: Sheet Name | D9: Sheet Description
C11: Input | Historical | D11: Inputs historical data for gross capex, capital contributions, asset disposals and corporate overheads
C12: Input | CPI_Escalation | D12: Inputs actual and forecast inflation data, including a conversion index (real to nominal) plus forecast real cost escalators for labour, materials and other
C13: Input | Weights | D13: Inputs the service charter (capex activity), including the escalation weights (labour vs. materials split)
C14: Input | Forecast | D14: Inputs the annual direct unescalated project costs from asset management and information technology
C15: Calc | OH | D15: Calculations relating to the annual network and corporate overhead costs
C16: Calc | Escalators | D16: Calculates the forecast real cost escalator index for each service code (or capex activity)
C17: Calc | Capex Flow | D17: Calculates the six-step capex forecasting approach by project (i.e. direct un-escalated, direct escalated, direct escalated+overheads, capital contributions, gifted assets less rebates and asset disposals)
C18: Calc | Capex Summary | D18: Consolidates the six-step capex forecasting approach by project into the various annual summary views
C19: Output | Real | D19: Summarises the annual trend analysis for gross capex outputs by the different capex views, including capital contributions and asset disposals by RAB asset class
C20: Output | Nominal | D20: Summarises the annual trend analysis for gross capex outputs by the different capex views, including capital contributions and asset disposals by RAB asset class
C21: Output | RIN | D21: Summarises a selection of EDPR reset RIN tables outputs
C22: Output | PTRM | D22: Summarises the inputs feeding into the AER post-tax revenue model (PTRM) for SCS and ACS Metering
C23: Lookup | Tables | D23: Includes the lookup tables used within the model such as input dollar basis (actual, forecast, allowances) and mapping tables
C24: Check | List | D24: Shows checks on the calculations within the model
B26: End

Sheet Input|Historical
C1: =Index!$C$1 -> JEN 2021-26 Capex Forecast Model | E1: Section Check: | F1: =IF(COUNTA($A$7:$A$135)=COUNTIF($A$7:$A$135,"Ok"),"Ok","Check") -> Ok | J1: Key: | K1: Input (hard code) | L1: External Link | M1: Internal Link | N1: Drop down Selection | O1: Calculation | P1: Unique calculation | Q1: Empty cell
C2: =MID(CELL("filename",A1),FIND("]",CELL("filename",A1))+1,255) -> Input|Historical | E2: Overall Check: | F2: ='Check|List'!$F$2 -> OK
I3: 2015 | J3: =I3+1 -> 2016 | K3: =J3+1 -> 2017 | L3: =K3+1 -> 2018
B5: Copyright Jemena Limited. All rights reserved. Jemena is not liable for any loss caused by reliance on this document.
B7: Historical capex - by service
C9: Summary - by service | D9: Source | E9: Unit | F9: Basis | G9: Timing | I9: ="CY"&RIGHT(I$3,2) -> CY15 | J9: ="CY"&RIGHT(J$3,2) -> CY16 | K9: ="CY"&RIGHT(K$3,2) -> CY17 | L9: ="CY"&RIGHT(L$3,2) -> CY18
C11: ='Lookup|Tables'!C86 -> Standard control services | D11: RIN | E11: =Input_Unit -> $dollars | F11: =Input_Dollar_Basis_Actual -> Nominal | G11: ='Lookup|Tables'!$J$76 -> Mid year | I11: 134662235.7 | J11: 120467366.2 | K11: 155919164.5 | L11: 149718815
C12: ='Lookup|Tables'!C87 -> Alternative control services | D12: RIN | E12: =Input_Unit -> $dollars | F12: =Input_Dollar_Basis_Actual -> Nominal | G12: ='Lookup|Tables'!$J$76 -> Mid year | I12: 13331409.49 | J12: 9594159.016 | K12: 9714879.722 | L12: 10883797.51
C13: ='Lookup|Tables'!C88 -> Negotiated services | D13: RIN | E13: =Input_Unit -> $dollars | F13: =Input_Dollar_Basis_Actual -> Nominal | G13: ='Lookup|Tables'!$J$76 -> Mid year | I13: 13261297.9 | J13: 5190523.16 | K13: 1416534.92 | L13: 1737574.35
C14: ='Lookup|Tables'!C89 -> Unregulated services | D14: RIN | E14: =Input_Unit -> $dollars | F14: =Input_Dollar_Basis_Actual -> Nominal | G14: ='Lookup|Tables'!$J$76 -> Mid year | I14: 10102.23 | J14: 115207.79 | K14: 230038.1 | L14: 1925784.53
C16: Grand total | D16: Calculated | E16: =Input_Unit -> $dollars | F16: =Input_Dollar_Basis_Actual -> Nominal | G16: ='Lookup|Tables'!$J$76 -> Mid year | I16: =SUM(I11:I14) -> 161265045.4 | J16: =SUM(J11:J14) -> 135367256.2 | K16: =SUM(K11:K14) -> 167280617.2 | L16: =SUM(L11:L14) -> 164265971.4
B18: Historical capex - by RAB asset class (Current)
C20: Summary - by RAB asset class (Current) | D20: Source | E20: Unit | F20: Basis | G20: Timing | I20: =I$9 -> CY15 | J20: =J$9 -> CY16 | K20: =K$9 -> CY17 | L20: =L$9 -> CY18
C22: ='Lookup|Tables'!C226 -> SCS - Subtransmission | D22: RIN | E22: =Input_Unit -> $dollars | F22: =Input_Dollar_Basis_Actual -> Nominal | G22: ='Lookup|Tables'!$J$76 -> Mid year | I22: 20429787.34 | J22: 11784642.09 | K22: 23849077.67 | L22: 45193007.25
C23: ='Lookup|Tables'!C227 -> SCS - Distribution system assets | D23: RIN | E23: $dollars | F23: Nominal | G23: ='Lookup|Tables'!$J$76 -> Mid year | I23: 84782903.55 | J23: 89827234.71 | K23: 82274156.36 | L23: 79448432.97
C24: ='Lookup|Tables'!C228 -> SCS - Metering | D24: RIN | E24: $dollars | F24: Nominal | G24: ='Lookup|Tables'!$J$76 -> Mid year | I24: 0 | J24: 0 | K24: 0 | L24: 0
C25: ='Lookup|Tables'!C229 -> SCS - Public Lighting | D25: RIN | E25: $dollars | F25: Nominal | G25: ='Lookup|Tables'!$J$76 -> Mid year | I25: 0 | J25: 0 | K25: 0 | L25: 0
C26: ='Lookup|Tables'!C230 -> SCS - SCADA & Network Control | D26: RIN | E26: $dollars | F26: Nominal | G26: ='Lookup|Tables'!$J$76 -> Mid year | I26: 16460.05 | J26: 142882.06 | K26: 2820352.61 | L26: -13915.3
C27: ='Lookup|Tables'!C231 -> SCS - Non network general - IT | D27: RIN | E27: $dollars | F27: Nominal | G27: ='Lookup|Tables'!$J$76 -> Mid year | I27: 8796336.81 | J27: 14234739.55 | K27: 30852280.34 | L27: 21327267.09
C28: ='Lookup|Tables'!C232 -> SCS - Non network general - other | D28: RIN | E28: $dollars | F28: Nominal | G28: ='Lookup|Tables'!$J$76 -> Mid year | I28: 20629726.77 | J28: 4477867.782 | K28: 16123297.49 | L28: 3764023.01
C29: ='Lookup|Tables'!C233 -> SCS - Land | D29: RIN | E29: $dollars | F29: Nominal | G29: ='Lookup|Tables'!$J$76 -> Mid year | I29: 7021.22 | J29: 0 | K29: 0 | L29: 0
C30: ='Lookup|Tables'!C234 -> ACS - Fee and quote based | D30: RIN | E30: $dollars | F30: Nominal | G30: ='Lookup|Tables'!$J$76 -> Mid year | I30: 1283328.451 | J30: 92089.0394 | K30: 2402978.182 | L30: 1211508.16
C31: ='Lookup|Tables'!C235 -> ACS - Connections | D31: RIN | E31: $dollars | F31: Nominal | G31: ='Lookup|Tables'!$J$76 -> Mid year | I31: 3756083.95 | J31: 6636752.867 | K31: 5383459.31 | L31: 5014009.97
C32: ='Lookup|Tables'!C236 -> ACS - AMI - Accumulation Meters | D32: RIN | E32: $dollars | F32: Nominal | G32: ='Lookup|Tables'!$J$76 -> Mid year | I32: 0 | J32: 0 | K32: 0 | L32: 0
C33: ='Lookup|Tables'!C237 -> ACS - AMI - Manually read interval meters | D33: RIN | E33: $dollars | F33: Nominal | G33: ='Lookup|Tables'!$J$76 -> Mid year | I33: 0 | J33: 0 | K33: 0 | L33: 0
C34: ='Lookup|Tables'!C238 -> ACS - AMI - Remotely read interval meters & transformers | D34: RIN | E34: $dollars | F34: Nominal | G34: ='Lookup|Tables'!$J$76 -> Mid year | I34: 298489.07 | J34: 1459897 | K34: 678993.23 | L34: 2085228.61
C35: ='Lookup|Tables'!C239 -> ACS - AMI - IT | D35: RIN | E35: $dollars | F35: Nominal | G35: ='Lookup|Tables'!$J$76 -> Mid year | I35: 6278458 | J35: -114181.51 | K35: -238173.17 | L35: 852982
C36: ='Lookup|Tables'!C240 -> ACS - AMI - Communications | D36: RIN | E36: $dollars | F36: Nominal | G36: ='Lookup|Tables'!$J$76 -> Mid year | I36: 684065.02 | J36: 30362.07 | K36: -41945.67 | L36: 156155
C37: ='Lookup|Tables'!C241 -> ACS - AMI - Other | D37: RIN | E37: $dollars | F37: Nominal | G37: ='Lookup|Tables'!$J$76 -> Mid year | I37: 0 | J37: 0 | K37: 0 | L37: 0
C38: ='Lookup|Tables'!C242 -> ACS - PL - Poles and Brackets | D38: RIN | E38: $dollars | F38: Nominal | G38: ='Lookup|Tables'!$J$76 -> Mid year | I38: 478089.77 | J38: 489079.42 | K38: 546622.74 | L38: 816700.1
C39: ='Lookup|Tables'!C243 -> ACS - PL - Existing Lights - Luminaires | D39: RIN | E39: $dollars | F39: Nominal | G39: ='Lookup|Tables'!$J$76 -> Mid year | I39: 428588.46 | J39: 527205.07 | K39: 566810.17 | L39: 339456.79
C40: ='Lookup|Tables'!C244 -> ACS - PL - Energy Efficient - Luminaires and Ballasts | D40: RIN | E40: $dollars | F40: Nominal | G40: ='Lookup|Tables'!$J$76 -> Mid year | I40: 124306.77 | J40: 472955.06 | K40: 416134.93 | L40: 407756.88
C41: ='Lookup|Tables'!C245 -> Negotiated Services | D41: RIN | E41: $dollars | F41: Nominal | G41: ='Lookup|Tables'!$J$76 -> Mid year | I41: 13261297.9 | J41: 5190523.16 | K41: 1416534.92 | L41: 1737574.35
C42: ='Lookup|Tables'!C246 -> Unregulated services | D42: RIN | E42: $dollars | F42: Nominal | G42: ='Lookup|Tables'!$J$76 -> Mid year | I42: 10102.23 | J42: 115207.79 | K42: 230038.1 | L42: 1925784.53
C44: Total Gross Capex | D44: Calculated | E44: =Input_Unit -> $dollars | F44: =Input_Dollar_Basis_Actual -> Nominal | G44: ='Lookup|Tables'!$J$76 -> Mid year | I44: =SUM(I22:I42) -> 161265045.4 | J44: =SUM(J22:J42) -> 135367256.2 | K44: =SUM(K22:K42) -> 167280617.2 | L44: =SUM(L22:L42) -> 164265971.4
A46: =IF(COUNTA($I46:N46)=COUNTIF($I46:$N46,"OK"),"OK","Check") -> OK | C46: Check | D46: Ok/Check | E46: n.m. | F46: =E46 -> n.m. | G46: =IF(F46<>"n.m.",IF(F46<>"=Input_Dollar_Basis_Actual","year-end","mid-year"),"n.m.") -> n.m. | I46: =IF(ROUND(I$16-I44,2)=0,"Ok","Check") -> Ok | J46: =IF(ROUND(J$16-J44,2)=0,"Ok","Check") -> Ok | K46: =IF(ROUND(K$16-K44,2)=0,"Ok","Check") -> Ok | L46: =IF(ROUND(L$16-L44,2)=0,"Ok","Check") -> Ok
B48: Historical capital contributions - by RAB asset class
C50: Summary - by RAB asset class | D50: Source | E50: Unit | F50: Basis | G50: Timing | I50: =I$9 -> CY15 | J50: =J$9 -> CY16 | K50: =K$9 -> CY17 | L50: =L$9 -> CY18
C52: =C22 -> SCS - Subtransmission | D52: RIN | E52: =Input_Unit -> $dollars | F52: =Input_Dollar_Basis_Actual -> Nominal | G52: ='Lookup|Tables'!$J$76 -> Mid year | I52: 0 | J52: 0 | K52: 802745.95 | L52: 772537
C53: SCS - Distribution system assets | D53: RIN | E53: $dollars | F53: Nominal | G53: ='Lookup|Tables'!$J$76 -> Mid year | I53: 3910461.599 | J53: 12874707.94 | K53: 23423627.56 | L53: 23738856.38
C54: SCS - Metering | D54: RIN | E54: $dollars | F54: Nominal | G54: ='Lookup|Tables'!$J$76 -> Mid year | I54: 0 | J54: 0 | K54: 0 | L54: 0
C55: SCS - Public Lighting | D55: RIN | E55: $dollars | F55: Nominal | G55: ='Lookup|Tables'!$J$76 -> Mid year | I55: 0 | J55: 0 | K55: 0 | L55: 0
C56: SCS - SCADA & Network Control | D56: RIN | E56: $dollars | F56: Nominal | G56: ='Lookup|Tables'!$J$76 -> Mid year | I56: 0 | J56: 0 | K56: 0 | L56: 0
C57: SCS - Non network general - IT | D57: RIN | E57: $dollars | F57: Nominal | G57: ='Lookup|Tables'!$J$76 -> Mid year | I57: 0 | J57: 0 | K57: 0 | L57: 0
C58: SCS - Non network general - other | D58: RIN | E58: $dollars | F58: Nominal | G58: ='Lookup|Tables'!$J$76 -> Mid year | I58: 0 | J58: 0 | K58: 0 | L58: 0
C59: SCS - Land | D59: RIN | E59: $dollars | F59: Nominal | G59: ='Lookup|Tables'!$J$76 -> Mid year | I59: 0 | J59: 0 | K59: 0 | L59: 0
C60: ACS - Fee and quote based | D60: RIN | E60: $dollars | F60: Nominal | G60: ='Lookup|Tables'!$J$76 -> Mid year | I60: 617462.7119 | J60: 0 | K60: 0 | L60: 3253
C61: ACS - Connections | D61: RIN | E61: $dollars | F61: Nominal | G61: ='Lookup|Tables'!$J$76 -> Mid year | I61: 0 | J61: 0 | K61: 0 | L61: 0
C62: ACS - AMI - Accumulation Meters | D62: RIN | E62: $dollars | F62: Nominal | G62: ='Lookup|Tables'!$J$76 -> Mid year | I62: 0 | J62: 0 | K62: 0 | L62: 0
C63: ACS - AMI - Manually read interval meters | D63: RIN | E63: $dollars | F63: Nominal | G63: ='Lookup|Tables'!$J$76 -> Mid year | I63: 0 | J63: 0 | K63: 0 | L63: 0
C64: ACS - AMI - Remotely read interval meters & transformers | D64: RIN | E64: $dollars | F64: Nominal | G64: ='Lookup|Tables'!$J$76 -> Mid year | I64: 0 | J64: 0 | K64: 0 | L64: 0
C65: ACS - AMI - IT | D65: RIN | E65: $dollars | F65: Nominal | G65: ='Lookup|Tables'!$J$76 -> Mid year | I65: 0 | J65: 0 | K65: 0 | L65: 0
C66: ACS - AMI - Communications | D66: RIN | E66: $dollars | F66: Nominal | G66: ='Lookup|Tables'!$J$76 -> Mid year | I66: 0 | J66: 0 | K66: 0 | L66: 0
C67: ACS - AMI - Other | D67: RIN | E67: $dollars | F67: Nominal | G67: ='Lookup|Tables'!$J$76 -> Mid year | I67: 0 | J67: 0 | K67: 0 | L67: 0
C68: ACS - PL - Poles and Brackets | D68: RIN | E68: $dollars | F68: Nominal | G68: ='Lookup|Tables'!$J$76 -> Mid year | I68: 0 | J68: 0 | K68: 0 | L68: 0
C69: ACS - PL - Existing Lights - Luminaires | D69: RIN | E69: $dollars | F69: Nominal | G69: ='Lookup|Tables'!$J$76 -> Mid year | I69: 0 | J69: 0 | K69: 0 | L69: 0
C70: ACS - PL - Energy Efficient - Luminaires and Ballasts | D70: RIN | E70: $dollars | F70: Nominal | G70: ='Lookup|Tables'!$J$76 -> Mid year | I70: 0 | J70: 0 | K70: 0 | L70: 0
C71: Negotiated Services | D71: RIN | E71: $dollars | F71: Nominal | G71: ='Lookup|Tables'!$J$76 -> Mid year | I71: 9183012.43 | J71: 4111346.508 | K71: 2031031.64 | L71: 1428512.42
C72: Unregulated services | D72: RIN | E72: $dollars | F72: Nominal | G72: ='Lookup|Tables'!$J$76 -> Mid year | I72: 0 | J72: 0 | K72: 0 | L72: 0
C74: Total Capital Contributions | D74: Calculated | E74: =Input_Unit -> $dollars | F74: =Input_Dollar_Basis_Actual -> Nominal | G74: ='Lookup|Tables'!$J$76 -> Mid year | I74: =SUM(I52:I72) -> 13710936.74 | J74: =SUM(J52:J72) -> 16986054.45 | K74: =SUM(K52:K72) -> 26257405.15 | L74: =SUM(L52:L72) -> 25943158.8
B76: Historical asset disposals - by RAB asset class
C78: Summary - by RAB asset class | D78: Source | E78: Unit | F78: Basis | G78: Timing | I78: =I$9 -> CY15 | J78: =J$9 -> CY16 | K78: =K$9 -> CY17 | L78: =L$9 -> CY18 | P78: ="CY"&RIGHT(J$3,2)&"- CY"&RIGHT(L$3,2)&": % of Gross Capex" -> CY16- CY18: % of Gross Capex
C80: =C22 -> SCS - Subtransmission | D80: RIN | E80: =Input_Unit -> $dollars | F80: =Input_Dollar_Basis_Actual -> Nominal | G80: ='Lookup|Tables'!$J$76 -> Mid year | I80: 0 | J80: 0 | K80: 0 | L80: 0 | P80: =IF(SUM(J22:L22)=0,0,SUM(J80:L80)/SUM(J22:L22)) -> 0
C81: SCS - Distribution system assets | D81: RIN | E81: $dollars | F81: Nominal | G81: ='Lookup|Tables'!$J$76 -> Mid year | I81: 0 | J81: 0 | K81: 0 | L81: 0 | P81: 0
C82: SCS - Metering | D82: RIN | E82: $dollars | F82: Nominal | G82: ='Lookup|Tables'!$J$76 -> Mid year | I82: 0 | J82: 0 | K82: 0 | L82: 0 | P82: 0
C83: SCS - Public Lighting | D83: RIN | E83: $dollars | F83: Nominal | G83: ='Lookup|Tables'!$J$76 -> Mid year | I83: 0 | J83: 0 | K83: 0 | L83: 0 | P83: 0
C84: SCS - SCADA & Network Control | D84: RIN | E84: $dollars | F84: Nominal | G84: ='Lookup|Tables'!$J$76 -> Mid year | I84: 0 | J84: 0 | K84: 0 | L84: 0 | P84: 0
C85: SCS - Non network general - IT | D85: RIN | E85: $dollars | F85: Nominal | G85: ='Lookup|Tables'!$J$76 -> Mid year | I85: 0 | J85: 0 | K85: 0 | L85: 0 | P85: 0
C86: SCS - Non network general - other | D86: RIN | E86: $dollars | F86: Nominal | G86: ='Lookup|Tables'!$J$76 -> Mid year | I86: 226936.54 | J86: 138939.09 | K86: 219821.5 | L86: 349812.07 | P86: 0.02908135376
C87: SCS - Land | D87: RIN | E87: $dollars | F87: Nominal | G87: ='Lookup|Tables'!$J$76 -> Mid year | I87: 0 | J87: 0 | K87: 0 | L87: 0 | P87: 0
C88: ACS - Fee and quote based | D88: RIN | E88: $dollars | F88: Nominal | G88: ='Lookup|Tables'!$J$76 -> Mid year | I88: 0 | J88: 0 | K88: 0 | L88: 0 | P88: 0
C89: ACS - Connections | D89: RIN | E89: $dollars | F89: Nominal | G89: ='Lookup|Tables'!$J$76 -> Mid year | I89: 0 | J89: 0 | K89: 0 | L89: 0 | P89: 0
C90: ACS - AMI - Accumulation Meters | D90: RIN | E90: $dollars | F90: Nominal | G90: ='Lookup|Tables'!$J$76 -> Mid year | I90: 0 | J90: 0 | K90: 0 | L90: 0 | P90: 0
C91: ACS - AMI - Manually read interval meters | D91: RIN | E91: $dollars | F91: Nominal | G91: ='Lookup|Tables'!$J$76 -> Mid year | I91: 0 | J91: 0 | K91: 0 | L91: 0 | P91: 0
C92: ACS - AMI - Remotely read interval meters & transformers | D92: RIN | E92: $dollars | F92: Nominal | G92: ='Lookup|Tables'!$J$76 -> Mid year | I92: 0 | J92: 0 | K92: 0 | L92: 0 | P92: 0
C93: ACS - AMI - IT | D93: RIN | E93: $dollars | F93: Nominal | G93: ='Lookup|Tables'!$J$76 -> Mid year | I93: 0 | J93: 0 | K93: 0 | L93: 0 | P93: 0
C94: ACS - AMI - Communications | D94: RIN | E94: $dollars | F94: Nominal | G94: ='Lookup|Tables'!$J$76 -> Mid year | I94: 0 | J94: 0 | K94: 0 | L94: 0 | P94: 0
C95: ACS - AMI - Other | D95: RIN | E95: $dollars | F95: Nominal | G95: ='Lookup|Tables'!$J$76 -> Mid year | I95: 0 | J95: 0 | K95: 0 | L95: 0 | P95: 0
C96: ACS - PL - Poles and Brackets | D96: RIN | E96: $dollars | F96: Nominal | G96: ='Lookup|Tables'!$J$76 -> Mid year | I96: 0 | J96: 0 | K96: 0 | L96: 0 | P96: 0
C97: ACS - PL - Existing Lights - Luminaires | D97: RIN | E97: $dollars | F97: Nominal | G97: ='Lookup|Tables'!$J$76 -> Mid year | I97: 0 | J97: 0 | K97: 0 | L97: 0 | P97: 0
C98: ACS - PL - Energy Efficient - Luminaires and Ballasts | D98: RIN | E98: $dollars | F98: Nominal | G98: ='Lookup|Tables'!$J$76 -> Mid year | I98: 0 | J98: 0 | K98: 0 | L98: 0 | P98: 0
C99: Negotiated Services | D99: RIN | E99: $dollars | F99: Nominal | G99: ='Lookup|Tables'!$J$76 -> Mid year | I99: 1514296.32 | J99: 0 | K99: 0 | L99: 0 | P99: 0
C100: Unregulated services | D100: RIN | E100: $dollars | F100: Nominal | G100: ='Lookup|Tables'!$J$76 -> Mid year | I100: 0 | J100: 0 | K100: 0 | L100: 0 | P100: 0
C102: Total Asset Disposals | D102: Calculated | E102: =Input_Unit -> $dollars | F102: =Input_Dollar_Basis_Actual -> Nominal | G102: ='Lookup|Tables'!$J$76 -> Mid year | I102: =SUM(I80:I100) -> 1741232.86 | J102: =SUM(J80:J100) -> 138939.09 | K102: =SUM(K80:K100) -> 219821.5 | L102: =SUM(L80:L100) -> 349812.07
B104: Input | Historical Overheads
C106: Network and Corporate Overheads
C108: Gross Capex - Direct Costs Attracting OH | D108: Source | E108: Unit | F108: Basis | G108: Timing | J108: ="CY"&RIGHT(J$3,2) -> CY16 | K108: ="CY"&RIGHT(K$3,2) -> CY17 | L108: ="CY"&RIGHT(L$3,2) -> CY18
C110: ='Lookup|Tables'!$C$86 -> Standard control services | D110: JEN | E110: =millions -> $millions | F110: =Nominal -> Nominal | G110: Mid-year | J110: 74674797.35 | K110: 79840455.76 | L110: 98267097.98
C111: ='Lookup|Tables'!$C$87 -> Alternative control services | D111: JEN | E111: =millions -> $millions | F111: =Nominal -> Nominal | G111: Mid-year | J111: 3669771.2 | K111: 7634310.908 | L111: 7759052.87
C112: ='Lookup|Tables'!$C$88 -> Negotiated services | D112: JEN | E112: =millions -> $millions | F112: =Nominal -> Nominal | G112: Mid-year | J112: 3731657.28 | K112: 1062820.7 | L112: 1332214.46
C113: ='Lookup|Tables'!$C$89 -> Unregulated services | D113: JEN | E113: =millions -> $millions | F113: =Nominal -> Nominal | G113: Mid-year | J113: 81921.23 | K113: 172892.9 | L113: 1401600.66
C115: Direct Costs Attracting Overheads | D115: Calculated | E115: =millions -> $millions | F115: =Nominal -> Nominal | G115: =G110 -> Mid-year | J115: =SUM(J110:J113) -> 82158147.06 | K115: =SUM(K110:K113) -> 88710480.27 | L115: =SUM(L110:L113) -> 108759966
C117: Capitalised Network Overheads | D117: Source | E117: Unit | F117: Basis | G117: Timing | J117: =J$108 -> CY16 | K117: =K$108 -> CY17 | L117: =L$108 -> CY18
C119: ='Lookup|Tables'!$C$86 -> Standard control services | D119: RIN | E119: =millions -> $millions | F119: =Nominal -> Nominal | G119: Mid-year | J119: 16750081.87 | K119: 15298570.28 | L119: 15193039.54
C120: ='Lookup|Tables'!$C$87 -> Alternative control services | D120: RIN | E120: =millions -> $millions | F120: =Nominal -> Nominal | G120: Mid-year | J120: 924984.74 | K120: 1307334.148 | L120: 1365333.35
C121: ='Lookup|Tables'!$C$88 -> Negotiated services | D121: RIN | E121: =millions -> $millions | F121: =Nominal -> Nominal | G121: Mid-year | J121: 858779.67 | K121: 202553.77 | L121: 231713.58
C122: ='Lookup|Tables'!$C$89 -> Unregulated services | D122: RIN | E122: =millions -> $millions | F122: =Nominal -> Nominal | G122: Mid-year | J122: 20546.83 | K122: 33642.08 | L122: 481547.72
C124: Capitalised Network Overheads | D124: Calculated | E124: =millions -> $millions | F124: =Nominal -> Nominal | G124: =G119 -> Mid-year | J124: =SUM(J119:J122) -> 18554393.11 | K124: =SUM(K119:K122) -> 16842100.28 | L124: =SUM(L119:L122) -> 17271634.19
C126: Capitalised Corporate Overheads | D126: Source | E126: Unit | F126: Basis | G126: Timing | J126: =J$108 -> CY16 | K126: =K$108 -> CY17 | L126: =L$108 -> CY18
C128: ='Lookup|Tables'!$C$86 -> Standard control services | D128: RIN | E128: =millions -> $millions | F128: =Nominal -> Nominal | G128: Mid-year | J128: 11238894.27 | K128: 11085802.11 | L128: 11155755.58
C129: ='Lookup|Tables'!$C$87 -> Alternative control services | D129: RIN | E129: =millions -> $millions | F129: =Nominal -> Nominal | G129: Mid-year | J129: 613264.02 | K129: 939517.1465 | L129: 906429.28
C130: ='Lookup|Tables'!$C$88 -> Negotiated services | D130: RIN | E130: =millions -> $millions | F130: =Nominal -> Nominal | G130: Mid-year | J130: 600086.55 | K130: 151160.33 | L130: 173646.31
C131: ='Lookup|Tables'!$C$89 -> Unregulated services | D131: RIN | E131: =millions -> $millions | F131: =Nominal -> Nominal | G131: Mid-year | J131: 12739.73 | K131: 23503.12 | L131: 42636.15
C133: Capitalised Corporate Overheads | D133: Calculated | E133: =millions -> $millions | F133: =Nominal -> Nominal | G133: =G128 -> Mid-year | J133: =SUM(J128:J131) -> 12464984.57 | K133: =SUM(K128:K131) -> 12199982.71 | L133: =SUM(L128:L131) -> 12278467.32
B135: End

Sheet Input|CPI_Escalation
C1: =Index!$C$1 -> JEN 2021-26 Capex Forecast Model | E1: Section Check: | F1: =IF(COUNTA($A$7:$A$45)=COUNTIF($A$7:$A$45,"Ok"),"Ok","Check") -> Ok | H1: Back to Index | J1: Key: | K1: Input (hard code) | L1: External Link | M1: Internal Link | N1: Drop down Selection | O1: Calculation | P1: Unique calculation | Q1: Empty cell
C2: =MID(CELL("filename",A1),FIND("]",CELL("filename",A1))+1,255) -> Input|CPI_Escalation | E2: Overall Check: | F2: ='Check|List'!$F$2 -> OK
I3: =J3-1 -> 2015 | J3: 2016 | K3: 2017 | L3: 2018 | M3: 2019 | N3: 2020 | O3: 2021 | P3: 2022 | Q3: 2023 | R3: 2024 | S3: 2025 | T3: 2026
B5: Copyright Jemena Limited. All rights reserved. Jemena is not liable for any loss caused by reliance on this document.
B7: Input| Inflation Indexation Profiles
C9: Unlagged CPI | D9: Source (actuals): ABS, all groups CPI inflation series A2325846C, weighted average for the eight capital cities. Source (forecast): RBA, Statement on Monetary Policy
I11: Australian Bureau of Statistics (ABS) Data | M11: RBA Forecast | P11: Forecast Inflation
C12: Inflation | D12: Source | E12: Unit | F12: Basis | G12: Timing | I12: CY15 | J12: CY16 | K12: CY17 | L12: CY18 | M12: CY19 | N12: CY20 | O12: Jan21-Jun21 | P12: FY22 | Q12: FY23 | R12: FY24 | S12: FY25 | T12: FY26
C14: Inflation Rate | D14: Inputs|Rate of return | E14: Percent | F14: N/A | G14: N/A | I14: 0.02307692308 | J14: 0.01510859301 | K14: 0.01023255814 | L14: 0.01933701657 | M14: 0.02077687444 | N14: 0.01592920354 | O14: 0.01219512195 | P14: 0.0199938725 | Q14: 0.0199938725 | R14: 0.0199938725 | S14: 0.0199938725 | T14: 0.0199938725
C15: Unlagged Index: Real (EoP) to Nominal (EoP) | D15: Calculated | E15: Percent | F15: N/A | G15: N/A | I15: =IF(H15="",1,H15*(1+I14)) -> 1 | J15: 1.015108593 | K15: 1.025495751 | L15: 1.045325779 | M15: 1.067044381 | N15: 1.084041549 | O15: 1.097261568 | P15: 1.119200075 | Q15: 1.141577219 | R15: 1.164401768 | S15: 1.187682669 | T15: 1.211429045
I17: =I11 -> Australian Bureau of Statistics (ABS) Data | M17: =M11 -> RBA Forecast | P17: =P11 -> Forecast Inflation
C18: Profile | D18: Conversion From | E18: Conversion From Timing | F18: Conversion To | G18: Conversion To Timing | I18: =I12 -> CY15 | J18: =J12 -> CY16 | K18: CY17 | L18: CY18 | M18: CY19 | N18: CY20 | O18: Jan21-Jun21 | P18: FY22 | Q18: FY23 | R18: FY24 | S18: FY25 | T18: FY26
C20: Nominal (Mid Period) to Real Jan21-Jun21 (End Period) | D20: Nominal | E20: Mid Period | F20: Jan21-Jun21 | G20: End Period | I20: =IFERROR(IF($F20=Nominal,I$15,INDEX($I$15:$T$15,,MATCH($F20,$I$12:$T$12,0))) /IF($D20=Nominal,I$15,INDEX($I$15:$T$15,,MATCH($D20,$I$12:$T$12,0))) *IF($G20=Mid_Year,1/(1+IF($F20=Nominal,I$14,INDEX($I$14:$T$14,,MATCH($F20,$I$12:$T$12,0))))^INDEX(Timing_Adj,MATCH($G20,Cash_Timing,0)),1) *IF($E20=Mid_Year,(1+IF($D20=Nominal,I$14,INDEX($I$14:$T$14,,MATCH($D20,$I$12:$T$12,0))))^INDEX(Timing_Adj,MATCH($E20,Cash_Timing,0)),1),"N/A") -> 1.109850066 | J20: 1.089065288 | K20: 1.075441975 | L20: 1.059784113 | M20: 1.038946288 | N20: 1.020225002 | O20: 1.006079083 | P20: 0.9901505171 | Q20: 0.9707416326 | R20: 0.9517132002 | S20: 0.9330577623 | T20: 0.9147680074
C21: Real CY18 (Mid Period) to Real Jan21-Jun21 (End Period) | D21: CY18 | E21: Mid Period | F21: Jan21-Jun21 | G21: End Period | I21: 1.059784113 | J21: 1.059784113 | K21: 1.059784113 | L21: 1.059784113 | M21: 1.059784113 | N21: 1.059784113 | O21: 1.059784113 | P21: 1.059784113 | Q21: 1.059784113 | R21: =IFERROR(IF($F21=Nominal,R$15,INDEX($I$15:$T$15,,MATCH($F21,$I$12:$T$12,0))) /IF($D21=Nominal,R$15,INDEX($I$15:$T$15,,MATCH($D21,$I$12:$T$12,0))) *IF($G21=Mid_Year,1/(1+IF($F21=Nominal,R$14,INDEX($I$14:$T$14,,MATCH($F21,$I$12:$T$12,0))))^INDEX(Timing_Adj,MATCH($G21,Cash_Timing,0)),1) *IF($E21=Mid_Year,(1+IF($D21=Nominal,R$14,INDEX($I$14:$T$14,,MATCH($D21,$I$12:$T$12,0))))^INDEX(Timing_Adj,MATCH($E21,Cash_Timing,0)),1),"N/A") -> 1.059784113 | S21: 1.059784113 | T21: 1.059784113
C22: Real CY20 (End Period) to Real Jan21-Jun21 (End Period) | D22: CY20 | E22: End Period | F22: Jan21-Jun21 | G22: End Period | I22: 1.012195122 | J22: 1.012195122 | K22: 1.012195122 | L22: 1.012195122 | M22: 1.012195122 | N22: 1.012195122 | O22: 1.012195122 | P22: 1.012195122 | Q22: 1.012195122 | R22: 1.012195122 | S22: 1.012195122 | T22: 1.012195122
B24: Input | Real Cost Escalators
C26: Input | Labour Escalation
C28: Real Cost Escalators | D28: Source | E28: Unit | F28: Basis | G28: Timing | M28: =M$12 -> CY19 | N28: CY20 | O28: Jan21-Jun21 | P28: FY22 | Q28: FY23 | R28: FY24 | S28: FY25 | T28: FY26
C30: BIS Oxford (EGWWS WPI - VIC, November 2020) | D30: BIS | E30: =percent -> Per cent | F30: N/A | G30: N/A | M30: 0.01642285202 | N30: 0.01339765193 | O30: =0.750502339632608%/2 -> 0.003752511698 | P30: 0.008137498474 | Q30: 0.007419523308 | R30: 0.008751461962 | S30: 0.01119653272 | T30: 0.01118491396
C31: Superannuation guarantee (SG) increments | P31: 0.005 | Q31: 0.005 | R31: 0.005 | S31: 0.005 | T31: 0.005
C33: BIS Oxford (EGWWS WPI - VIC, November 2020) with SG increase | M33: =SUM(M30:M31) -> 0.01642285202 | N33: =SUM(N30:N31) -> 0.01339765193 | O33: 0.003752511698 | P33: 0.01313749847 | Q33: 0.01241952331 | R33: 0.01375146196 | S33: 0.01619653272 | T33: 0.01618491396
C34: DAE Deloitte 2020 Update | D34: DAE | E34: =percent -> Per cent | F34: N/A | G34: N/A | M34: 0.01339081488 | N34: 0.01366825798 | O34: =1.21921993708802%/2 -> 0.006096099685 | P34: 0.006933026323 | Q34: 0.0008342016333 | R34: -0.001568922575 | S34: -0.001541076871 | T34: 0.002834022519
C36: Real Cost Escalators - Applied
C38: Real Cost Escalators | D38: Source | E38: Unit | F38: Basis | G38: Timing | M38: =M$12 -> CY19 | N38: CY20 | O38: Jan21-Jun21 | P38: FY22 | Q38: FY23 | R38: FY24 | S38: FY25 | T38: FY26
C40: =TRANSPOSE('Input|Weights'!M9:P9) -> Internal Labour | D40: Calculated | E40: =percent -> Per cent | F40: N/A | G40: N/A | M40: =AVERAGE(M33:M34) -> 0.01490683345 | N40: =AVERAGE(N33:N34) -> 0.01353295495 | O40: 0.004924305692 | P40: 0.0100352624 | Q40: 0.006626862471 | R40: 0.006091269693 | S40: 0.007327727922 | T40: 0.009509468237
C41: Contractors | D41: JEN | E41: =percent -> Per cent | F41: N/A | G41: N/A | M41: 0 | N41: 0 | O41: 0 | P41: 0 | Q41: 0 | R41: 0 | S41: 0 | T41: 0
C42: Materials | D42: JEN | E42: =percent -> Per cent | F42: N/A | G42: N/A | M42: 0 | N42: 0 | O42: 0 | P42: 0 | Q42: 0 | R42: 0 | S42: 0 | T42: 0
C43: Other | D43: JEN | E43: =percent -> Per cent | F43: N/A | G43: N/A | M43: 0 | N43: 0 | O43: 0 | P43: 0 | Q43: 0 | R43: 0 | S43: 0 | T43: 0
B45: End

Sheet Input|Weights
C1: =Index!C1 -> JEN 2021-26 Capex Forecast Model | E1: Section Check: | F1: =IF(COUNTA($A$7:$A$149)=COUNTIF($A$7:$A$149,"Ok"),"Ok","Check") -> Ok | K1: Key: | L1: Input (hard code) | M1: External Link | N1: Internal Link | O1: Drop down Selection | P1: Calculation | Q1: Unique calculation | R1: Empty cell
C2: =MID(CELL("filename",A1),FIND("]",CELL("filename",A1))+1,255) -> Input|Weights | E2: Overall Check: | F2: ='Check|List'!$F$2 -> OK
B5: Copyright Jemena Limited. All rights reserved. Jemena is not liable for any loss caused by reliance on this document.
B7: Distribution activities and escalation weights | M7: Input table split for capex escalation
C9: Distribution activities | D9: Source | E9: Unit | F9: Basis | G9: Timing | H9: Service Code | M9: Internal Labour | N9: Contractors | O9: Materials | P9: Other
T10: =SUM(T11:W147) -> 0
A11: =IF(ROUND(SUM(M11:P11)-1,5)=0,"Ok","Check") -> Ok | C11: HV LINE CLASH MITIGATION (INST SPREADER) | D11: JEN | E11: =percent -> Per cent | F11: N/A | G11: N/A | H11: PDH | M11: 0.6484460272 | N11: 0.0899920699 | O11: 0.2046762453 | P11: =1-SUM(M11:O11) -> 0.05688565757 | S11: TRUE | T11: 0 | U11: 0 | V11: 0 | W11: 0
A12: Ok | C12: LV LINE CLASH MITIGATION (INST SPREADER) | D12: JEN | E12: Per cent | F12: N/A | G12: N/A | H12: PDL | M12: 0.7489653197 | N12: 0.1111318186 | O12: 0.07499698857 | P12: =1-SUM(M12:O12) -> 0.06490587307 | S12: TRUE | T12: 0 | U12: 0 | V12: 0 | W12: 0
A13: Ok | C13: SERVICE FAULT REPLACEMENT | D13: JEN | E13: Per cent | F13: N/A | G13: N/A | H13: RMF | M13: 0.8724485868 | N13: 0.06443209711 | O13: 0.004021986837 | P13: 0.05909732925 | S13: TRUE | T13: 0 | U13: 0 | V13: 0 | W13: 0
A14: Ok | C14: REPLACE SERVICE AND ALTER TERMINATIONS | D14: JEN | E14: Per cent | F14: N/A | G14: N/A | H14: RMJ | M14: 0.4531432331 | N14: 0.08733085294 | O14: 0.4236359448 | P14: 0.03588996915 | S14: TRUE | T14: 0 | U14: 0 | V14: 0 | W14: 0
A15: Ok | C15: INSTALL DISCONNECT DEVICE AND RESAG | D15: JEN | E15: Per cent | F15: N/A | G15: N/A | H15: RML | M15: 0.2454832497 | N15: 0.7434220741 | O15: 0 | P15: 0.01109467624 | S15: TRUE | T15: 0 | U15: 0 | V15: 0 | W15: 0
A16: Ok | C16: REPLACE SERVICES - PLANNED | D16: JEN | E16: Per cent | F16: N/A | G16: N/A | H16: RMP | M16: 0.2034553871 | N16: 0.6829067931 | O16: 0.1021258907 | P16: 0.01151192907 | S16: TRUE | T16: 0 | U16: 0 | V16: 0 | W16: 0
A17: Ok | C17: O/H TO U/G SERVICE REPLACED WITH U/G | D17: JEN | E17: Per cent | F17: N/A | G17: N/A | H17: RMU | M17: 0 | N17: 1 | O17: 0 | P17: 0 | S17: TRUE | T17: 0 | U17: 0 | V17: 0 | W17: 0
A18: Ok | C18: HV OPEN WIRE CONDUCTOR REPL. | D18: JEN | E18: Per cent | F18: N/A | G18: N/A | H18: ROH | M18: 0.7368666847 | N18: 0.08280743507 | O18: 0.1005041115 | P18: 0.07982176872 | S18: TRUE | T18: 0 | U18: 0 | V18: 0 | W18: 0
A19: Ok | C19: LV CONDUCTOR REPLACEMENT | D19: JEN | E19: Per cent | F19: N/A | G19: N/A | H19: ROL | M19: 0.6107380108 | N19: 0.2439343358 | O19: 0.1104712126 | P19: 0.03485644085 | S19: TRUE | T19: 0 | U19: 0 | V19: 0 | W19: 0
A20: Ok | C20: POLE REPLACE P/L - MINOR ROADS | D20: JEN | E20: Per cent | F20: N/A | G20: N/A | H20: RPB | M20: 0.3034777081 | N20: 0.5548174938 | O20: 0.1181049295 | P20: 0.02359986855 | S20: TRUE | T20: 0 | U20: 0 | V20: 0 | W20: 0
A21: Ok | C21: POLE REPLACEMENT (INC POLE TOP) - HV | D21: JEN | E21: Per cent | F21: N/A | G21: N/A | H21: RPH | M21: 0.5078544249 | N21: 0.3345887265 | O21: 0.1140178686 | P21: 0.04353898003 | S21: TRUE | T21: 0 | U21: 0 | V21: 0 | W21: 0
A22: Ok | C22: POLE REPLACEMENT (INC POLE TOP) - LV | D22: JEN | E22: Per cent | F22: N/A | G22: N/A | H22: RPL | M22: 0.5117009129 | N22: 0.3537507189 | O22: 0.08095345737 | P22: 0.05359491088 | S22: TRUE | T22: 0 | U22: 0 | V22: 0 | W22: 0
A23: Ok | C23: POLE REPLACEMENT (INC POLE TOP) - ST | D23: JEN | E23: Per cent | F23: N/A | G23: N/A | H23: RPS | M23: 0.3379140477 | N23: 0.4498304262 | O23: 0.1032961352 | P23: 0.1089593909 | S23: TRUE | T23: 0 | U23: 0 | V23: 0 | W23: 0
A24: Ok | C24: POLE REINFORCEMENT - HV | D24: JEN | E24: Per cent | F24: N/A | G24: N/A | H24: RRH | M24: 0.2033457339 | N24: 0.190075842 | O24: 0.004811465442 | P24: 0.6017669587 | S24: TRUE | T24: 0 | U24: 0 | V24: 0 | W24: 0
A25: Ok | C25: POLE REINFORCEMENT - LV | D25: JEN | E25: Per cent | F25: N/A | G25: N/A | H25: RRL | M25: 0.1072294637 | N25: 0.1647085437 | O25: 0.0004210730781 | P25: 0.7276409196 | S25: TRUE | T25: 0 | U25: 0 | V25: 0 | W25: 0
A26: Ok | C26: POLE REINFORCEMENT - ST | D26: JEN | E26: Per cent | F26: N/A | G26: N/A | H26: RRS | M26: 0.3891150012 | N26: 0.08397791554 | O26: 0.0002318491021 | P26: 0.5266752341 | S26: TRUE | T26: 0 | U26: 0 | V26: 0 | W26: 0
A27: Ok | C27: ST INSULATORS REPLACEMENT | D27: JEN | E27: Per cent | F27: N/A | G27: N/A | H27: RXG | M27: 0.7745510489 | N27: 0.0847252628 | O27: 0.07665012752 | P27: 0.06407356083 | S27: TRUE | T27: 0 | U27: 0 | V27: 0 | W27: 0
A28: Ok | C28: HV XARMS REPLACEMENT | D28: JEN | E28: Per cent | F28: N/A | G28: N/A | H28: RXH | M28: 0.6390566553 | N28: 0.2371354924 | O28: 0.07448026655 | P28: 0.04932758576 | S28: TRUE | T28: 0 | U28: 0 | V28: 0 | W28: 0
A29: Ok | C29: HV INSULATOR REPLACEMENT | D29: JEN | E29: Per cent | F29: N/A | G29: N/A | H29: RXI | M29: 0.7030311927 | N29: 0.1225982466 | O29: 0.1288082111 | P29: 0.04556234963 | S29: TRUE | T29: 0 | U29: 0 | V29: 0 | W29: 0
A30: Ok | C30: LV XARMS REPLACEMENT | D30: JEN | E30: Per cent | F30: N/A | G30: N/A | H30: RXL | M30: 0.7279512186 | N30: 0.1484041675 | O30: 0.0716518344 | P30: 0.05199277955 | S30: TRUE | T30: 0 | U30: 0 | V30: 0 | W30: 0
A31: Ok | C31: ST XARMS REPLACEMENT | D31: JEN | E31: Per cent | F31: N/A | G31: N/A | H31: RXS | M31: 0.578455399 | N31: 0.2536178732 | O31: 0.09014248888 | P31: 0.07778423893 | S31: TRUE | T31: 0 | U31: 0 | V31: 0 | W31: 0
A32: Ok | C32: SUSTAINABLE LIGHT REPLACEMENT | D32: JEN | E32: Per cent | F32: N/A | G32: N/A | H32: RLG | M32: 0.1448161694 | N32: 0.4881830249 | O32: 0.3621675649 | P32: 0.004833240735 | S32: TRUE | T32: 0 | U32: 0 | V32: 0 | W32: 0
A33: Ok | C33: SINGLE MAIN RD REPLACEMENT | D33: JEN | E33: Per cent | F33: N/A | G33: N/A | H33: RLJ | M33: 0.1263913648 | N33: 0.264852865 | O33: 0.5995661773 | P33: 0.009189592925 | S33: TRUE | T33: 0 | U33: 0 | V33: 0 | W33: 0
A34: Ok | C34: SINGLE MINOR RD REPLACEMENT | D34: JEN | E34: Per cent | F34: N/A | G34: N/A | H34: RLM | M34: 0.2836407323 | N34: 0.3896654087 | O34: 0.2994199072 | P34: 0.02727395175 | S34: TRUE | T34: 0 | U34: 0 | V34: 0 | W34: 0
A35: Ok | C35: SINGLE LANTERN & BRACKET REPLACEMENT - MAIN RD | D35: JEN | E35: Per cent | F35: N/A | G35: N/A | H35: RLN | M35: 0.4213645493 | N35: 0.3139000429 | O35: 0.2172516112 | P35: 0.0474837965 | S35: TRUE | T35: 0 | U35: 0 | V35: 0 | W35: 0
A36: Ok | C36: SINGLE LANTERN & BRACKET REPLACEMENT - MINOR RD | D36: JEN | E36: Per cent | F36: N/A | G36: N/A | H36: RLO | M36: 0.5184928815 | N36: 0.1960005156 | O36: 0.2350869069 | P36: 0.05041969604 | S36: TRUE | T36: 0 | U36: 0 | V36: 0 | W36: 0
A37: Ok | C37: REPLACE WATCHMAN/SECURITY LIGHTS | D37: JEN | E37: Per cent | F37: N/A | G37: N/A | H37: RLW | M37: 0.3998682732 | N37: 0.1779545975 | O37: 0.3885390108 | P37: 0.03363811862 | S37: TRUE | T37: 0 | U37: 0 | V37: 0 | W37: 0
A38: Ok | C38: REPLACE WATCHMAN/SECURITY LIGHTS - FORECAST PERIOD | D38: JEN | E38: Per cent | F38: N/A | G38: N/A | H38: RLW-f | M38: 0.3998682732 | N38: 0.1779545975 | O38: 0.3885390108 | P38: 0.03363811862 | S38: TRUE | T38: 0 | U38: 0 | V38: 0 | W38: 0
A39: Ok | C39: POLE REPLACE P/L - MAIN ROADS | D39: JEN | E39: Per cent | F39: N/A | G39: N/A | H39: RPA | M39: 0.5895334092 | N39: 0.2846238941 | O39: 0.07664794438 | P39: 0.04919475237 | S39: TRUE | T39: 0 | U39: 0 | V39: 0 | W39: 0
A40: Ok | C40: AMPACT CONNECTORS | D40: JEN | E40: Per cent | F40: N/A | G40: N/A | H40: PDA | M40: 0.7763372674 | N40: 0 | O40: 3.467489377e-05 | P40: 0.2236280577 | S40: TRUE | T40: 0 | U40: 0 | V40: 0 | W40: 0
A41: Ok | C41: AMPACT SWITCH LUGS AND CONN. | D41: JEN | E41: Per cent | F41: N/A | G41: N/A | H41: PDB | M41: 0.6932282239 | N41: 0.1942791209 | O41: 0.05187516902 | P41: 0.06061748626 | S41: TRUE | T41: 0 | U41: 0 | V41: 0 | W41: 0
A42: Ok | C42: BIRD / ANIMAL PROOFING NETWORK ASSETS | D42: JEN | E42: Per cent | F42: N/A | G42: N/A | H42: PDS | M42: 0.473601221 | N42: 0.1100267091 | O42: 0.0888571179 | P42: 0.327514952 | S42: TRUE | T42: 0 | U42: 0 | V42: 0 | W42: 0
A43: Ok | C43: DISTRIBUTION SUBSTATION - POWER QUALITY | D43: JEN | E43: =percent -> Per cent | F43: N/A | G43: N/A | H43: PQA | M43: 0.5373170534 | N43: 0.1682874797 | O43: 0.2576254148 | P43: 0.03677005211 | S43: TRUE | T43: 0 | U43: 0 | V43: 0 | W43: 0
A44: Ok | C44: REMOTE MONITORING AND CONTROL SCHEME | D44: JEN | E44: Per cent | F44: N/A | G44: N/A | H44: PRA | M44: 0.4623677959 | N44: 0.1148221559 | O44: 0.3430791218 | P44: 0.0797309264 | S44: TRUE | T44: 0 | U44: 0 | V44: 0 | W44: 0
A45: Ok | C45: VOLTAGE CONTROL SCHEMES | D45: JEN | E45: Per cent | F45: N/A | G45: N/A | H45: PSA | M45: 0.3356252741 | N45: 0.4152448357 | O45: 0.2357089567 | P45: 0.01342093346 | S45: TRUE | T45: 0 | U45: 0 | V45: 0 | W45: 0
A46: Ok | C46: SUBTRANS./COMMS/PROTECTION SYSTEM REPL. | D46: JEN | E46: Per cent | F46: N/A | G46: N/A | H46: RCA | M46: 0.4612831539 | N46: 0.2013029337 | O46: 0.2833188394 | P46: 0.05409507299 | S46: TRUE | T46: 0 | U46: 0 | V46: 0 | W46: 0
A47: Ok | C47: TRANSFORMER POLE MOUNTED | D47: JEN | E47: Per cent | F47: N/A | G47: N/A | H47: RHA | M47: 0.3134803941 | N47: 0.2173275354 | O47: 0.4378782546 | P47: 0.03131381595 | S47: TRUE | T47: 0 | U47: 0 | V47: 0 | W47: 0
A48: Ok | C48: TRANSFORMER GROUND/INDOOR | D48: JEN | E48: Per cent | F48: N/A | G48: N/A | H48: RHD | M48: 0.4088952146 | N48: 0.03570733525 | O48: 0.5138994454 | P48: 0.04149800477 | S48: TRUE | T48: 0 | U48: 0 | V48: 0 | W48: 0
A49: Ok | C49: INDOOR/KIOSK SWG, RMU AGE & FAULT REPL. | D49: JEN | E49: Per cent | F49: N/A | G49: N/A | H49: RHE | M49: 0.3897263153 | N49: 0.03041585987 | O49: 0.1443256826 | P49: 0.4355321422 | S49: TRUE | T49: 0 | U49: 0 | V49: 0 | W49: 0
A50: Ok | C50: LV SWITCHGEAR REPLACEMENT | D50: JEN | E50: Per cent | F50: N/A | G50: N/A | H50: RHF | M50: 0.6893947715 | N50: 0 | O50: 0.2971221441 | P50: 0.01348308436 | S50: TRUE | T50: 0 | U50: 0 | V50: 0 | W50: 0
A51: Ok | C51: GAS SWITCH REPLACEMENT | D51: JEN | E51: Per cent | F51: N/A | G51: N/A | H51: RHG | M51: 0.4647096142 | N51: 0.1468507944 | O51: 0.3345987996 | P51: 0.05384079177 | S51: TRUE | T51: 0 | U51: 0 | V51: 0 | W51: 0
A52: Ok | C52: HV ISOLATORS | D52: JEN | E52: Per cent | F52: N/A | G52: N/A | H52: RHH | M52: 0.5422275505 | N52: 0.2908918048 | O52: 0.1204823867 | P52: 0.04639825801 | S52: TRUE | T52: 0 | U52: 0 | V52: 0 | W52: 0
A53: Ok | C53: TRANSFORMER/SUBSTATION KIOSK | D53: JEN | E53: Per cent | F53: N/A | G53: N/A | H53: RHK | M53: 0.2271135779 | N53: 0.07300466581 | O53: 0.66555449 | P53: 0.03432726633 | S53: TRUE | T53: 0 | U53: 0 | V53: 0 | W53: 0
A54: Ok | C54: LV ISOLATORS | D54: JEN | E54: Per cent | F54: N/A | G54: N/A | H54: RHL | M54: 0.7374394832 | N54: 0.09370919485 | O54: 0.122538914 | P54: 0.04631240795 | S54: TRUE | T54: 0 | U54: 0 | V54: 0 | W54: 0
A55: Ok | C55: KIOSK REFURBISHMENT | D55: JEN | E55: Per cent | F55: N/A | G55: N/A | H55: RHM | M55: 0.7471338853 | N55: 0.07183830982 | O55: 0.01258754135 | P55: 0.1684402635 | S55: TRUE | T55: 0 | U55: 0 | V55: 0 | W55: 0
A56: Ok | C56: SUBTRANSMISSION INSTALLATION REPLACEMENT | D56: JEN | E56: Per cent | F56: N/A | G56: N/A | H56: RSA | M56: 0.2777506367 | N56: 0.3838553718 | O56: 0.3218472578 | P56: 0.01654673373 | S56: TRUE | T56: 0 | U56: 0 | V56: 0 | W56: 0
A57: Ok | C57: HV U/G CABLE REPLACEMENT | D57: JEN | E57: Per cent | F57: N/A | G57: N/A | H57: RUA | M57: 0.3648921877 | N57: 0.4785400636 | O57: 0.1227570943 | P57: 0.03381065434 | S57: TRUE | T57: 0 | U57: 0 | V57: 0 | W57: 0
A58: Ok | C58: LV U/G CABLE REPLACEMENT | D58: JEN | E58: Per cent | F58: N/A | G58: N/A | H58: RUC | M58: 0.4107447468 | N58: 0.5151333805 | O58: 0.04637551359 | P58: 0.02774635918 | S58: TRUE | T58: 0 | U58: 0 | V58: 0 | W58: 0
A59: Ok | C59: PILLAR TO PIT | D59: JEN | E59: Per cent | F59: N/A | G59: N/A | H59: RUD | M59: 0.377502294 | N59: 0.5369876204 | O59: 0.04187743858 | P59: 0.04363264702 | S59: TRUE | T59: 0 | U59: 0 | V59: 0 | W59: 0
A60: Ok | C60: PILLAR TO PILLAR | D60: JEN | E60: Per cent | F60: N/A | G60: N/A | H60: RUF | M60: 0.377502294 | N60: 0.5369876204 | O60: 0.04187743858 | P60: 0.04363264702 | S60: TRUE | T60: 0 | U60: 0 | V60: 0 | W60: 0
A61: Ok | C61: HV U/G TERM REPLACEMENT | D61: JEN | E61: Per cent | F61: N/A | G61: N/A | H61: RUH | M61: 0.5366047665 | N61: 0.3458612293 | O61: 0.08098048718 | P61: 0.03655351696 | S61: TRUE | T61: 0 | U61: 0 | V61: 0 | W61: 0
A62: Ok | C62: LV U/G TERM REPLACEMENT | D62: JEN | E62: Per cent | F62: N/A | G62: N/A | H62: RUL | M62: 0.4471197548 | N62: 0.4937577124 | O62: 0.03457106631 | P62: 0.02455146652 | S62: TRUE | T62: 0 | U62: 0 | V62: 0 | W62: 0
A63: Ok | C63: ST U/G CABLE REPLACEMENT | D63: JEN | E63: Per cent | F63: N/A | G63: N/A | H63: RUS | M63: 0.9906644768 | N63: 0 | O63: 0 | P63: 0.009335523173 | S63: TRUE | T63: 0 | U63: 0 | V63: 0 | W63: 0
A64: Ok | C64: SURGE DIVERTER REPLACEMENT | D64: JEN | E64: Per cent | F64: N/A | G64: N/A | H64: RXD | M64: 0.5709831556 | N64: 0.3302719839 | O64: 0.05621421556 | P64: 0.04253064497 | S64: TRUE | T64: 0 | U64: 0 | V64: 0 | W64: 0
A65: Ok | C65: FUSE UNIT REPLACEMENT | D65: JEN | E65: Per cent | F65: N/A | G65: N/A | H65: RXF | M65: 0.6319052885 | N65: 0.04769222857 | O65: 0.270191391 | P65: 0.05021109197 | S65: TRUE | T65: 0 | U65: 0 | V65: 0 | W65: 0
A66: Ok | C66: SCADA SYSTEMS | D66: JEN | E66: Per cent | F66: N/A | G66: N/A | H66: GIS | M66: 0.2842657178 | N66: 1.8624709e-05 | O66: 0.1315122797 | P66: 0.5842033778 | S66: TRUE | T66: 0 | U66: 0 | V66: 0 | W66: 0
A67: Ok | C67: SUBTRANS SYSTEM AUG - CAPACITY RELATED | D67: JEN | E67: Per cent | F67: N/A | G67: N/A | H67: DOA | M67: 0.2638803371 | N67: 0.5106289726 | O67: 0.1975094322 | P67: 0.02798125813 | S67: TRUE | T67: 0 | U67: 0 | V67: 0 | W67: 0
A68: Ok | C68: HV NETWORK AUG - CAPACITY RELATED | D68: JEN | E68: Per cent | F68: N/A | G68: N/A | H68: DSH | M68: 0.3758317312 | N68: 0.3024995735 | O68: 0.2655866911 | P68: 0.05608200419 | S68: TRUE | T68: 0 | U68: 0 | V68: 0 | W68: 0
A69: Ok | C69: HV NETWORK AUG - NON CAPACITY RELATED | D69: JEN | E69: Per cent | F69: N/A | G69: N/A | H69: DSI | M69: 0.7350583406 | N69: 0.1488504766 | O69: 0.08982583698 | P69: 0.02626534578 | S69: TRUE | T69: 0 | U69: 0 | V69: 0 | W69: 0
A70: Ok | C70: DIST SUBSTATION AUG - CAPACITY RELATED | D70: JEN | E70: Per cent | F70: N/A | G70: N/A | H70: DSJ | M70: 0.4808831669 | N70: 0.229324414 | O70: 0.2563665107 | P70: 0.0334259083 | S70: TRUE | T70: 0 | U70: 0 | V70: 0 | W70: 0
A71: Ok | C71: LV NETWORK AUG - CAPACITY RELATED | D71: JEN | E71: Per cent | F71: N/A | G71: N/A | H71: DSL | M71: 0 | N71: 1 | O71: 0 | P71: 0 | S71: TRUE | T71: 0 | U71: 0 | V71: 0 | W71: 0
A72: Ok | C72: ZONE SUB AUG- CAPACITY RELATED | D72: JEN | E72: Per cent | F72: N/A | G72: N/A | H72: DZA | M72: 0.2389204307 | N72: 0.4945484784 | O72: 0.2542432822 | P72: 0.01228780865 | S72: TRUE | T72: 0 | U72: 0 | V72: 0 | W72: 0
A73: Ok | C73: NETWORK LAND PURCHASES | D73: JEN | E73: Per cent | F73: N/A | G73: N/A | H73: DZC | M73: 0 | N73: 0.9999835303 | O73: 0 | P73: 1.646967934e-05 | S73: TRUE | T73: 0 | U73: 0 | V73: 0 | W73: 0
A74: Ok | C74: ELECTIVE UNDERGROUNDING | D74: JEN | E74: Per cent | F74: N/A | G74: N/A | H74: CME | M74: 0.0006320977758 | N74: 0.9665620674 | O74: 0 | P74: 0.03280583484 | S74: TRUE | T74: 0 | U74: 0 | V74: 0 | W74: 0
A75: =IF(ROUND(SUM(M75:P75)-1,5)=0,"Ok","Check") -> Ok | C75: UG ROUTINE CONNECTIONS <100 AMPS | D75: JEN | E75: Per cent | F75: N/A | G75: N/A | H75: CMU | M75: 0.01793476318 | N75: 0.8839102232 | O75: 0.04519671173 | P75: 0.05295830188 | S75: TRUE | T75: 0 | U75: 0 | V75: 0 | W75: 0
A76: Ok | C76: UG ROUTINE CONNECTIONS >100 AMPS | D76: JEN | E76: Per cent | F76: N/A | G76: N/A | H76: CMV | M76: 0.01708538805 | N76: 0.1729620477 | O76: 0.0001124999543 | P76: =1-SUM(M76:O76) -> 0.8098400643 | S76: TRUE | T76: 0 | U76: 0 | V76: 0 | W76: 0
A77: Ok | C77: OH ROUTINE CONNECTION <100 AMPS | D77: JEN | E77: Per cent | F77: N/A | G77: N/A | H77: CMZ | M77: 0.03591837038 | N77: 0.5755921571 | O77: 0.3571358277 | P77: 0.03135364483 | S77: TRUE | T77: 0 | U77: 0 | V77: 0 | W77: 0
A78: Ok | C78: RECTIFICATION OF DAMAGED ASSETS - REC | D78: JEN | E78: Per cent | F78: N/A | G78: N/A | H78: CRB | M78: 0.4021897503 | N78: 0.4306755884 | O78: 0.1464414245 | P78: 0.02069323678 | S78: TRUE | T78: 0 | U78: 0 | V78: 0 | W78: 0
A79: Ok | C79: CAPITAL/REC WORKS - SUBTRANS ASSET | D79: JEN | E79: Per cent | F79: N/A | G79: N/A | H79: CRE | M79: 0.1545258455 | N79: 0.2405083015 | O79: 0.5949215987 | P79: 0.01004425431 | S79: TRUE | T79: 0 | U79: 0 | V79: 0 | W79: 0
A80: Ok | C80: CAP REC WORKS - IN LINE POLES / STAYS | D80: JEN | E80: Per cent | F80: N/A | G80: N/A | H80: CRP | M80: 0.3651151431 | N80: 0.2290724003 | O80: 0.3897731218 | P80: 0.01603933482 | S80: TRUE | T80: 0 | U80: 0 | V80: 0 | W80: 0
A81: Ok | C81: CAP REC WORKS - INTERSECTION REALIGNMENT | D81: JEN | E81: Per cent | F81: N/A | G81: N/A | H81: CRR | M81: 0.2963431167 | N81: 0.07085687939 | O81: 0.6156868747 | P81: 0.0171131292 | S81: TRUE | T81: 0 | U81: 0 | V81: 0 | W81: 0
A82: Ok | C82: CAP REC WORKS - SUBS. MODIFICATION | D82: JEN | E82: Per cent | F82: N/A | G82: N/A | H82: CRS | M82: 0.3064938036 | N82: 0.02189756242 | O82: 0.6494452058 | P82: 0.02216342815 | S82: TRUE | T82: 0 | U82: 0 | V82: 0 | W82: 0
A83: Ok | C83: CAP REC WORKS - UNDERGROUNDING OF ASSETS | D83: JEN | E83: Per cent | F83: N/A | G83: N/A | H83: CRU | M83: 0.3047332037 | N83: 0.4273707475 | O83: 0.2497210098 | P83: 0.01817503897 | S83: TRUE | T83: 0 | U83: 0 | V83: 0 | W83: 0
A84: Ok | C84: CAP REC WORKS - MAJOR VIC ROADS | D84: JEN | E84: Per cent | F84: N/A | G84: N/A | H84: CRV | M84: 0.5492103834 | N84: 0.1951875444 | O84: 0.2113503201 | P84: 0.04425175208 | S84: TRUE | T84: 0 | U84: 0 | V84: 0 | W84: 0
A85: Ok | C85: BUS. SUPPLY PROJECT>10KVA - LV EXTENSION | D85: JEN | E85: Per cent | F85: N/A | G85: N/A | H85: CBE | M85: 0.4455293133 | N85: 0.3714926225 | O85: 0.1529086462 | P85: 0.03006941805 | S85: TRUE | T85: 0 | U85: 0 | V85: 0 | W85: 0
A86: Ok | C86: BUS. SUPPLY PROJECT>10KVA - GROUND SUBS. | D86: JEN | E86: Per cent | F86: N/A | G86: N/A | H86: CBG | M86: 0.9619235595 | N86: 0 | O86: 1.547771122e-05 | P86: 0.03806096283 | S86: TRUE | T86: 0 | U86: 0 | V86: 0 | W86: 0
A87: Ok | C87: BUS. SUPPLY PROJECT>10KVA - HV CUSTOMERS | D87: JEN | E87: Per cent | F87: N/A | G87: N/A | H87: CBH | M87: 0.1748716688 | N87: 0.6278488434 | O87: 0.1771608227 | P87: 0.02011866514 | S87: TRUE | T87: 0 | U87: 0 | V87: 0 | W87: 0
A88: Ok | C88: BUS. SUPPLY PROJECT>10KVA - INDOOR SUBS. | D88: JEN | E88: Per cent | F88: N/A | G88: N/A | H88: CBI | M88: 0.275842646 | N88: 0.3929036203 | O88: 0.2883189021 | P88: 0.04293483162 | S88: TRUE | T88: 0 | U88: 0 | V88: 0 | W88: 0
A89: Ok | C89: BUS. SUPPLY PROJECT>10KVA - KIOSK SUBS. | D89: JEN | E89: Per cent | F89: N/A | G89: N/A | H89: CBK | M89: 0.2735301634 | N89: 0.2822691708 | O89: 0.4148555498 | P89: 0.02934511598 | S89: TRUE | T89: 0 | U89: 0 | V89: 0 | W89: 0
A90: Ok | C90: BUS. SUPPLY PROJECT>10KVA-LINE OF MAINS | D90: JEN | E90: Per cent | F90: N/A | G90: N/A | H90: CBL | M90: 0.2735301634 | N90: 0.2822691708 | O90: 0.4148555498 | P90: 0.02934511598 | S90: TRUE | T90: 0 | U90: 0 | V90: 0 | W90: 0
A91: Ok | C91: BUS. SUPPLY PROJECT>10KVA - POLE SUBS. | D91: JEN | E91: Per cent | F91: N/A | G91: N/A | H91: CBP | M91: 0.4133094163 | N91: 0.2651898938 | O91: 0.2966373318 | P91: 0.02486335817 | S91: TRUE | T91: 0 | U91: 0 | V91: 0 | W91: 0
A92: Ok | C92: BUS. SUPPLY PROJECT>10KVA - SUBS. MOD. | D92: JEN | E92: Per cent | F92: N/A | G92: N/A | H92: CBS | M92: 0.4585136777 | N92: 0.2158429309 | O92: 0.3009458105 | P92: 0.02469758085 | S92: TRUE | T92: 0 | U92: 0 | V92: 0 | W92: 0
A93: Ok | C93: BUS. SUPPLY PROJECT>10KVA - LV EXTENSION (PREMISES ASSETS) | D93: JEN | E93: Per cent | F93: N/A | G93: N/A | H93: CBE-p | M93: 0.4455293133 | N93: 0.3714926225 | O93: 0.1529086462 | P93: 0.03006941805 | S93: TRUE | T93: 0 | U93: 0 | V93: 0 | W93: 0
A94: Ok | C94: BUS. SUPPLY PROJECT>10KVA - GROUND SUBS. (PREMISES ASSETS) | D94: JEN | E94: Per cent | F94: N/A | G94: N/A | H94: CBG-p | M94: 0.9619235595 | N94: 0 | O94: 1.547771122e-05 | P94: 0.03806096283 | S94: TRUE | T94: 0 | U94: 0 | V94: 0 | W94: 0
A95: Ok | C95: BUS. SUPPLY PROJECT>10KVA - HV CUSTOMERS (PREMISES ASSETS) | D95: JEN | E95: Per cent | F95: N/A | G95: N/A | H95: CBH-p | M95: 0.1748716688 | N95: 0.6278488434 | O95: 0.1771608227 | P95: 0.02011866514 | S95: TRUE | T95: 0 | U95: 0 | V95: 0 | W95: 0
A96: Ok | C96: BUS. SUPPLY PROJECT>10KVA - INDOOR SUBS. (PREMISES ASSETS) | D96: JEN | E96: Per cent | F96: N/A | G96: N/A | H96: CBI-p | M96: 0.275842646 | N96: 0.3929036203 | O96: 0.2883189021 | P96: 0.04293483162 | S96: TRUE | T96: 0 | U96: 0 | V96: 0 | W96: 0
A97: Ok | C97: BUS. SUPPLY PROJECT>10KVA - KIOSK SUBS. (PREMISES ASSETS) | D97: JEN | E97: Per cent | F97: N/A | G97: N/A | H97: CBK-p | M97: 0.2735301634 | N97: 0.2822691708 | O97: 0.4148555498 | P97: 0.02934511598 | S97: TRUE | T97: 0 | U97: 0 | V97: 0 | W97: 0
A98: Ok | C98: BUS. SUPPLY PROJECT>10KVA - POLE SUBS. (PREMISE ASSETS) | D98: JEN | E98: Per cent | F98: N/A | G98: N/A | H98: CBP-p | M98: 0.4133094163 | N98: 0.2651898938 | O98: 0.2966373318 | P98: 0.02486335817 | S98: TRUE | T98: 0 | U98: 0 | V98: 0 | W98: 0
A99: Ok | C99: BUS. SUPPLY PROJECT>10KVA - SUBS. MOD. (PREMISE ASSETS) | D99: JEN | E99: Per cent | F99: N/A | G99: N/A | H99: CBS-p | M99: 0.4585136777 | N99: 0.2158429309 | O99: 0.3009458105 | P99: 0.02469758085 | S99: TRUE | T99: 0 | U99: 0 | V99: 0 | W99: 0
A100: Ok | C100: POLE TO PIT INSTALLED | D100: JEN | E100: Per cent | F100: N/A | G100: N/A | H100: CDA | M100: 0.03504506297 | N100: 0.8450309093 | O100: 0.1136364642 | P100: 0.006287563505 | S100: TRUE | T100: 0 | U100: 0 | V100: 0 | W100: 0
A101: Ok | C101: POLE TO PIT INSTALLED (PREMISES ASSETS) | D101: JEN | E101: Per cent | F101: N/A | G101: N/A | H101: CDA-p | M101: 0.03504506297 | N101: 0.8450309093 | O101: 0.1136364642 | P101: 0.006287563505 | S101: TRUE | T101: 0 | U101: 0 | V101: 0 | W101: 0
A102: Ok | C102: MEDIUM DENSITY HOUSING - HV EXTENSION | D102: JEN | E102: Per cent | F102: N/A | G102: N/A | H102: CHH | M102: 0.1229811311 | N102: 0.3843595515 | O102: 0.4632110117 | P102: 0.02944830581 | S102: TRUE | T102: 0 | U102: 0 | V102: 0 | W102: 0
A103: Ok | C103: MEDIUM DENSITY HOUSING-LV EXTENSION ONLY | D103: JEN | E103: Per cent | F103: N/A | G103: N/A | H103: CHL | M103: 0.1388084041 | N103: 0.3415356127 | O103: 0.5089963769 | P103: 0.01065960631 | S103: TRUE | T103: 0 | U103: 0 | V103: 0 | W103: 0
A104: Ok | C104: LOW DENSITY/SMALL BUS DEV<10KVA - OH EXT | D104: JEN | E104: Per cent | F104: N/A | G104: N/A | H104: CSO | M104: 0 | N104: 1 | O104: 0 | P104: 0 | S104: TRUE | T104: 0 | U104: 0 | V104: 0 | W104: 0
A105: Ok | C105: LOW DENSITY/SMALL BUS DEV<10KVA UG EXT | D105: JEN | E105: Per cent | F105: N/A | G105: N/A | H105: CSU | M105: 0 | N105: 0.9999999565 | O105: 0 | P105: 4.353510352e-08 | S105: TRUE | T105: 0 | U105: 0 | V105: 0 | W105: 0
A106: Ok | C106: MEDIUM DENSITY HOUSING - HV EXTENSION (PREMISES ASSETS) | D106: JEN | E106: Per cent | F106: N/A | G106: N/A | H106: CHH-p | M106: 0.1229811311 | N106: 0.3843595515 | O106: 0.4632110117 | P106: 0.02944830581 | S106: TRUE | T106: 0 | U106: 0 | V106: 0 | W106: 0
A107: Ok | C107: MEDIUM DENSITY HOUSING-LV EXTENSION ONLY (PREMISES ASSETS) | D107: JEN | E107: Per cent | F107: N/A | G107: N/A | H107: CHL-p | M107: 0.1388084041 | N107: 0.3415356127 | O107: 0.5089963769 | P107: 0.01065960631 | S107: TRUE | T107: 0 | U107: 0 | V107: 0 | W107: 0
A108: Ok | C108: LOW DENSITY/SMALL BUS DEV<10KVA - OH EXT (PREMISES ASSETS) | D108: JEN | E108: Per cent | F108: N/A | G108: N/A | H108: CSO-p | M108: 0 | N108: 1 | O108: 0 | P108: 0 | S108: TRUE | T108: 0 | U108: 0 | V108: 0 | W108: 0
A109: Ok | C109: LOW DENSITY/SMALL BUS DEV<10KVA UG EXT (PREMISES ASSETS) | D109: JEN | E109: =percent -> Per cent | F109: N/A | G109: N/A | H109: CSU-p | M109: 0 | N109: 0.9999999565 | O109: 0 | P109: 4.353510352e-08 | S109: TRUE | T109: 0 | U109: 0 | V109: 0 | W109: 0
A110: Ok | C110: AMI METER EXCHANGES | D110: JEN | E110: Per cent | F110: N/A | G110: N/A | H110: A10 | M110: 0.125438103 | N110: 0.2785287833 | O110: 0.006222396157 | P110: 0.5898107175 | S110: TRUE | T110: 0 | U110: 0 | V110: 0 | W110: 0
A111: Ok | C111: MULTI PHASE BASIC METER | D111: JEN | E111: Per cent | F111: N/A | G111: N/A | H111: VM9 | M111: 0 | N111: 0 | O111: 0.9290439982 | P111: 0.07095600181 | S111: TRUE | T111: 0 | U111: 0 | V111: 0 | W111: 0
A112: Ok | C112: ELECTRICITY ACS METERING | D112: JEN | E112: Per cent | F112: N/A | G112: N/A | H112: VMM | M112: 0.0002016751175 | N112: 0.05198179095 | O112: 0.9477774942 | P112: 3.903971911e-05 | S112: TRUE | T112: 0 | U112: 0 | V112: 0 | W112: 0
A113: Ok | C113: SINGLE PHASE METER | D113: JEN | E113: Per cent | F113: N/A | G113: N/A | H113: VMS | M113: 0 | N113: 0 | O113: 0 | P113: 1 | S113: TRUE | T113: 0 | U113: 0 | V113: 0 | W113: 0
A114: Ok | C114: 1 PH INTERVAL 1 CHANNEL | D114: JEN | E114: Per cent | F114: N/A | G114: N/A | H114: VMW | M114: 0 | N114: 1 | O114: 0 | P114: 0 | S114: TRUE | T114: 0 | U114: 0 | V114: 0 | W114: 0
A115: Ok | C115: 1 PH INTERVAL 2 CHANNEL | D115: JEN | E115: Per cent | F115: N/A | G115: N/A | H115: VMX | M115: 0 | N115: 1 | O115: 0 | P115: 0 | S115: TRUE | T115: 0 | U115: 0 | V115: 0 | W115: 0
A116: Ok | C116: SINGLE PH INTERVAL METER PURCH | D116: JEN | E116: Per cent | F116: N/A | G116: N/A | H116: VS3 | M116: 0 | N116: 0 | O116: 1 | P116: 0 | S116: TRUE | T116: 0 | U116: 0 | V116: 0 | W116: 0
A117: Ok | C117: PUBLIC LIGHTING PROJ- MAJOR INTERSECTION | D117: JEN | E117: Per cent | F117: N/A | G117: N/A | H117: CLA | M117: 0.2801085537 | N117: 0.07286468267 | O117: 0.6254557157 | P117: 0.02157104794 | S117: TRUE | T117: 0 | U117: 0 | V117: 0 | W117: 0
A118: Ok | C118: PUBLIC LIGHTING PROJECT - MINOR INTERS. | D118: JEN | E118: Per cent | F118: N/A | G118: N/A | H118: CLI | M118: 0.2818165926 | N118: 0.1923302663 | O118: 0.5162128219 | P118: 0.009640319234 | S118: TRUE | T118: 0 | U118: 0 | V118: 0 | W118: 0
A119: Ok | C119: PUBLIC LIGHTING PROJECT - MAJOR SCHEME | D119: JEN | E119: Per cent | F119: N/A | G119: N/A | H119: CLJ | M119: 0.3389592193 | N119: 0.06713522669 | O119: 0.571045034 | P119: 0.02286051998 | S119: TRUE | T119: 0 | U119: 0 | V119: 0 | W119: 0
A120: Ok | C120: PUBLIC LIGHTING PROJECT - MINOR SCHEME | D120: JEN | E120: Per cent | F120: N/A | G120: N/A | H120: CLN | M120: 0.2930215375 | N120: 0.225109721 | O120: 0.4732882544 | P120: 0.008580487061 | S120: TRUE | T120: 0 | U120: 0 | V120: 0 | W120: 0
A121: Ok | C121: SUSTAINABLE LIGHT | D121: JEN | E121: Per cent | F121: N/A | G121: N/A | H121: CNG | M121: 0.03357204775 | N121: 0.2440977906 | O121: 0.7210511456 | P121: 0.001279016017 | S121: TRUE | T121: 0 | U121: 0 | V121: 0 | W121: 0
A122: Ok | C122: SINGLE LIGHT MAIN ROAD | D122: JEN | E122: Per cent | F122: N/A | G122: N/A | H122: CNJ | M122: 0.6635133519 | N122: 0.2504939204 | O122: 0.07847836574 | P122: 0.007514361942 | S122: TRUE | T122: 0 | U122: 0 | V122: 0 | W122: 0
A123: Ok | C123: SINGLE LIGHT MINOR ROAD | D123: JEN | E123: Per cent | F123: N/A | G123: N/A | H123: CNM | M123: 0.5875828137 | N123: 0.1837357656 | O123: 0.1899805098 | P123: 0.03870091092 | S123: TRUE | T123: 0 | U123: 0 | V123: 0 | W123: 0
A124: Ok | C124: PUBLIC LIGHTING PROJ- MAJOR INTERSECTION - FORECAST PERIOD | D124: JEN | E124: Per cent | F124: N/A | G124: N/A | H124: CLA-f | M124: 0.2801085537 | N124: 0.07286468267 | O124: 0.6254557157 | P124: 0.02157104794 | S124: TRUE | T124: 0 | U124: 0 | V124: 0 | W124: 0
A125: Ok | C125: PUBLIC LIGHTING PROJECT - MINOR INTERS. - FORECAST PERIOD | D125: JEN | E125: Per cent | F125: N/A | G125: N/A | H125: CLI-f | M125: 0.2818165926 | N125: 0.1923302663 | O125: 0.5162128219 | P125: 0.009640319234 | S125: TRUE | T125: 0 | U125: 0 | V125: 0 | W125: 0
A126: Ok | C126: PUBLIC LIGHTING PROJECT - MAJOR SCHEME - FORECAST PERIOD | D126: JEN | E126: Per cent | F126: N/A | G126: N/A | H126: CLJ-f | M126: 0.3389592193 | N126: 0.06713522669 | O126: 0.571045034 | P126: 0.02286051998 | S126: TRUE | T126: 0 | U126: 0 | V126: 0 | W126: 0
A127: Ok | C127: PUBLIC LIGHTING PROJECT - MINOR SCHEME - FORECAST PERIOD | D127: JEN | E127: Per cent | F127: N/A | G127: N/A | H127: CLN-f | M127: 0.2930215375 | N127: 0.225109721 | O127: 0.4732882544 | P127: 0.008580487061 | S127: TRUE | T127: 0 | U127: 0 | V127: 0 | W127: 0
A128: Ok | C128: SUSTAINABLE LIGHT - FORECAST PERIOD | D128: JEN | E128: Per cent | F128: N/A | G128: N/A | H128: CNG-f | M128: 0.03357204775 | N128: 0.2440977906 | O128: 0.7210511456 | P128: 0.001279016017 | S128: TRUE | T128: 0 | U128: 0 | V128: 0 | W128: 0
A129: Ok | C129: SINGLE LIGHT MAIN ROAD - FORECAST PERIOD | D129: JEN | E129: Per cent | F129: N/A | G129: N/A | H129: CNJ-f | M129: 0.6635133519 | N129: 0.2504939204 | O129: 0.07847836574 | P129: 0.007514361942 | S129: TRUE | T129: 0 | U129: 0 | V129: 0 | W129: 0
A130: Ok | C130: SINGLE LIGHT MINOR ROAD - FORECAST PERIOD | D130: JEN | E130: Per cent | F130: N/A | G130: N/A | H130: CNM-f | M130: 0.5875828137 | N130: 0.1837357656 | O130: 0.1899805098 | P130: 0.03870091092 | S130: TRUE | T130: 0 | U130: 0 | V130: 0 | W130: 0
A131: Ok | C131: WATCHMAN/SECURITY LIGHTS | D131: JEN | E131: Per cent | F131: N/A | G131: N/A | H131: CNW | M131: 0.5091561006 | N131: 0.3206656883 | O131: 0.120932186 | P131: 0.0492460251 | S131: TRUE | T131: 0 | U131: 0 | V131: 0 | W131: 0
A132: Ok | C132: WATCHMAN/SECURITY LIGHTS - FORECAST PERIOD | D132: JEN | E132: Per cent | F132: N/A | G132: N/A | H132: CNW-f | M132: 0.5091561006 | N132: 0.3206656883 | O132: 0.120932186 | P132: 0.0492460251 | S132: TRUE | T132: 0 | U132: 0 | V132: 0 | W132: 0
A133: Ok | C133: OTHER UNREGULATED CAPEX | D133: JEN | E133: Per cent | F133: N/A | G133: N/A | H133: COU | M133: 0.1900560394 | N133: 0.6639332303 | O133: 0.02493703629 | P133: 0.121073694 | S133: TRUE | T133: 0 | U133: 0 | V133: 0 | W133: 0
A134: Ok | C134: GENERAL EQUIPMENT | D134: JEN | E134: Per cent | F134: N/A | G134: N/A | H134: GEA | M134: 0 | N134: 0 | O134: 0.9999999799 | P134: 2.012658551e-08 | S134: TRUE | T134: 0 | U134: 0 | V134: 0 | W134: 0
A135: Ok | C135: PROPERTY PROJECTS | D135: JEN | E135: Per cent | F135: N/A | G135: N/A | H135: GPA | M135: 0.008836083398 | N135: 0.8660591039 | O135: 0.01419345373 | P135: 0.110911359 | S135: TRUE | T135: 0 | U135: 0 | V135: 0 | W135: 0
A136: Ok | C136: VEHICLES | D136: JEN | E136: Per cent | F136: N/A | G136: N/A | H136: GVA | M136: 0 | N136: 0 | O136: 0.6634159896 | P136: 0.3365840104 | S136: TRUE | T136: 0 | U136: 0 | V136: 0 | W136: 0
A137: Ok | C137: IT APPLICATIONS | D137: JEN | E137: Per cent | F137: N/A | G137: N/A | H137: GID | M137: 0.3492946736 | N137: 0.1942313942 | O137: 0 | P137: 0.4564739322 | S137: TRUE | T137: 0 | U137: 0 | V137: 0 | W137: 0
A138: Ok | C138: IT INFRASTRUCTURE | D138: JEN | E138: Per cent | F138: N/A | G138: N/A | H138: GII | M138: 0.2473932658 | N138: 0.2050679301 | O138: 0.1106922463 | P138: 0.4368465579 | S138: TRUE | T138: 0 | U138: 0 | V138: 0 | W138: 0
A139: =IF(ROUND(SUM(M139:P139)-1,5)=0,"Ok","Check") -> Ok | C139: ACS METERING IT & COMMUNICATIONS | D139: JEN | E139: Per cent | F139: N/A | G139: N/A | H139: GIN | M139: 0.9356244382 | N139: 3.105661968e-05 | O139: 0.002090238269 | P139: 0.06225426693 | S139: TRUE | T139: 0 | U139: 0 | V139: 0 | W139: 0
A140: Ok | C140: ACS METERING IT & COMMUNICATION - SOFTWARE | D140: JEN | E140: Per cent | F140: N/A | G140: N/A | H140: GIN-S | M140: 0.9356244382 | N140: 3.105661968e-05 | O140: 0.002090238269 | P140: =1-SUM(M140:O140) -> 0.06225426693 | S140: TRUE | T140: 0 | U140: 0 | V140: 0 | W140: 0
A141: Ok | C141: ACS METERING IT & COMMUNICATION - GENERAL | D141: JEN | E141: Per cent | F141: N/A | G141: N/A | H141: GIN-H | M141: 0.9356244382 | N141: 3.105661968e-05 | O141: 0.002090238269 | P141: 0.06225426693 | S141: TRUE | T141: 0 | U141: 0 | V141: 0 | W141: 0
A142: Ok | C142: TRUCKS | D142: JEN | E142: Per cent | F142: N/A | G142: N/A | H142: GTA | M142: =M$147 -> 0.2640901951 | N142: =N$147 -> 0.3947836632 | O142: 0.2185572629 | P142: 0.1225688787 | S142: TRUE | T142: 0 | U142: 0 | V142: 0 | W142: 0
A143: Ok | C143: ZONE SUB AUG - NON CAPACITY RELATED | D143: JEN | E143: Per cent | F143: N/A | G143: N/A | H143: DZB | M143: =M$147 -> 0.2640901951 | N143: 0.3947836632 | O143: 0.2185572629 | P143: 0.1225688787 | S143: TRUE | T143: 0 | U143: 0 | V143: 0 | W143: 0
A144: Ok | C144: LV NETWORK AUG - POWER QUALITY | D144: JEN | E144: Per cent | F144: N/A | G144: N/A | H144: PQB | M144: =M$147 -> 0.2640901951 | N144: 0.3947836632 | O144: 0.2185572629 | P144: 0.1225688787 | S144: TRUE | T144: 0 | U144: 0 | V144: 0 | W144: 0
A145: Ok | C145: OVERHEAD LINE FAULT INDICATORS | D145: JEN | E145: Per cent | F145: N/A | G145: N/A | H145: PDO | M145: =M$147 -> 0.2640901951 | N145: 0.3947836632 | O145: 0.2185572629 | P145: 0.1225688787 | S145: TRUE | T145: 0 | U145: 0 | V145: 0 | W145: 0
A146: Ok | C146: SUBTRANS SYSTEM AUG - NON CAPACITY RELATED | D146: JEN | E146: Per cent | F146: N/A | G146: N/A | H146: DOB | M146: =M$147 -> 0.2640901951 | N146: 0.3947836632 | O146: 0.2185572629 | P146: 0.1225688787 | S146: TRUE | T146: 0 | U146: 0 | V146: 0 | W146: 0
A147: Ok | C147: Total JEN | D147: JEN | E147: Per cent | F147: N/A | G147: N/A | H147: Total | M147: 0.2640901951 | N147: 0.3947836632 | O147: 0.2185572629 | P147: 0.1225688787 | S147: TRUE | T147: 0 | U147: 0 | V147: 0 | W147: 0
B149: End

Sheet Input|Forecast
C1: =Index!C1 -> JEN 2021-26 Capex Forecast Model | E1: Section Check: | F1: =IF(COUNTIF($A7:$A585,"OK")=COUNTA($A7:$A585),"OK","Check") -> OK | U1: Key: | V1: Input (hard code) | W1: External Link | X1: Internal Link | Y1: Drop down Selection | Z1: Calculation | AA1: Unique calculation | AB1: Empty cell | AJ1: JEN Reopener Application Updates
C2: =MID(CELL("filename",A1),FIND("]",CELL("filename",A1))+1,255) -> Input|Forecast | E2: Overall Check: | F2: ='Check|List'!$F$2 -> OK
AJ3: 2019 | AK3: 2020 | AL3: 2022 | AM3: 2023 | AN3: 2024 | AO3: 2025 | AP3: 2026
B5: Copyright Jemena Limited. All rights reserved. Jemena is not liable for any loss caused by reliance on this document.
B7: Detailed project costs
C9: Project listing | W9: Include? | X9: Proportion of direct unescalated capex | AD9: Proportion of total capex | AH9: 7 Years | AJ9: Direct unescalated capex (Real 2018 - Mid Period)
C11: Project name | D11: Project ID | E11: Service code | F11: =Mapping_1 -> AER Service | G11: =Mapping_2 -> AER reset RIN categories (Level One) | H11: =Mapping_3 -> AER reset RIN categories (Level Two) | I11: ='Lookup|Tables'!$C$167 -> AER reset RIN categories (Level Three) | J11: ='Lookup|Tables'!$C$222 -> AER RAB asset class (Current) | K11: =Mapping_6 -> AER RAB asset class (Forecast) | L11: =Mapping_7 -> AER TAB asset class | M11: =Mapping_8 -> ATO Tax asset class | N11: =Mapping_4 -> Expenditure Driver / Nature | O11: =Mapping_5 -> Augex Categorisation | P11: ='Lookup|Tables'!$C$355 -> IT RIN Categories | Q11: ='Lookup|Tables'!$C$376 -> IT Investment Brief | R11: ='Lookup|Tables'!$C$413 -> IT Assessment Category | S11: Unit | T11: Basis | U11: ATO Life | V11: % ATO Expensed? | W11: Overheads | X11: ="Cash Cont CY"&RIGHT(AJ$3,2) -> Cash Cont CY19 | Y11: ="Cash Cont CY"&RIGHT(AK$3,2) -> Cash Cont CY20 | Z11: ="Cash Cont FY"&RIGHT(AL$3,2)&" onwards" -> Cash Cont FY22 onwards | AA11: ="Gifted Assets less Rebates CY"&RIGHT(AJ$3,2) -> Gifted Assets less Rebates CY19 | AB11: ="Gifted Assets less Rebates CY"&RIGHT(AK$3,2) -> Gifted Assets less Rebates CY20 | AC11: ="Gifted Assets less Rebates FY"&RIGHT(AL$3,2)&" onwards" -> Gifted Assets less Rebates FY22 onwards | AD11: ="Asset Disposals CY"&RIGHT(AJ$3,2) -> Asset Disposals CY19 | AE11: ="Asset Disposals CY"&RIGHT(AK$3,2) -> Asset Disposals CY20 | AF11: ="Asset Disposals FY"&RIGHT(AL$3,2)&" onwards" -> Asset Disposals FY22 onwards | AH11: ="Total - "&AH9 -> Total - 7 Years | AJ11: CY19 | AK11: CY20 | AL11: FY22 | AM11: FY23 | AN11: FY24 | AO11: FY25 | AP11: FY26
C12: BUS. SUPPLY PROJECT>10KVA - LV EXTENSION | D12: A337 | E12: CBE | F12: SCS | G12: Connections [SCS] | H12: Connections: Commercial/Industrial [SCS] | I12: Commercial/Industrial [SCS] | J12: SCS - Distribution system assets | K12: SCS - Distribution system assets | L12: SCS - Distribution system assets | M12: Distribution lines: Above ground (incorporating conductors; cross arms, insulators and fittings; poles – concrete, wood, steel or stobie; and transformers – pole or ground pad mounted) | N12: Routine (repex/connections) | O12: Non Augex | P12: Non-IT | Q12: Non-IT | R12: Non-IT | S12: =Input_Unit -> $dollars | T12: =Input_Dollar_Basis -> CY 2018 | U12: 45 | V12: 0 | W12: =IF(E12="",No, IF(ISERROR(MATCH(E12,'Calc|OH'!$H$24:$H$36,0)),Yes,No)) -> Yes | X12: 0 | Y12: 0 | Z12: 0.319 | AA12: 0 | AB12: 0 | AC12: 0 | AD12: =IF(ISERROR(MATCH($K12,'Input|Historical'!$C$80:$C$100,0)),0, INDEX('Input|Historical'!$P$80:$P$100,MATCH($K12,'Input|Historical'!$C$80:$C$100,0))) -> 0 | AE12: =IF(ISERROR(MATCH($K12,'Input|Historical'!$C$80:$C$100,0)),0, INDEX('Input|Historical'!$P$80:$P$100,MATCH($K12,'Input|Historical'!$C$80:$C$100,0))) -> 0 | AF12: =IF(ISERROR(MATCH($K12,'Input|Historical'!$C$80:$C$100,0)),0, INDEX('Input|Historical'!$P$80:$P$100,MATCH($K12,'Input|Historical'!$C$80:$C$100,0))) -> 0 | AH12: =SUM(AJ12:AP12) -> 11376811 | AL12: =1248907.0354183/AT15 -> 2153287.992 | AM12: 2200319.782 | AN12: 2272308.025 | AO12: 2341067.743 | AP12: 2409827.462 | AS12: 0
C13: BUS. SUPPLY PROJECT>10KVA - GROUND SUBS. | D13: A338 | E13: CBG | F13: SCS | G13: Connections [SCS] | H13: Connections: Commercial/Industrial [SCS] | I13: Commercial/Industrial [SCS] | J13: SCS - Distribution system assets | K13: SCS - Distribution system assets | L13: SCS - Distribution system assets | M13: Distribution substations/transformers, pole or ground pad mounted | N13: Routine (repex/connections) | O13: Non Augex | P13: Non-IT | Q13: Non-IT | R13: Non-IT | S13: $dollars | T13: CY 2018 | U13: 40 | V13: 0 | W13: =IF(E13="",No, IF(ISERROR(MATCH(E13,'Calc|OH'!$H$24:$H$36,0)),Yes,No)) -> Yes | X13: 0 | Y13: 0 | Z13: 0 | AA13: 0 | AB13: 0 | AC13: 0 | AD13: =IF(ISERROR(MATCH($K13,'Input|Historical'!$C$80:$C$100,0)),0, INDEX('Input|Historical'!$P$80:$P$100,MATCH($K13,'Input|Historical'!$C$80:$C$100,0))) -> 0 | AE13: =IF(ISERROR(MATCH($K13,'Input|Historical'!$C$80:$C$100,0)),0, INDEX('Input|Historical'!$P$80:$P$100,MATCH($K13,'Input|Historical'!$C$80:$C$100,0))) -> 0 | AF13: =IF(ISERROR(MATCH($K13,'Input|Historical'!$C$80:$C$100,0)),0, INDEX('Input|Historical'!$P$80:$P$100,MATCH($K13,'Input|Historical'!$C$80:$C$100,0))) -> 0 | AH13: =SUM(AJ13:AP13) -> 0 | AL13: 0 | AM13: 0 | AN13: 0 | AO13: 0 | AP13: 0 | AS13: 0
C14: Business Supply >10kVA - HV customers | D14: A1 | E14: CBH | F14: SCS | G14: Connections [SCS] | H14: Connections: Commercial/Industrial [SCS] | I14: Commercial/Industrial [SCS] | J14: SCS - Distribution system assets | K14: SCS - Distribution system assets | L14: SCS - Distribution system assets | M14: Distribution lines: Combination of above ground and underground | N14: Routine (repex/connections) | O14: Non Augex | P14: Non-IT | Q14: Non-IT | R14: Non-IT | S14: $dollars | T14: CY 2018 | U14: 47.5 | V14: 0 | W14: =IF(E14="",No, IF(ISERROR(MATCH(E14,'Calc|OH'!$H$24:$H$36,0)),Yes,No)) -> Yes | X14: 0 | Y14: 0 | Z14: 0.319 | AA14: 0 | AB14: 0 | AC14: 0 | AD14: =IF(ISERROR(MATCH($K14,'Input|Historical'!$C$80:$C$100,0)),0, INDEX('Input|Historical'!$P$80:$P$100,MATCH($K14,'Input|Historical'!$C$80:$C$100,0))) -> 0 | AE14: =IF(ISERROR(MATCH($K14,'Input|Historical'!$C$80:$C$100,0)),0, INDEX('Input|Historical'!$P$80:$P$100,MATCH($K14,'Input|Historical'!$C$80:$C$100,0))) -> 0 | AF14: =IF(ISERROR(MATCH($K14,'Input|Historical'!$C$80:$C$100,0)),0, INDEX('Input|Historical'!$P$80:$P$100,MATCH($K14,'Input|Historical'!$C$80:$C$100,0))) -> 0 | AH14: 1077355.241 | AL14: =118268.338970508/AT15 -> 203910.9293 | AM14: 208364.7208 | AN14: 215181.8255 | AO14: 221693.197 | AP14: 228204.5685 | AS14: 0 | AT14: HIA Factor | AU14: FD HIA Factor
C15: BUS. SUPPLY PROJECT>10KVA - INDOOR SUBS. | D15: A340 | E15: CBI | F15: SCS | G15: Connections [SCS] | H15: Connections: Commercial/Industrial [SCS] | I15: Commercial/Industrial [SCS] | J15: SCS - Distribution system assets | K15: SCS - Distribution system assets | L15: SCS - Distribution system assets | M15: Distribution substations/transformers, pole or ground pad mounted | N15: Routine (repex/connections) | O15: Non Augex | P15: Non-IT | Q15: Non-IT | R15: Non-IT | S15: $dollars | T15: CY 2018 | U15: 40 | V15: 0 | W15: =IF(E15="",No, IF(ISERROR(MATCH(E15,'Calc|OH'!$H$24:$H$36,0)),Yes,No)) -> Yes | X15: 0 | Y15: 0 | Z15: 0.319 | AA15: 0 | AB15: 0 | AC15: 0 | AD15: =IF(ISERROR(MATCH($K15,'Input|Historical'!$C$80:$C$100,0)),0, INDEX('Input|Historical'!$P$80:$P$100,MATCH($K15,'Input|Historical'!$C$80:$C$100,0))) -> 0 | AE15: =IF(ISERROR(MATCH($K15,'Input|Historical'!$C$80:$C$100,0)),0, INDEX('Input|Historical'!$P$80:$P$100,MATCH($K15,'Input|Historical'!$C$80:$C$100,0))) -> 0 | AF15: =IF(ISERROR(MATCH($K15,'Input|Historical'!$C$80:$C$100,0)),0, INDEX('Input|Historical'!$P$80:$P$100,MATCH($K15,'Input|Historical'!$C$80:$C$100,0))) -> 0 | AH15: 17066684.59 | AL15: =1873521.71375539/AT15 -> 3230209.851 | AM15: 3300763.605 | AN15: 3408755.26 | AO15: 3511903.71 | AP15: 3615052.16 | AS15: 0 | AT15: 0.58 | AU15: 0.6336474165
C16: BUS. SUPPLY PROJECT>10KVA - KIOSK SUBS. | D16: A341 | E16: CBK | F16: SCS | G16: Connections [SCS] | H16: Connections: Commercial/Industrial [SCS] | I16: Commercial/Industrial [SCS] | J16: SCS - Distribution system assets | K16: SCS - Distribution system assets | L16: SCS - Distribution system assets | M16: Distribution substations/transformers, pole or ground pad mounted | N16: Routine (repex/connections) | O16: Non Augex | P16: Non-IT | Q16: Non-IT | R16: Non-IT | S16: $dollars | T16: CY 2018 | U16: 40 | V16: 0 | W16: =IF(E16="",No, IF(ISERROR(MATCH(E16,'Calc|OH'!$H$24:$H$36,0)),Yes,No)) -> Yes | X16: 0 | Y16: 0 | Z16: 0.319 | AA16: 0 | AB16: 0 | AC16: 0 | AD16: =IF(ISERROR(MATCH($K16,'Input|Historical'!$C$80:$C$100,0)),0, INDEX('Input|Historical'!$P$80:$P$100,MATCH($K16,'Input|Historical'!$C$80:$C$100,0))) -> 0 | AE16: =IF(ISERROR(MATCH($K16,'Input|Historical'!$C$80:$C$100,0)),0, INDEX('Input|Historical'!$P$80:$P$100,MATCH($K16,'Input|Historical'!$C$80:$C$100,0))) -> 0 | AF16: =IF(ISERROR(MATCH($K16,'Input|Historical'!$C$80:$C$100,0)),0, INDEX('Input|Historical'!$P$80:$P$100,MATCH($K16,'Input|Historical'!$C$80:$C$100,0))) -> 0 | AH16: 21442482.6 | AL16: =2353881.71353412/AT15 -> 4058416.747 | AM16: 4147060.07 | AN16: 4282740.154 | AO16: 4412335.262 | AP16: 4541930.371 | AS16: 0
C17: BUS. SUPPLY PROJECT>10KVA-LINE OF MAINS | D17: A342 | E17: CBL | F17: SCS | G17: Connections [SCS] | H17: Connections: Commercial/Industrial [SCS] | I17: Commercial/Industrial [SCS] | J17: SCS - Distribution system assets | K17: SCS - Distribution system assets | L17: SCS - Distribution system assets | M17: Distribution lines: Above ground (incorporating conductors; cross arms, insulators and fittings; poles – concrete, wood, steel or stobie; and transformers – pole or ground pad mounted) | N17: Routine (repex/connections) | O17: Non Augex | P17: Non-IT | Q17: Non-IT | R17: Non-IT | S17: $dollars | T17: CY 2018 | U17: 45 | V17: 0 | W17: =IF(E17="",No, IF(ISERROR(MATCH(E17,'Calc|OH'!$H$24:$H$36,0)),Yes,No)) -> Yes | X17: 0 | Y17: 0 | Z17: 0 | AA17: 0 | AB17: 0 | AC17: 0 | AD17: =IF(ISERROR(MATCH($K17,'Input|Historical'!$C$80:$C$100,0)),0, INDEX('Input|Historical'!$P$80:$P$100,MATCH($K17,'Input|Historical'!$C$80:$C$100,0))) -> 0 | AE17: =IF(ISERROR(MATCH($K17,'Input|Historical'!$C$80:$C$100,0)),0, INDEX('Input|Historical'!$P$80:$P$100,MATCH($K17,'Input|Historical'!$C$80:$C$100,0))) -> 0 | AF17: =IF(ISERROR(MATCH($K17,'Input|Historical'!$C$80:$C$100,0)),0, INDEX('Input|Historical'!$P$80:$P$100,MATCH($K17,'Input|Historical'!$C$80:$C$100,0))) -> 0 | AH17: 0 | AL17: 0 | AM17: 0 | AN17: 0 | AO17: 0 | AP17: 0 | AS17: 0
C18: BUS. SUPPLY PROJECT>10KVA - POLE SUBS. | D18: A343 | E18: CBP | F18: SCS | G18: Connections [SCS] | H18: Connections: Commercial/Industrial [SCS] | I18: Commercial/Industrial [SCS] | J18: SCS - Distribution system assets | K18: SCS - Distribution system assets | L18: SCS - Distribution system assets | M18: Distribution substations/transformers, pole or ground pad mounted | N18: Routine (repex/connections) | O18: Non Augex | P18: Non-IT | Q18: Non-IT | R18: Non-IT | S18: $dollars | T18: CY 2018 | U18: 40 | V18: 0 | W18: =IF(E18="",No, IF(ISERROR(MATCH(E18,'Calc|OH'!$H$24:$H$36,0)),Yes,No)) -> Yes | X18: 0 | Y18: 0 | Z18: 0.319 | AA18: 0 | AB18: 0 | AC18: 0 | AD18: =IF(ISERROR(MATCH($K18,'Input|Historical'!$C$80:$C$100,0)),0, INDEX('Input|Historical'!$P$80:$P$100,MATCH($K18,'Input|Historical'!$C$80:$C$100,0))) -> 0 | AE18: =IF(ISERROR(MATCH($K18,'Input|Historical'!$C$80:$C$100,0)),0, INDEX('Input|Historical'!$P$80:$P$100,MATCH($K18,'Input|Historical'!$C$80:$C$100,0))) -> 0 | AF18: =IF(ISERROR(MATCH($K18,'Input|Historical'!$C$80:$C$100,0)),0, INDEX('Input|Historical'!$P$80:$P$100,MATCH($K18,'Input|Historical'!$C$80:$C$100,0))) -> 0 | AH18: 17457973.92 | AL18: =1916476.10566219/AT15 -> 3304269.148 | AM18: 3376440.493 | AN18: 3486908.082 | AO18: 3592421.425 | AP18: 3697934.768 | AS18: 0
C19: BUS. SUPPLY PROJECT>10KVA - SUBS. MOD. | D19: A344 | E19: CBS | F19: SCS | G19: Connections [SCS] | H19: Connections: Commercial/Industrial [SCS] | I19: Commercial/Industrial [SCS] | J19: SCS - Distribution system assets | K19: SCS - Distribution system assets | L19: SCS - Distribution system assets | M19: Distribution substations/transformers, pole or ground pad mounted | N19: Routine (repex/connections) | O19: Non Augex | P19: Non-IT | Q19: Non-IT | R19: Non-IT | S19: $dollars | T19: CY 2018 | U19: 40 | V19: 0 | W19: =IF(E19="",No, IF(ISERROR(MATCH(E19,'Calc|OH'!$H$24:$H$36,0)),Yes,No)) -> Yes | X19: 0 | Y19: 0 | Z19: 0.319 | AA19: 0 | AB19: 0 | AC19: 0 | AD19: =IF(ISERROR(MATCH($K19,'Input|Historical'!$C$80:$C$100,0)),0, INDEX('Input|Historical'!$P$80:$P$100,MATCH($K19,'Input|Historical'!$C$80:$C$100,0))) -> 0 | AE19: =IF(ISERROR(MATCH($K19,'Input|Historical'!$C$80:$C$100,0)),0, INDEX('Input|Historical'!$P$80:$P$100,MATCH($K19,'Input|Historical'!$C$80:$C$100,0))) -> 0 | AF19: =IF(ISERROR(MATCH($K19,'Input|Historical'!$C$80:$C$100,0)),0, INDEX('Input|Historical'!$P$80:$P$100,MATCH($K19,'Input|Historical'!$C$80:$C$100,0))) -> 0 | AH19: 257129.9467 | AL19: =28226.8378528927/AT15 -> 48666.96182 | AM19: 49729.93821 | AN19: 51356.96122 | AO19: 52911.01557 | AP19: 54465.06992 | AS19: 0
C20: Pole to Pit | D20: A246 | E20: CDA | F20: SCS | G20: Connections [SCS] | H20: Connections: Residential [SCS] | I20: Residential [SCS] | J20: SCS - Distribution system assets | K20: SCS - Distribution system assets | L20: SCS - Distribution system assets | M20: Distribution lines: Combination of above ground and underground | N20: Routine (repex/connections) | O20: Non Augex | P20: Non-IT | Q20: Non-IT | R20: Non-IT | S20: $dollars | T20: CY 2018 | U20: 47.5 | V20: 0 | W20: =IF(E20="",No, IF(ISERROR(MATCH(E20,'Calc|OH'!$H$24:$H$36,0)),Yes,No)) -> Yes | X20: 0 | Y20: 0 | Z20: 0.707 | AA20: 0 | AB20: 0 | AC20: 0 | AD20: =IF(ISERROR(MATCH($K20,'Input|Historical'!$C$80:$C$100,0)),0, INDEX('Input|Historical'!$P$80:$P$100,MATCH($K20,'Input|Historical'!$C$80:$C$100,0))) -> 0 | AE20: =IF(ISERROR(MATCH($K20,'Input|Historical'!$C$80:$C$100,0)),0, INDEX('Input|Historical'!$P$80:$P$100,MATCH($K20,'Input|Historical'!$C$80:$C$100,0))) -> 0 | AF20: =IF(ISERROR(MATCH($K20,'Input|Historical'!$C$80:$C$100,0)),0, INDEX('Input|Historical'!$P$80:$P$100,MATCH($K20,'Input|Historical'!$C$80:$C$100,0))) -> 0 | AH20: 48450108.62 | AL20: =5656216.05528847/AT15 -> 9752096.647 | AM20: 9495509.939 | AN20: 9672196.608 | AO20: 9852758.57 | AP20: 9677546.851 | AS20: 0
C21: MEDIUM DENSITY HOUSING - HV EXTENSION | D21: A334 | E21: CHH | F21: SCS | G21: Connections [SCS] | H21: Connections: Subdivision [SCS] | I21: Subdivision [SCS] | J21: SCS - Distribution system assets | K21: SCS - Distribution system assets | L21: SCS - Distribution system assets | M21: Distribution lines: Combination of above ground and underground | N21: Routine (repex/connections) | O21: Non Augex | P21: Non-IT | Q21: Non-IT | R21: Non-IT | S21: $dollars | T21: CY 2018 | U21: 47.5 | V21: 0 | W21: =IF(E21="",No, IF(ISERROR(MATCH(E21,'Calc|OH'!$H$24:$H$36,0)),Yes,No)) -> Yes | X21: 0 | Y21: 0 | Z21: 0.459 | AA21: 0 | AB21: 0 | AC21: 0.291 | AD21: =IF(ISERROR(MATCH($K21,'Input|Historical'!$C$80:$C$100,0)),0, INDEX('Input|Historical'!$P$80:$P$100,MATCH($K21,'Input|Historical'!$C$80:$C$100,0))) -> 0 | AE21: =IF(ISERROR(MATCH($K21,'Input|Historical'!$C$80:$C$100,0)),0, INDEX('Input|Historical'!$P$80:$P$100,MATCH($K21,'Input|Historical'!$C$80:$C$100,0))) -> 0 | AF21: =IF(ISERROR(MATCH($K21,'Input|Historical'!$C$80:$C$100,0)),0, INDEX('Input|Historical'!$P$80:$P$100,MATCH($K21,'Input|Historical'!$C$80:$C$100,0))) -> 0 | AH21: 34333867.28 | AL21: =4327339.80086443/AT15*AU15 -> 4727599.457 | AM21: 7264626.685 | AN21: 7399802.436 | AO21: 7537943.016 | AP21: 7403895.688 | AS21: 0
C22: Medium Density Housing URD/PURD | D22: A3 | E22: CHL | F22: SCS | G22: Connections [SCS] | H22: Connections: Subdivision [SCS] | I22: Subdivision [SCS] | J22: SCS - Distribution system assets | K22: SCS - Distribution system assets | L22: SCS - Distribution system assets | M22: Distribution lines: Underground (incorporating cables, fittings and ground pad mounted transformers) | N22: Routine (repex/connections) | O22: Non Augex | P22: Non-IT | Q22: Non-IT | R22: Non-IT | S22: $dollars | T22: CY 2018 | U22: 50 | V22: 0 | W22: =IF(E22="",No, IF(ISERROR(MATCH(E22,'Calc|OH'!$H$24:$H$36,0)),Yes,No)) -> Yes | X22: 0 | Y22: 0 | Z22: 0.459 | AA22: 0 | AB22: 0 | AC22: 0.291 | AD22: =IF(ISERROR(MATCH($K22,'Input|Historical'!$C$80:$C$100,0)),0, INDEX('Input|Historical'!$P$80:$P$100,MATCH($K22,'Input|Historical'!$C$80:$C$100,0))) -> 0 | AE22: =IF(ISERROR(MATCH($K22,'Input|Historical'!$C$80:$C$100,0)),0, INDEX('Input|Historical'!$P$80:$P$100,MATCH($K22,'Input|Historical'!$C$80:$C$100,0))) -> 0 | AF22: =IF(ISERROR(MATCH($K22,'Input|Historical'!$C$80:$C$100,0)),0, INDEX('Input|Historical'!$P$80:$P$100,MATCH($K22,'Input|Historical'!$C$80:$C$100,0))) -> 0 | AH22: 14288964.47 | AL22: =1800939.11781552/AT15*AU15 -> 1967517.964 | AM22: 3023370.24 | AN22: 3079627.273 | AO22: 3137118.199 | AP22: 3081330.79 | AS22: 0
C23: PUBLIC LIGHTING PROJ- MAJOR INTERSECTION | D23: A324 | E23: CLA | F23: NEG | G23: Negotiated [NEG] | H23: Negotiated [NEG] | I23: Negotiated [NEG] | J23: Negotiated Services | K23: Negotiated Services | L23: Negotiated Services | M23: Street lights | N23: Not applicable | O23: Non Augex | P23: Non-IT | Q23: Non-IT | R23: Non-IT | S23: $dollars | T23: CY 2018 | U23: 15 | V23: 0 | W23: =IF(E23="",No, IF(ISERROR(MATCH(E23,'Calc|OH'!$H$24:$H$36,0)),Yes,No)) -> Yes | X23: 0 | Y23: 0 | Z23: 0 | AA23: 0 | AB23: 0 | AC23: 0 | AD23: =IF(ISERROR(MATCH($K23,'Input|Historical'!$C$80:$C$100,0)),0, INDEX('Input|Historical'!$P$80:$P$100,MATCH($K23,'Input|Historical'!$C$80:$C$100,0))) -> 0 | AE23: =IF(ISERROR(MATCH($K23,'Input|Historical'!$C$80:$C$100,0)),0, INDEX('Input|Historical'!$P$80:$P$100,MATCH($K23,'Input|Historical'!$C$80:$C$100,0))) -> 0 | AF23: =IF(ISERROR(MATCH($K23,'Input|Historical'!$C$80:$C$100,0)),0, INDEX('Input|Historical'!$P$80:$P$100,MATCH($K23,'Input|Historical'!$C$80:$C$100,0))) -> 0 | AH23: 0 | AL23: 0 | AM23: 0 | AN23: 0 | AO23: 0 | AP23: 0 | AS23: 0
C24: PUBLIC LIGHTING PROJ- MAJOR INTERSECTION - FORECAST PERIOD | D24: A548 | E24: CLA-f | F24: ACS | G24: Public lighting [ACS] | H24: Public lighting: Light Installation [ACS] | I24: Light Installation [ACS] | J24: ACS - PL - Energy Efficient - Luminaires and Ballasts | K24: ACS - PL - Energy Efficient - Luminaires and Ballasts | L24: ACS - PL - Energy Efficient - Luminaires and Ballasts | M24: Street lights | N24: Not applicable | O24: Non Augex | P24: Non-IT | Q24: Non-IT | R24: Non-IT | S24: $dollars | T24: CY 2018 | U24: 15 | V24: 0 | W24: =IF(E24="",No, IF(ISERROR(MATCH(E24,'Calc|OH'!$H$24:$H$36,0)),Yes,No)) -> Yes | X24: 0 | Y24: 0 | Z24: 0 | AA24: 0 | AB24: 0 | AC24: 0 | AD24: =IF(ISERROR(MATCH($K24,'Input|Historical'!$C$80:$C$100,0)),0, INDEX('Input|Historical'!$P$80:$P$100,MATCH($K24,'Input|Historical'!$C$80:$C$100,0))) -> 0 | AE24: =IF(ISERROR(MATCH($K24,'Input|Historical'!$C$80:$C$100,0)),0, INDEX('Input|Historical'!$P$80:$P$100,MATCH($K24,'Input|Historical'!$C$80:$C$100,0))) -> 0 | AF24: =IF(ISERROR(MATCH($K24,'Input|Historical'!$C$80:$C$100,0)),0, INDEX('Input|Historical'!$P$80:$P$100,MATCH($K24,'Input|Historical'!$C$80:$C$100,0))) -> 0 | AH24: 2324535.897 | AL24: 468294.1574 | AM24: 455474.6096 | AN24: 463949.8039 | AO24: 472610.8857 | AP24: 464206.4409 | AS24: 0
C25: PUBLIC LIGHTING PROJECT - MINOR INTERS. | D25: A325 | E25: CLI | F25: NEG | G25: Negotiated [NEG] | H25: Negotiated [NEG] | I25: Negotiated [NEG] | J25: Negotiated Services | K25: Negotiated Services | L25: Negotiated Services | M25: Street lights | N25: Not applicable | O25: Non Augex | P25: Non-IT | Q25: Non-IT | R25: Non-IT | S25: $dollars | T25: CY 2018 | U25: 15 | V25: 0 | W25: =IF(E25="",No, IF(ISERROR(MATCH(E25,'Calc|OH'!$H$24:$H$36,0)),Yes,No)) -> Yes | X25: 0 | Y25: 0 | Z25: 0 | AA25: 0 | AB25: 0 | AC25: 0 | AD25: =IF(ISERROR(MATCH($K25,'Input|Historical'!$C$80:$C$100,0)),0, INDEX('Input|Historical'!$P$80:$P$100,MATCH($K25,'Input|Historical'!$C$80:$C$100,0))) -> 0 | AE25: =IF(ISERROR(MATCH($K25,'Input|Historical'!$C$80:$C$100,0)),0, INDEX('Input|Historical'!$P$80:$P$100,MATCH($K25,'Input|Historical'!$C$80:$C$100,0))) -> 0 | AF25: =IF(ISERROR(MATCH($K25,'Input|Historical'!$C$80:$C$100,0)),0, INDEX('Input|Historical'!$P$80:$P$100,MATCH($K25,'Input|Historical'!$C$80:$C$100,0))) -> 0 | AH25: 0 | AL25: 0 | AM25: 0 | AN25: 0 | AO25: 0 | AP25: 0 | AS25: 0
C26: PUBLIC LIGHTING PROJECT - MINOR INTERS. - FORECAST PERIOD | D26: A549 | E26: CLI-f | F26: ACS | G26: Public lighting [ACS] | H26: Public lighting: Light Installation [ACS] | I26: Light Installation [ACS] | J26: ACS - PL - Energy Efficient - Luminaires and Ballasts | K26: ACS - PL - Energy Efficient - Luminaires and Ballasts | L26: ACS - PL - Energy Efficient - Luminaires and Ballasts | M26: Street lights | N26: Not applicable | O26: Non Augex | P26: Non-IT | Q26: Non-IT | R26: Non-IT | S26: $dollars | T26: CY 2018 | U26: 15 | V26: 0 | W26: =IF(E26="",No, IF(ISERROR(MATCH(E26,'Calc|OH'!$H$24:$H$36,0)),Yes,No)) -> Yes | X26: 0 | Y26: 0 | Z26: 0 | AA26: 0 | AB26: 0 | AC26: 0 | AD26: =IF(ISERROR(MATCH($K26,'Input|Historical'!$C$80:$C$100,0)),0, INDEX('Input|Historical'!$P$80:$P$100,MATCH($K26,'Input|Historical'!$C$80:$C$100,0))) -> 0 | AE26: =IF(ISERROR(MATCH($K26,'Input|Historical'!$C$80:$C$100,0)),0, INDEX('Input|Historical'!$P$80:$P$100,MATCH($K26,'Input|Historical'!$C$80:$C$100,0))) -> 0 | AF26: =IF(ISERROR(MATCH($K26,'Input|Historical'!$C$80:$C$100,0)),0, INDEX('Input|Historical'!$P$80:$P$100,MATCH($K26,'Input|Historical'!$C$80:$C$100,0))) -> 0 | AH26: 289698.1515 | AL26: 58361.7366 | AM26: 56764.08466 | AN26: 57820.31619 | AO26: 58899.71419 | AP26: 57852.2999 | AS26: 0
C27: Public Lighting - New estates and developments | D27: A4 | E27: CLJ | F27: NEG | G27: Negotiated [NEG] | H27: Negotiated [NEG] | I27: Negotiated [NEG] | J27: Negotiated Services | K27: Negotiated Services | L27: Negotiated Services | M27: Street lights | N27: Not applicable | O27: Non Augex | P27: Non-IT | Q27: Non-IT | R27: Non-IT | S27: $dollars | T27: CY 2018 | U27: 15 | V27: 0 | W27: =IF(E27="",No, IF(ISERROR(MATCH(E27,'Calc|OH'!$H$24:$H$36,0)),Yes,No)) -> Yes | X27: 0 | Y27: 0 | Z27: 0 | AA27: 0 | AB27: 0 | AC27: 0 | AD27: =IF(ISERROR(MATCH($K27,'Input|Historical'!$C$80:$C$100,0)),0, INDEX('Input|Historical'!$P$80:$P$100,MATCH($K27,'Input|Historical'!$C$80:$C$100,0))) -> 0 | AE27: =IF(ISERROR(MATCH($K27,'Input|Historical'!$C$80:$C$100,0)),0, INDEX('Input|Historical'!$P$80:$P$100,MATCH($K27,'Input|Historical'!$C$80:$C$100,0))) -> 0 | AF27: =IF(ISERROR(MATCH($K27,'Input|Historical'!$C$80:$C$100,0)),0, INDEX('Input|Historical'!$P$80:$P$100,MATCH($K27,'Input|Historical'!$C$80:$C$100,0))) -> 0 | AH27: 0 | AL27: 0 | AM27: 0 | AN27: 0 | AO27: 0 | AP27: 0 | AS27: 0
C28: PUBLIC LIGHTING PROJECT - MAJOR SCHEME - FORECAST PERIOD | D28: A550 | E28: CLJ-f | F28: ACS | G28: Public lighting [ACS] | H28: Public lighting: Light Installation [ACS] | I28: Light Installation [ACS] | J28: ACS - PL - Energy Efficient - Luminaires and Ballasts | K28: ACS - PL - Energy Efficient - Luminaires and Ballasts | L28: ACS - PL - Energy Efficient - Luminaires and Ballasts | M28: Street lights | N28: Not applicable | O28: Non Augex | P28: Non-IT | Q28: Non-IT | R28: Non-IT | S28: $dollars | T28: CY 2018 | U28: 15 | V28: 0 | W28: =IF(E28="",No, IF(ISERROR(MATCH(E28,'Calc|OH'!$H$24:$H$36,0)),Yes,No)) -> Yes | X28: 0 | Y28: 0 | Z28: 0 | AA28: 0 | AB28: 0 | AC28: 0 | AD28: =IF(ISERROR(MATCH($K28,'Input|Historical'!$C$80:$C$100,0)),0, INDEX('Input|Historical'!$P$80:$P$100,MATCH($K28,'Input|Historical'!$C$80:$C$100,0))) -> 0 | AE28: =IF(ISERROR(MATCH($K28,'Input|Historical'!$C$80:$C$100,0)),0, INDEX('Input|Historical'!$P$80:$P$100,MATCH($K28,'Input|Historical'!$C$80:$C$100,0))) -> 0 | AF28: =IF(ISERROR(MATCH($K28,'Input|Historical'!$C$80:$C$100,0)),0, INDEX('Input|Historical'!$P$80:$P$100,MATCH($K28,'Input|Historical'!$C$80:$C$100,0))) -> 0 | AH28: 232262.5691 | AL28: 46790.93329 | AM28: 45510.03197 | AN28: 46356.85494 | AO28: 47222.2514 | AP28: 46382.49755 | AS28: 0
C29: PUBLIC LIGHTING PROJECT - MINOR SCHEME | D29: A328 | E29: CLN | F29: NEG | G29: Negotiated [NEG] | H29: Negotiated [NEG] | I29: Negotiated [NEG] | J29: Negotiated Services | K29: Negotiated Services | L29: Negotiated Services | M29: Street lights | N29: Not applicable | O29: Non Augex | P29: Non-IT | Q29: Non-IT | R29: Non-IT | S29: $dollars | T29: CY 2018 | U29: 15 | V29: 0 | W29: =IF(E29="",No, IF(ISERROR(MATCH(E29,'Calc|OH'!$H$24:$H$36,0)),Yes,No)) -> Yes | X29: 0 | Y29: 0 | Z29: 0 | AA29: 0 | AB29: 0 | AC29: 0 | AD29: =IF(ISERROR(MATCH($K29,'Input|Historical'!$C$80:$C$100,0)),0, INDEX('Input|Historical'!$P$80:$P$100,MATCH($K29,'Input|Historical'!$C$80:$C$100,0))) -> 0 | AE29: =IF(ISERROR(MATCH($K29,'Input|Historical'!$C$80:$C$100,0)),0, INDEX('Input|Historical'!$P$80:$P$100,MATCH($K29,'Input|Historical'!$C$80:$C$100,0))) -> 0 | AF29: =IF(ISERROR(MATCH($K29,'Input|Historical'!$C$80:$C$100,0)),0, INDEX('Input|Historical'!$P$80:$P$100,MATCH($K29,'Input|Historical'!$C$80:$C$100,0))) -> 0 | AH29: 0 | AL29: 0 | AM29: 0 | AN29: 0 | AO29: 0 | AP29: 0 | AS29: 0
C30: PUBLIC LIGHTING PROJECT - MINOR SCHEME - FORECAST PERIOD | D30: A551 | E30: CLN-f | F30: ACS | G30: Public lighting [ACS] | H30: Public lighting: Light Installation [ACS] | I30: Light Installation [ACS] | J30: ACS - PL - Energy Efficient - Luminaires and Ballasts | K30: ACS - PL - Energy Efficient - Luminaires and Ballasts | L30: ACS - PL - Energy Efficient - Luminaires and Ballasts | M30: Street lights | N30: Not applicable | O30: Non Augex | P30: Non-IT | Q30: Non-IT | R30: Non-IT | S30: $dollars | T30: CY 2018 | U30: 15 | V30: 0 | W30: =IF(E30="",No, IF(ISERROR(MATCH(E30,'Calc|OH'!$H$24:$H$36,0)),Yes,No)) -> Yes | X30: 0 | Y30: 0 | Z30: 0 | AA30: 0 | AB30: 0 | AC30: 0 | AD30: =IF(ISERROR(MATCH($K30,'Input|Historical'!$C$80:$C$100,0)),0, INDEX('Input|Historical'!$P$80:$P$100,MATCH($K30,'Input|Historical'!$C$80:$C$100,0))) -> 0 | AE30: =IF(ISERROR(MATCH($K30,'Input|Historical'!$C$80:$C$100,0)),0, INDEX('Input|Historical'!$P$80:$P$100,MATCH($K30,'Input|Historical'!$C$80:$C$100,0))) -> 0 | AF30: =IF(ISERROR(MATCH($K30,'Input|Historical'!$C$80:$C$100,0)),0, INDEX('Input|Historical'!$P$80:$P$100,MATCH($K30,'Input|Historical'!$C$80:$C$100,0))) -> 0 | AH30: 1335998.108 | AL30: 269146.2449 | AM30: 261778.3692 | AN30: 266649.3818 | AO30: 271627.2309 | AP30: 266796.8807 | AS30: 0
C31: Elective UG (P2P) Service | D31: A198 | E31: CME | F31: ACS | G31: Connections (quoted services) [ACS] | H31: Connections (quoted services): Residential [ACS] | I31: Connections (quoted services): Residential [ACS] | J31: ACS - Fee and quote based | K31: ACS - Fee and quote based | L31: ACS - Fee and quote based | M31: Distribution lines: Combination of above ground and underground | N31: Routine (repex/connections) | O31: Non Augex | P31: Non-IT | Q31: Non-IT | R31: Non-IT | S31: $dollars | T31: CY 2018 | U31: 47.5 | V31: 0 | W31: =IF(E31="",No, IF(ISERROR(MATCH(E31,'Calc|OH'!$H$24:$H$36,0)),Yes,No)) -> Yes | X31: 0 | Y31: 0 | Z31: 0 | AA31: 0 | AB31: 0 | AC31: 0 | AD31: =IF(ISERROR(MATCH($K31,'Input|Historical'!$C$80:$C$100,0)),0, INDEX('Input|Historical'!$P$80:$P$100,MATCH($K31,'Input|Historical'!$C$80:$C$100,0))) -> 0 | AE31: =IF(ISERROR(MATCH($K31,'Input|Historical'!$C$80:$C$100,0)),0, INDEX('Input|Historical'!$P$80:$P$100,MATCH($K31,'Input|Historical'!$C$80:$C$100,0))) -> 0 | AF31: =IF(ISERROR(MATCH($K31,'Input|Historical'!$C$80:$C$100,0)),0, INDEX('Input|Historical'!$P$80:$P$100,MATCH($K31,'Input|Historical'!$C$80:$C$100,0))) -> 0 | AH31: 4860981.871 | AL31: 979279.0946 | AM31: 952471.3394 | AN31: 970194.3463 | AO31: 988306.0744 | AP31: 970731.0161 | AS31: 0
C32: Underground Connection < 100A | D32: A233 | E32: CMU | F32: ACS | G32: Connections (fee-based services) [ACS] | H32: Connections (fee-based services): Residential [ACS] | I32: Connections (fee-based services): Residential [ACS] | J32: ACS - Connections | K32: ACS - Connections | L32: ACS - Connections | M32: Distribution lines: Underground (incorporating cables, fittings and ground pad mounted transformers) | N32: Routine (repex/connections) | O32: Non Augex | P32: Non-IT | Q32: Non-IT | R32: Non-IT | S32: $dollars | T32: CY 2018 | U32: 50 | V32: 0 | W32: =IF(E32="",No, IF(ISERROR(MATCH(E32,'Calc|OH'!$H$24:$H$36,0)),Yes,No)) -> Yes | X32: 0 | Y32: 0 | Z32: 0 | AA32: 0 | AB32: 0 | AC32: 0 | AD32: =IF(ISERROR(MATCH($K32,'Input|Historical'!$C$80:$C$100,0)),0, INDEX('Input|Historical'!$P$80:$P$100,MATCH($K32,'Input|Historical'!$C$80:$C$100,0))) -> 0 | AE32: =IF(ISERROR(MATCH($K32,'Input|Historical'!$C$80:$C$100,0)),0, INDEX('Input|Historical'!$P$80:$P$100,MATCH($K32,'Input|Historical'!$C$80:$C$100,0))) -> 0 | AF32: =IF(ISERROR(MATCH($K32,'Input|Historical'!$C$80:$C$100,0)),0, INDEX('Input|Historical'!$P$80:$P$100,MATCH($K32,'Input|Historical'!$C$80:$C$100,0))) -> 0 | AH32: 16574773.34 | AL32: 3339105.034 | AM32: 3247697.068 | AN32: 3308128.238 | AO32: 3369884.853 | AP32: 3309958.152 | AS32: 0
C33: Quoted UG New Con>100AMPS lab | D33: A496 | E33: CMV | F33: ACS | G33: Connections (quoted services) [ACS] | H33: Connections (quoted services): Residential [ACS] | I33: Connections (quoted services): Residential [ACS] | J33: ACS - Connections | K33: ACS - Connections | L33: ACS - Connections | M33: Distribution lines: Underground (incorporating cables, fittings and ground pad mounted transformers) | N33: Routine (repex/connections) | O33: Non Augex | P33: Non-IT | Q33: Non-IT | R33: Non-IT | S33: $dollars | T33: CY 2018 | U33: 50 | V33: 0 | W33: =IF(E33="",No, IF(ISERROR(MATCH(E33,'Calc|OH'!$H$24:$H$36,0)),Yes,No)) -> Yes | X33: 0 | Y33: 0 | Z33: 0 | AA33: 0 | AB33: 0 | AC33: 0 | AD33: =IF(ISERROR(MATCH($K33,'Input|Historical'!$C$80:$C$100,0)),0, INDEX('Input|Historical'!$P$80:$P$100,MATCH($K33,'Input|Historical'!$C$80:$C$100,0))) -> 0 | AE33: =IF(ISERROR(MATCH($K33,'Input|Historical'!$C$80:$C$100,0)),0, INDEX('Input|Historical'!$P$80:$P$100,MATCH($K33,'Input|Historical'!$C$80:$C$100,0))) -> 0 | AF33: =IF(ISERROR(MATCH($K33,'Input|Historical'!$C$80:$C$100,0)),0, INDEX('Input|Historical'!$P$80:$P$100,MATCH($K33,'Input|Historical'!$C$80:$C$100,0))) -> 0 | AH33: 595946.0329 | AL33: 120057.533 | AM33: 116770.9593 | AN33: 118943.7622 | AO33: 121164.2215 | AP33: 119009.5568 | AS33: 0
C34: Overhead Connection <100A | D34: A499 | E34: CMZ | F34: ACS | G34: Connections (fee-based services) [ACS] | H34: Connections (fee-based services): Residential [ACS] | I34: Connections (fee-based services): Residential [ACS] | J34: ACS - Connections | K34: ACS - Connections | L34: ACS - Connections | M34: Distribution lines: Above ground (incorporating conductors; cross arms, insulators and fittings; poles – concrete, wood, steel or stobie; and transformers – pole or ground pad mounted) | N34: Routine (repex/connections) | O34: Non Augex | P34: Non-IT | Q34: Non-IT | R34: Non-IT | S34: $dollars | T34: CY 2018 | U34: 45 | V34: 0 | W34: =IF(E34="",No, IF(ISERROR(MATCH(E34,'Calc|OH'!$H$24:$H$36,0)),Yes,No)) -> Yes | X34: 0 | Y34: 0 | Z34: 0 | AA34: 0 | AB34: 0 | AC34: 0 | AD34: =IF(ISERROR(MATCH($K34,'Input|Historical'!$C$80:$C$100,0)),0, INDEX('Input|Historical'!$P$80:$P$100,MATCH($K34,'Input|Historical'!$C$80:$C$100,0))) -> 0 | AE34: =IF(ISERROR(MATCH($K34,'Input|Historical'!$C$80:$C$100,0)),0, INDEX('Input|Historical'!$P$80:$P$100,MATCH($K34,'Input|Historical'!$C$80:$C$100,0))) -> 0 | AF34: =IF(ISERROR(MATCH($K34,'Input|Historical'!$C$80:$C$100,0)),0, INDEX('Input|Historical'!$P$80:$P$100,MATCH($K34,'Input|Historical'!$C$80:$C$100,0))) -> 0 | AH34: 3972117.917 | AL34: 800211.1798 | AM34: 778305.407 | AN34: 792787.6402 | AO34: 807587.5143 | AP34: 793226.1762 | AS34: 0
C35: SUSTAINABLE LIGHT | D35: A330 | E35: CNG | F35: NEG | G35: Negotiated [NEG] | H35: Negotiated [NEG] | I35: Negotiated [NEG] | J35: Negotiated Services | K35: Negotiated Services | L35: Negotiated Services | M35: Street lights | N35: Not applicable | O35: Non Augex | P35: Non-IT | Q35: Non-IT | R35: Non-IT | S35: $dollars | T35: CY 2018 | U35: 15 | V35: 0 | W35: =IF(E35="",No, IF(ISERROR(MATCH(E35,'Calc|OH'!$H$24:$H$36,0)),Yes,No)) -> Yes | X35: 0 | Y35: 0 | Z35: 0 | AA35: 0 | AB35: 0 | AC35: 0 | AD35: =IF(ISERROR(MATCH($K35,'Input|Historical'!$C$80:$C$100,0)),0, INDEX('Input|Historical'!$P$80:$P$100,MATCH($K35,'Input|Historical'!$C$80:$C$100,0))) -> 0 | AE35: =IF(ISERROR(MATCH($K35,'Input|Historical'!$C$80:$C$100,0)),0, INDEX('Input|Historical'!$P$80:$P$100,MATCH($K35,'Input|Historical'!$C$80:$C$100,0))) -> 0 | AF35: =IF(ISERROR(MATCH($K35,'Input|Historical'!$C$80:$C$100,0)),0, INDEX('Input|Historical'!$P$80:$P$100,MATCH($K35,'Input|Historical'!$C$80:$C$100,0))) -> 0 | AH35: 0 | AL35: 0 | AM35: 0 | AN35: 0 | AO35: 0 | AP35: 0 | AS35: 0
C36: SUSTAINABLE LIGHT - FORECAST PERIOD | D36: A552 | E36: CNG-f | F36: ACS | G36: Public lighting [ACS] | H36: Public lighting: Light Installation [ACS] | I36: Light Installation [ACS] | J36: ACS - PL - Energy Efficient - Luminaires and Ballasts | K36: ACS - PL - Energy Efficient - Luminaires and Ballasts | L36: ACS - PL - Energy Efficient - Luminaires and Ballasts | M36: Street lights | N36: Not applicable | O36: Non Augex | P36: Non-IT | Q36: Non-IT | R36: Non-IT | S36: $dollars | T36: CY 2018 | U36: 15 | V36: 0 | W36: =IF(E36="",No, IF(ISERROR(MATCH(E36,'Calc|OH'!$H$24:$H$36,0)),Yes,No)) -> Yes | X36: 0 | Y36: 0 | Z36: 0 | AA36: 0 | AB36: 0 | AC36: 0 | AD36: =IF(ISERROR(MATCH($K36,'Input|Historical'!$C$80:$C$100,0)),0, INDEX('Input|Historical'!$P$80:$P$100,MATCH($K36,'Input|Historical'!$C$80:$C$100,0))) -> 0 | AE36: =IF(ISERROR(MATCH($K36,'Input|Historical'!$C$80:$C$100,0)),0, INDEX('Input|Historical'!$P$80:$P$100,MATCH($K36,'Input|Historical'!$C$80:$C$100,0))) -> 0 | AF36: =IF(ISERROR(MATCH($K36,'Input|Historical'!$C$80:$C$100,0)),0, INDEX('Input|Historical'!$P$80:$P$100,MATCH($K36,'Input|Historical'!$C$80:$C$100,0))) -> 0 | AH36: 1859175.725 | AL36: 371835.145 | AM36: 371835.145 | AN36: 371835.145 | AO36: 371835.145 | AP36: 371835.145 | AS36: 0
C37: SINGLE LIGHT MAIN ROAD | D37: A332 | E37: CNJ | F37: NEG | G37: Negotiated [NEG] | H37: Negotiated [NEG] | I37: Negotiated [NEG] | J37: Negotiated Services | K37: Negotiated Services | L37: Negotiated Services | M37: Street lights | N37: Not applicable | O37: Non Augex | P37: Non-IT | Q37: Non-IT | R37: Non-IT | S37: $dollars | T37: CY 2018 | U37: 15 | V37: 0 | W37: =IF(E37="",No, IF(ISERROR(MATCH(E37,'Calc|OH'!$H$24:$H$36,0)),Yes,No)) -> Yes | X37: 0 | Y37: 0 | Z37: 0 | AA37: 0 | AB37: 0 | AC37: 0 | AD37: =IF(ISERROR(MATCH($K37,'Input|Historical'!$C$80:$C$100,0)),0, INDEX('Input|Historical'!$P$80:$P$100,MATCH($K37,'Input|Historical'!$C$80:$C$100,0))) -> 0 | AE37: =IF(ISERROR(MATCH($K37,'Input|Historical'!$C$80:$C$100,0)),0, INDEX('Input|Historical'!$P$80:$P$100,MATCH($K37,'Input|Historical'!$C$80:$C$100,0))) -> 0 | AF37: =IF(ISERROR(MATCH($K37,'Input|Historical'!$C$80:$C$100,0)),0, INDEX('Input|Historical'!$P$80:$P$100,MATCH($K37,'Input|Historical'!$C$80:$C$100,0))) -> 0 | AH37: 0 | AL37: 0 | AM37: 0 | AN37: 0 | AO37: 0 | AP37: 0 | AS37: 0
C38: SINGLE LIGHT MAIN ROAD - FORECAST PERIOD | D38: A553 | E38: CNJ-f | F38: ACS | G38: Public lighting [ACS] | H38: Public lighting: Light Installation [ACS] | I38: Light Installation [ACS] | J38: ACS - PL - Energy Efficient - Luminaires and Ballasts | K38: ACS - PL - Energy Efficient - Luminaires and Ballasts | L38: ACS - PL - Energy Efficient - Luminaires and Ballasts | M38: Street lights | N38: Not applicable | O38: Non Augex | P38: Non-IT | Q38: Non-IT | R38: Non-IT | S38: $dollars | T38: CY 2018 | U38: 15 | V38: 0 | W38: =IF(E38="",No, IF(ISERROR(MATCH(E38,'Calc|OH'!$H$24:$H$36,0)),Yes,No)) -> Yes | X38: 0 | Y38: 0 | Z38: 0 | AA38: 0 | AB38: 0 | AC38: 0 | AD38: =IF(ISERROR(MATCH($K38,'Input|Historical'!$C$80:$C$100,0)),0, INDEX('Input|Historical'!$P$80:$P$100,MATCH($K38,'Input|Historical'!$C$80:$C$100,0))) -> 0 | AE38: =IF(ISERROR(MATCH($K38,'Input|Historical'!$C$80:$C$100,0)),0, INDEX('Input|Historical'!$P$80:$P$100,MATCH($K38,'Input|Historical'!$C$80:$C$100,0))) -> 0 | AF38: =IF(ISERROR(MATCH($K38,'Input|Historical'!$C$80:$C$100,0)),0, INDEX('Input|Historical'!$P$80:$P$100,MATCH($K38,'Input|Historical'!$C$80:$C$100,0))) -> 0 | AH38: 73778.15 | AL38: 14755.63 | AM38: 14755.63 | AN38: 14755.63 | AO38: 14755.63 | AP38: 14755.63 | AS38: 0
C39: SINGLE LIGHT MINOR ROAD | D39: A333 | E39: CNM | F39: NEG | G39: Negotiated [NEG] | H39: Negotiated [NEG] | I39: Negotiated [NEG] | J39: Negotiated Services | K39: Negotiated Services | L39: Negotiated Services | M39: Street lights | N39: Not applicable | O39: Non Augex | P39: Non-IT | Q39: Non-IT | R39: Non-IT | S39: $dollars | T39: CY 2018 | U39: 15 | V39: 0 | W39: =IF(E39="",No, IF(ISERROR(MATCH(E39,'Calc|OH'!$H$24:$H$36,0)),Yes,No)) -> Yes | X39: 0 | Y39: 0 | Z39: 0 | AA39: 0 | AB39: 0 | AC39: 0 | AD39: =IF(ISERROR(MATCH($K39,'Input|Historical'!$C$80:$C$100,0)),0, INDEX('Input|Historical'!$P$80:$P$100,MATCH($K39,'Input|Historical'!$C$80:$C$100,0))) -> 0 | AE39: =IF(ISERROR(MATCH($K39,'Input|Historical'!$C$80:$C$100,0)),0, INDEX('Input|Historical'!$P$80:$P$100,MATCH($K39,'Input|Historical'!$C$80:$C$100,0))) -> 0 | AF39: =IF(ISERROR(MATCH($K39,'Input|Historical'!$C$80:$C$100,0)),0, INDEX('Input|Historical'!$P$80:$P$100,MATCH($K39,'Input|Historical'!$C$80:$C$100,0))) -> 0 | AH39: 0 | AL39: 0 | AM39: 0 | AN39: 0 | AO39: 0 | AP39: 0 | AS39: 0
C40: SINGLE LIGHT MINOR ROAD - FORECAST PERIOD | D40: A554 | E40: CNM-f | F40: ACS | G40: Public lighting [ACS] | H40: Public lighting: Light Installation [ACS] | I40: Light Installation [ACS] | J40: ACS - PL - Energy Efficient - Luminaires and Ballasts | K40: ACS - PL - Energy Efficient - Luminaires and Ballasts | L40: ACS - PL - Energy Efficient - Luminaires and Ballasts | M40: Street lights | N40: Not applicable | O40: Non Augex | P40: Non-IT | Q40: Non-IT | R40: Non-IT | S40: $dollars | T40: CY 2018 | U40: 15 | V40: 0 | W40: =IF(E40="",No, IF(ISERROR(MATCH(E40,'Calc|OH'!$H$24:$H$36,0)),Yes,No)) -> Yes | X40: 0 | Y40: 0 | Z40: 0 | AA40: 0 | AB40: 0 | AC40: 0 | AD40: =IF(ISERROR(MATCH($K40,'Input|Historical'!$C$80:$C$100,0)),0, INDEX('Input|Historical'!$P$80:$P$100,MATCH($K40,'Input|Historical'!$C$80:$C$100,0))) -> 0 | AE40: =IF(ISERROR(MATCH($K40,'Input|Historical'!$C$80:$C$100,0)),0, INDEX('Input|Historical'!$P$80:$P$100,MATCH($K40,'Input|Historical'!$C$80:$C$100,0))) -> 0 | AF40: =IF(ISERROR(MATCH($K40,'Input|Historical'!$C$80:$C$100,0)),0, INDEX('Input|Historical'!$P$80:$P$100,MATCH($K40,'Input|Historical'!$C$80:$C$100,0))) -> 0 | AH40: 1232051.325 | AL40: 246410.265 | AM40: 246410.265 | AN40: 246410.265 | AO40: 246410.265 | AP40: 246410.265 | AS40: 0
C41: New Security Beams (Watchmen) | D41: A100 | E41: CNW | F41: UNR | G41: Unregulated [UNR] | H41: Unregulated [UNR] | I41: Unregulated [UNR] | J41: Unregulated services | K41: Unregulated services | L41: Unregulated services | M41: Nightwatchman’s lights | N41: Not applicable | O41: Non Augex | P41: Non-IT | Q41: Non-IT | R41: Non-IT | S41: $dollars | T41: CY 2018 | U41: 15 | V41: 0 | W41: =IF(E41="",No, IF(ISERROR(MATCH(E41,'Calc|OH'!$H$24:$H$36,0)),Yes,No)) -> Yes | X41: 0 | Y41: 0 | Z41: 0 | AA41: 0 | AB41: 0 | AC41: 0 | AD41: =IF(ISERROR(MATCH($K41,'Input|Historical'!$C$80:$C$100,0)),0, INDEX('Input|Historical'!$P$80:$P$100,MATCH($K41,'Input|Historical'!$C$80:$C$100,0))) -> 0 | AE41: =IF(ISERROR(MATCH($K41,'Input|Historical'!$C$80:$C$100,0)),0, INDEX('Input|Historical'!$P$80:$P$100,MATCH($K41,'Input|Historical'!$C$80:$C$100,0))) -> 0 | AF41: =IF(ISERROR(MATCH($K41,'Input|Historical'!$C$80:$C$100,0)),0, INDEX('Input|Historical'!$P$80:$P$100,MATCH($K41,'Input|Historical'!$C$80:$C$100,0))) -> 0 | AH41: 0 | AL41: 0 | AM41: 0 | AN41: 0 | AO41: 0 | AP41: 0 | AS41: 0
C42: Rectification of Damaged Assets – Not Recoverable | D42: A6 | E42: CRB | F42: SCS | G42: Replacement [SCS] | H42: Replacement: Other - Works to fix damage to the network caused by third parties [SCS] | I42: Other - Works to fix damage to the network caused by third parties [SCS] | J42: SCS - Distribution system assets | K42: SCS - Distribution system assets | L42: SCS - Distribution system assets | M42: Distribution lines: Combination of above ground and underground | N42: Routine (repex/connections) | O42: Non Augex | P42: Non-IT | Q42: Non-IT | R42: Non-IT | S42: $dollars | T42: CY 2018 | U42: 47.5 | V42: 0 | W42: =IF(E42="",No, IF(ISERROR(MATCH(E42,'Calc|OH'!$H$24:$H$36,0)),Yes,No)) -> Yes | X42: 0 | Y42: 0 | Z42: 0 | AA42: 0 | AB42: 0 | AC42: 0 | AD42: =IF(ISERROR(MATCH($K42,'Input|Historical'!$C$80:$C$100,0)),0, INDEX('Input|Historical'!$P$80:$P$100,MATCH($K42,'Input|Historical'!$C$80:$C$100,0))) -> 0 | AE42: =IF(ISERROR(MATCH($K42,'Input|Historical'!$C$80:$C$100,0)),0, INDEX('Input|Historical'!$P$80:$P$100,MATCH($K42,'Input|Historical'!$C$80:$C$100,0))) -> 0 | AF42: =IF(ISERROR(MATCH($K42,'Input|Historical'!$C$80:$C$100,0)),0, INDEX('Input|Historical'!$P$80:$P$100,MATCH($K42,'Input|Historical'!$C$80:$C$100,0))) -> 0 | AH42: 10929354.67 | AL42: 2149832.157 | AM42: 2167702.383 | AN42: 2185721.154 | AO42: 2203889.703 | AP42: 2222209.276 | AS42: 0
C43: Recoverable Works (emergency) | D43: A231 | E43: COU | F43: UNR | G43: Unregulated [UNR] | H43: Unregulated [UNR] | I43: Unregulated [UNR] | J43: Unregulated services | K43: Unregulated services | L43: Unregulated services | M43: Distribution lines: Combination of above ground and underground | N43: Not applicable | O43: Non Augex | P43: Non-IT | Q43: Non-IT | R43: Non-IT | S43: $dollars | T43: CY 2018 | U43: 47.5 | V43: 0 | W43: =IF(E43="",No, IF(ISERROR(MATCH(E43,'Calc|OH'!$H$24:$H$36,0)),Yes,No)) -> Yes | X43: 0 | Y43: 0 | Z43: 1 | AA43: 0 | AB43: 0 | AC43: 0 | AD43: =IF(ISERROR(MATCH($K43,'Input|Historical'!$C$80:$C$100,0)),0, INDEX('Input|Historical'!$P$80:$P$100,MATCH($K43,'Input|Historical'!$C$80:$C$100,0))) -> 0 | AE43: =IF(ISERROR(MATCH($K43,'Input|Historical'!$C$80:$C$100,0)),0, INDEX('Input|Historical'!$P$80:$P$100,MATCH($K43,'Input|Historical'!$C$80:$C$100,0))) -> 0 | AF43: =IF(ISERROR(MATCH($K43,'Input|Historical'!$C$80:$C$100,0)),0, INDEX('Input|Historical'!$P$80:$P$100,MATCH($K43,'Input|Historical'!$C$80:$C$100,0))) -> 0 | AH43: 503776.7984 | AL43: 99094.19117 | AM43: 99917.89994 | AN43: 100748.4557 | AO43: 101585.9153 | AP43: 102430.3363 | AS43: 0
C44: CAPITAL/REC WORKS - SUBTRANS ASSET | D44: A318 | E44: CRE | F44: SCS | G44: Replacement [SCS] | H44: Replacement: Other - Third party initiated network asset relocations/rearrangements [SCS] | I44: Other - Third party initiated network asset relocations/rearrangements [SCS] | J44: SCS - Subtransmission | K44: SCS - Subtransmission | L44: SCS - Subtransmission | M44: Distribution lines: Above ground (incorporating conductors; cross arms, insulators and fittings; poles – concrete, wood, steel or stobie; and transformers – pole or ground pad mounted) | N44: Routine (repex/connections) | O44: Non Augex | P44: Non-IT | Q44: Non-IT | R44: Non-IT | S44: $dollars | T44: CY 2018 | U44: 45 | V44: 0 | W44: =IF(E44="",No, IF(ISERROR(MATCH(E44,'Calc|OH'!$H$24:$H$36,0)),Yes,No)) -> Yes | X44: 0 | Y44: 0 | Z44: 0.99 | AA44: 0 | AB44: 0 | AC44: 0 | AD44: =IF(ISERROR(MATCH($K44,'Input|Historical'!$C$80:$C$100,0)),0, INDEX('Input|Historical'!$P$80:$P$100,MATCH($K44,'Input|Historical'!$C$80:$C$100,0))) -> 0 | AE44: =IF(ISERROR(MATCH($K44,'Input|Historical'!$C$80:$C$100,0)),0, INDEX('Input|Historical'!$P$80:$P$100,MATCH($K44,'Input|Historical'!$C$80:$C$100,0))) -> 0 | AF44: =IF(ISERROR(MATCH($K44,'Input|Historical'!$C$80:$C$100,0)),0, INDEX('Input|Historical'!$P$80:$P$100,MATCH($K44,'Input|Historical'!$C$80:$C$100,0))) -> 0 | AH44: 1929044.915 | AL44: 365634.7217 | AM44: 365745.3393 | AN44: 383532.7123 | AO44: 399221.6181 | AP44: 414910.5239 | AS44: 0
C45: CAP REC WORKS - IN LINE POLES / STAYS | D45: A319 | E45: CRP | F45: SCS | G45: Replacement [SCS] | H45: Replacement: Other - Third party initiated network asset relocations/rearrangements [SCS] | I45: Other - Third party initiated network asset relocations/rearrangements [SCS] | J45: SCS - Distribution system assets | K45: SCS - Distribution system assets | L45: SCS - Distribution system assets | M45: Distribution lines: Above ground (incorporating conductors; cross arms, insulators and fittings; poles – concrete, wood, steel or stobie; and transformers – pole or ground pad mounted) | N45: Routine (repex/connections) | O45: Non Augex | P45: Non-IT | Q45: Non-IT | R45: Non-IT | S45: $dollars | T45: CY 2018 | U45: 45 | V45: 0 | W45: =IF(E45="",No, IF(ISERROR(MATCH(E45,'Calc|OH'!$H$24:$H$36,0)),Yes,No)) -> Yes | X45: 0 | Y45: 0 | Z45: 0.99 | AA45: 0 | AB45: 0 | AC45: 0 | AD45: =IF(ISERROR(MATCH($K45,'Input|Historical'!$C$80:$C$100,0)),0, INDEX('Input|Historical'!$P$80:$P$100,MATCH($K45,'Input|Historical'!$C$80:$C$100,0))) -> 0 | AE45: =IF(ISERROR(MATCH($K45,'Input|Historical'!$C$80:$C$100,0)),0, INDEX('Input|Historical'!$P$80:$P$100,MATCH($K45,'Input|Historical'!$C$80:$C$100,0))) -> 0 | AF45: =IF(ISERROR(MATCH($K45,'Input|Historical'!$C$80:$C$100,0)),0, INDEX('Input|Historical'!$P$80:$P$100,MATCH($K45,'Input|Historical'!$C$80:$C$100,0))) -> 0 | AH45: 19488613.57 | AL45: 3693907.665 | AM45: 3695025.204 | AN45: 3874726.172 | AO45: 4033226.899 | AP45: 4191727.627 | AS45: 0
C46: CAP REC WORKS - INTERSECTION REALIGNMENT (CRR) | D46: A530 | E46: CRR | F46: SCS | G46: Replacement [SCS] | H46: Replacement: Other - Third party initiated network asset relocations/rearrangements [SCS] | I46: Other - Third party initiated network asset relocations/rearrangements [SCS] | J46: SCS - Distribution system assets | K46: SCS - Distribution system assets | L46: SCS - Distribution system assets | M46: Distribution lines: Above ground (incorporating conductors; cross arms, insulators and fittings; poles – concrete, wood, steel or stobie; and transformers – pole or ground pad mounted) | N46: Routine (repex/connections) | O46: Non Augex | P46: Non-IT | Q46: Non-IT | R46: Non-IT | S46: $dollars | T46: CY 2018 | U46: 45 | V46: 0 | W46: =IF(E46="",No, IF(ISERROR(MATCH(E46,'Calc|OH'!$H$24:$H$36,0)),Yes,No)) -> Yes | X46: 0 | Y46: 0 | Z46: 0.99 | AA46: 0 | AB46: 0 | AC46: 0 | AD46: =IF(ISERROR(MATCH($K46,'Input|Historical'!$C$80:$C$100,0)),0, INDEX('Input|Historical'!$P$80:$P$100,MATCH($K46,'Input|Historical'!$C$80:$C$100,0))) -> 0 | AE46: =IF(ISERROR(MATCH($K46,'Input|Historical'!$C$80:$C$100,0)),0, INDEX('Input|Historical'!$P$80:$P$100,MATCH($K46,'Input|Historical'!$C$80:$C$100,0))) -> 0 | AF46: =IF(ISERROR(MATCH($K46,'Input|Historical'!$C$80:$C$100,0)),0, INDEX('Input|Historical'!$P$80:$P$100,MATCH($K46,'Input|Historical'!$C$80:$C$100,0))) -> 0 | AH46: 2191935.615 | AL46: 415463.5086 | AM46: 415589.2012 | AN46: 435800.6416 | AO46: 453627.6352 | AP46: 471454.6288 | AS46: 0
C47: CAP REC WORKS - SUBS. MODIFICATION | D47: A322 | E47: CRS | F47: SCS | G47: Replacement [SCS] | H47: Replacement: Other - Third party initiated network asset relocations/rearrangements [SCS] | I47: Other - Third party initiated network asset relocations/rearrangements [SCS] | J47: SCS - Distribution system assets | K47: SCS - Distribution system assets | L47: SCS - Distribution system assets | M47: Distribution substations/transformers, pole or ground pad mounted | N47: Routine (repex/connections) | O47: Non Augex | P47: Non-IT | Q47: Non-IT | R47: Non-IT | S47: $dollars | T47: CY 2018 | U47: 40 | V47: 0 | W47: =IF(E47="",No, IF(ISERROR(MATCH(E47,'Calc|OH'!$H$24:$H$36,0)),Yes,No)) -> Yes | X47: 0 | Y47: 0 | Z47: 0.99 | AA47: 0 | AB47: 0 | AC47: 0 | AD47: =IF(ISERROR(MATCH($K47,'Input|Historical'!$C$80:$C$100,0)),0, INDEX('Input|Historical'!$P$80:$P$100,MATCH($K47,'Input|Historical'!$C$80:$C$100,0))) -> 0 | AE47: =IF(ISERROR(MATCH($K47,'Input|Historical'!$C$80:$C$100,0)),0, INDEX('Input|Historical'!$P$80:$P$100,MATCH($K47,'Input|Historical'!$C$80:$C$100,0))) -> 0 | AF47: =IF(ISERROR(MATCH($K47,'Input|Historical'!$C$80:$C$100,0)),0, INDEX('Input|Historical'!$P$80:$P$100,MATCH($K47,'Input|Historical'!$C$80:$C$100,0))) -> 0 | AH47: 2124738.67 | AL47: 402726.8759 | AM47: 402848.7153 | AN47: 422440.5448 | AO47: 439721.0262 | AP47: 457001.5077 | AS47: 0
C48: CAP REC WORKS - UNDERGROUNDING OF ASSETS | D48: A323 | E48: CRU | F48: SCS | G48: Replacement [SCS] | H48: Replacement: Other - Third party initiated network asset relocations/rearrangements [SCS] | I48: Other - Third party initiated network asset relocations/rearrangements [SCS] | J48: SCS - Distribution system assets | K48: SCS - Distribution system assets | L48: SCS - Distribution system assets | M48: Distribution lines: Underground (incorporating cables, fittings and ground pad mounted transformers) | N48: Routine (repex/connections) | O48: Non Augex | P48: Non-IT | Q48: Non-IT | R48: Non-IT | S48: $dollars | T48: CY 2018 | U48: 50 | V48: 0 | W48: =IF(E48="",No, IF(ISERROR(MATCH(E48,'Calc|OH'!$H$24:$H$36,0)),Yes,No)) -> Yes | X48: 0 | Y48: 0 | Z48: 0.99 | AA48: 0 | AB48: 0 | AC48: 0 | AD48: =IF(ISERROR(MATCH($K48,'Input|Historical'!$C$80:$C$100,0)),0, INDEX('Input|Historical'!$P$80:$P$100,MATCH($K48,'Input|Historical'!$C$80:$C$100,0))) -> 0 | AE48: =IF(ISERROR(MATCH($K48,'Input|Historical'!$C$80:$C$100,0)),0, INDEX('Input|Historical'!$P$80:$P$100,MATCH($K48,'Input|Historical'!$C$80:$C$100,0))) -> 0 | AF48: =IF(ISERROR(MATCH($K48,'Input|Historical'!$C$80:$C$100,0)),0, INDEX('Input|Historical'!$P$80:$P$100,MATCH($K48,'Input|Historical'!$C$80:$C$100,0))) -> 0 | AH48: 6206914.819 | AL48: 1176470.052 | AM48: 1176825.977 | AN48: 1234058.811 | AO48: 1284539.597 | AP48: 1335020.382 | AS48: 0
C49: Recoverable Works (Roads) | D49: A234 | E49: CRV | F49: SCS | G49: Replacement [SCS] | H49: Replacement: Other - Third party initiated network asset relocations/rearrangements [SCS] | I49: Other - Third party initiated network asset relocations/rearrangements [SCS] | J49: SCS - Distribution system assets | K49: SCS - Distribution system assets | L49: SCS - Distribution system assets | M49: Distribution lines: Above ground (incorporating conductors; cross arms, insulators and fittings; poles – concrete, wood, steel or stobie; and transformers – pole or ground pad mounted) | N49: Routine (repex/connections) | O49: Non Augex | P49: Non-IT | Q49: Non-IT | R49: Non-IT | S49: $dollars | T49: CY 2018 | U49: 45 | V49: 0 | W49: =IF(E49="",No, IF(ISERROR(MATCH(E49,'Calc|OH'!$H$24:$H$36,0)),Yes,No)) -> Yes | X49: 0 | Y49: 0 | Z49: 0.99 | AA49: 0 | AB49: 0 | AC49: 0 | AD49: =IF(ISERROR(MATCH($K49,'Input|Historical'!$C$80:$C$100,0)),0, INDEX('Input|Historical'!$P$80:$P$100,MATCH($K49,'Input|Historical'!$C$80:$C$100,0))) -> 0 | AE49: =IF(ISERROR(MATCH($K49,'Input|Historical'!$C$80:$C$100,0)),0, INDEX('Input|Historical'!$P$80:$P$100,MATCH($K49,'Input|Historical'!$C$80:$C$100,0))) -> 0 | AF49: =IF(ISERROR(MATCH($K49,'Input|Historical'!$C$80:$C$100,0)),0, INDEX('Input|Historical'!$P$80:$P$100,MATCH($K49,'Input|Historical'!$C$80:$C$100,0))) -> 0 | AH49: 2155451.858 | AL49: 408548.3102 | AM49: 408671.9107 | AN49: 428546.941 | AO49: 446077.2125 | AP49: 463607.484 | AS49: 0
C50: Major VicGov Project 1 - Supply | D50: A486 | E50: CBH | F50: SCS | G50: Connections [SCS] | H50: Connections: Commercial/Industrial [SCS] | I50: Commercial/Industrial [SCS] | J50: SCS - Distribution system assets | K50: SCS - Distribution system assets | L50: SCS - Distribution system assets | M50: Distribution lines: Above ground (incorporating conductors; cross arms, insulators and fittings; poles – concrete, wood, steel or stobie; and transformers – pole or ground pad mounted) | N50: Non-routine (repex/connections) | O50: Non Augex | P50: Non-IT | Q50: Non-IT | R50: Non-IT | S50: $dollars | T50: CY 2018 | U50: 45 | V50: 0 | W50: =IF(E50="",No, IF(ISERROR(MATCH(E50,'Calc|OH'!$H$24:$H$36,0)),Yes,No)) -> Yes | X50: 0 | Y50: 0 | Z50: 0 | AA50: 0 | AB50: 0 | AC50: 0 | AD50: =IF(ISERROR(MATCH($K50,'Input|Historical'!$C$80:$C$100,0)),0, INDEX('Input|Historical'!$P$80:$P$100,MATCH($K50,'Input|Historical'!$C$80:$C$100,0))) -> 0 | AE50: =IF(ISERROR(MATCH($K50,'Input|Historical'!$C$80:$C$100,0)),0, INDEX('Input|Historical'!$P$80:$P$100,MATCH($K50,'Input|Historical'!$C$80:$C$100,0))) -> 0 | AF50: =IF(ISERROR(MATCH($K50,'Input|Historical'!$C$80:$C$100,0)),0, INDEX('Input|Historical'!$P$80:$P$100,MATCH($K50,'Input|Historical'!$C$80:$C$100,0))) -> 0 | AH50: 0 | AL50: 0 | AM50: 0 | AN50: 0 | AO50: 0 | AP50: 0 | AS50: 0
C51: Major VicGov Project 1 - Relocation | D51: A485 | E51: CRE | F51: SCS | G51: Replacement [SCS] | H51: Replacement: Other - Third party initiated network asset relocations/rearrangements [SCS] | I51: Other - Third party initiated network asset relocations/rearrangements [SCS] | J51: SCS - Subtransmission | K51: SCS - Subtransmission | L51: SCS - Subtransmission | M51: Distribution lines: Combination of above ground and underground | N51: Non-routine (repex/connections) | O51: Non Augex | P51: Non-IT | Q51: Non-IT | R51: Non-IT | S51: $dollars | T51: CY 2018 | U51: 47.5 | V51: 0 | W51: =IF(E51="",No, IF(ISERROR(MATCH(E51,'Calc|OH'!$H$24:$H$36,0)),Yes,No)) -> Yes | X51: 0 | Y51: 0 | Z51: 0 | AA51: 0 | AB51: 0 | AC51: 0 | AD51: =IF(ISERROR(MATCH($K51,'Input|Historical'!$C$80:$C$100,0)),0, INDEX('Input|Historical'!$P$80:$P$100,MATCH($K51,'Input|Historical'!$C$80:$C$100,0))) -> 0 | AE51: =IF(ISERROR(MATCH($K51,'Input|Historical'!$C$80:$C$100,0)),0, INDEX('Input|Historical'!$P$80:$P$100,MATCH($K51,'Input|Historical'!$C$80:$C$100,0))) -> 0 | AF51: =IF(ISERROR(MATCH($K51,'Input|Historical'!$C$80:$C$100,0)),0, INDEX('Input|Historical'!$P$80:$P$100,MATCH($K51,'Input|Historical'!$C$80:$C$100,0))) -> 0 | AH51: 0 | AL51: 0 | AM51: 0 | AN51: 0 | AO51: 0 | AP51: 0 | AS51: 0
C52: Major Residential Development 1a | D52: A368 | E52: CBH | F52: SCS | G52: Connections [SCS] | H52: Connections: Commercial/Industrial [SCS] | I52: Commercial/Industrial [SCS] | J52: SCS - Distribution system assets | K52: SCS - Distribution system assets | L52: SCS - Distribution system assets | M52: Distribution lines: Combination of above ground and underground | N52: Non-routine (repex/connections) | O52: Non Augex | P52: Non-IT | Q52: Non-IT | R52: Non-IT | S52: $dollars | T52: CY 2018 | U52: 47.5 | V52: 0 | W52: =IF(E52="",No, IF(ISERROR(MATCH(E52,'Calc|OH'!$H$24:$H$36,0)),Yes,No)) -> Yes | X52: 0 | Y52: 0 | Z52: 0.319 | AA52: 0 | AB52: 0 | AC52: 0 | AD52: =IF(ISERROR(MATCH($K52,'Input|Historical'!$C$80:$C$100,0)),0, INDEX('Input|Historical'!$P$80:$P$100,MATCH($K52,'Input|Historical'!$C$80:$C$100,0))) -> 0 | AE52: =IF(ISERROR(MATCH($K52,'Input|Historical'!$C$80:$C$100,0)),0, INDEX('Input|Historical'!$P$80:$P$100,MATCH($K52,'Input|Historical'!$C$80:$C$100,0))) -> 0 | AF52: =IF(ISERROR(MATCH($K52,'Input|Historical'!$C$80:$C$100,0)),0, INDEX('Input|Historical'!$P$80:$P$100,MATCH($K52,'Input|Historical'!$C$80:$C$100,0))) -> 0 | AH52: 2632340.579 | AL52: =933944.360005359/AT15*AU15 -> 1020330.053 | AM52: 1612010.526 | AN52: 0 | AO52: 0 | AP52: 0 | AS52: 0
C53: Major Residential Development 1b | D53: A369 | E53: CBH | F53: SCS | G53: Connections [SCS] | H53: Connections: Commercial/Industrial [SCS] | I53: Commercial/Industrial [SCS] | J53: SCS - Distribution system assets | K53: SCS - Distribution system assets | L53: SCS - Distribution system assets | M53: Distribution lines: Combination of above ground and underground | N53: Non-routine (repex/connections) | O53: Non Augex | P53: Non-IT | Q53: Non-IT | R53: Non-IT | S53: $dollars | T53: CY 2018 | U53: 47.5 | V53: 0 | W53: =IF(E53="",No, IF(ISERROR(MATCH(E53,'Calc|OH'!$H$24:$H$36,0)),Yes,No)) -> Yes | X53: 0 | Y53: 0 | Z53: 0.319 | AA53: 0 | AB53: 0 | AC53: 0 | AD53: =IF(ISERROR(MATCH($K53,'Input|Historical'!$C$80:$C$100,0)),0, INDEX('Input|Historical'!$P$80:$P$100,MATCH($K53,'Input|Historical'!$C$80:$C$100,0))) -> 0 | AE53: =IF(ISERROR(MATCH($K53,'Input|Historical'!$C$80:$C$100,0)),0, INDEX('Input|Historical'!$P$80:$P$100,MATCH($K53,'Input|Historical'!$C$80:$C$100,0))) -> 0 | AF53: =IF(ISERROR(MATCH($K53,'Input|Historical'!$C$80:$C$100,0)),0, INDEX('Input|Historical'!$P$80:$P$100,MATCH($K53,'Input|Historical'!$C$80:$C$100,0))) -> 0 | AH53: 4240598.803 | AL53: 0 | AM53: 0 | AN53: 2120299.401 | AO53: 2120299.401 | AP53: 0 | AS53: 0
C54: Major VicGov Project 2 - Capacity | D54: A372 | E54: CBH | F54: SCS | G54: Connections [SCS] | H54: Connections: Commercial/Industrial [SCS] | I54: Commercial/Industrial [SCS] | J54: SCS - Distribution system assets | K54: SCS - Distribution system assets | L54: SCS - Distribution system assets | M54: Distribution lines: Above ground (incorporating conductors; cross arms, insulators and fittings; poles – concrete, wood, steel or stobie; and transformers – pole or ground pad mounted) | N54: Non-routine (repex/connections) | O54: Non Augex | P54: Non-IT | Q54: Non-IT | R54: Non-IT | S54: $dollars | T54: CY 2018 | U54: 45 | V54: 0 | W54: =IF(E54="",No, IF(ISERROR(MATCH(E54,'Calc|OH'!$H$24:$H$36,0)),Yes,No)) -> Yes | X54: 0 | Y54: 0 | Z54: 0.62 | AA54: 0 | AB54: 0 | AC54: 0 | AD54: =IF(ISERROR(MATCH($K54,'Input|Historical'!$C$80:$C$100,0)),0, INDEX('Input|Historical'!$P$80:$P$100,MATCH($K54,'Input|Historical'!$C$80:$C$100,0))) -> 0 | AE54: =IF(ISERROR(MATCH($K54,'Input|Historical'!$C$80:$C$100,0)),0, INDEX('Input|Historical'!$P$80:$P$100,MATCH($K54,'Input|Historical'!$C$80:$C$100,0))) -> 0 | AF54: =IF(ISERROR(MATCH($K54,'Input|Historical'!$C$80:$C$100,0)),0, INDEX('Input|Historical'!$P$80:$P$100,MATCH($K54,'Input|Historical'!$C$80:$C$100,0))) -> 0 | AH54: 3262826.61 | AL54: =1776439.43356805/AT15 -> 3062826.61 | AM54: 200000 | AN54: 0 | AO54: 0 | AP54: 0 | AS54: 0
C55: Major Residential Development 2 | D55: A373 | E55: CBH | F55: SCS | G55: Connections [SCS] | H55: Connections: Commercial/Industrial [SCS] | I55: Commercial/Industrial [SCS] | J55: SCS - Distribution system assets | K55: SCS - Distribution system assets | L55: SCS - Distribution system assets | M55: Distribution lines: Combination of above ground and underground | N55: Non-routine (repex/connections) | O55: Non Augex | P55: Non-IT | Q55: Non-IT | R55: Non-IT | S55: $dollars | T55: CY 2018 | U55: 47.5 | V55: 0 | W55: =IF(E55="",No, IF(ISERROR(MATCH(E55,'Calc|OH'!$H$24:$H$36,0)),Yes,No)) -> Yes | X55: 0 | Y55: 0 | Z55: 0.319 | AA55: 0 | AB55: 0 | AC55: 0 | AD55: =IF(ISERROR(MATCH($K55,'Input|Historical'!$C$80:$C$100,0)),0, INDEX('Input|Historical'!$P$80:$P$100,MATCH($K55,'Input|Historical'!$C$80:$C$100,0))) -> 0 | AE55: =IF(ISERROR(MATCH($K55,'Input|Historical'!$C$80:$C$100,0)),0, INDEX('Input|Historical'!$P$80:$P$100,MATCH($K55,'Input|Historical'!$C$80:$C$100,0))) -> 0 | AF55: =IF(ISERROR(MATCH($K55,'Input|Historical'!$C$80:$C$100,0)),0, INDEX('Input|Historical'!$P$80:$P$100,MATCH($K55,'Input|Historical'!$C$80:$C$100,0))) -> 0 | AH55: 4418324.553 | AL55: 0 | AM55: 0 | AN55: 0 | AO55: 2209162.276 | AP55: 2209162.276 | AS55: 0
C56: Major New Customer 1 | D56: A370 | E56: CBH | F56: SCS | G56: Connections [SCS] | H56: Connections: Commercial/Industrial [SCS] | I56: Commercial/Industrial [SCS] | J56: SCS - Distribution system assets | K56: SCS - Distribution system assets | L56: SCS - Distribution system assets | M56: Distribution lines: Above ground (incorporating conductors; cross arms, insulators and fittings; poles – concrete, wood, steel or stobie; and transformers – pole or ground pad mounted) | N56: Non-routine (repex/connections) | O56: Non Augex | P56: Non-IT | Q56: Non-IT | R56: Non-IT | S56: $dollars | T56: CY 2018 | U56: 45 | V56: 0 | W56: =IF(E56="",No, IF(ISERROR(MATCH(E56,'Calc|OH'!$H$24:$H$36,0)),Yes,No)) -> Yes | X56: 0 | Y56: 0 | Z56: 0.319 | AA56: 0 | AB56: 0 | AC56: 0 | AD56: =IF(ISERROR(MATCH($K56,'Input|Historical'!$C$80:$C$100,0)),0, INDEX('Input|Historical'!$P$80:$P$100,MATCH($K56,'Input|Historical'!$C$80:$C$100,0))) -> 0 | AE56: =IF(ISERROR(MATCH($K56,'Input|Historical'!$C$80:$C$100,0)),0, INDEX('Input|Historical'!$P$80:$P$100,MATCH($K56,'Input|Historical'!$C$80:$C$100,0))) -> 0 | AF56: =IF(ISERROR(MATCH($K56,'Input|Historical'!$C$80:$C$100,0)),0, INDEX('Input|Historical'!$P$80:$P$100,MATCH($K56,'Input|Historical'!$C$80:$C$100,0))) -> 0 | AH56: 6682505.405 | AL56: 0 | AM56: 0 | AN56: 1670626.351 | AO56: 3341252.703 | AP56: 1670626.351 | AS56: 0
C57: Meter Exch's Install Costs CPX | D57: A490 | E57: A10 | F57: ACS | G57: Metering [ACS] | H57: Metering: Meter Replacement [ACS] | I57: Meter Replacement [ACS] | J57: ACS - AMI - Remotely read interval meters & transformers | K57: ACS - AMI - Remotely read interval meters & transformers | L57: ACS - AMI - Remotely read interval meters & transformers | M57: Customer meters (incorporating load and time switches if fitted) | N57: Not applicable | O57: Non Augex | P57: Non-IT | Q57: Non-IT | R57: Non-IT | S57: $dollars | T57: CY 2018 | U57: 25 | V57: 0 | W57: =IF(E57="",No, IF(ISERROR(MATCH(E57,'Calc|OH'!$H$24:$H$36,0)),Yes,No)) -> No | X57: 0 | Y57: 0 | Z57: 0 | AA57: 0 | AB57: 0 | AC57: 0 | AD57: =IF(ISERROR(MATCH($K57,'Input|Historical'!$C$80:$C$100,0)),0, INDEX('Input|Historical'!$P$80:$P$100,MATCH($K57,'Input|Historical'!$C$80:$C$100,0))) -> 0 | AE57: =IF(ISERROR(MATCH($K57,'Input|Historical'!$C$80:$C$100,0)),0, INDEX('Input|Historical'!$P$80:$P$100,MATCH($K57,'Input|Historical'!$C$80:$C$100,0))) -> 0 | AF57: =IF(ISERROR(MATCH($K57,'Input|Historical'!$C$80:$C$100,0)),0, INDEX('Input|Historical'!$P$80:$P$100,MATCH($K57,'Input|Historical'!$C$80:$C$100,0))) -> 0 | AH57: 1075529.545 | AL57: 206456.987 | AM57: 210737.0703 | AN57: 215033.8165 | AO57: 219433.3914 | AP57: 223868.2802 | AS57: 0
C58: Inst Points, Relays, Batt, Ant | D58: A491 | E58: A10 | F58: ACS | G58: Metering [ACS] | H58: Metering: Communications infrastructure [ACS] | I58: Communications infrastructure [ACS] | J58: ACS - AMI - Communications | K58: ACS - AMI - Communications | L58: ACS - AMI - Communications | M58: Control, monitoring, communication and protection systems | N58: Not applicable | O58: Non Augex | P58: Non-IT | Q58: Non-IT | R58: Non-IT | S58: $dollars | T58: CY 2018 | U58: 10 | V58: 0 | W58: =IF(E58="",No, IF(ISERROR(MATCH(E58,'Calc|OH'!$H$24:$H$36,0)),Yes,No)) -> No | X58: 0 | Y58: 0 | Z58: 0 | AA58: 0 | AB58: 0 | AC58: 0 | AD58: =IF(ISERROR(MATCH($K58,'Input|Historical'!$C$80:$C$100,0)),0, INDEX('Input|Historical'!$P$80:$P$100,MATCH($K58,'Input|Historical'!$C$80:$C$100,0))) -> 0 | AE58: =IF(ISERROR(MATCH($K58,'Input|Historical'!$C$80:$C$100,0)),0, INDEX('Input|Historical'!$P$80:$P$100,MATCH($K58,'Input|Historical'!$C$80:$C$100,0))) -> 0 | AF58: =IF(ISERROR(MATCH($K58,'Input|Historical'!$C$80:$C$100,0)),0, INDEX('Input|Historical'!$P$80:$P$100,MATCH($K58,'Input|Historical'!$C$80:$C$100,0))) -> 0 | AH58: 1482350.742 | AL58: 334328.094 | AM58: 307499.6287 | AN58: 280174.3399 | AO58: 280174.3399 | AP58: 280174.3399 | AS58: 0
C59: MRO completion – Legacy to AMI | D59: A492 | E59: A10 | F59: ACS | G59: Metering [ACS] | H59: Metering: Meter Replacement [ACS] | I59: Meter Replacement [ACS] | J59: ACS - AMI - Remotely read interval meters & transformers | K59: ACS - AMI - Remotely read interval meters & transformers | L59: ACS - AMI - Remotely read interval meters & transformers | M59: Customer meters (incorporating load and time switches if fitted) | N59: Not applicable | O59: Non Augex | P59: Non-IT | Q59: Non-IT | R59: Non-IT | S59: $dollars | T59: CY 2018 | U59: 25 | V59: 0 | W59: =IF(E59="",No, IF(ISERROR(MATCH(E59,'Calc|OH'!$H$24:$H$36,0)),Yes,No)) -> No | X59: 0 | Y59: 0 | Z59: 0 | AA59: 0 | AB59: 0 | AC59: 0 | AD59: =IF(ISERROR(MATCH($K59,'Input|Historical'!$C$80:$C$100,0)),0, INDEX('Input|Historical'!$P$80:$P$100,MATCH($K59,'Input|Historical'!$C$80:$C$100,0))) -> 0 | AE59: =IF(ISERROR(MATCH($K59,'Input|Historical'!$C$80:$C$100,0)),0, INDEX('Input|Historical'!$P$80:$P$100,MATCH($K59,'Input|Historical'!$C$80:$C$100,0))) -> 0 | AF59: =IF(ISERROR(MATCH($K59,'Input|Historical'!$C$80:$C$100,0)),0, INDEX('Input|Historical'!$P$80:$P$100,MATCH($K59,'Input|Historical'!$C$80:$C$100,0))) -> 0 | AH59: 0 | AL59: 0 | AM59: 0 | AN59: 0 | AO59: 0 | AP59: 0 | AS59: 0
C60: Meters 1 Phase | D60: A493 | E60: VMM | F60: ACS | G60: Metering [ACS] | H60: Metering: Meter Purchase [ACS] | I60: Meter Purchase [ACS] | J60: ACS - AMI - Remotely read interval meters & transformers | K60: ACS - AMI - Remotely read interval meters & transformers | L60: ACS - AMI - Remotely read interval meters & transformers | M60: Customer meters (incorporating load and time switches if fitted) | N60: Not applicable | O60: Non Augex | P60: Non-IT | Q60: Non-IT | R60: Non-IT | S60: $dollars | T60: CY 2018 | U60: 25 | V60: 0 | W60: =IF(E60="",No, IF(ISERROR(MATCH(E60,'Calc|OH'!$H$24:$H$36,0)),Yes,No)) -> No | X60: 0 | Y60: 0 | Z60: 0 | AA60: 0 | AB60: 0 | AC60: 0 | AD60: =IF(ISERROR(MATCH($K60,'Input|Historical'!$C$80:$C$100,0)),0, INDEX('Input|Historical'!$P$80:$P$100,MATCH($K60,'Input|Historical'!$C$80:$C$100,0))) -> 0 | AE60: =IF(ISERROR(MATCH($K60,'Input|Historical'!$C$80:$C$100,0)),0, INDEX('Input|Historical'!$P$80:$P$100,MATCH($K60,'Input|Historical'!$C$80:$C$100,0))) -> 0 | AF60: =IF(ISERROR(MATCH($K60,'Input|Historical'!$C$80:$C$100,0)),0, INDEX('Input|Historical'!$P$80:$P$100,MATCH($K60,'Input|Historical'!$C$80:$C$100,0))) -> 0 | AH60: 6583047.123 | AL60: 1071080.499 | AM60: 1209058.864 | AN60: 1412218.399 | AO60: 1440925.664 | AP60: 1449763.696 | AS60: 0
C61: Multi Phase Interval Meter | D61: A494 | E61: VMM | F61: ACS | G61: Metering [ACS] | H61: Metering: Meter Purchase [ACS] | I61: Meter Purchase [ACS] | J61: ACS - AMI - Remotely read interval meters & transformers | K61: ACS - AMI - Remotely read interval meters & transformers | L61: ACS - AMI - Remotely read interval meters & transformers | M61: Customer meters (incorporating load and time switches if fitted) | N61: Not applicable | O61: Non Augex | P61: Non-IT | Q61: Non-IT | R61: Non-IT | S61: $dollars | T61: CY 2018 | U61: 25 | V61: 0 | W61: =IF(E61="",No, IF(ISERROR(MATCH(E61,'Calc|OH'!$H$24:$H$36,0)),Yes,No)) -> No | X61: 0 | Y61: 0 | Z61: 0 | AA61: 0 | AB61: 0 | AC61: 0 | AD61: =IF(ISERROR(MATCH($K61,'Input|Historical'!$C$80:$C$100,0)),0, INDEX('Input|Historical'!$P$80:$P$100,MATCH($K61,'Input|Historical'!$C$80:$C$100,0))) -> 0 | AE61: =IF(ISERROR(MATCH($K61,'Input|Historical'!$C$80:$C$100,0)),0, INDEX('Input|Historical'!$P$80:$P$100,MATCH($K61,'Input|Historical'!$C$80:$C$100,0))) -> 0 | AF61: =IF(ISERROR(MATCH($K61,'Input|Historical'!$C$80:$C$100,0)),0, INDEX('Input|Historical'!$P$80:$P$100,MATCH($K61,'Input|Historical'!$C$80:$C$100,0))) -> 0 | AH61: 3079081.58 | AL61: 521468.7907 | AM61: 578360.1335 | AN61: 653210.7144 | AO61: 661325.9151 | AP61: 664716.0263 | AS61: 0
C62: Metering – WAN and Antennas | D62: A495 | E62: VMM | F62: ACS | G62: Metering [ACS] | H62: Metering: Communications infrastructure [ACS] | I62: Communications infrastructure [ACS] | J62: ACS - AMI - Communications | K62: ACS - AMI - Communications | L62: ACS - AMI - Communications | M62: Control, monitoring, communication and protection systems | N62: Not applicable | O62: Non Augex | P62: Non-IT | Q62: Non-IT | R62: Non-IT | S62: $dollars | T62: CY 2018 | U62: 10 | V62: 0 | W62: =IF(E62="",No, IF(ISERROR(MATCH(E62,'Calc|OH'!$H$24:$H$36,0)),Yes,No)) -> No | X62: 0 | Y62: 0 | Z62: 0 | AA62: 0 | AB62: 0 | AC62: 0 | AD62: =IF(ISERROR(MATCH($K62,'Input|Historical'!$C$80:$C$100,0)),0, INDEX('Input|Historical'!$P$80:$P$100,MATCH($K62,'Input|Historical'!$C$80:$C$100,0))) -> 0 | AE62: =IF(ISERROR(MATCH($K62,'Input|Historical'!$C$80:$C$100,0)),0, INDEX('Input|Historical'!$P$80:$P$100,MATCH($K62,'Input|Historical'!$C$80:$C$100,0))) -> 0 | AF62: =IF(ISERROR(MATCH($K62,'Input|Historical'!$C$80:$C$100,0)),0, INDEX('Input|Historical'!$P$80:$P$100,MATCH($K62,'Input|Historical'!$C$80:$C$100,0))) -> 0 | AH62: 2036958.17 | AL62: 852010.9547 | AM62: 536275.0407 | AN62: 216224.0583 | AO62: 216224.0583 | AP62: 216224.0583 | AS62: 0
C63: SCADA and RTS Security Management | D63: A253 | E63: GIS | F63: SCS | G63: Replacement [SCS] | H63: Replacement: Scada Network Control Protections Systems [SCS] | I63: Scada Network Control Protections Systems - Comms infrastructure [SCS] | J63: SCS - SCADA & Network Control | K63: SCS - SCADA & Network Control | L63: SCS - SCADA & Network Control | M63: Control, monitoring, communication and protection systems | N63: Routine (repex/connections) | O63: Non Augex | P63: Non-IT | Q63: Non-IT | R63: Non-IT | S63: $dollars | T63: CY 2018 | U63: 10 | V63: 0 | W63: =IF(E63="",No, IF(ISERROR(MATCH(E63,'Calc|OH'!$H$24:$H$36,0)),Yes,No)) -> No | X63: 0 | Y63: 0 | Z63: 0 | AA63: 0 | AB63: 0 | AC63: 0 | AD63: =IF(ISERROR(MATCH($K63,'Input|Historical'!$C$80:$C$100,0)),0, INDEX('Input|Historical'!$P$80:$P$100,MATCH($K63,'Input|Historical'!$C$80:$C$100,0))) -> 0 | AE63: =IF(ISERROR(MATCH($K63,'Input|Historical'!$C$80:$C$100,0)),0, INDEX('Input|Historical'!$P$80:$P$100,MATCH($K63,'Input|Historical'!$C$80:$C$100,0))) -> 0 | AF63: =IF(ISERROR(MATCH($K63,'Input|Historical'!$C$80:$C$100,0)),0, INDEX('Input|Historical'!$P$80:$P$100,MATCH($K63,'Input|Historical'!$C$80:$C$100,0))) -> 0 | AH63: 1000000 | AL63: 200000 | AM63: 200000 | AN63: 200000 | AO63: 200000 | AP63: 200000 | AS63: 0
C64: SCADA DMS OMS Lifecycle Upgrades | D64: A336 | E64: GID | F64: SCS | G64: Non-network [SCS] | H64: Non Network: IT & Communications [SCS] | I64: Non Network: IT & Communications [SCS] | J64: SCS - Non network general - IT | K64: SCS - Inhouse Software (SL Tax Depn) | L64: SCS - Inhouse Software (SL Tax Depn) | M64: Software (In-house) | N64: Not applicable | O64: Non Augex | P64: Asset Management & Control Systems | Q64: Operational Technology | R64: Recurrent - step | S64: $dollars | T64: CY 2018 | U64: 5 | V64: 0 | W64: =IF(E64="",No, IF(ISERROR(MATCH(E64,'Calc|OH'!$H$24:$H$36,0)),Yes,No)) -> No | X64: 0 | Y64: 0 | Z64: 0 | AA64: 0 | AB64: 0 | AC64: 0 | AD64: =IF(ISERROR(MATCH($K64,'Input|Historical'!$C$80:$C$100,0)),0, INDEX('Input|Historical'!$P$80:$P$100,MATCH($K64,'Input|Historical'!$C$80:$C$100,0))) -> 0 | AE64: =IF(ISERROR(MATCH($K64,'Input|Historical'!$C$80:$C$100,0)),0, INDEX('Input|Historical'!$P$80:$P$100,MATCH($K64,'Input|Historical'!$C$80:$C$100,0))) -> 0 | AF64: =IF(ISERROR(MATCH($K64,'Input|Historical'!$C$80:$C$100,0)),0, INDEX('Input|Historical'!$P$80:$P$100,MATCH($K64,'Input|Historical'!$C$80:$C$100,0))) -> 0 | AH64: 1179000 | AL64: 413500 | AM64: 313500 | AN64: 0 | AO64: 226000 | AP64: 226000 | AS64: 0
C65: Power Quality Management (PQM) lifecycle management | D65: A327 | E65: GIS | F65: SCS | G65: Replacement [SCS] | H65: Replacement: Scada Network Control Protections Systems [SCS] | I65: Scada Network Control Protections Systems - Other [SCS] | J65: SCS - SCADA & Network Control | K65: SCS - SCADA & Network Control | L65: SCS - SCADA & Network Control | M65: Control, monitoring, communication and protection systems | N65: Non-routine (repex/connections) | O65: Non Augex | P65: Non-IT | Q65: Non-IT | R65: Non-IT | S65: $dollars | T65: CY 2018 | U65: 10 | V65: 0 | W65: =IF(E65="",No, IF(ISERROR(MATCH(E65,'Calc|OH'!$H$24:$H$36,0)),Yes,No)) -> No | X65: 0 | Y65: 0 | Z65: 0 | AA65: 0 | AB65: 0 | AC65: 0 | AD65: =IF(ISERROR(MATCH($K65,'Input|Historical'!$C$80:$C$100,0)),0, INDEX('Input|Historical'!$P$80:$P$100,MATCH($K65,'Input|Historical'!$C$80:$C$100,0))) -> 0 | AE65: =IF(ISERROR(MATCH($K65,'Input|Historical'!$C$80:$C$100,0)),0, INDEX('Input|Historical'!$P$80:$P$100,MATCH($K65,'Input|Historical'!$C$80:$C$100,0))) -> 0 | AF65: =IF(ISERROR(MATCH($K65,'Input|Historical'!$C$80:$C$100,0)),0, INDEX('Input|Historical'!$P$80:$P$100,MATCH($K65,'Input|Historical'!$C$80:$C$100,0))) -> 0 | AH65: 147586.3914 | AL65: 147586.3914 | AM65: 0 | AN65: 0 | AO65: 0 | AP65: 0 | AS65: 0
C66: SCADA DMS OMS Replacement | D66: A489 | E66: GID | F66: SCS | G66: Non-network [SCS] | H66: Non Network: IT & Communications [SCS] | I66: Non Network: IT & Communications [SCS] | J66: SCS - Non network general - IT | K66: SCS - Inhouse Software (SL Tax Depn) | L66: SCS - Inhouse Software (SL Tax Depn) | M66: Software (In-house) | N66: Not applicable | O66: Non Augex | P66: Asset Management & Control Systems | Q66: Operational Technology | R66: Non-recurrent - maintain | S66: $dollars | T66: CY 2018 | U66: 5 | V66: 0 | W66: =IF(E66="",No, IF(ISERROR(MATCH(E66,'Calc|OH'!$H$24:$H$36,0)),Yes,No)) -> No | X66: 0 | Y66: 0 | Z66: 0 | AA66: 0 | AB66: 0 | AC66: 0 | AD66: =IF(ISERROR(MATCH($K66,'Input|Historical'!$C$80:$C$100,0)),0, INDEX('Input|Historical'!$P$80:$P$100,MATCH($K66,'Input|Historical'!$C$80:$C$100,0))) -> 0 | AE66: =IF(ISERROR(MATCH($K66,'Input|Historical'!$C$80:$C$100,0)),0, INDEX('Input|Historical'!$P$80:$P$100,MATCH($K66,'Input|Historical'!$C$80:$C$100,0))) -> 0 | AF66: =IF(ISERROR(MATCH($K66,'Input|Historical'!$C$80:$C$100,0)),0, INDEX('Input|Historical'!$P$80:$P$100,MATCH($K66,'Input|Historical'!$C$80:$C$100,0))) -> 0 | AH66: 0 | AL66: 0 | AM66: 0 | AN66: 0 | AO66: 0 | AP66: 0 | AS66: 0
C67: Network Data Historian Consolidation | D67: A906 | E67: GID | F67: SCS | G67: Non-network [SCS] | H67: Non Network: IT & Communications [SCS] | I67: Non Network: IT & Communications [SCS] | J67: SCS - Non network general - IT | K67: SCS - Inhouse Software (SL Tax Depn) | L67: SCS - Inhouse Software (SL Tax Depn) | M67: Software (In-house) | N67: Not applicable | O67: Non Augex | P67: Asset Management & Control Systems | Q67: Operational Technology | R67: Non-recurrent - maintain | S67: $dollars | T67: CY 2018 | U67: 5 | V67: 0 | W67: =IF(E67="",No, IF(ISERROR(MATCH(E67,'Calc|OH'!$H$24:$H$36,0)),Yes,No)) -> No | X67: 0 | Y67: 0 | Z67: 0 | AA67: 0 | AB67: 0 | AC67: 0 | AD67: =IF(ISERROR(MATCH($K67,'Input|Historical'!$C$80:$C$100,0)),0, INDEX('Input|Historical'!$P$80:$P$100,MATCH($K67,'Input|Historical'!$C$80:$C$100,0))) -> 0 | AE67: =IF(ISERROR(MATCH($K67,'Input|Historical'!$C$80:$C$100,0)),0, INDEX('Input|Historical'!$P$80:$P$100,MATCH($K67,'Input|Historical'!$C$80:$C$100,0))) -> 0 | AF67: =IF(ISERROR(MATCH($K67,'Input|Historical'!$C$80:$C$100,0)),0, INDEX('Input|Historical'!$P$80:$P$100,MATCH($K67,'Input|Historical'!$C$80:$C$100,0))) -> 0 | AH67: 185000 | AL67: 97500 | AM67: 87500 | AN67: 0 | AO67: 0 | AP67: 0 | AS67: 0
C68: Transition of ADMS FLISR function from advisory mode to auto-mode | D68: A908 | E68: GID | F68: SCS | G68: Non-network [SCS] | H68: Non Network: IT & Communications [SCS] | I68: Non Network: IT & Communications [SCS] | J68: SCS - Non network general - IT | K68: SCS - Inhouse Software (SL Tax Depn) | L68: SCS - Inhouse Software (SL Tax Depn) | M68: Software (In-house) | N68: Not applicable | O68: Non Augex | P68: Asset Management & Control Systems | Q68: Future Network Initiative | R68: Non-recurrent - new capability | S68: $dollars | T68: CY 2018 | U68: 5 | V68: 0 | W68: =IF(E68="",No, IF(ISERROR(MATCH(E68,'Calc|OH'!$H$24:$H$36,0)),Yes,No)) -> No | X68: 0 | Y68: 0 | Z68: 0 | AA68: 0 | AB68: 0 | AC68: 0 | AD68: =IF(ISERROR(MATCH($K68,'Input|Historical'!$C$80:$C$100,0)),0, INDEX('Input|Historical'!$P$80:$P$100,MATCH($K68,'Input|Historical'!$C$80:$C$100,0))) -> 0 | AE68: =IF(ISERROR(MATCH($K68,'Input|Historical'!$C$80:$C$100,0)),0, INDEX('Input|Historical'!$P$80:$P$100,MATCH($K68,'Input|Historical'!$C$80:$C$100,0))) -> 0 | AF68: =IF(ISERROR(MATCH($K68,'Input|Historical'!$C$80:$C$100,0)),0, INDEX('Input|Historical'!$P$80:$P$100,MATCH($K68,'Input|Historical'!$C$80:$C$100,0))) -> 0 | AH68: 90000 | AL68: 90000 | AM68: 0 | AN68: 0 | AO68: 0 | AP68: 0 | AS68: 0
C69: Sustainable Lighting Repl | D69: A510 | E69: RLG | F69: ACS | G69: Replacement (public lighting) [ACS] | H69: Replacement (public lighting): Light Replacement [ACS] | I69: Light Replacement [ACS] | J69: ACS - PL - Energy Efficient - Luminaires and Ballasts | K69: ACS - PL - Energy Efficient - Luminaires and Ballasts | L69: ACS - PL - Energy Efficient - Luminaires and Ballasts | M69: Street lights | N69: Routine (repex/connections) | O69: Non Augex | P69: Non-IT | Q69: Non-IT | R69: Non-IT | S69: $dollars | T69: CY 2018 | U69: 15 | V69: 0 | W69: =IF(E69="",No, IF(ISERROR(MATCH(E69,'Calc|OH'!$H$24:$H$36,0)),Yes,No)) -> Yes | X69: 0 | Y69: 0 | Z69: 0 | AA69: 0 | AB69: 0 | AC69: 0 | AD69: =IF(ISERROR(MATCH($K69,'Input|Historical'!$C$80:$C$100,0)),0, INDEX('Input|Historical'!$P$80:$P$100,MATCH($K69,'Input|Historical'!$C$80:$C$100,0))) -> 0 | AE69: =IF(ISERROR(MATCH($K69,'Input|Historical'!$C$80:$C$100,0)),0, INDEX('Input|Historical'!$P$80:$P$100,MATCH($K69,'Input|Historical'!$C$80:$C$100,0))) -> 0 | AF69: =IF(ISERROR(MATCH($K69,'Input|Historical'!$C$80:$C$100,0)),0, INDEX('Input|Historical'!$P$80:$P$100,MATCH($K69,'Input|Historical'!$C$80:$C$100,0))) -> 0 | AH69: 5365808.195 | AL69: 1092078.858 | AM69: 1108261.553 | AN69: 1127789.907 | AO69: 1147994.538 | AP69: 889683.3382 | AS69: 0
C70: Single Main Road Light Repl | D70: A116 | E70: RLJ | F70: ACS | G70: Replacement (public lighting) [ACS] | H70: Replacement (public lighting): Light Replacement [ACS] | I70: Light Replacement [ACS] | J70: ACS - PL - Existing Lights - Luminaires | K70: ACS - PL - Energy Efficient - Luminaires and Ballasts | L70: ACS - PL - Energy Efficient - Luminaires and Ballasts | M70: Street lights | N70: Routine (repex/connections) | O70: Non Augex | P70: Non-IT | Q70: Non-IT | R70: Non-IT | S70: $dollars | T70: CY 2018 | U70: 15 | V70: 0 | W70: =IF(E70="",No, IF(ISERROR(MATCH(E70,'Calc|OH'!$H$24:$H$36,0)),Yes,No)) -> Yes | X70: 0 | Y70: 0 | Z70: 0 | AA70: 0 | AB70: 0 | AC70: 0 | AD70: =IF(ISERROR(MATCH($K70,'Input|Historical'!$C$80:$C$100,0)),0, INDEX('Input|Historical'!$P$80:$P$100,MATCH($K70,'Input|Historical'!$C$80:$C$100,0))) -> 0 | AE70: =IF(ISERROR(MATCH($K70,'Input|Historical'!$C$80:$C$100,0)),0, INDEX('Input|Historical'!$P$80:$P$100,MATCH($K70,'Input|Historical'!$C$80:$C$100,0))) -> 0 | AF70: =IF(ISERROR(MATCH($K70,'Input|Historical'!$C$80:$C$100,0)),0, INDEX('Input|Historical'!$P$80:$P$100,MATCH($K70,'Input|Historical'!$C$80:$C$100,0))) -> 0 | AH70: 3068362.2 | AL70: 652654.2406 | AM70: 645489.5634 | AN70: 638467.5936 | AO70: 631578.9012 | AP70: 500171.9014 | AS70: 0
C71: Single Minor Road Light Repl | D71: A34 | E71: RLM | F71: ACS | G71: Replacement (public lighting) [ACS] | H71: Replacement (public lighting): Light Replacement [ACS] | I71: Light Replacement [ACS] | J71: ACS - PL - Existing Lights - Luminaires | K71: ACS - PL - Energy Efficient - Luminaires and Ballasts | L71: ACS - PL - Energy Efficient - Luminaires and Ballasts | M71: Street lights | N71: Routine (repex/connections) | O71: Non Augex | P71: Non-IT | Q71: Non-IT | R71: Non-IT | S71: $dollars | T71: CY 2018 | U71: 15 | V71: 0 | W71: =IF(E71="",No, IF(ISERROR(MATCH(E71,'Calc|OH'!$H$24:$H$36,0)),Yes,No)) -> Yes | X71: 0 | Y71: 0 | Z71: 0 | AA71: 0 | AB71: 0 | AC71: 0 | AD71: =IF(ISERROR(MATCH($K71,'Input|Historical'!$C$80:$C$100,0)),0, INDEX('Input|Historical'!$P$80:$P$100,MATCH($K71,'Input|Historical'!$C$80:$C$100,0))) -> 0 | AE71: =IF(ISERROR(MATCH($K71,'Input|Historical'!$C$80:$C$100,0)),0, INDEX('Input|Historical'!$P$80:$P$100,MATCH($K71,'Input|Historical'!$C$80:$C$100,0))) -> 0 | AF71: =IF(ISERROR(MATCH($K71,'Input|Historical'!$C$80:$C$100,0)),0, INDEX('Input|Historical'!$P$80:$P$100,MATCH($K71,'Input|Historical'!$C$80:$C$100,0))) -> 0 | AH71: 515741.6661 | AL71: 112882.0976 | AM71: 112493.0849 | AN71: 112115.3048 | AO71: 111744.4039 | AP71: 66506.77498 | AS71: 0
C72: Single Lantern & Bkt Main Rd | D72: A511 | E72: RLN | F72: ACS | G72: Replacement (public lighting) [ACS] | H72: Replacement (public lighting): Light Replacement [ACS] | I72: Light Replacement [ACS] | J72: ACS - PL - Existing Lights - Luminaires | K72: ACS - PL - Energy Efficient - Luminaires and Ballasts | L72: ACS - PL - Energy Efficient - Luminaires and Ballasts | M72: Street lights | N72: Routine (repex/connections) | O72: Non Augex | P72: Non-IT | Q72: Non-IT | R72: Non-IT | S72: $dollars | T72: CY 2018 | U72: 15 | V72: 0 | W72: =IF(E72="",No, IF(ISERROR(MATCH(E72,'Calc|OH'!$H$24:$H$36,0)),Yes,No)) -> Yes | X72: 0 | Y72: 0 | Z72: 0 | AA72: 0 | AB72: 0 | AC72: 0 | AD72: =IF(ISERROR(MATCH($K72,'Input|Historical'!$C$80:$C$100,0)),0, INDEX('Input|Historical'!$P$80:$P$100,MATCH($K72,'Input|Historical'!$C$80:$C$100,0))) -> 0 | AE72: =IF(ISERROR(MATCH($K72,'Input|Historical'!$C$80:$C$100,0)),0, INDEX('Input|Historical'!$P$80:$P$100,MATCH($K72,'Input|Historical'!$C$80:$C$100,0))) -> 0 | AF72: =IF(ISERROR(MATCH($K72,'Input|Historical'!$C$80:$C$100,0)),0, INDEX('Input|Historical'!$P$80:$P$100,MATCH($K72,'Input|Historical'!$C$80:$C$100,0))) -> 0 | AH72: 66914.85768 | AL72: 12655.35576 | AM72: 12972.77192 | AN72: 13357.80907 | AO72: 13757.27913 | AP72: 14171.64181 | AS72: 0
C73: Single Lantern & Bkt Minor Rd | D73: A512 | E73: RLO | F73: ACS | G73: Replacement (public lighting) [ACS] | H73: Replacement (public lighting): Light Replacement [ACS] | I73: Light Replacement [ACS] | J73: ACS - PL - Existing Lights - Luminaires | K73: ACS - PL - Energy Efficient - Luminaires and Ballasts | L73: ACS - PL - Energy Efficient - Luminaires and Ballasts | M73: Street lights | N73: Routine (repex/connections) | O73: Non Augex | P73: Non-IT | Q73: Non-IT | R73: Non-IT | S73: $dollars | T73: CY 2018 | U73: 15 | V73: 0 | W73: =IF(E73="",No, IF(ISERROR(MATCH(E73,'Calc|OH'!$H$24:$H$36,0)),Yes,No)) -> Yes | X73: 0 | Y73: 0 | Z73: 0 | AA73: 0 | AB73: 0 | AC73: 0 | AD73: =IF(ISERROR(MATCH($K73,'Input|Historical'!$C$80:$C$100,0)),0, INDEX('Input|Historical'!$P$80:$P$100,MATCH($K73,'Input|Historical'!$C$80:$C$100,0))) -> 0 | AE73: =IF(ISERROR(MATCH($K73,'Input|Historical'!$C$80:$C$100,0)),0, INDEX('Input|Historical'!$P$80:$P$100,MATCH($K73,'Input|Historical'!$C$80:$C$100,0))) -> 0 | AF73: =IF(ISERROR(MATCH($K73,'Input|Historical'!$C$80:$C$100,0)),0, INDEX('Input|Historical'!$P$80:$P$100,MATCH($K73,'Input|Historical'!$C$80:$C$100,0))) -> 0 | AH73: 594916.3028 | AL73: 126931.1801 | AM73: 127824.7962 | AN73: 128892.3781 | AO73: 129994.634 | AP73: 81273.31432 | AS73: 0
C74: Security Beam Replacement | D74: A151 | E74: RLW | F74: UNR | G74: Unregulated [UNR] | H74: Unregulated [UNR] | I74: Unregulated [UNR] | J74: Unregulated services | K74: Unregulated services | L74: Unregulated services | M74: Nightwatchman’s lights | N74: Not applicable | O74: Non Augex | P74: Non-IT | Q74: Non-IT | R74: Non-IT | S74: $dollars | T74: CY 2018 | U74: 15 | V74: 0 | W74: =IF(E74="",No, IF(ISERROR(MATCH(E74,'Calc|OH'!$H$24:$H$36,0)),Yes,No)) -> Yes | X74: 0 | Y74: 0 | Z74: 0 | AA74: 0 | AB74: 0 | AC74: 0 | AD74: =IF(ISERROR(MATCH($K74,'Input|Historical'!$C$80:$C$100,0)),0, INDEX('Input|Historical'!$P$80:$P$100,MATCH($K74,'Input|Historical'!$C$80:$C$100,0))) -> 0 | AE74: =IF(ISERROR(MATCH($K74,'Input|Historical'!$C$80:$C$100,0)),0, INDEX('Input|Historical'!$P$80:$P$100,MATCH($K74,'Input|Historical'!$C$80:$C$100,0))) -> 0 | AF74: =IF(ISERROR(MATCH($K74,'Input|Historical'!$C$80:$C$100,0)),0, INDEX('Input|Historical'!$P$80:$P$100,MATCH($K74,'Input|Historical'!$C$80:$C$100,0))) -> 0 | AH74: 0 | AL74: 0 | AM74: 0 | AN74: 0 | AO74: 0 | AP74: 0 | AS74: 0
C75: Pole Replace P/L - Main Roads | D75: A78 | E75: RPA | F75: ACS | G75: Replacement (public lighting) [ACS] | H75: Replacement (public lighting): Light Replacement [ACS] | I75: Light Replacement [ACS] | J75: ACS - PL - Poles and Brackets | K75: ACS - PL - Poles and Brackets | L75: ACS - PL - Poles and Brackets | M75: Street lights | N75: Routine (repex/connections) | O75: Non Augex | P75: Non-IT | Q75: Non-IT | R75: Non-IT | S75: $dollars | T75: CY 2018 | U75: 15 | V75: 0 | W75: =IF(E75="",No, IF(ISERROR(MATCH(E75,'Calc|OH'!$H$24:$H$36,0)),Yes,No)) -> Yes | X75: 0 | Y75: 0 | Z75: 0 | AA75: 0 | AB75: 0 | AC75: 0 | AD75: =IF(ISERROR(MATCH($K75,'Input|Historical'!$C$80:$C$100,0)),0, INDEX('Input|Historical'!$P$80:$P$100,MATCH($K75,'Input|Historical'!$C$80:$C$100,0))) -> 0 | AE75: =IF(ISERROR(MATCH($K75,'Input|Historical'!$C$80:$C$100,0)),0, INDEX('Input|Historical'!$P$80:$P$100,MATCH($K75,'Input|Historical'!$C$80:$C$100,0))) -> 0 | AF75: =IF(ISERROR(MATCH($K75,'Input|Historical'!$C$80:$C$100,0)),0, INDEX('Input|Historical'!$P$80:$P$100,MATCH($K75,'Input|Historical'!$C$80:$C$100,0))) -> 0 | AH75: 1829425.029 | AL75: 332377.0896 | AM75: 348043.6068 | AN75: 364755.6256 | AO75: 382595.581 | AP75: 401653.1264 | AS75: 0
C76: Pole Replace P/L - Minor Roads | D76: A513 | E76: RPB | F76: ACS | G76: Replacement (public lighting) [ACS] | H76: Replacement (public lighting): Light Replacement [ACS] | I76: Light Replacement [ACS] | J76: ACS - PL - Poles and Brackets | K76: ACS - PL - Poles and Brackets | L76: ACS - PL - Poles and Brackets | M76: Street lights | N76: Routine (repex/connections) | O76: Non Augex | P76: Non-IT | Q76: Non-IT | R76: Non-IT | S76: =Input_Unit -> $dollars | T76: =Input_Dollar_Basis -> CY 2018 | U76: 15 | V76: 0 | W76: =IF(E76="",No, IF(ISERROR(MATCH(E76,'Calc|OH'!$H$24:$H$36,0)),Yes,No)) -> Yes | X76: 0 | Y76: 0 | Z76: 0 | AA76: 0 | AB76: 0 | AC76: 0 | AD76: =IF(ISERROR(MATCH($K76,'Input|Historical'!$C$80:$C$100,0)),0, INDEX('Input|Historical'!$P$80:$P$100,MATCH($K76,'Input|Historical'!$C$80:$C$100,0))) -> 0 | AE76: =IF(ISERROR(MATCH($K76,'Input|Historical'!$C$80:$C$100,0)),0, INDEX('Input|Historical'!$P$80:$P$100,MATCH($K76,'Input|Historical'!$C$80:$C$100,0))) -> 0 | AF76: =IF(ISERROR(MATCH($K76,'Input|Historical'!$C$80:$C$100,0)),0, INDEX('Input|Historical'!$P$80:$P$100,MATCH($K76,'Input|Historical'!$C$80:$C$100,0))) -> 0 | AH76: 2327935.469 | AL76: 427858.77 | AM76: 445734.5129 | AN76: 464568.0303 | AO76: 484419.7206 | AP76: 505354.4358 | AS76: 0
C77: Overhead Tools & Equipment | D77: A95 | E77: GEA | F77: SCS | G77: Non-network [SCS] | H77: Non Network: Other [SCS] | I77: Other expenditure [SCS] | J77: SCS - Non network general - other | K77: SCS - Non network general - other | L77: SCS - Non network general - other | M77: General tools and equipment expenditure (composite) | N77: Not applicable | O77: Non Augex | P77: Non-IT | Q77: Non-IT | R77: Non-IT | S77: $dollars | T77: CY 2018 | U77: 6.5 | V77: 0 | W77: =IF(E77="",No, IF(ISERROR(MATCH(E77,'Calc|OH'!$H$24:$H$36,0)),Yes,No)) -> No | X77: 0 | Y77: 0 | Z77: 0 | AA77: 0 | AB77: 0 | AC77: 0 | AD77: =IF(ISERROR(MATCH($K77,'Input|Historical'!$C$80:$C$100,0)),0, INDEX('Input|Historical'!$P$80:$P$100,MATCH($K77,'Input|Historical'!$C$80:$C$100,0))) -> 0.02908135376 | AE77: =IF(ISERROR(MATCH($K77,'Input|Historical'!$C$80:$C$100,0)),0, INDEX('Input|Historical'!$P$80:$P$100,MATCH($K77,'Input|Historical'!$C$80:$C$100,0))) -> 0.02908135376 | AF77: =IF(ISERROR(MATCH($K77,'Input|Historical'!$C$80:$C$100,0)),0, INDEX('Input|Historical'!$P$80:$P$100,MATCH($K77,'Input|Historical'!$C$80:$C$100,0))) -> 0.02908135376 | AH77: =SUM(AJ77:AP77) -> 1243238.328 | AL77: 249518.2404 | AM77: 249518.2404 | AN77: 248647.6656 | AO77: 247777.0908 | AP77: 247777.0908 | AS77: 0
C78: Underground Tools & Equipment | D78: A97 | E78: GEA | F78: SCS | G78: Non-network [SCS] | H78: Non Network: Other [SCS] | I78: Other expenditure [SCS] | J78: SCS - Non network general - other | K78: SCS - Non network general - other | L78: SCS - Non network general - other | M78: General tools and equipment expenditure (composite) | N78: Not applicable | O78: Non Augex | P78: Non-IT | Q78: Non-IT | R78: Non-IT | S78: $dollars | T78: CY 2018 | U78: 6.5 | V78: 0 | W78: =IF(E78="",No, IF(ISERROR(MATCH(E78,'Calc|OH'!$H$24:$H$36,0)),Yes,No)) -> No | X78: 0 | Y78: 0 | Z78: 0 | AA78: 0 | AB78: 0 | AC78: 0 | AD78: =IF(ISERROR(MATCH($K78,'Input|Historical'!$C$80:$C$100,0)),0, INDEX('Input|Historical'!$P$80:$P$100,MATCH($K78,'Input|Historical'!$C$80:$C$100,0))) -> 0.02908135376 | AE78: =IF(ISERROR(MATCH($K78,'Input|Historical'!$C$80:$C$100,0)),0, INDEX('Input|Historical'!$P$80:$P$100,MATCH($K78,'Input|Historical'!$C$80:$C$100,0))) -> 0.02908135376 | AF78: =IF(ISERROR(MATCH($K78,'Input|Historical'!$C$80:$C$100,0)),0, INDEX('Input|Historical'!$P$80:$P$100,MATCH($K78,'Input|Historical'!$C$80:$C$100,0))) -> 0.02908135376 | AH78: 324859.7704 | AL78: 65199.43639 | AM78: 65199.43639 | AN78: 64971.95408 | AO78: 64744.47178 | AP78: 64744.47178 | AS78: 0
C79: Zone Sub Tools & Test Equipment | D79: A98 | E79: GEA | F79: SCS | G79: Non-network [SCS] | H79: Non Network: Other [SCS] | I79: Other expenditure [SCS] | J79: SCS - Non network general - other | K79: SCS - Non network general - other | L79: SCS - Non network general - other | M79: General tools and equipment expenditure (composite) | N79: Not applicable | O79: Non Augex | P79: Non-IT | Q79: Non-IT | R79: Non-IT | S79: $dollars | T79: CY 2018 | U79: 6.5 | V79: 0 | W79: =IF(E79="",No, IF(ISERROR(MATCH(E79,'Calc|OH'!$H$24:$H$36,0)),Yes,No)) -> No | X79: 0 | Y79: 0 | Z79: 0 | AA79: 0 | AB79: 0 | AC79: 0 | AD79: =IF(ISERROR(MATCH($K79,'Input|Historical'!$C$80:$C$100,0)),0, INDEX('Input|Historical'!$P$80:$P$100,MATCH($K79,'Input|Historical'!$C$80:$C$100,0))) -> 0.02908135376 | AE79: =IF(ISERROR(MATCH($K79,'Input|Historical'!$C$80:$C$100,0)),0, INDEX('Input|Historical'!$P$80:$P$100,MATCH($K79,'Input|Historical'!$C$80:$C$100,0))) -> 0.02908135376 | AF79: =IF(ISERROR(MATCH($K79,'Input|Historical'!$C$80:$C$100,0)),0, INDEX('Input|Historical'!$P$80:$P$100,MATCH($K79,'Input|Historical'!$C$80:$C$100,0))) -> 0.02908135376 | AH79: 691707.1166 | AL79: 138825.7896 | AM79: 138825.7896 | AN79: 138341.4233 | AO79: 137857.057 | AP79: 137857.057 | AS79: 0
C80: General Adhoc Allowance - Buildings | D80: A525a | E80: GPA | F80: SCS | G80: Non-network [SCS] | H80: Non Network: Buildings and Property [SCS] | I80: Total buildings and property expenditure [SCS] | J80: SCS - Non network general - other | K80: SCS - Buildings (SL Tax Depn) | L80: SCS - Buildings (SL Tax Depn) | M80: Buildings | N80: Not applicable | O80: Non Augex | P80: Non-IT | Q80: Non-IT | R80: Non-IT | S80: $dollars | T80: CY 2018 | U80: 40 | V80: 0 | W80: =IF(E80="",No, IF(ISERROR(MATCH(E80,'Calc|OH'!$H$24:$H$36,0)),Yes,No)) -> No | X80: 0 | Y80: 0 | Z80: 0 | AA80: 0 | AB80: 0 | AC80: 0 | AD80: =IF(ISERROR(MATCH($K80,'Input|Historical'!$C$80:$C$100,0)),0, INDEX('Input|Historical'!$P$80:$P$100,MATCH($K80,'Input|Historical'!$C$80:$C$100,0))) -> 0 | AE80: =IF(ISERROR(MATCH($K80,'Input|Historical'!$C$80:$C$100,0)),0, INDEX('Input|Historical'!$P$80:$P$100,MATCH($K80,'Input|Historical'!$C$80:$C$100,0))) -> 0 | AF80: =IF(ISERROR(MATCH($K80,'Input|Historical'!$C$80:$C$100,0)),0, INDEX('Input|Historical'!$P$80:$P$100,MATCH($K80,'Input|Historical'!$C$80:$C$100,0))) -> 0 | AH80: 170000 | AL80: 34000 | AM80: 34000 | AN80: 34000 | AO80: 34000 | AP80: 34000 | AS80: 0
C81: General Adhoc Allowance - Furniture | D81: A525b | E81: GPA | F81: SCS | G81: Non-network [SCS] | H81: Non Network: Other [SCS] | I81: Other expenditure [SCS] | J81: SCS - Non network general - other | K81: SCS - Non network general - other | L81: SCS - Non network general - other | M81: General property expenditure (composite) | N81: Not applicable | O81: Non Augex | P81: Non-IT | Q81: Non-IT | R81: Non-IT | S81: $dollars | T81: CY 2018 | U81: 10.8 | V81: 0 | W81: =IF(E81="",No, IF(ISERROR(MATCH(E81,'Calc|OH'!$H$24:$H$36,0)),Yes,No)) -> No | X81: 0 | Y81: 0 | Z81: 0 | AA81: 0 | AB81: 0 | AC81: 0 | AD81: =IF(ISERROR(MATCH($K81,'Input|Historical'!$C$80:$C$100,0)),0, INDEX('Input|Historical'!$P$80:$P$100,MATCH($K81,'Input|Historical'!$C$80:$C$100,0))) -> 0.02908135376 | AE81: =IF(ISERROR(MATCH($K81,'Input|Historical'!$C$80:$C$100,0)),0, INDEX('Input|Historical'!$P$80:$P$100,MATCH($K81,'Input|Historical'!$C$80:$C$100,0))) -> 0.02908135376 | AF81: =IF(ISERROR(MATCH($K81,'Input|Historical'!$C$80:$C$100,0)),0, INDEX('Input|Historical'!$P$80:$P$100,MATCH($K81,'Input|Historical'!$C$80:$C$100,0))) -> 0.02908135376 | AH81: 510000 | AL81: 102000 | AM81: 102000 | AN81: 102000 | AO81: 102000 | AP81: 102000 | AS81: 0
C82: Tullamarine Refurbishment - Buildings | D82: A188a | E82: GPA | F82: SCS | G82: Non-network [SCS] | H82: Non Network: Buildings and Property [SCS] | I82: Total buildings and property expenditure [SCS] | J82: SCS - Non network general - other | K82: SCS - Buildings (SL Tax Depn) | L82: SCS - Buildings (SL Tax Depn) | M82: Buildings | N82: Not applicable | O82: Non Augex | P82: Non-IT | Q82: Non-IT | R82: Non-IT | S82: $dollars | T82: CY 2018 | U82: 40 | V82: 0 | W82: =IF(E82="",No, IF(ISERROR(MATCH(E82,'Calc|OH'!$H$24:$H$36,0)),Yes,No)) -> No | X82: 0 | Y82: 0 | Z82: 0 | AA82: 0 | AB82: 0 | AC82: 0 | AD82: =IF(ISERROR(MATCH($K82,'Input|Historical'!$C$80:$C$100,0)),0, INDEX('Input|Historical'!$P$80:$P$100,MATCH($K82,'Input|Historical'!$C$80:$C$100,0))) -> 0 | AE82: =IF(ISERROR(MATCH($K82,'Input|Historical'!$C$80:$C$100,0)),0, INDEX('Input|Historical'!$P$80:$P$100,MATCH($K82,'Input|Historical'!$C$80:$C$100,0))) -> 0 | AF82: =IF(ISERROR(MATCH($K82,'Input|Historical'!$C$80:$C$100,0)),0, INDEX('Input|Historical'!$P$80:$P$100,MATCH($K82,'Input|Historical'!$C$80:$C$100,0))) -> 0 | AH82: 375000 | AL82: 187500 | AM82: 187500 | AN82: 0 | AO82: 0 | AP82: 0 | AS82: 0
C83: Tullamarine Refurbishment - Furniture | D83: A188b | E83: GPA | F83: SCS | G83: Non-network [SCS] | H83: Non Network: Other [SCS] | I83: Other expenditure [SCS] | J83: SCS - Non network general - other | K83: SCS - Non network general - other | L83: SCS - Non network general - other | M83: General property expenditure (composite) | N83: Not applicable | O83: Non Augex | P83: Non-IT | Q83: Non-IT | R83: Non-IT | S83: $dollars | T83: CY 2018 | U83: 10.8 | V83: 0 | W83: =IF(E83="",No, IF(ISERROR(MATCH(E83,'Calc|OH'!$H$24:$H$36,0)),Yes,No)) -> No | X83: 0 | Y83: 0 | Z83: 0 | AA83: 0 | AB83: 0 | AC83: 0 | AD83: =IF(ISERROR(MATCH($K83,'Input|Historical'!$C$80:$C$100,0)),0, INDEX('Input|Historical'!$P$80:$P$100,MATCH($K83,'Input|Historical'!$C$80:$C$100,0))) -> 0.02908135376 | AE83: =IF(ISERROR(MATCH($K83,'Input|Historical'!$C$80:$C$100,0)),0, INDEX('Input|Historical'!$P$80:$P$100,MATCH($K83,'Input|Historical'!$C$80:$C$100,0))) -> 0.02908135376 | AF83: =IF(ISERROR(MATCH($K83,'Input|Historical'!$C$80:$C$100,0)),0, INDEX('Input|Historical'!$P$80:$P$100,MATCH($K83,'Input|Historical'!$C$80:$C$100,0))) -> 0.02908135376 | AH83: 1125000 | AL83: 562500 | AM83: 562500 | AN83: 0 | AO83: 0 | AP83: 0 | AS83: 0
C84: 99 Walker Refurbishment - Buildings | D84: A238a | E84: GPA | F84: SCS | G84: Non-network [SCS] | H84: Non Network: Buildings and Property [SCS] | I84: Total buildings and property expenditure [SCS] | J84: SCS - Non network general - other | K84: SCS - Buildings (SL Tax Depn) | L84: SCS - Buildings (SL Tax Depn) | M84: Buildings | N84: Not applicable | O84: Non Augex | P84: Non-IT | Q84: Non-IT | R84: Non-IT | S84: $dollars | T84: CY 2018 | U84: 40 | V84: 0 | W84: =IF(E84="",No, IF(ISERROR(MATCH(E84,'Calc|OH'!$H$24:$H$36,0)),Yes,No)) -> No | X84: 0 | Y84: 0 | Z84: 0 | AA84: 0 | AB84: 0 | AC84: 0 | AD84: =IF(ISERROR(MATCH($K84,'Input|Historical'!$C$80:$C$100,0)),0, INDEX('Input|Historical'!$P$80:$P$100,MATCH($K84,'Input|Historical'!$C$80:$C$100,0))) -> 0 | AE84: =IF(ISERROR(MATCH($K84,'Input|Historical'!$C$80:$C$100,0)),0, INDEX('Input|Historical'!$P$80:$P$100,MATCH($K84,'Input|Historical'!$C$80:$C$100,0))) -> 0 | AF84: =IF(ISERROR(MATCH($K84,'Input|Historical'!$C$80:$C$100,0)),0, INDEX('Input|Historical'!$P$80:$P$100,MATCH($K84,'Input|Historical'!$C$80:$C$100,0))) -> 0 | AH84: 48975 | AL84: 0 | AM84: 24487.5 | AN84: 24487.5 | AO84: 0 | AP84: 0 | AS84: 0
C85: 99 Walker Refurbishment - Furniture | D85: A238b | E85: GPA | F85: SCS | G85: Non-network [SCS] | H85: Non Network: Other [SCS] | I85: Other expenditure [SCS] | J85: SCS - Non network general - other | K85: SCS - Non network general - other | L85: SCS - Non network general - other | M85: General property expenditure (composite) | N85: Not applicable | O85: Non Augex | P85: Non-IT | Q85: Non-IT | R85: Non-IT | S85: $dollars | T85: CY 2018 | U85: 10.8 | V85: 0 | W85: =IF(E85="",No, IF(ISERROR(MATCH(E85,'Calc|OH'!$H$24:$H$36,0)),Yes,No)) -> No | X85: 0 | Y85: 0 | Z85: 0 | AA85: 0 | AB85: 0 | AC85: 0 | AD85: =IF(ISERROR(MATCH($K85,'Input|Historical'!$C$80:$C$100,0)),0, INDEX('Input|Historical'!$P$80:$P$100,MATCH($K85,'Input|Historical'!$C$80:$C$100,0))) -> 0.02908135376 | AE85: =IF(ISERROR(MATCH($K85,'Input|Historical'!$C$80:$C$100,0)),0, INDEX('Input|Historical'!$P$80:$P$100,MATCH($K85,'Input|Historical'!$C$80:$C$100,0))) -> 0.02908135376 | AF85: =IF(ISERROR(MATCH($K85,'Input|Historical'!$C$80:$C$100,0)),0, INDEX('Input|Historical'!$P$80:$P$100,MATCH($K85,'Input|Historical'!$C$80:$C$100,0))) -> 0.02908135376 | AH85: 146925 | AL85: 0 | AM85: 73462.5 | AN85: 73462.5 | AO85: 0 | AP85: 0 | AS85: 0
C86: 567 Collins Refurbishment - Buildings | D86: A254a | E86: GPA | F86: SCS | G86: Non-network [SCS] | H86: Non Network: Buildings and Property [SCS] | I86: Total buildings and property expenditure [SCS] | J86: SCS - Non network general - other | K86: SCS - Buildings (SL Tax Depn) | L86: SCS - Buildings (SL Tax Depn) | M86: Buildings | N86: Not applicable | O86: Non Augex | P86: Non-IT | Q86: Non-IT | R86: Non-IT | S86: $dollars | T86: CY 2018 | U86: 40 | V86: 0 | W86: =IF(E86="",No, IF(ISERROR(MATCH(E86,'Calc|OH'!$H$24:$H$36,0)),Yes,No)) -> No | X86: 0 | Y86: 0 | Z86: 0 | AA86: 0 | AB86: 0 | AC86: 0 | AD86: =IF(ISERROR(MATCH($K86,'Input|Historical'!$C$80:$C$100,0)),0, INDEX('Input|Historical'!$P$80:$P$100,MATCH($K86,'Input|Historical'!$C$80:$C$100,0))) -> 0 | AE86: =IF(ISERROR(MATCH($K86,'Input|Historical'!$C$80:$C$100,0)),0, INDEX('Input|Historical'!$P$80:$P$100,MATCH($K86,'Input|Historical'!$C$80:$C$100,0))) -> 0 | AF86: =IF(ISERROR(MATCH($K86,'Input|Historical'!$C$80:$C$100,0)),0, INDEX('Input|Historical'!$P$80:$P$100,MATCH($K86,'Input|Historical'!$C$80:$C$100,0))) -> 0 | AH86: 242050 | AL86: 0 | AM86: 0 | AN86: 121025 | AO86: 121025 | AP86: 0 | AS86: 0
C87: 567 Collins Refurbishment - Furniture | D87: A254b | E87: GPA | F87: SCS | G87: Non-network [SCS] | H87: Non Network: Other [SCS] | I87: Other expenditure [SCS] | J87: SCS - Non network general - other | K87: SCS - Non network general - other | L87: SCS - Non network general - other | M87: General property expenditure (composite) | N87: Not applicable | O87: Non Augex | P87: Non-IT | Q87: Non-IT | R87: Non-IT | S87: $dollars | T87: CY 2018 | U87: 10.8 | V87: 0 | W87: =IF(E87="",No, IF(ISERROR(MATCH(E87,'Calc|OH'!$H$24:$H$36,0)),Yes,No)) -> No | X87: 0 | Y87: 0 | Z87: 0 | AA87: 0 | AB87: 0 | AC87: 0 | AD87: =IF(ISERROR(MATCH($K87,'Input|Historical'!$C$80:$C$100,0)),0, INDEX('Input|Historical'!$P$80:$P$100,MATCH($K87,'Input|Historical'!$C$80:$C$100,0))) -> 0.02908135376 | AE87: =IF(ISERROR(MATCH($K87,'Input|Historical'!$C$80:$C$100,0)),0, INDEX('Input|Historical'!$P$80:$P$100,MATCH($K87,'Input|Historical'!$C$80:$C$100,0))) -> 0.02908135376 | AF87: =IF(ISERROR(MATCH($K87,'Input|Historical'!$C$80:$C$100,0)),0, INDEX('Input|Historical'!$P$80:$P$100,MATCH($K87,'Input|Historical'!$C$80:$C$100,0))) -> 0.02908135376 | AH87: 726150 | AL87: 0 | AM87: 0 | AN87: 363075 | AO87: 363075 | AP87: 0 | AS87: 0
C88: Broadmeadows Property Strategy - Buildings | D88: A331a | E88: GPA | F88: SCS | G88: Non-network [SCS] | H88: Non Network: Buildings and Property [SCS] | I88: Total buildings and property expenditure [SCS] | J88: SCS - Non network general - other | K88: SCS - Buildings (SL Tax Depn) | L88: SCS - Buildings (SL Tax Depn) | M88: Buildings | N88: Not applicable | O88: Non Augex | P88: Non-IT | Q88: Non-IT | R88: Non-IT | S88: $dollars | T88: CY 2018 | U88: 40 | V88: 0 | W88: =IF(E88="",No, IF(ISERROR(MATCH(E88,'Calc|OH'!$H$24:$H$36,0)),Yes,No)) -> No | X88: 0 | Y88: 0 | Z88: 0 | AA88: 0 | AB88: 0 | AC88: 0 | AD88: =IF(ISERROR(MATCH($K88,'Input|Historical'!$C$80:$C$100,0)),0, INDEX('Input|Historical'!$P$80:$P$100,MATCH($K88,'Input|Historical'!$C$80:$C$100,0))) -> 0 | AE88: =IF(ISERROR(MATCH($K88,'Input|Historical'!$C$80:$C$100,0)),0, INDEX('Input|Historical'!$P$80:$P$100,MATCH($K88,'Input|Historical'!$C$80:$C$100,0))) -> 0 | AF88: =IF(ISERROR(MATCH($K88,'Input|Historical'!$C$80:$C$100,0)),0, INDEX('Input|Historical'!$P$80:$P$100,MATCH($K88,'Input|Historical'!$C$80:$C$100,0))) -> 0 | AH88: 375000 | AL88: 0 | AM88: 0 | AN88: 0 | AO88: 187500 | AP88: 187500 | AS88: 0
C89: Broadmeadows Property Strategy - Furniture | D89: A331b | E89: GPA | F89: SCS | G89: Non-network [SCS] | H89: Non Network: Other [SCS] | I89: Other expenditure [SCS] | J89: SCS - Non network general - other | K89: SCS - Non network general - other | L89: SCS - Non network general - other | M89: General property expenditure (composite) | N89: Not applicable | O89: Non Augex | P89: Non-IT | Q89: Non-IT | R89: Non-IT | S89: $dollars | T89: CY 2018 | U89: 10.8 | V89: 0 | W89: =IF(E89="",No, IF(ISERROR(MATCH(E89,'Calc|OH'!$H$24:$H$36,0)),Yes,No)) -> No | X89: 0 | Y89: 0 | Z89: 0 | AA89: 0 | AB89: 0 | AC89: 0 | AD89: =IF(ISERROR(MATCH($K89,'Input|Historical'!$C$80:$C$100,0)),0, INDEX('Input|Historical'!$P$80:$P$100,MATCH($K89,'Input|Historical'!$C$80:$C$100,0))) -> 0.02908135376 | AE89: =IF(ISERROR(MATCH($K89,'Input|Historical'!$C$80:$C$100,0)),0, INDEX('Input|Historical'!$P$80:$P$100,MATCH($K89,'Input|Historical'!$C$80:$C$100,0))) -> 0.02908135376 | AF89: =IF(ISERROR(MATCH($K89,'Input|Historical'!$C$80:$C$100,0)),0, INDEX('Input|Historical'!$P$80:$P$100,MATCH($K89,'Input|Historical'!$C$80:$C$100,0))) -> 0.02908135376 | AH89: 1125000 | AL89: 0 | AM89: 0 | AN89: 0 | AO89: 562500 | AP89: 562500 | AS89: 0
C90: Replacement of Vehicles - EPV | D90: A105 | E90: GTA | F90: SCS | G90: Non-network [SCS] | H90: Non Network: Motor Vehicles [SCS] | I90: Elevated work platform (HCV) [SCS] | J90: SCS - Non network general - other | K90: SCS - Non network general - other | L90: SCS - Non network general - other | M90: Truck with GVM > 3.5 tonnes | N90: Not applicable | O90: Non Augex | P90: Non-IT | Q90: Non-IT | R90: Non-IT | S90: $dollars | T90: CY 2018 | U90: 7.5 | V90: 0 | W90: =IF(E90="",No, IF(ISERROR(MATCH(E90,'Calc|OH'!$H$24:$H$36,0)),Yes,No)) -> No | X90: 0 | Y90: 0 | Z90: 0 | AA90: 0 | AB90: 0 | AC90: 0 | AD90: =IF(ISERROR(MATCH($K90,'Input|Historical'!$C$80:$C$100,0)),0, INDEX('Input|Historical'!$P$80:$P$100,MATCH($K90,'Input|Historical'!$C$80:$C$100,0))) -> 0.02908135376 | AE90: =IF(ISERROR(MATCH($K90,'Input|Historical'!$C$80:$C$100,0)),0, INDEX('Input|Historical'!$P$80:$P$100,MATCH($K90,'Input|Historical'!$C$80:$C$100,0))) -> 0.02908135376 | AF90: =IF(ISERROR(MATCH($K90,'Input|Historical'!$C$80:$C$100,0)),0, INDEX('Input|Historical'!$P$80:$P$100,MATCH($K90,'Input|Historical'!$C$80:$C$100,0))) -> 0.02908135376 | AH90: 1607346.506 | AL90: 1461224.096 | AM90: 146122.4096 | AN90: 0 | AO90: 0 | AP90: 0 | AS90: 0
C91: Replacement of Vehicles - HCV | D91: A104 | E91: GTA | F91: SCS | G91: Non-network [SCS] | H91: Non Network: Motor Vehicles [SCS] | I91: Heavy commercial vehicle [SCS] | J91: SCS - Non network general - other | K91: SCS - Non network general - other | L91: SCS - Non network general - other | M91: Truck with GVM > 3.5 tonnes | N91: Not applicable | O91: Non Augex | P91: Non-IT | Q91: Non-IT | R91: Non-IT | S91: $dollars | T91: CY 2018 | U91: 7.5 | V91: 0 | W91: =IF(E91="",No, IF(ISERROR(MATCH(E91,'Calc|OH'!$H$24:$H$36,0)),Yes,No)) -> No | X91: 0 | Y91: 0 | Z91: 0 | AA91: 0 | AB91: 0 | AC91: 0 | AD91: =IF(ISERROR(MATCH($K91,'Input|Historical'!$C$80:$C$100,0)),0, INDEX('Input|Historical'!$P$80:$P$100,MATCH($K91,'Input|Historical'!$C$80:$C$100,0))) -> 0.02908135376 | AE91: =IF(ISERROR(MATCH($K91,'Input|Historical'!$C$80:$C$100,0)),0, INDEX('Input|Historical'!$P$80:$P$100,MATCH($K91,'Input|Historical'!$C$80:$C$100,0))) -> 0.02908135376 | AF91: =IF(ISERROR(MATCH($K91,'Input|Historical'!$C$80:$C$100,0)),0, INDEX('Input|Historical'!$P$80:$P$100,MATCH($K91,'Input|Historical'!$C$80:$C$100,0))) -> 0.02908135376 | AH91: 3173778.737 | AL91: 1556690.737 | AM91: 340952.2891 | AN91: 428625.7348 | AO91: 214312.8674 | AP91: 633197.1083 | AS91: 0
C92: Replacement of Vehicles - LCV | D92: A106 | E92: GVA | F92: SCS | G92: Non-network [SCS] | H92: Non Network: Motor Vehicles [SCS] | I92: Light commercial vehicle [SCS] | J92: SCS - Non network general - other | K92: SCS - Non network general - other | L92: SCS - Non network general - other | M92: Light Commercial Vehicle | N92: Not applicable | O92: Non Augex | P92: Non-IT | Q92: Non-IT | R92: Non-IT | S92: $dollars | T92: CY 2018 | U92: 7.5 | V92: 0 | W92: =IF(E92="",No, IF(ISERROR(MATCH(E92,'Calc|OH'!$H$24:$H$36,0)),Yes,No)) -> No | X92: 0 | Y92: 0 | Z92: 0 | AA92: 0 | AB92: 0 | AC92: 0 | AD92: =IF(ISERROR(MATCH($K92,'Input|Historical'!$C$80:$C$100,0)),0, INDEX('Input|Historical'!$P$80:$P$100,MATCH($K92,'Input|Historical'!$C$80:$C$100,0))) -> 0.02908135376 | AE92: =IF(ISERROR(MATCH($K92,'Input|Historical'!$C$80:$C$100,0)),0, INDEX('Input|Historical'!$P$80:$P$100,MATCH($K92,'Input|Historical'!$C$80:$C$100,0))) -> 0.02908135376 | AF92: =IF(ISERROR(MATCH($K92,'Input|Historical'!$C$80:$C$100,0)),0, INDEX('Input|Historical'!$P$80:$P$100,MATCH($K92,'Input|Historical'!$C$80:$C$100,0))) -> 0.02908135376 | AH92: 2768532.587 | AL92: 1179694.92 | AM92: 0 | AN92: 1066693.59 | AO92: 52604.06746 | AP92: 469540.0095 | AS92: 0
C93: Replacement of Vehicles - Plant | D93: A440 | E93: GVA | F93: SCS | G93: Non-network [SCS] | H93: Non Network: Other [SCS] | I93: Other expenditure [SCS] | J93: SCS - Non network general - other | K93: SCS - Non network general - other | L93: SCS - Non network general - other | M93: General tools and equipment expenditure (composite) | N93: Not applicable | O93: Non Augex | P93: Non-IT | Q93: Non-IT | R93: Non-IT | S93: $dollars | T93: CY 2018 | U93: 6.5 | V93: 0 | W93: =IF(E93="",No, IF(ISERROR(MATCH(E93,'Calc|OH'!$H$24:$H$36,0)),Yes,No)) -> No | X93: 0 | Y93: 0 | Z93: 0 | AA93: 0 | AB93: 0 | AC93: 0 | AD93: =IF(ISERROR(MATCH($K93,'Input|Historical'!$C$80:$C$100,0)),0, INDEX('Input|Historical'!$P$80:$P$100,MATCH($K93,'Input|Historical'!$C$80:$C$100,0))) -> 0.02908135376 | AE93: =IF(ISERROR(MATCH($K93,'Input|Historical'!$C$80:$C$100,0)),0, INDEX('Input|Historical'!$P$80:$P$100,MATCH($K93,'Input|Historical'!$C$80:$C$100,0))) -> 0.02908135376 | AF93: =IF(ISERROR(MATCH($K93,'Input|Historical'!$C$80:$C$100,0)),0, INDEX('Input|Historical'!$P$80:$P$100,MATCH($K93,'Input|Historical'!$C$80:$C$100,0))) -> 0.02908135376 | AH93: 715999.8071 | AL93: 136380.9156 | AM93: 34095.22891 | AN93: 102285.6867 | AO93: 204571.3734 | AP93: 238666.6024 | AS93: 0
C94: Replacement of Vehicles - PV | D94: A441 | E94: GVA | F94: SCS | G94: Non-network [SCS] | H94: Non Network: Motor Vehicles [SCS] | I94: Car [SCS] | J94: SCS - Non network general - other | K94: SCS - Non network general - other | L94: SCS - Non network general - other | M94: Cars - Generally | N94: Not applicable | O94: Non Augex | P94: Non-IT | Q94: Non-IT | R94: Non-IT | S94: $dollars | T94: CY 2018 | U94: 8 | V94: 0 | W94: =IF(E94="",No, IF(ISERROR(MATCH(E94,'Calc|OH'!$H$24:$H$36,0)),Yes,No)) -> No | X94: 0 | Y94: 0 | Z94: 0 | AA94: 0 | AB94: 0 | AC94: 0 | AD94: =IF(ISERROR(MATCH($K94,'Input|Historical'!$C$80:$C$100,0)),0, INDEX('Input|Historical'!$P$80:$P$100,MATCH($K94,'Input|Historical'!$C$80:$C$100,0))) -> 0.02908135376 | AE94: =IF(ISERROR(MATCH($K94,'Input|Historical'!$C$80:$C$100,0)),0, INDEX('Input|Historical'!$P$80:$P$100,MATCH($K94,'Input|Historical'!$C$80:$C$100,0))) -> 0.02908135376 | AF94: =IF(ISERROR(MATCH($K94,'Input|Historical'!$C$80:$C$100,0)),0, INDEX('Input|Historical'!$P$80:$P$100,MATCH($K94,'Input|Historical'!$C$80:$C$100,0))) -> 0.02908135376 | AH94: 1554547.608 | AL94: 475384.9059 | AM94: 526040.6746 | AN94: 64780.93492 | AO94: 91570.04335 | AP94: 396771.0495 | AS94: 0
C95: Augment BTS-NS 22kV loop | D95: A9 | E95: DOA | F95: SCS | G95: Augmentation [SCS] | H95: Augmentation: Subtransmission Lines [SCS] | I95: Subtransmission Lines [SCS] | J95: SCS - Subtransmission | K95: SCS - Subtransmission | L95: SCS - Subtransmission | M95: Distribution lines: Above ground (incorporating conductors; cross arms, insulators and fittings; poles – concrete, wood, steel or stobie; and transformers – pole or ground pad mounted) | N95: Reinforcement (augex) | O95: Demand Driven | P95: Non-IT | Q95: Non-IT | R95: Non-IT | S95: $dollars | T95: CY 2018 | U95: 45 | V95: 0 | W95: =IF(E95="",No, IF(ISERROR(MATCH(E95,'Calc|OH'!$H$24:$H$36,0)),Yes,No)) -> Yes | X95: 0 | Y95: 0 | Z95: 0 | AA95: 0 | AB95: 0 | AC95: 0 | AD95: =IF(ISERROR(MATCH($K95,'Input|Historical'!$C$80:$C$100,0)),0, INDEX('Input|Historical'!$P$80:$P$100,MATCH($K95,'Input|Historical'!$C$80:$C$100,0))) -> 0 | AE95: =IF(ISERROR(MATCH($K95,'Input|Historical'!$C$80:$C$100,0)),0, INDEX('Input|Historical'!$P$80:$P$100,MATCH($K95,'Input|Historical'!$C$80:$C$100,0))) -> 0 | AF95: =IF(ISERROR(MATCH($K95,'Input|Historical'!$C$80:$C$100,0)),0, INDEX('Input|Historical'!$P$80:$P$100,MATCH($K95,'Input|Historical'!$C$80:$C$100,0))) -> 0 | AH95: 9425764.277 | AL95: 4500000 | AM95: 4925764.277 | AN95: 0 | AO95: 0 | AP95: 0 | AS95: 0
C96: KTS-BY-ES 66kV loop capacity constraint | D96: A123 | E96: DOA | F96: SCS | G96: Augmentation [SCS] | H96: Augmentation: Subtransmission Lines [SCS] | I96: Subtransmission Lines [SCS] | J96: SCS - Subtransmission | K96: SCS - Subtransmission | L96: SCS - Subtransmission | M96: Distribution lines: Above ground (incorporating conductors; cross arms, insulators and fittings; poles – concrete, wood, steel or stobie; and transformers – pole or ground pad mounted) | N96: Reinforcement (augex) | O96: Demand Driven | P96: Non-IT | Q96: Non-IT | R96: Non-IT | S96: $dollars | T96: CY 2018 | U96: 45 | V96: 0 | W96: =IF(E96="",No, IF(ISERROR(MATCH(E96,'Calc|OH'!$H$24:$H$36,0)),Yes,No)) -> Yes | X96: 0 | Y96: 0 | Z96: 0 | AA96: 0 | AB96: 0 | AC96: 0 | AD96: =IF(ISERROR(MATCH($K96,'Input|Historical'!$C$80:$C$100,0)),0, INDEX('Input|Historical'!$P$80:$P$100,MATCH($K96,'Input|Historical'!$C$80:$C$100,0))) -> 0 | AE96: =IF(ISERROR(MATCH($K96,'Input|Historical'!$C$80:$C$100,0)),0, INDEX('Input|Historical'!$P$80:$P$100,MATCH($K96,'Input|Historical'!$C$80:$C$100,0))) -> 0 | AF96: =IF(ISERROR(MATCH($K96,'Input|Historical'!$C$80:$C$100,0)),0, INDEX('Input|Historical'!$P$80:$P$100,MATCH($K96,'Input|Historical'!$C$80:$C$100,0))) -> 0 | AH96: 0 | AL96: 0 | AM96: 0 | AN96: 0 | AO96: 0 | AP96: 0 | AS96: 0
C97: P Conversion Stage 6 (PTN) - Subtransmission | D97: A395 | E97: DOA | F97: SCS | G97: Augmentation [SCS] | H97: Augmentation: Subtransmission Lines [SCS] | I97: Subtransmission Lines [SCS] | J97: SCS - Subtransmission | K97: SCS - Subtransmission | L97: SCS - Subtransmission | M97: Distribution lines: Above ground (incorporating conductors; cross arms, insulators and fittings; poles – concrete, wood, steel or stobie; and transformers – pole or ground pad mounted) | N97: Reinforcement (augex) | O97: Demand Driven | P97: Non-IT | Q97: Non-IT | R97: Non-IT | S97: $dollars | T97: CY 2018 | U97: 45 | V97: 0 | W97: =IF(E97="",No, IF(ISERROR(MATCH(E97,'Calc|OH'!$H$24:$H$36,0)),Yes,No)) -> Yes | X97: 0 | Y97: 0 | Z97: 0 | AA97: 0 | AB97: 0 | AC97: 0 | AD97: =IF(ISERROR(MATCH($K97,'Input|Historical'!$C$80:$C$100,0)),0, INDEX('Input|Historical'!$P$80:$P$100,MATCH($K97,'Input|Historical'!$C$80:$C$100,0))) -> 0 | AE97: =IF(ISERROR(MATCH($K97,'Input|Historical'!$C$80:$C$100,0)),0, INDEX('Input|Historical'!$P$80:$P$100,MATCH($K97,'Input|Historical'!$C$80:$C$100,0))) -> 0 | AF97: =IF(ISERROR(MATCH($K97,'Input|Historical'!$C$80:$C$100,0)),0, INDEX('Input|Historical'!$P$80:$P$100,MATCH($K97,'Input|Historical'!$C$80:$C$100,0))) -> 0 | AH97: 0 | AL97: 0 | AM97: 0 | AN97: 0 | AO97: 0 | AP97: 0 | AS97: 0
C98: Rearr KTS-MAT-AW-PV-KTS 66kV split loop | D98: A203 | E98: DOA | F98: SCS | G98: Augmentation [SCS] | H98: Augmentation: Subtransmission Lines [SCS] | I98: Subtransmission Lines [SCS] | J98: SCS - Subtransmission | K98: SCS - Subtransmission | L98: SCS - Subtransmission | M98: Distribution lines: Above ground (incorporating conductors; cross arms, insulators and fittings; poles – concrete, wood, steel or stobie; and transformers – pole or ground pad mounted) | N98: Reinforcement (augex) | O98: Demand Driven | P98: Non-IT | Q98: Non-IT | R98: Non-IT | S98: $dollars | T98: CY 2018 | U98: 45 | V98: 0 | W98: =IF(E98="",No, IF(ISERROR(MATCH(E98,'Calc|OH'!$H$24:$H$36,0)),Yes,No)) -> Yes | X98: 0 | Y98: 0 | Z98: 0 | AA98: 0 | AB98: 0 | AC98: 0 | AD98: =IF(ISERROR(MATCH($K98,'Input|Historical'!$C$80:$C$100,0)),0, INDEX('Input|Historical'!$P$80:$P$100,MATCH($K98,'Input|Historical'!$C$80:$C$100,0))) -> 0 | AE98: =IF(ISERROR(MATCH($K98,'Input|Historical'!$C$80:$C$100,0)),0, INDEX('Input|Historical'!$P$80:$P$100,MATCH($K98,'Input|Historical'!$C$80:$C$100,0))) -> 0 | AF98: =IF(ISERROR(MATCH($K98,'Input|Historical'!$C$80:$C$100,0)),0, INDEX('Input|Historical'!$P$80:$P$100,MATCH($K98,'Input|Historical'!$C$80:$C$100,0))) -> 0 | AH98: 0 | AL98: 0 | AM98: 0 | AN98: 0 | AO98: 0 | AP98: 0 | AS98: 0
C99: Augment BTS-FF 22kV loop - sub trans | D99: A310 | E99: DOA | F99: SCS | G99: Augmentation [SCS] | H99: Augmentation: Subtransmission Lines [SCS] | I99: Subtransmission Lines [SCS] | J99: SCS - Subtransmission | K99: SCS - Subtransmission | L99: SCS - Subtransmission | M99: Distribution lines: Above ground (incorporating conductors; cross arms, insulators and fittings; poles – concrete, wood, steel or stobie; and transformers – pole or ground pad mounted) | N99: Reinforcement (augex) | O99: Demand Driven | P99: Non-IT | Q99: Non-IT | R99: Non-IT | S99: $dollars | T99: CY 2018 | U99: 45 | V99: 0 | W99: =IF(E99="",No, IF(ISERROR(MATCH(E99,'Calc|OH'!$H$24:$H$36,0)),Yes,No)) -> Yes | X99: 0 | Y99: 0 | Z99: 0 | AA99: 0 | AB99: 0 | AC99: 0 | AD99: =IF(ISERROR(MATCH($K99,'Input|Historical'!$C$80:$C$100,0)),0, INDEX('Input|Historical'!$P$80:$P$100,MATCH($K99,'Input|Historical'!$C$80:$C$100,0))) -> 0 | AE99: =IF(ISERROR(MATCH($K99,'Input|Historical'!$C$80:$C$100,0)),0, INDEX('Input|Historical'!$P$80:$P$100,MATCH($K99,'Input|Historical'!$C$80:$C$100,0))) -> 0 | AF99: =IF(ISERROR(MATCH($K99,'Input|Historical'!$C$80:$C$100,0)),0, INDEX('Input|Historical'!$P$80:$P$100,MATCH($K99,'Input|Historical'!$C$80:$C$100,0))) -> 0 | AH99: 4791367.946 | AL99: 44000 | AM99: 1144000 | AN99: 3603367.946 | AO99: 0 | AP99: 0 | AS99: 0
C100: Augment BTS-FF 22kV loop - zone sub | D100: A531 | E100: DZA | F100: SCS | G100: Augmentation [SCS] | H100: Augmentation: Subtransmission Substations, Switching Stations, Zone Substations [SCS] | I100: Subtransmission Substations, Switching Stations, Zone Substations [SCS] | J100: SCS - Subtransmission | K100: SCS - Subtransmission | L100: SCS - Subtransmission | M100: Distribution zone substations (excluding control, monitoring, communications and protection systems) | N100: Reinforcement (augex) | O100: Demand Driven | P100: Non-IT | Q100: Non-IT | R100: Non-IT | S100: $dollars | T100: CY 2018 | U100: 40 | V100: 0 | W100: =IF(E100="",No, IF(ISERROR(MATCH(E100,'Calc|OH'!$H$24:$H$36,0)),Yes,No)) -> Yes | X100: 0 | Y100: 0 | Z100: 0 | AA100: 0 | AB100: 0 | AC100: 0 | AD100: =IF(ISERROR(MATCH($K100,'Input|Historical'!$C$80:$C$100,0)),0, INDEX('Input|Historical'!$P$80:$P$100,MATCH($K100,'Input|Historical'!$C$80:$C$100,0))) -> 0 | AE100: =IF(ISERROR(MATCH($K100,'Input|Historical'!$C$80:$C$100,0)),0, INDEX('Input|Historical'!$P$80:$P$100,MATCH($K100,'Input|Historical'!$C$80:$C$100,0))) -> 0 | AF100: =IF(ISERROR(MATCH($K100,'Input|Historical'!$C$80:$C$100,0)),0, INDEX('Input|Historical'!$P$80:$P$100,MATCH($K100,'Input|Historical'!$C$80:$C$100,0))) -> 0 | AH100: 653368.3563 | AL100: 6000 | AM100: 156000 | AN100: 491368.3563 | AO100: 0 | AP100: 0 | AS100: 0
C101: P Conversion Stage 6 (PTN) - HV Feeders | D101: A396 | E101: DSH | F101: SCS | G101: Augmentation [SCS] | H101: Augmentation: HV Feeders [SCS] | I101: HV Feeders [SCS] | J101: SCS - Distribution system assets | K101: SCS - Distribution system assets | L101: SCS - Distribution system assets | M101: Distribution lines: Combination of above ground and underground | N101: Reinforcement (augex) | O101: Demand Driven | P101: Non-IT | Q101: Non-IT | R101: Non-IT | S101: $dollars | T101: CY 2018 | U101: 47.5 | V101: 0 | W101: =IF(E101="",No, IF(ISERROR(MATCH(E101,'Calc|OH'!$H$24:$H$36,0)),Yes,No)) -> Yes | X101: 0 | Y101: 0 | Z101: 0 | AA101: 0 | AB101: 0 | AC101: 0 | AD101: =IF(ISERROR(MATCH($K101,'Input|Historical'!$C$80:$C$100,0)),0, INDEX('Input|Historical'!$P$80:$P$100,MATCH($K101,'Input|Historical'!$C$80:$C$100,0))) -> 0 | AE101: =IF(ISERROR(MATCH($K101,'Input|Historical'!$C$80:$C$100,0)),0, INDEX('Input|Historical'!$P$80:$P$100,MATCH($K101,'Input|Historical'!$C$80:$C$100,0))) -> 0 | AF101: =IF(ISERROR(MATCH($K101,'Input|Historical'!$C$80:$C$100,0)),0, INDEX('Input|Historical'!$P$80:$P$100,MATCH($K101,'Input|Historical'!$C$80:$C$100,0))) -> 0 | AH101: 0 | AL101: 0 | AM101: 0 | AN101: 0 | AO101: 0 | AP101: 0 | AS101: 0
C102: EP Conversion Stage 5 | D102: A27 | E102: DSH | F102: SCS | G102: Augmentation [SCS] | H102: Augmentation: HV Feeders [SCS] | I102: HV Feeders [SCS] | J102: SCS - Distribution system assets | K102: SCS - Distribution system assets | L102: SCS - Distribution system assets | M102: Distribution lines: Combination of above ground and underground | N102: Reinforcement (augex) | O102: Demand Driven | P102: Non-IT | Q102: Non-IT | R102: Non-IT | S102: $dollars | T102: CY 2018 | U102: 47.5 | V102: 0 | W102: =IF(E102="",No, IF(ISERROR(MATCH(E102,'Calc|OH'!$H$24:$H$36,0)),Yes,No)) -> Yes | X102: 0 | Y102: 0 | Z102: 0 | AA102: 0 | AB102: 0 | AC102: 0 | AD102: =IF(ISERROR(MATCH($K102,'Input|Historical'!$C$80:$C$100,0)),0, INDEX('Input|Historical'!$P$80:$P$100,MATCH($K102,'Input|Historical'!$C$80:$C$100,0))) -> 0 | AE102: =IF(ISERROR(MATCH($K102,'Input|Historical'!$C$80:$C$100,0)),0, INDEX('Input|Historical'!$P$80:$P$100,MATCH($K102,'Input|Historical'!$C$80:$C$100,0))) -> 0 | AF102: =IF(ISERROR(MATCH($K102,'Input|Historical'!$C$80:$C$100,0)),0, INDEX('Input|Historical'!$P$80:$P$100,MATCH($K102,'Input|Historical'!$C$80:$C$100,0))) -> 0 | AH102: 0 | AL102: 0 | AM102: 0 | AN102: 0 | AO102: 0 | AP102: 0 | AS102: 0
C103: EP Conversion Stage 6 | D103: A114 | E103: DZA | F103: SCS | G103: Augmentation [SCS] | H103: Augmentation: Subtransmission Substations, Switching Stations, Zone Substations [SCS] | I103: Subtransmission Substations, Switching Stations, Zone Substations [SCS] | J103: SCS - Subtransmission | K103: SCS - Subtransmission | L103: SCS - Subtransmission | M103: Distribution zone substations (excluding control, monitoring, communications and protection systems) | N103: Reinforcement (augex) | O103: Demand Driven | P103: Non-IT | Q103: Non-IT | R103: Non-IT | S103: $dollars | T103: CY 2018 | U103: 40 | V103: 0 | W103: =IF(E103="",No, IF(ISERROR(MATCH(E103,'Calc|OH'!$H$24:$H$36,0)),Yes,No)) -> Yes | X103: 0 | Y103: 0 | Z103: 0 | AA103: 0 | AB103: 0 | AC103: 0 | AD103: =IF(ISERROR(MATCH($K103,'Input|Historical'!$C$80:$C$100,0)),0, INDEX('Input|Historical'!$P$80:$P$100,MATCH($K103,'Input|Historical'!$C$80:$C$100,0))) -> 0 | AE103: =IF(ISERROR(MATCH($K103,'Input|Historical'!$C$80:$C$100,0)),0, INDEX('Input|Historical'!$P$80:$P$100,MATCH($K103,'Input|Historical'!$C$80:$C$100,0))) -> 0 | AF103: =IF(ISERROR(MATCH($K103,'Input|Historical'!$C$80:$C$100,0)),0, INDEX('Input|Historical'!$P$80:$P$100,MATCH($K103,'Input|Historical'!$C$80:$C$100,0))) -> 0 | AH103: 6324542.478 | AL103: 3500000 | AM103: 2824542.478 | AN103: 0 | AO103: 0 | AP103: 0 | AS103: 0
C104: EP Conversion Stage 7 | D104: A115 | E104: DSH | F104: SCS | G104: Augmentation [SCS] | H104: Augmentation: HV Feeders [SCS] | I104: HV Feeders [SCS] | J104: SCS - Distribution system assets | K104: SCS - Distribution system assets | L104: SCS - Distribution system assets | M104: Distribution lines: Combination of above ground and underground | N104: Reinforcement (augex) | O104: Demand Driven | P104: Non-IT | Q104: Non-IT | R104: Non-IT | S104: $dollars | T104: CY 2018 | U104: 47.5 | V104: 0 | W104: =IF(E104="",No, IF(ISERROR(MATCH(E104,'Calc|OH'!$H$24:$H$36,0)),Yes,No)) -> Yes | X104: 0 | Y104: 0 | Z104: 0 | AA104: 0 | AB104: 0 | AC104: 0 | AD104: =IF(ISERROR(MATCH($K104,'Input|Historical'!$C$80:$C$100,0)),0, INDEX('Input|Historical'!$P$80:$P$100,MATCH($K104,'Input|Historical'!$C$80:$C$100,0))) -> 0 | AE104: =IF(ISERROR(MATCH($K104,'Input|Historical'!$C$80:$C$100,0)),0, INDEX('Input|Historical'!$P$80:$P$100,MATCH($K104,'Input|Historical'!$C$80:$C$100,0))) -> 0 | AF104: =IF(ISERROR(MATCH($K104,'Input|Historical'!$C$80:$C$100,0)),0, INDEX('Input|Historical'!$P$80:$P$100,MATCH($K104,'Input|Historical'!$C$80:$C$100,0))) -> 0 | AH104: 11001610.7 | AL104: 60000 | AM104: 4200000 | AN104: 6741610.7 | AO104: 0 | AP104: 0 | AS104: 0
C105: EP Conversion Stage 8 | D105: A112 | E105: DSH | F105: SCS | G105: Augmentation [SCS] | H105: Augmentation: HV Feeders [SCS] | I105: HV Feeders [SCS] | J105: SCS - Distribution system assets | K105: SCS - Distribution system assets | L105: SCS - Distribution system assets | M105: Distribution lines: Combination of above ground and underground | N105: Reinforcement (augex) | O105: Demand Driven | P105: Non-IT | Q105: Non-IT | R105: Non-IT | S105: $dollars | T105: CY 2018 | U105: 47.5 | V105: 0 | W105: =IF(E105="",No, IF(ISERROR(MATCH(E105,'Calc|OH'!$H$24:$H$36,0)),Yes,No)) -> Yes | X105: 0 | Y105: 0 | Z105: 0 | AA105: 0 | AB105: 0 | AC105: 0 | AD105: =IF(ISERROR(MATCH($K105,'Input|Historical'!$C$80:$C$100,0)),0, INDEX('Input|Historical'!$P$80:$P$100,MATCH($K105,'Input|Historical'!$C$80:$C$100,0))) -> 0 | AE105: =IF(ISERROR(MATCH($K105,'Input|Historical'!$C$80:$C$100,0)),0, INDEX('Input|Historical'!$P$80:$P$100,MATCH($K105,'Input|Historical'!$C$80:$C$100,0))) -> 0 | AF105: =IF(ISERROR(MATCH($K105,'Input|Historical'!$C$80:$C$100,0)),0, INDEX('Input|Historical'!$P$80:$P$100,MATCH($K105,'Input|Historical'!$C$80:$C$100,0))) -> 0 | AH105: 6873525.208 | AL105: 0 | AM105: 30000 | AN105: 1080000 | AO105: 5763525.208 | AP105: 0 | AS105: 0
C106: Augment Feeder CS5 | D106: A20 | E106: DSH | F106: SCS | G106: Augmentation [SCS] | H106: Augmentation: HV Feeders [SCS] | I106: HV Feeders [SCS] | J106: SCS - Distribution system assets | K106: SCS - Distribution system assets | L106: SCS - Distribution system assets | M106: Distribution lines: Combination of above ground and underground | N106: Reinforcement (augex) | O106: Demand Driven | P106: Non-IT | Q106: Non-IT | R106: Non-IT | S106: $dollars | T106: CY 2018 | U106: 47.5 | V106: 0 | W106: =IF(E106="",No, IF(ISERROR(MATCH(E106,'Calc|OH'!$H$24:$H$36,0)),Yes,No)) -> Yes | X106: 0 | Y106: 0 | Z106: 0 | AA106: 0 | AB106: 0 | AC106: 0 | AD106: =IF(ISERROR(MATCH($K106,'Input|Historical'!$C$80:$C$100,0)),0, INDEX('Input|Historical'!$P$80:$P$100,MATCH($K106,'Input|Historical'!$C$80:$C$100,0))) -> 0 | AE106: =IF(ISERROR(MATCH($K106,'Input|Historical'!$C$80:$C$100,0)),0, INDEX('Input|Historical'!$P$80:$P$100,MATCH($K106,'Input|Historical'!$C$80:$C$100,0))) -> 0 | AF106: =IF(ISERROR(MATCH($K106,'Input|Historical'!$C$80:$C$100,0)),0, INDEX('Input|Historical'!$P$80:$P$100,MATCH($K106,'Input|Historical'!$C$80:$C$100,0))) -> 0 | AH106: 0 | AL106: 0 | AM106: 0 | AN106: 0 | AO106: 0 | AP106: 0 | AS106: 0
C107: Augment steel section - SBY14 | D107: A23 | E107: DSH | F107: SCS | G107: Augmentation [SCS] | H107: Augmentation: HV Feeders [SCS] | I107: HV Feeders [SCS] | J107: SCS - Distribution system assets | K107: SCS - Distribution system assets | L107: SCS - Distribution system assets | M107: Distribution lines: Above ground (incorporating conductors; cross arms, insulators and fittings; poles – concrete, wood, steel or stobie; and transformers – pole or ground pad mounted) | N107: Reinforcement (augex) | O107: Demand Driven | P107: Non-IT | Q107: Non-IT | R107: Non-IT | S107: $dollars | T107: CY 2018 | U107: 45 | V107: 0 | W107: =IF(E107="",No, IF(ISERROR(MATCH(E107,'Calc|OH'!$H$24:$H$36,0)),Yes,No)) -> Yes | X107: 0 | Y107: 0 | Z107: 0 | AA107: 0 | AB107: 0 | AC107: 0 | AD107: =IF(ISERROR(MATCH($K107,'Input|Historical'!$C$80:$C$100,0)),0, INDEX('Input|Historical'!$P$80:$P$100,MATCH($K107,'Input|Historical'!$C$80:$C$100,0))) -> 0 | AE107: =IF(ISERROR(MATCH($K107,'Input|Historical'!$C$80:$C$100,0)),0, INDEX('Input|Historical'!$P$80:$P$100,MATCH($K107,'Input|Historical'!$C$80:$C$100,0))) -> 0 | AF107: =IF(ISERROR(MATCH($K107,'Input|Historical'!$C$80:$C$100,0)),0, INDEX('Input|Historical'!$P$80:$P$100,MATCH($K107,'Input|Historical'!$C$80:$C$100,0))) -> 0 | AH107: 1000000 | AL107: 0 | AM107: 0 | AN107: 0 | AO107: 150000 | AP107: 850000 | AS107: 0
C108: Reconfigure Feeder - YVE11 | D108: A450 | E108: DSH | F108: SCS | G108: Augmentation [SCS] | H108: Augmentation: HV Feeders [SCS] | I108: HV Feeders [SCS] | J108: SCS - Distribution system assets | K108: SCS - Distribution system assets | L108: SCS - Distribution system assets | M108: Distribution lines: Combination of above ground and underground | N108: Reinforcement (augex) | O108: Demand Driven | P108: Non-IT | Q108: Non-IT | R108: Non-IT | S108: $dollars | T108: CY 2018 | U108: 47.5 | V108: 0 | W108: =IF(E108="",No, IF(ISERROR(MATCH(E108,'Calc|OH'!$H$24:$H$36,0)),Yes,No)) -> Yes | X108: 0 | Y108: 0 | Z108: 0 | AA108: 0 | AB108: 0 | AC108: 0 | AD108: =IF(ISERROR(MATCH($K108,'Input|Historical'!$C$80:$C$100,0)),0, INDEX('Input|Historical'!$P$80:$P$100,MATCH($K108,'Input|Historical'!$C$80:$C$100,0))) -> 0 | AE108: =IF(ISERROR(MATCH($K108,'Input|Historical'!$C$80:$C$100,0)),0, INDEX('Input|Historical'!$P$80:$P$100,MATCH($K108,'Input|Historical'!$C$80:$C$100,0))) -> 0 | AF108: =IF(ISERROR(MATCH($K108,'Input|Historical'!$C$80:$C$100,0)),0, INDEX('Input|Historical'!$P$80:$P$100,MATCH($K108,'Input|Historical'!$C$80:$C$100,0))) -> 0 | AH108: 1365589.214 | AL108: 1365589.214 | AM108: 0 | AN108: 0 | AO108: 0 | AP108: 0 | AS108: 0
C109: Reconfigure feeder - SBY24 | D109: A40 | E109: DSH | F109: SCS | G109: Augmentation [SCS] | H109: Augmentation: HV Feeders [SCS] | I109: HV Feeders [SCS] | J109: SCS - Distribution system assets | K109: SCS - Distribution system assets | L109: SCS - Distribution system assets | M109: Distribution lines: Combination of above ground and underground | N109: Reinforcement (augex) | O109: Demand Driven | P109: Non-IT | Q109: Non-IT | R109: Non-IT | S109: $dollars | T109: CY 2018 | U109: 47.5 | V109: 0 | W109: =IF(E109="",No, IF(ISERROR(MATCH(E109,'Calc|OH'!$H$24:$H$36,0)),Yes,No)) -> Yes | X109: 0 | Y109: 0 | Z109: 0 | AA109: 0 | AB109: 0 | AC109: 0 | AD109: =IF(ISERROR(MATCH($K109,'Input|Historical'!$C$80:$C$100,0)),0, INDEX('Input|Historical'!$P$80:$P$100,MATCH($K109,'Input|Historical'!$C$80:$C$100,0))) -> 0 | AE109: =IF(ISERROR(MATCH($K109,'Input|Historical'!$C$80:$C$100,0)),0, INDEX('Input|Historical'!$P$80:$P$100,MATCH($K109,'Input|Historical'!$C$80:$C$100,0))) -> 0 | AF109: =IF(ISERROR(MATCH($K109,'Input|Historical'!$C$80:$C$100,0)),0, INDEX('Input|Historical'!$P$80:$P$100,MATCH($K109,'Input|Historical'!$C$80:$C$100,0))) -> 0 | AH109: 1159068.982 | AL109: 0 | AM109: 0 | AN109: 841194.9291 | AO109: 317874.0529 | AP109: 0 | AS109: 0
C110: COO & ST Feeder capacity constraint | D110: A42 | E110: DSH | F110: SCS | G110: Augmentation [SCS] | H110: Augmentation: HV Feeders [SCS] | I110: HV Feeders [SCS] | J110: SCS - Distribution system assets | K110: SCS - Distribution system assets | L110: SCS - Distribution system assets | M110: Distribution lines: Combination of above ground and underground | N110: Reinforcement (augex) | O110: Demand Driven | P110: Non-IT | Q110: Non-IT | R110: Non-IT | S110: $dollars | T110: CY 2018 | U110: 47.5 | V110: 0 | W110: =IF(E110="",No, IF(ISERROR(MATCH(E110,'Calc|OH'!$H$24:$H$36,0)),Yes,No)) -> Yes | X110: 0 | Y110: 0 | Z110: 0 | AA110: 0 | AB110: 0 | AC110: 0 | AD110: =IF(ISERROR(MATCH($K110,'Input|Historical'!$C$80:$C$100,0)),0, INDEX('Input|Historical'!$P$80:$P$100,MATCH($K110,'Input|Historical'!$C$80:$C$100,0))) -> 0 | AE110: =IF(ISERROR(MATCH($K110,'Input|Historical'!$C$80:$C$100,0)),0, INDEX('Input|Historical'!$P$80:$P$100,MATCH($K110,'Input|Historical'!$C$80:$C$100,0))) -> 0 | AF110: =IF(ISERROR(MATCH($K110,'Input|Historical'!$C$80:$C$100,0)),0, INDEX('Input|Historical'!$P$80:$P$100,MATCH($K110,'Input|Historical'!$C$80:$C$100,0))) -> 0 | AH110: 0 | AL110: 0 | AM110: 0 | AN110: 0 | AO110: 0 | AP110: 0 | AS110: 0
C111: New feeder - HB21 | D111: A45 | E111: DSH | F111: SCS | G111: Augmentation [SCS] | H111: Augmentation: HV Feeders [SCS] | I111: HV Feeders [SCS] | J111: SCS - Distribution system assets | K111: SCS - Distribution system assets | L111: SCS - Distribution system assets | M111: Distribution lines: Combination of above ground and underground | N111: Reinforcement (augex) | O111: Demand Driven | P111: Non-IT | Q111: Non-IT | R111: Non-IT | S111: $dollars | T111: CY 2018 | U111: 47.5 | V111: 0 | W111: =IF(E111="",No, IF(ISERROR(MATCH(E111,'Calc|OH'!$H$24:$H$36,0)),Yes,No)) -> Yes | X111: 0 | Y111: 0 | Z111: 0 | AA111: 0 | AB111: 0 | AC111: 0 | AD111: =IF(ISERROR(MATCH($K111,'Input|Historical'!$C$80:$C$100,0)),0, INDEX('Input|Historical'!$P$80:$P$100,MATCH($K111,'Input|Historical'!$C$80:$C$100,0))) -> 0 | AE111: =IF(ISERROR(MATCH($K111,'Input|Historical'!$C$80:$C$100,0)),0, INDEX('Input|Historical'!$P$80:$P$100,MATCH($K111,'Input|Historical'!$C$80:$C$100,0))) -> 0 | AF111: =IF(ISERROR(MATCH($K111,'Input|Historical'!$C$80:$C$100,0)),0, INDEX('Input|Historical'!$P$80:$P$100,MATCH($K111,'Input|Historical'!$C$80:$C$100,0))) -> 0 | AH111: 2530024.527 | AL111: 40000 | AM111: 900000 | AN111: 1590024.527 | AO111: 0 | AP111: 0 | AS111: 0
C112: PV thermal capacity constraint | D112: A49 | E112: DSH | F112: SCS | G112: Augmentation [SCS] | H112: Augmentation: HV Feeders [SCS] | I112: HV Feeders [SCS] | J112: SCS - Distribution system assets | K112: SCS - Distribution system assets | L112: SCS - Distribution system assets | M112: Distribution lines: Combination of above ground and underground | N112: Reinforcement (augex) | O112: Demand Driven | P112: Non-IT | Q112: Non-IT | R112: Non-IT | S112: $dollars | T112: CY 2018 | U112: 47.5 | V112: 0 | W112: =IF(E112="",No, IF(ISERROR(MATCH(E112,'Calc|OH'!$H$24:$H$36,0)),Yes,No)) -> Yes | X112: 0 | Y112: 0 | Z112: 0 | AA112: 0 | AB112: 0 | AC112: 0 | AD112: =IF(ISERROR(MATCH($K112,'Input|Historical'!$C$80:$C$100,0)),0, INDEX('Input|Historical'!$P$80:$P$100,MATCH($K112,'Input|Historical'!$C$80:$C$100,0))) -> 0 | AE112: =IF(ISERROR(MATCH($K112,'Input|Historical'!$C$80:$C$100,0)),0, INDEX('Input|Historical'!$P$80:$P$100,MATCH($K112,'Input|Historical'!$C$80:$C$100,0))) -> 0 | AF112: =IF(ISERROR(MATCH($K112,'Input|Historical'!$C$80:$C$100,0)),0, INDEX('Input|Historical'!$P$80:$P$100,MATCH($K112,'Input|Historical'!$C$80:$C$100,0))) -> 0 | AH112: 0 | AL112: 0 | AM112: 0 | AN112: 0 | AO112: 0 | AP112: 0 | AS112: 0
C113: Install feeder CB and establish protection & control - PV11 | D113: A76 | E113: DZA | F113: SCS | G113: Augmentation [SCS] | H113: Augmentation: Subtransmission Substations, Switching Stations, Zone Substations [SCS] | I113: Subtransmission Substations, Switching Stations, Zone Substations [SCS] | J113: SCS - Subtransmission | K113: SCS - Subtransmission | L113: SCS - Subtransmission | M113: Control, monitoring, communication and protection systems | N113: Reinforcement (augex) | O113: Demand Driven | P113: Non-IT | Q113: Non-IT | R113: Non-IT | S113: $dollars | T113: CY 2018 | U113: 10 | V113: 0 | W113: =IF(E113="",No, IF(ISERROR(MATCH(E113,'Calc|OH'!$H$24:$H$36,0)),Yes,No)) -> Yes | X113: 0 | Y113: 0 | Z113: 0 | AA113: 0 | AB113: 0 | AC113: 0 | AD113: =IF(ISERROR(MATCH($K113,'Input|Historical'!$C$80:$C$100,0)),0, INDEX('Input|Historical'!$P$80:$P$100,MATCH($K113,'Input|Historical'!$C$80:$C$100,0))) -> 0 | AE113: =IF(ISERROR(MATCH($K113,'Input|Historical'!$C$80:$C$100,0)),0, INDEX('Input|Historical'!$P$80:$P$100,MATCH($K113,'Input|Historical'!$C$80:$C$100,0))) -> 0 | AF113: =IF(ISERROR(MATCH($K113,'Input|Historical'!$C$80:$C$100,0)),0, INDEX('Input|Historical'!$P$80:$P$100,MATCH($K113,'Input|Historical'!$C$80:$C$100,0))) -> 0 | AH113: 0 | AL113: 0 | AM113: 0 | AN113: 0 | AO113: 0 | AP113: 0 | AS113: 0
C114: Reconfigure feeder - AW Feeders | D114: A57 | E114: DSH | F114: SCS | G114: Augmentation [SCS] | H114: Augmentation: HV Feeders [SCS] | I114: HV Feeders [SCS] | J114: SCS - Distribution system assets | K114: SCS - Distribution system assets | L114: SCS - Distribution system assets | M114: Distribution lines: Combination of above ground and underground | N114: Reinforcement (augex) | O114: Demand Driven | P114: Non-IT | Q114: Non-IT | R114: Non-IT | S114: $dollars | T114: CY 2018 | U114: 47.5 | V114: 0 | W114: =IF(E114="",No, IF(ISERROR(MATCH(E114,'Calc|OH'!$H$24:$H$36,0)),Yes,No)) -> Yes | X114: 0 | Y114: 0 | Z114: 0 | AA114: 0 | AB114: 0 | AC114: 0 | AD114: =IF(ISERROR(MATCH($K114,'Input|Historical'!$C$80:$C$100,0)),0, INDEX('Input|Historical'!$P$80:$P$100,MATCH($K114,'Input|Historical'!$C$80:$C$100,0))) -> 0 | AE114: =IF(ISERROR(MATCH($K114,'Input|Historical'!$C$80:$C$100,0)),0, INDEX('Input|Historical'!$P$80:$P$100,MATCH($K114,'Input|Historical'!$C$80:$C$100,0))) -> 0 | AF114: =IF(ISERROR(MATCH($K114,'Input|Historical'!$C$80:$C$100,0)),0, INDEX('Input|Historical'!$P$80:$P$100,MATCH($K114,'Input|Historical'!$C$80:$C$100,0))) -> 0 | AH114: 0 | AL114: 0 | AM114: 0 | AN114: 0 | AO114: 0 | AP114: 0 | AS114: 0
C115: Reconfigure Feeder - ES23 | D115: A43 | E115: DSH | F115: SCS | G115: Augmentation [SCS] | H115: Augmentation: HV Feeders [SCS] | I115: HV Feeders [SCS] | J115: SCS - Distribution system assets | K115: SCS - Distribution system assets | L115: SCS - Distribution system assets | M115: Distribution lines: Combination of above ground and underground | N115: Reinforcement (augex) | O115: Demand Driven | P115: Non-IT | Q115: Non-IT | R115: Non-IT | S115: $dollars | T115: CY 2018 | U115: 47.5 | V115: 0 | W115: =IF(E115="",No, IF(ISERROR(MATCH(E115,'Calc|OH'!$H$24:$H$36,0)),Yes,No)) -> Yes | X115: 0 | Y115: 0 | Z115: 0 | AA115: 0 | AB115: 0 | AC115: 0 | AD115: =IF(ISERROR(MATCH($K115,'Input|Historical'!$C$80:$C$100,0)),0, INDEX('Input|Historical'!$P$80:$P$100,MATCH($K115,'Input|Historical'!$C$80:$C$100,0))) -> 0 | AE115: =IF(ISERROR(MATCH($K115,'Input|Historical'!$C$80:$C$100,0)),0, INDEX('Input|Historical'!$P$80:$P$100,MATCH($K115,'Input|Historical'!$C$80:$C$100,0))) -> 0 | AF115: =IF(ISERROR(MATCH($K115,'Input|Historical'!$C$80:$C$100,0)),0, INDEX('Input|Historical'!$P$80:$P$100,MATCH($K115,'Input|Historical'!$C$80:$C$100,0))) -> 0 | AH115: 1548730.273 | AL115: 1548730.273 | AM115: 0 | AN115: 0 | AO115: 0 | AP115: 0 | AS115: 0
C116: COO22 & ST32 Feeder capacity constraint | D116: A317 | E116: DSH | F116: SCS | G116: Augmentation [SCS] | H116: Augmentation: HV Feeders [SCS] | I116: HV Feeders [SCS] | J116: SCS - Distribution system assets | K116: SCS - Distribution system assets | L116: SCS - Distribution system assets | M116: Distribution lines: Combination of above ground and underground | N116: Reinforcement (augex) | O116: Demand Driven | P116: Non-IT | Q116: Non-IT | R116: Non-IT | S116: $dollars | T116: CY 2018 | U116: 47.5 | V116: 0 | W116: =IF(E116="",No, IF(ISERROR(MATCH(E116,'Calc|OH'!$H$24:$H$36,0)),Yes,No)) -> Yes | X116: 0 | Y116: 0 | Z116: 0 | AA116: 0 | AB116: 0 | AC116: 0 | AD116: =IF(ISERROR(MATCH($K116,'Input|Historical'!$C$80:$C$100,0)),0, INDEX('Input|Historical'!$P$80:$P$100,MATCH($K116,'Input|Historical'!$C$80:$C$100,0))) -> 0 | AE116: =IF(ISERROR(MATCH($K116,'Input|Historical'!$C$80:$C$100,0)),0, INDEX('Input|Historical'!$P$80:$P$100,MATCH($K116,'Input|Historical'!$C$80:$C$100,0))) -> 0 | AF116: =IF(ISERROR(MATCH($K116,'Input|Historical'!$C$80:$C$100,0)),0, INDEX('Input|Historical'!$P$80:$P$100,MATCH($K116,'Input|Historical'!$C$80:$C$100,0))) -> 0 | AH116: 2998215.448 | AL116: 0 | AM116: 30000 | AN116: 1000000 | AO116: 1968215.448 | AP116: 0 | AS116: 0
C117: New feeder - FT12 | D117: A121 | E117: DSH | F117: SCS | G117: Augmentation [SCS] | H117: Augmentation: HV Feeders [SCS] | I117: HV Feeders [SCS] | J117: SCS - Distribution system assets | K117: SCS - Distribution system assets | L117: SCS - Distribution system assets | M117: Distribution lines: Combination of above ground and underground | N117: Reinforcement (augex) | O117: Demand Driven | P117: Non-IT | Q117: Non-IT | R117: Non-IT | S117: $dollars | T117: CY 2018 | U117: 47.5 | V117: 0 | W117: =IF(E117="",No, IF(ISERROR(MATCH(E117,'Calc|OH'!$H$24:$H$36,0)),Yes,No)) -> Yes | X117: 0 | Y117: 0 | Z117: 0 | AA117: 0 | AB117: 0 | AC117: 0 | AD117: =IF(ISERROR(MATCH($K117,'Input|Historical'!$C$80:$C$100,0)),0, INDEX('Input|Historical'!$P$80:$P$100,MATCH($K117,'Input|Historical'!$C$80:$C$100,0))) -> 0 | AE117: =IF(ISERROR(MATCH($K117,'Input|Historical'!$C$80:$C$100,0)),0, INDEX('Input|Historical'!$P$80:$P$100,MATCH($K117,'Input|Historical'!$C$80:$C$100,0))) -> 0 | AF117: =IF(ISERROR(MATCH($K117,'Input|Historical'!$C$80:$C$100,0)),0, INDEX('Input|Historical'!$P$80:$P$100,MATCH($K117,'Input|Historical'!$C$80:$C$100,0))) -> 0 | AH117: 1885586.323 | AL117: 0 | AM117: 0 | AN117: 0 | AO117: 595000 | AP117: 1290586.323 | AS117: 0
C118: Reconfigure KLO21 | D118: A222 | E118: DSH | F118: SCS | G118: Augmentation [SCS] | H118: Augmentation: HV Feeders [SCS] | I118: HV Feeders [SCS] | J118: SCS - Distribution system assets | K118: SCS - Distribution system assets | L118: SCS - Distribution system assets | M118: Distribution lines: Combination of above ground and underground | N118: Reinforcement (augex) | O118: Demand Driven | P118: Non-IT | Q118: Non-IT | R118: Non-IT | S118: $dollars | T118: CY 2018 | U118: 47.5 | V118: 0 | W118: =IF(E118="",No, IF(ISERROR(MATCH(E118,'Calc|OH'!$H$24:$H$36,0)),Yes,No)) -> Yes | X118: 0 | Y118: 0 | Z118: 0 | AA118: 0 | AB118: 0 | AC118: 0 | AD118: =IF(ISERROR(MATCH($K118,'Input|Historical'!$C$80:$C$100,0)),0, INDEX('Input|Historical'!$P$80:$P$100,MATCH($K118,'Input|Historical'!$C$80:$C$100,0))) -> 0 | AE118: =IF(ISERROR(MATCH($K118,'Input|Historical'!$C$80:$C$100,0)),0, INDEX('Input|Historical'!$P$80:$P$100,MATCH($K118,'Input|Historical'!$C$80:$C$100,0))) -> 0 | AF118: =IF(ISERROR(MATCH($K118,'Input|Historical'!$C$80:$C$100,0)),0, INDEX('Input|Historical'!$P$80:$P$100,MATCH($K118,'Input|Historical'!$C$80:$C$100,0))) -> 0 | AH118: 3287654.831 | AL118: 1600000 | AM118: 1687654.831 | AN118: 0 | AO118: 0 | AP118: 0 | AS118: 0
C119: Augment feeder NS18 | D119: A226 | E119: DSH | F119: SCS | G119: Augmentation [SCS] | H119: Augmentation: HV Feeders [SCS] | I119: HV Feeders [SCS] | J119: SCS - Distribution system assets | K119: SCS - Distribution system assets | L119: SCS - Distribution system assets | M119: Distribution lines: Combination of above ground and underground | N119: Reinforcement (augex) | O119: Demand Driven | P119: Non-IT | Q119: Non-IT | R119: Non-IT | S119: $dollars | T119: CY 2018 | U119: 47.5 | V119: 0 | W119: =IF(E119="",No, IF(ISERROR(MATCH(E119,'Calc|OH'!$H$24:$H$36,0)),Yes,No)) -> Yes | X119: 0 | Y119: 0 | Z119: 0 | AA119: 0 | AB119: 0 | AC119: 0 | AD119: =IF(ISERROR(MATCH($K119,'Input|Historical'!$C$80:$C$100,0)),0, INDEX('Input|Historical'!$P$80:$P$100,MATCH($K119,'Input|Historical'!$C$80:$C$100,0))) -> 0 | AE119: =IF(ISERROR(MATCH($K119,'Input|Historical'!$C$80:$C$100,0)),0, INDEX('Input|Historical'!$P$80:$P$100,MATCH($K119,'Input|Historical'!$C$80:$C$100,0))) -> 0 | AF119: =IF(ISERROR(MATCH($K119,'Input|Historical'!$C$80:$C$100,0)),0, INDEX('Input|Historical'!$P$80:$P$100,MATCH($K119,'Input|Historical'!$C$80:$C$100,0))) -> 0 | AH119: 1074098.76 | AL119: 30000 | AM119: 370000 | AN119: 674098.76 | AO119: 0 | AP119: 0 | AS119: 0
C120: Augment feeder NS15 | D120: A230 | E120: DSH | F120: SCS | G120: Augmentation [SCS] | H120: Augmentation: HV Feeders [SCS] | I120: HV Feeders [SCS] | J120: SCS - Distribution system assets | K120: SCS - Distribution system assets | L120: SCS - Distribution system assets | M120: Distribution lines: Combination of above ground and underground | N120: Reinforcement (augex) | O120: Demand Driven | P120: Non-IT | Q120: Non-IT | R120: Non-IT | S120: $dollars | T120: CY 2018 | U120: 47.5 | V120: 0 | W120: =IF(E120="",No, IF(ISERROR(MATCH(E120,'Calc|OH'!$H$24:$H$36,0)),Yes,No)) -> Yes | X120: 0 | Y120: 0 | Z120: 0 | AA120: 0 | AB120: 0 | AC120: 0 | AD120: =IF(ISERROR(MATCH($K120,'Input|Historical'!$C$80:$C$100,0)),0, INDEX('Input|Historical'!$P$80:$P$100,MATCH($K120,'Input|Historical'!$C$80:$C$100,0))) -> 0 | AE120: =IF(ISERROR(MATCH($K120,'Input|Historical'!$C$80:$C$100,0)),0, INDEX('Input|Historical'!$P$80:$P$100,MATCH($K120,'Input|Historical'!$C$80:$C$100,0))) -> 0 | AF120: =IF(ISERROR(MATCH($K120,'Input|Historical'!$C$80:$C$100,0)),0, INDEX('Input|Historical'!$P$80:$P$100,MATCH($K120,'Input|Historical'!$C$80:$C$100,0))) -> 0 | AH120: 275000 | AL120: 0 | AM120: 0 | AN120: 0 | AO120: 0 | AP120: 275000 | AS120: 0
C121: Augment Feeder FE6 | D121: A374 | E121: DSH | F121: SCS | G121: Augmentation [SCS] | H121: Augmentation: HV Feeders [SCS] | I121: HV Feeders [SCS] | J121: SCS - Distribution system assets | K121: SCS - Distribution system assets | L121: SCS - Distribution system assets | M121: Distribution lines: Combination of above ground and underground | N121: Reinforcement (augex) | O121: Demand Driven | P121: Non-IT | Q121: Non-IT | R121: Non-IT | S121: $dollars | T121: CY 2018 | U121: 47.5 | V121: 0 | W121: =IF(E121="",No, IF(ISERROR(MATCH(E121,'Calc|OH'!$H$24:$H$36,0)),Yes,No)) -> Yes | X121: 0 | Y121: 0 | Z121: 0 | AA121: 0 | AB121: 0 | AC121: 0 | AD121: =IF(ISERROR(MATCH($K121,'Input|Historical'!$C$80:$C$100,0)),0, INDEX('Input|Historical'!$P$80:$P$100,MATCH($K121,'Input|Historical'!$C$80:$C$100,0))) -> 0 | AE121: =IF(ISERROR(MATCH($K121,'Input|Historical'!$C$80:$C$100,0)),0, INDEX('Input|Historical'!$P$80:$P$100,MATCH($K121,'Input|Historical'!$C$80:$C$100,0))) -> 0 | AF121: =IF(ISERROR(MATCH($K121,'Input|Historical'!$C$80:$C$100,0)),0, INDEX('Input|Historical'!$P$80:$P$100,MATCH($K121,'Input|Historical'!$C$80:$C$100,0))) -> 0 | AH121: 2353980.56 | AL121: 80000 | AM121: 800000 | AN121: 1473980.56 | AO121: 0 | AP121: 0 | AS121: 0
C122: New feeder - TMA15 | D122: A377 | E122: DSH | F122: SCS | G122: Augmentation [SCS] | H122: Augmentation: HV Feeders [SCS] | I122: HV Feeders [SCS] | J122: SCS - Distribution system assets | K122: SCS - Distribution system assets | L122: SCS - Distribution system assets | M122: Distribution lines: Combination of above ground and underground | N122: Reinforcement (augex) | O122: Demand Driven | P122: Non-IT | Q122: Non-IT | R122: Non-IT | S122: $dollars | T122: CY 2018 | U122: 47.5 | V122: 0 | W122: =IF(E122="",No, IF(ISERROR(MATCH(E122,'Calc|OH'!$H$24:$H$36,0)),Yes,No)) -> Yes | X122: 0 | Y122: 0 | Z122: 0 | AA122: 0 | AB122: 0 | AC122: 0 | AD122: =IF(ISERROR(MATCH($K122,'Input|Historical'!$C$80:$C$100,0)),0, INDEX('Input|Historical'!$P$80:$P$100,MATCH($K122,'Input|Historical'!$C$80:$C$100,0))) -> 0 | AE122: =IF(ISERROR(MATCH($K122,'Input|Historical'!$C$80:$C$100,0)),0, INDEX('Input|Historical'!$P$80:$P$100,MATCH($K122,'Input|Historical'!$C$80:$C$100,0))) -> 0 | AF122: =IF(ISERROR(MATCH($K122,'Input|Historical'!$C$80:$C$100,0)),0, INDEX('Input|Historical'!$P$80:$P$100,MATCH($K122,'Input|Historical'!$C$80:$C$100,0))) -> 0 | AH122: 1911341.703 | AL122: 0 | AM122: 60000 | AN122: 1120000 | AO122: 731341.703 | AP122: 0 | AS122: 0
C123: Augment Feeder NT11 | D123: A376 | E123: DSH | F123: SCS | G123: Augmentation [SCS] | H123: Augmentation: HV Feeders [SCS] | I123: HV Feeders [SCS] | J123: SCS - Distribution system assets | K123: SCS - Distribution system assets | L123: SCS - Distribution system assets | M123: Distribution lines: Combination of above ground and underground | N123: Reinforcement (augex) | O123: Demand Driven | P123: Non-IT | Q123: Non-IT | R123: Non-IT | S123: $dollars | T123: CY 2018 | U123: 47.5 | V123: 0 | W123: =IF(E123="",No, IF(ISERROR(MATCH(E123,'Calc|OH'!$H$24:$H$36,0)),Yes,No)) -> Yes | X123: 0 | Y123: 0 | Z123: 0 | AA123: 0 | AB123: 0 | AC123: 0 | AD123: =IF(ISERROR(MATCH($K123,'Input|Historical'!$C$80:$C$100,0)),0, INDEX('Input|Historical'!$P$80:$P$100,MATCH($K123,'Input|Historical'!$C$80:$C$100,0))) -> 0 | AE123: =IF(ISERROR(MATCH($K123,'Input|Historical'!$C$80:$C$100,0)),0, INDEX('Input|Historical'!$P$80:$P$100,MATCH($K123,'Input|Historical'!$C$80:$C$100,0))) -> 0 | AF123: =IF(ISERROR(MATCH($K123,'Input|Historical'!$C$80:$C$100,0)),0, INDEX('Input|Historical'!$P$80:$P$100,MATCH($K123,'Input|Historical'!$C$80:$C$100,0))) -> 0 | AH123: 2503759.645 | AL123: 1150000 | AM123: 1353759.645 | AN123: 0 | AO123: 0 | AP123: 0 | AS123: 0
C124: Establish tie-line between SBY32 and SBY11 | D124: A35 | E124: DSI | F124: SCS | G124: Augmentation [SCS] | H124: Augmentation: HV Feeders [SCS] | I124: HV Feeders [SCS] | J124: SCS - Distribution system assets | K124: SCS - Distribution system assets | L124: SCS - Distribution system assets | M124: Distribution lines: Combination of above ground and underground | N124: Reinforcement (augex) | O124: Demand Driven | P124: Non-IT | Q124: Non-IT | R124: Non-IT | S124: $dollars | T124: CY 2018 | U124: 47.5 | V124: 0 | W124: =IF(E124="",No, IF(ISERROR(MATCH(E124,'Calc|OH'!$H$24:$H$36,0)),Yes,No)) -> Yes | X124: 0 | Y124: 0 | Z124: 0 | AA124: 0 | AB124: 0 | AC124: 0 | AD124: =IF(ISERROR(MATCH($K124,'Input|Historical'!$C$80:$C$100,0)),0, INDEX('Input|Historical'!$P$80:$P$100,MATCH($K124,'Input|Historical'!$C$80:$C$100,0))) -> 0 | AE124: =IF(ISERROR(MATCH($K124,'Input|Historical'!$C$80:$C$100,0)),0, INDEX('Input|Historical'!$P$80:$P$100,MATCH($K124,'Input|Historical'!$C$80:$C$100,0))) -> 0 | AF124: =IF(ISERROR(MATCH($K124,'Input|Historical'!$C$80:$C$100,0)),0, INDEX('Input|Historical'!$P$80:$P$100,MATCH($K124,'Input|Historical'!$C$80:$C$100,0))) -> 0 | AH124: 0 | AL124: 0 | AM124: 0 | AN124: 0 | AO124: 0 | AP124: 0 | AS124: 0
C125: Install regulator - SBY13 | D125: A39 | E125: DSI | F125: SCS | G125: Augmentation [SCS] | H125: Augmentation: HV Feeders [SCS] | I125: HV Feeders [SCS] | J125: SCS - Distribution system assets | K125: SCS - Distribution system assets | L125: SCS - Distribution system assets | M125: Distribution lines: Above ground (incorporating conductors; cross arms, insulators and fittings; poles – concrete, wood, steel or stobie; and transformers – pole or ground pad mounted) | N125: Reinforcement (augex) | O125: Environmental, safety & legal | P125: Non-IT | Q125: Non-IT | R125: Non-IT | S125: $dollars | T125: CY 2018 | U125: 45 | V125: 0 | W125: =IF(E125="",No, IF(ISERROR(MATCH(E125,'Calc|OH'!$H$24:$H$36,0)),Yes,No)) -> Yes | X125: 0 | Y125: 0 | Z125: 0 | AA125: 0 | AB125: 0 | AC125: 0 | AD125: =IF(ISERROR(MATCH($K125,'Input|Historical'!$C$80:$C$100,0)),0, INDEX('Input|Historical'!$P$80:$P$100,MATCH($K125,'Input|Historical'!$C$80:$C$100,0))) -> 0 | AE125: =IF(ISERROR(MATCH($K125,'Input|Historical'!$C$80:$C$100,0)),0, INDEX('Input|Historical'!$P$80:$P$100,MATCH($K125,'Input|Historical'!$C$80:$C$100,0))) -> 0 | AF125: =IF(ISERROR(MATCH($K125,'Input|Historical'!$C$80:$C$100,0)),0, INDEX('Input|Historical'!$P$80:$P$100,MATCH($K125,'Input|Historical'!$C$80:$C$100,0))) -> 0 | AH125: 242096.95 | AL125: 0 | AM125: 0 | AN125: 0 | AO125: 130000 | AP125: 112096.95 | AS125: 0
C126: Distribution Substation Augmentation - Load Related | D126: A67 | E126: DSJ | F126: SCS | G126: Augmentation [SCS] | H126: Augmentation: Distribution Substations [SCS] | I126: Distribution Substations [SCS] | J126: SCS - Distribution system assets | K126: SCS - Distribution system assets | L126: SCS - Distribution system assets | M126: Distribution substations/transformers, pole or ground pad mounted | N126: Reinforcement (augex) | O126: Demand Driven | P126: Non-IT | Q126: Non-IT | R126: Non-IT | S126: $dollars | T126: CY 2018 | U126: 40 | V126: 0 | W126: =IF(E126="",No, IF(ISERROR(MATCH(E126,'Calc|OH'!$H$24:$H$36,0)),Yes,No)) -> Yes | X126: 0 | Y126: 0 | Z126: 0 | AA126: 0 | AB126: 0 | AC126: 0 | AD126: =IF(ISERROR(MATCH($K126,'Input|Historical'!$C$80:$C$100,0)),0, INDEX('Input|Historical'!$P$80:$P$100,MATCH($K126,'Input|Historical'!$C$80:$C$100,0))) -> 0 | AE126: =IF(ISERROR(MATCH($K126,'Input|Historical'!$C$80:$C$100,0)),0, INDEX('Input|Historical'!$P$80:$P$100,MATCH($K126,'Input|Historical'!$C$80:$C$100,0))) -> 0 | AF126: =IF(ISERROR(MATCH($K126,'Input|Historical'!$C$80:$C$100,0)),0, INDEX('Input|Historical'!$P$80:$P$100,MATCH($K126,'Input|Historical'!$C$80:$C$100,0))) -> 0 | AH126: 12283590 | AL126: 2456718 | AM126: 2456718 | AN126: 2456718 | AO126: 2456718 | AP126: 2456718 | AS126: 0
C127: Supply Quality/Reliability - LV Overhead Augmentation | D127: A66 | E127: DSL | F127: SCS | G127: Augmentation [SCS] | H127: Augmentation: LV Feeders [SCS] | I127: LV Feeders [SCS] | J127: SCS - Distribution system assets | K127: SCS - Distribution system assets | L127: SCS - Distribution system assets | M127: Distribution lines: Above ground (incorporating conductors; cross arms, insulators and fittings; poles – concrete, wood, steel or stobie; and transformers – pole or ground pad mounted) | N127: Reinforcement (augex) | O127: Demand Driven | P127: Non-IT | Q127: Non-IT | R127: Non-IT | S127: $dollars | T127: CY 2018 | U127: 45 | V127: 0 | W127: =IF(E127="",No, IF(ISERROR(MATCH(E127,'Calc|OH'!$H$24:$H$36,0)),Yes,No)) -> Yes | X127: 0 | Y127: 0 | Z127: 0 | AA127: 0 | AB127: 0 | AC127: 0 | AD127: =IF(ISERROR(MATCH($K127,'Input|Historical'!$C$80:$C$100,0)),0, INDEX('Input|Historical'!$P$80:$P$100,MATCH($K127,'Input|Historical'!$C$80:$C$100,0))) -> 0 | AE127: =IF(ISERROR(MATCH($K127,'Input|Historical'!$C$80:$C$100,0)),0, INDEX('Input|Historical'!$P$80:$P$100,MATCH($K127,'Input|Historical'!$C$80:$C$100,0))) -> 0 | AF127: =IF(ISERROR(MATCH($K127,'Input|Historical'!$C$80:$C$100,0)),0, INDEX('Input|Historical'!$P$80:$P$100,MATCH($K127,'Input|Historical'!$C$80:$C$100,0))) -> 0 | AH127: 943593.3099 | AL127: 189379.411 | AM127: 189379.411 | AN127: 188718.662 | AO127: 188057.9129 | AP127: 188057.9129 | AS127: 0
C128: Distribution substation augmentation - supply quality | D128: A111 | E128: PQA | F128: SCS | G128: Augmentation [SCS] | H128: Augmentation: Distribution Substations [SCS] | I128: Distribution Substations [SCS] | J128: SCS - Distribution system assets | K128: SCS - Distribution system assets | L128: SCS - Distribution system assets | M128: Distribution substations/transformers, pole or ground pad mounted | N128: Reinforcement (augex) | O128: Environmental, safety & legal | P128: Non-IT | Q128: Non-IT | R128: Non-IT | S128: $dollars | T128: CY 2018 | U128: 40 | V128: 0 | W128: =IF(E128="",No, IF(ISERROR(MATCH(E128,'Calc|OH'!$H$24:$H$36,0)),Yes,No)) -> Yes | X128: 0 | Y128: 0 | Z128: 0 | AA128: 0 | AB128: 0 | AC128: 0 | AD128: =IF(ISERROR(MATCH($K128,'Input|Historical'!$C$80:$C$100,0)),0, INDEX('Input|Historical'!$P$80:$P$100,MATCH($K128,'Input|Historical'!$C$80:$C$100,0))) -> 0 | AE128: =IF(ISERROR(MATCH($K128,'Input|Historical'!$C$80:$C$100,0)),0, INDEX('Input|Historical'!$P$80:$P$100,MATCH($K128,'Input|Historical'!$C$80:$C$100,0))) -> 0 | AF128: =IF(ISERROR(MATCH($K128,'Input|Historical'!$C$80:$C$100,0)),0, INDEX('Input|Historical'!$P$80:$P$100,MATCH($K128,'Input|Historical'!$C$80:$C$100,0))) -> 0 | AH128: 3341532.538 | AL128: 643056.248 | AM128: 674619.0726 | AN128: 674619.0726 | AO128: 674619.0726 | AP128: 674619.0726 | AS128: 0
C129: Active Voltage Control | D129: A335 | E129: PQA | F129: SCS | G129: Augmentation [SCS] | H129: Augmentation: Distribution Substations [SCS] | I129: Distribution Substations [SCS] | J129: SCS - Distribution system assets | K129: SCS - Distribution system assets | L129: SCS - Distribution system assets | M129: Control, monitoring, communication and protection systems | N129: Reinforcement (augex) | O129: Enabling DER | P129: Non-IT | Q129: Non-IT | R129: Non-IT | S129: $dollars | T129: CY 2018 | U129: 10 | V129: 0 | W129: =IF(E129="",No, IF(ISERROR(MATCH(E129,'Calc|OH'!$H$24:$H$36,0)),Yes,No)) -> Yes | X129: 0 | Y129: 0 | Z129: 0 | AA129: 0 | AB129: 0 | AC129: 0 | AD129: =IF(ISERROR(MATCH($K129,'Input|Historical'!$C$80:$C$100,0)),0, INDEX('Input|Historical'!$P$80:$P$100,MATCH($K129,'Input|Historical'!$C$80:$C$100,0))) -> 0 | AE129: =IF(ISERROR(MATCH($K129,'Input|Historical'!$C$80:$C$100,0)),0, INDEX('Input|Historical'!$P$80:$P$100,MATCH($K129,'Input|Historical'!$C$80:$C$100,0))) -> 0 | AF129: =IF(ISERROR(MATCH($K129,'Input|Historical'!$C$80:$C$100,0)),0, INDEX('Input|Historical'!$P$80:$P$100,MATCH($K129,'Input|Historical'!$C$80:$C$100,0))) -> 0 | AH129: 0 | AL129: 0 | AM129: 0 | AN129: 0 | AO129: 0 | AP129: 0 | AS129: 0
C130: Install remote control and monitoring devices on distribution network - Stage 2 | D130: A514 | E130: PRA | F130: SCS | G130: Augmentation [SCS] | H130: Augmentation: HV Feeders [SCS] | I130: HV Feeders [SCS] | J130: SCS - Distribution system assets | K130: SCS - Distribution system assets | L130: SCS - Distribution system assets | M130: Control, monitoring, communication and protection systems | N130: Reinforcement (augex) | O130: Demand Driven | P130: Non-IT | Q130: Non-IT | R130: Non-IT | S130: $dollars | T130: CY 2018 | U130: 10 | V130: 0 | W130: =IF(E130="",No, IF(ISERROR(MATCH(E130,'Calc|OH'!$H$24:$H$36,0)),Yes,No)) -> Yes | X130: 0 | Y130: 0 | Z130: 0 | AA130: 0 | AB130: 0 | AC130: 0 | AD130: =IF(ISERROR(MATCH($K130,'Input|Historical'!$C$80:$C$100,0)),0, INDEX('Input|Historical'!$P$80:$P$100,MATCH($K130,'Input|Historical'!$C$80:$C$100,0))) -> 0 | AE130: =IF(ISERROR(MATCH($K130,'Input|Historical'!$C$80:$C$100,0)),0, INDEX('Input|Historical'!$P$80:$P$100,MATCH($K130,'Input|Historical'!$C$80:$C$100,0))) -> 0 | AF130: =IF(ISERROR(MATCH($K130,'Input|Historical'!$C$80:$C$100,0)),0, INDEX('Input|Historical'!$P$80:$P$100,MATCH($K130,'Input|Historical'!$C$80:$C$100,0))) -> 0 | AH130: 2570000 | AL130: 514000 | AM130: 514000 | AN130: 514000 | AO130: 514000 | AP130: 514000 | AS130: 0
C131: Primary Plant Condition Monitoring Equipment | D131: A172 | E131: DZB | F131: SCS | G131: Augmentation [SCS] | H131: Augmentation: Subtransmission Substations, Switching Stations, Zone Substations [SCS] | I131: Subtransmission Substations, Switching Stations, Zone Substations [SCS] | J131: SCS - Subtransmission | K131: SCS - Subtransmission | L131: SCS - Subtransmission | M131: Distribution zone substations (excluding control, monitoring, communications and protection systems) | N131: Reinforcement (augex) | O131: Environmental, safety & legal | P131: Non-IT | Q131: Non-IT | R131: Non-IT | S131: $dollars | T131: CY 2018 | U131: 40 | V131: 0 | W131: =IF(E131="",No, IF(ISERROR(MATCH(E131,'Calc|OH'!$H$24:$H$36,0)),Yes,No)) -> Yes | X131: 0 | Y131: 0 | Z131: 0 | AA131: 0 | AB131: 0 | AC131: 0 | AD131: =IF(ISERROR(MATCH($K131,'Input|Historical'!$C$80:$C$100,0)),0, INDEX('Input|Historical'!$P$80:$P$100,MATCH($K131,'Input|Historical'!$C$80:$C$100,0))) -> 0 | AE131: =IF(ISERROR(MATCH($K131,'Input|Historical'!$C$80:$C$100,0)),0, INDEX('Input|Historical'!$P$80:$P$100,MATCH($K131,'Input|Historical'!$C$80:$C$100,0))) -> 0 | AF131: =IF(ISERROR(MATCH($K131,'Input|Historical'!$C$80:$C$100,0)),0, INDEX('Input|Historical'!$P$80:$P$100,MATCH($K131,'Input|Historical'!$C$80:$C$100,0))) -> 0 | AH131: 350953.0002 | AL131: 108821.9819 | AM131: 0 | AN131: 121065.5091 | AO131: 121065.5091 | AP131: 0 | AS131: 0
C132: Condition Monitoring Software | D132: A11 | E132: GID | F132: SCS | G132: Non-network [SCS] | H132: Non Network: IT & Communications [SCS] | I132: Non Network: IT & Communications [SCS] | J132: SCS - Non network general - IT | K132: SCS - Inhouse Software (SL Tax Depn) | L132: SCS - Inhouse Software (SL Tax Depn) | M132: Software (In-house) | N132: Not applicable | O132: Non Augex | P132: Asset Management & Control Systems | Q132: Future Network Initiative | R132: Non-recurrent - new capability | S132: $dollars | T132: CY 2018 | U132: 5 | V132: 0 | W132: =IF(E132="",No, IF(ISERROR(MATCH(E132,'Calc|OH'!$H$24:$H$36,0)),Yes,No)) -> No | X132: 0 | Y132: 0 | Z132: 0 | AA132: 0 | AB132: 0 | AC132: 0 | AD132: =IF(ISERROR(MATCH($K132,'Input|Historical'!$C$80:$C$100,0)),0, INDEX('Input|Historical'!$P$80:$P$100,MATCH($K132,'Input|Historical'!$C$80:$C$100,0))) -> 0 | AE132: =IF(ISERROR(MATCH($K132,'Input|Historical'!$C$80:$C$100,0)),0, INDEX('Input|Historical'!$P$80:$P$100,MATCH($K132,'Input|Historical'!$C$80:$C$100,0))) -> 0 | AF132: =IF(ISERROR(MATCH($K132,'Input|Historical'!$C$80:$C$100,0)),0, INDEX('Input|Historical'!$P$80:$P$100,MATCH($K132,'Input|Historical'!$C$80:$C$100,0))) -> 0 | AH132: 192950.4809 | AL132: 0 | AM132: 96475.24045 | AN132: 96475.24045 | AO132: 0 | AP132: 0 | AS132: 0
C133: Future Grid - LV Network Monitoring (Comms) | D133: A556 | E133: PRA | F133: SCS | G133: Augmentation [SCS] | H133: Augmentation: Other Assets [SCS] | I133: Other Assets [SCS] | J133: SCS - Distribution system assets | K133: SCS - Distribution system assets | L133: SCS - Distribution system assets | M133: Control, monitoring, communication and protection systems | N133: Reinforcement (augex) | O133: Enabling DER | P133: Non-IT | Q133: Non-IT | R133: Non-IT | S133: $dollars | T133: CY 2018 | U133: 10 | V133: 0 | W133: =IF(E133="",No, IF(ISERROR(MATCH(E133,'Calc|OH'!$H$24:$H$36,0)),Yes,No)) -> Yes | X133: 0 | Y133: 0 | Z133: 0 | AA133: 0 | AB133: 0 | AC133: 0 | AD133: =IF(ISERROR(MATCH($K133,'Input|Historical'!$C$80:$C$100,0)),0, INDEX('Input|Historical'!$P$80:$P$100,MATCH($K133,'Input|Historical'!$C$80:$C$100,0))) -> 0 | AE133: =IF(ISERROR(MATCH($K133,'Input|Historical'!$C$80:$C$100,0)),0, INDEX('Input|Historical'!$P$80:$P$100,MATCH($K133,'Input|Historical'!$C$80:$C$100,0))) -> 0 | AF133: =IF(ISERROR(MATCH($K133,'Input|Historical'!$C$80:$C$100,0)),0, INDEX('Input|Historical'!$P$80:$P$100,MATCH($K133,'Input|Historical'!$C$80:$C$100,0))) -> 0 | AH133: 1250000 | AL133: 250000 | AM133: 250000 | AN133: 250000 | AO133: 250000 | AP133: 250000 | AS133: 0
C134: Future Grid - LV Network Monitoring (DistSub Meters) | D134: A557 | E134: PQA | F134: SCS | G134: Augmentation [SCS] | H134: Augmentation: Distribution Substations [SCS] | I134: Distribution Substations [SCS] | J134: SCS - Distribution system assets | K134: SCS - Distribution system assets | L134: SCS - Distribution system assets | M134: Control, monitoring, communication and protection systems | N134: Reinforcement (augex) | O134: Enabling DER | P134: Non-IT | Q134: Non-IT | R134: Non-IT | S134: $dollars | T134: CY 2018 | U134: 10 | V134: 0 | W134: =IF(E134="",No, IF(ISERROR(MATCH(E134,'Calc|OH'!$H$24:$H$36,0)),Yes,No)) -> Yes | X134: 0 | Y134: 0 | Z134: 0 | AA134: 0 | AB134: 0 | AC134: 0 | AD134: =IF(ISERROR(MATCH($K134,'Input|Historical'!$C$80:$C$100,0)),0, INDEX('Input|Historical'!$P$80:$P$100,MATCH($K134,'Input|Historical'!$C$80:$C$100,0))) -> 0 | AE134: =IF(ISERROR(MATCH($K134,'Input|Historical'!$C$80:$C$100,0)),0, INDEX('Input|Historical'!$P$80:$P$100,MATCH($K134,'Input|Historical'!$C$80:$C$100,0))) -> 0 | AF134: =IF(ISERROR(MATCH($K134,'Input|Historical'!$C$80:$C$100,0)),0, INDEX('Input|Historical'!$P$80:$P$100,MATCH($K134,'Input|Historical'!$C$80:$C$100,0))) -> 0 | AH134: 1000000 | AL134: 200000 | AM134: 200000 | AN134: 200000 | AO134: 200000 | AP134: 200000 | AS134: 0
C135: Future Grid - LV Network Monitoring (DMS/SCADA) | D135: A558 | E135: GID | F135: SCS | G135: Non-network [SCS] | H135: Non Network: IT & Communications [SCS] | I135: Non Network: IT & Communications [SCS] | J135: SCS - Non network general - IT | K135: SCS - Inhouse Software (SL Tax Depn) | L135: SCS - Inhouse Software (SL Tax Depn) | M135: Software (In-house) | N135: Not applicable | O135: Non Augex | P135: Asset Management & Control Systems | Q135: Future Network Initiative | R135: Non-recurrent - new capability | S135: $dollars | T135: CY 2018 | U135: 5 | V135: 0 | W135: =IF(E135="",No, IF(ISERROR(MATCH(E135,'Calc|OH'!$H$24:$H$36,0)),Yes,No)) -> No | X135: 0 | Y135: 0 | Z135: 0 | AA135: 0 | AB135: 0 | AC135: 0 | AD135: =IF(ISERROR(MATCH($K135,'Input|Historical'!$C$80:$C$100,0)),0, INDEX('Input|Historical'!$P$80:$P$100,MATCH($K135,'Input|Historical'!$C$80:$C$100,0))) -> 0 | AE135: =IF(ISERROR(MATCH($K135,'Input|Historical'!$C$80:$C$100,0)),0, INDEX('Input|Historical'!$P$80:$P$100,MATCH($K135,'Input|Historical'!$C$80:$C$100,0))) -> 0 | AF135: =IF(ISERROR(MATCH($K135,'Input|Historical'!$C$80:$C$100,0)),0, INDEX('Input|Historical'!$P$80:$P$100,MATCH($K135,'Input|Historical'!$C$80:$C$100,0))) -> 0 | AH135: 475000 | AL135: 275000 | AM135: 50000 | AN135: 50000 | AO135: 50000 | AP135: 50000 | AS135: 0
C136: Future Grid - LV Network Modelling Outcomes | D136: A559 | E136: DSL | F136: SCS | G136: Augmentation [SCS] | H136: Augmentation: LV Feeders [SCS] | I136: LV Feeders [SCS] | J136: SCS - Distribution system assets | K136: SCS - Distribution system assets | L136: SCS - Distribution system assets | M136: Distribution lines: Above ground (incorporating conductors; cross arms, insulators and fittings; poles – concrete, wood, steel or stobie; and transformers – pole or ground pad mounted) | N136: Reinforcement (augex) | O136: Enabling DER | P136: Non-IT | Q136: Non-IT | R136: Non-IT | S136: $dollars | T136: CY 2018 | U136: 45 | V136: 0 | W136: =IF(E136="",No, IF(ISERROR(MATCH(E136,'Calc|OH'!$H$24:$H$36,0)),Yes,No)) -> Yes | X136: 0 | Y136: 0 | Z136: 0 | AA136: 0 | AB136: 0 | AC136: 0 | AD136: =IF(ISERROR(MATCH($K136,'Input|Historical'!$C$80:$C$100,0)),0, INDEX('Input|Historical'!$P$80:$P$100,MATCH($K136,'Input|Historical'!$C$80:$C$100,0))) -> 0 | AE136: =IF(ISERROR(MATCH($K136,'Input|Historical'!$C$80:$C$100,0)),0, INDEX('Input|Historical'!$P$80:$P$100,MATCH($K136,'Input|Historical'!$C$80:$C$100,0))) -> 0 | AF136: =IF(ISERROR(MATCH($K136,'Input|Historical'!$C$80:$C$100,0)),0, INDEX('Input|Historical'!$P$80:$P$100,MATCH($K136,'Input|Historical'!$C$80:$C$100,0))) -> 0 | AH136: 1750000 | AL136: 350000 | AM136: 350000 | AN136: 350000 | AO136: 350000 | AP136: 350000 | AS136: 0
C137: Future Grid - Hosting Capacity (DMS-DPF) | D137: A560 | E137: GID | F137: SCS | G137: Non-network [SCS] | H137: Non Network: IT & Communications [SCS] | I137: Non Network: IT & Communications [SCS] | J137: SCS - Non network general - IT | K137: SCS - Inhouse Software (SL Tax Depn) | L137: SCS - Inhouse Software (SL Tax Depn) | M137: Software (In-house) | N137: Not applicable | O137: Non Augex | P137: Asset Management & Control Systems | Q137: Future Network Initiative | R137: Non-recurrent - new capability | S137: $dollars | T137: CY 2018 | U137: 5 | V137: 0 | W137: =IF(E137="",No, IF(ISERROR(MATCH(E137,'Calc|OH'!$H$24:$H$36,0)),Yes,No)) -> No | X137: 0 | Y137: 0 | Z137: 0 | AA137: 0 | AB137: 0 | AC137: 0 | AD137: =IF(ISERROR(MATCH($K137,'Input|Historical'!$C$80:$C$100,0)),0, INDEX('Input|Historical'!$P$80:$P$100,MATCH($K137,'Input|Historical'!$C$80:$C$100,0))) -> 0 | AE137: =IF(ISERROR(MATCH($K137,'Input|Historical'!$C$80:$C$100,0)),0, INDEX('Input|Historical'!$P$80:$P$100,MATCH($K137,'Input|Historical'!$C$80:$C$100,0))) -> 0 | AF137: =IF(ISERROR(MATCH($K137,'Input|Historical'!$C$80:$C$100,0)),0, INDEX('Input|Historical'!$P$80:$P$100,MATCH($K137,'Input|Historical'!$C$80:$C$100,0))) -> 0 | AH137: 1100000 | AL137: 600000 | AM137: 500000 | AN137: 0 | AO137: 0 | AP137: 0 | AS137: 0
C138: Future Grid - Hosting Capacity (DMS-DERMS) | D138: A561 | E138: GID | F138: SCS | G138: Non-network [SCS] | H138: Non Network: IT & Communications [SCS] | I138: Non Network: IT & Communications [SCS] | J138: SCS - Non network general - IT | K138: SCS - Inhouse Software (SL Tax Depn) | L138: SCS - Inhouse Software (SL Tax Depn) | M138: Software (In-house) | N138: Not applicable | O138: Non Augex | P138: Asset Management & Control Systems | Q138: Future Network Initiative | R138: Non-recurrent - new capability | S138: $dollars | T138: CY 2018 | U138: 5 | V138: 0 | W138: =IF(E138="",No, IF(ISERROR(MATCH(E138,'Calc|OH'!$H$24:$H$36,0)),Yes,No)) -> No | X138: 0 | Y138: 0 | Z138: 0 | AA138: 0 | AB138: 0 | AC138: 0 | AD138: =IF(ISERROR(MATCH($K138,'Input|Historical'!$C$80:$C$100,0)),0, INDEX('Input|Historical'!$P$80:$P$100,MATCH($K138,'Input|Historical'!$C$80:$C$100,0))) -> 0 | AE138: =IF(ISERROR(MATCH($K138,'Input|Historical'!$C$80:$C$100,0)),0, INDEX('Input|Historical'!$P$80:$P$100,MATCH($K138,'Input|Historical'!$C$80:$C$100,0))) -> 0 | AF138: =IF(ISERROR(MATCH($K138,'Input|Historical'!$C$80:$C$100,0)),0, INDEX('Input|Historical'!$P$80:$P$100,MATCH($K138,'Input|Historical'!$C$80:$C$100,0))) -> 0 | AH138: 3450000 | AL138: 0 | AM138: 450000 | AN138: 3000000 | AO138: 0 | AP138: 0 | AS138: 0
C139: Future Grid - Hosting Capacity (DMS-VVC) | D139: A562 | E139: GID | F139: SCS | G139: Non-network [SCS] | H139: Non Network: IT & Communications [SCS] | I139: Non Network: IT & Communications [SCS] | J139: SCS - Non network general - IT | K139: SCS - Inhouse Software (SL Tax Depn) | L139: SCS - Inhouse Software (SL Tax Depn) | M139: Software (In-house) | N139: Not applicable | O139: Non Augex | P139: Asset Management & Control Systems | Q139: Future Network Initiative | R139: Non-recurrent - new capability | S139: $dollars | T139: CY 2018 | U139: 5 | V139: 0 | W139: =IF(E139="",No, IF(ISERROR(MATCH(E139,'Calc|OH'!$H$24:$H$36,0)),Yes,No)) -> No | X139: 0 | Y139: 0 | Z139: 0 | AA139: 0 | AB139: 0 | AC139: 0 | AD139: =IF(ISERROR(MATCH($K139,'Input|Historical'!$C$80:$C$100,0)),0, INDEX('Input|Historical'!$P$80:$P$100,MATCH($K139,'Input|Historical'!$C$80:$C$100,0))) -> 0 | AE139: =IF(ISERROR(MATCH($K139,'Input|Historical'!$C$80:$C$100,0)),0, INDEX('Input|Historical'!$P$80:$P$100,MATCH($K139,'Input|Historical'!$C$80:$C$100,0))) -> 0 | AF139: =IF(ISERROR(MATCH($K139,'Input|Historical'!$C$80:$C$100,0)),0, INDEX('Input|Historical'!$P$80:$P$100,MATCH($K139,'Input|Historical'!$C$80:$C$100,0))) -> 0 | AH139: 2200000 | AL139: 0 | AM139: 0 | AN139: 0 | AO139: 1200000 | AP139: 1000000 | AS139: 0
C140: Future Grid - Hosting Capacity (DistSubs) | D140: A563 | E140: PQA | F140: SCS | G140: Augmentation [SCS] | H140: Augmentation: Distribution Substations [SCS] | I140: Distribution Substations [SCS] | J140: SCS - Distribution system assets | K140: SCS - Distribution system assets | L140: SCS - Distribution system assets | M140: Distribution substations/transformers, pole or ground pad mounted | N140: Reinforcement (augex) | O140: Enabling DER | P140: Non-IT | Q140: Non-IT | R140: Non-IT | S140: =Input_Unit -> $dollars | T140: =Input_Dollar_Basis -> CY 2018 | U140: 40 | V140: 0 | W140: =IF(E140="",No, IF(ISERROR(MATCH(E140,'Calc|OH'!$H$24:$H$36,0)),Yes,No)) -> Yes | X140: 0 | Y140: 0 | Z140: 0 | AA140: 0 | AB140: 0 | AC140: 0 | AD140: =IF(ISERROR(MATCH($K140,'Input|Historical'!$C$80:$C$100,0)),0, INDEX('Input|Historical'!$P$80:$P$100,MATCH($K140,'Input|Historical'!$C$80:$C$100,0))) -> 0 | AE140: =IF(ISERROR(MATCH($K140,'Input|Historical'!$C$80:$C$100,0)),0, INDEX('Input|Historical'!$P$80:$P$100,MATCH($K140,'Input|Historical'!$C$80:$C$100,0))) -> 0 | AF140: =IF(ISERROR(MATCH($K140,'Input|Historical'!$C$80:$C$100,0)),0, INDEX('Input|Historical'!$P$80:$P$100,MATCH($K140,'Input|Historical'!$C$80:$C$100,0))) -> 0 | AH140: 5500000 | AL140: 625000 | AM140: 875000 | AN140: 1125000 | AO140: 1375000 | AP140: 1500000 | AS140: 0
C141: Future Grid - Hosting Capacity (LV Network) | D141: A564 | E141: PQB | F141: SCS | G141: Augmentation [SCS] | H141: Augmentation: LV Feeders [SCS] | I141: LV Feeders [SCS] | J141: SCS - Distribution system assets | K141: SCS - Distribution system assets | L141: SCS - Distribution system assets | M141: Distribution lines: Above ground (incorporating conductors; cross arms, insulators and fittings; poles – concrete, wood, steel or stobie; and transformers – pole or ground pad mounted) | N141: Reinforcement (augex) | O141: Enabling DER | P141: Non-IT | Q141: Non-IT | R141: Non-IT | S141: $dollars | T141: CY 2018 | U141: 45 | V141: 0 | W141: =IF(E141="",No, IF(ISERROR(MATCH(E141,'Calc|OH'!$H$24:$H$36,0)),Yes,No)) -> Yes | X141: 0 | Y141: 0 | Z141: 0 | AA141: 0 | AB141: 0 | AC141: 0 | AD141: =IF(ISERROR(MATCH($K141,'Input|Historical'!$C$80:$C$100,0)),0, INDEX('Input|Historical'!$P$80:$P$100,MATCH($K141,'Input|Historical'!$C$80:$C$100,0))) -> 0 | AE141: =IF(ISERROR(MATCH($K141,'Input|Historical'!$C$80:$C$100,0)),0, INDEX('Input|Historical'!$P$80:$P$100,MATCH($K141,'Input|Historical'!$C$80:$C$100,0))) -> 0 | AF141: =IF(ISERROR(MATCH($K141,'Input|Historical'!$C$80:$C$100,0)),0, INDEX('Input|Historical'!$P$80:$P$100,MATCH($K141,'Input|Historical'!$C$80:$C$100,0))) -> 0 | AH141: =SUM(AJ141:AP141) -> 500000 | AL141: 100000 | AM141: 100000 | AN141: 100000 | AO141: 100000 | AP141: 100000 | AS141: 0
C142: Future Grid - Dynamic Network Ratings (DMS/SCADA) | D142: A565 | E142: GID | F142: SCS | G142: Non-network [SCS] | H142: Non Network: IT & Communications [SCS] | I142: Non Network: IT & Communications [SCS] | J142: SCS - Non network general - IT | K142: SCS - Inhouse Software (SL Tax Depn) | L142: SCS - Inhouse Software (SL Tax Depn) | M142: Software (In-house) | N142: Not applicable | O142: Non Augex | P142: Asset Management & Control Systems | Q142: Future Network Initiative | R142: Non-recurrent - new capability | S142: $dollars | T142: CY 2018 | U142: 5 | V142: 0 | W142: =IF(E142="",No, IF(ISERROR(MATCH(E142,'Calc|OH'!$H$24:$H$36,0)),Yes,No)) -> No | X142: 0 | Y142: 0 | Z142: 0 | AA142: 0 | AB142: 0 | AC142: 0 | AD142: =IF(ISERROR(MATCH($K142,'Input|Historical'!$C$80:$C$100,0)),0, INDEX('Input|Historical'!$P$80:$P$100,MATCH($K142,'Input|Historical'!$C$80:$C$100,0))) -> 0 | AE142: =IF(ISERROR(MATCH($K142,'Input|Historical'!$C$80:$C$100,0)),0, INDEX('Input|Historical'!$P$80:$P$100,MATCH($K142,'Input|Historical'!$C$80:$C$100,0))) -> 0 | AF142: =IF(ISERROR(MATCH($K142,'Input|Historical'!$C$80:$C$100,0)),0, INDEX('Input|Historical'!$P$80:$P$100,MATCH($K142,'Input|Historical'!$C$80:$C$100,0))) -> 0 | AH142: 500000 | AL142: 0 | AM142: 0 | AN142: 50000 | AO142: 250000 | AP142: 200000 | AS142: 0
C143: Future Grid - Dynamic Network Ratings (Monitors) | D143: A566 | E143: DZB | F143: SCS | G143: Augmentation [SCS] | H143: Augmentation: Subtransmission Substations, Switching Stations, Zone Substations [SCS] | I143: Subtransmission Substations, Switching Stations, Zone Substations [SCS] | J143: SCS - Subtransmission | K143: SCS - Subtransmission | L143: SCS - Subtransmission | M143: Distribution zone substations (excluding control, monitoring, communications and protection systems) | N143: Reinforcement (augex) | O143: Demand Driven | P143: Non-IT | Q143: Non-IT | R143: Non-IT | S143: $dollars | T143: CY 2018 | U143: 40 | V143: 0 | W143: =IF(E143="",No, IF(ISERROR(MATCH(E143,'Calc|OH'!$H$24:$H$36,0)),Yes,No)) -> Yes | X143: 0 | Y143: 0 | Z143: 0 | AA143: 0 | AB143: 0 | AC143: 0 | AD143: =IF(ISERROR(MATCH($K143,'Input|Historical'!$C$80:$C$100,0)),0, INDEX('Input|Historical'!$P$80:$P$100,MATCH($K143,'Input|Historical'!$C$80:$C$100,0))) -> 0 | AE143: =IF(ISERROR(MATCH($K143,'Input|Historical'!$C$80:$C$100,0)),0, INDEX('Input|Historical'!$P$80:$P$100,MATCH($K143,'Input|Historical'!$C$80:$C$100,0))) -> 0 | AF143: =IF(ISERROR(MATCH($K143,'Input|Historical'!$C$80:$C$100,0)),0, INDEX('Input|Historical'!$P$80:$P$100,MATCH($K143,'Input|Historical'!$C$80:$C$100,0))) -> 0 | AH143: 1500000 | AL143: 0 | AM143: 0 | AN143: 500000 | AO143: 500000 | AP143: 500000 | AS143: 0
C144: Future Grid - DER data analytics / reporting tools (SAC and PowerBI) | D144: A567 | E144: GID | F144: SCS | G144: Non-network [SCS] | H144: Non Network: IT & Communications [SCS] | I144: Non Network: IT & Communications [SCS] | J144: SCS - Non network general - IT | K144: SCS - Inhouse Software (SL Tax Depn) | L144: SCS - Inhouse Software (SL Tax Depn) | M144: Software (In-house) | N144: Not applicable | O144: Non Augex | P144: Asset Management & Control Systems | Q144: Future Network Initiative | R144: Non-recurrent - new capability | S144: $dollars | T144: CY 2018 | U144: 5 | V144: 0 | W144: =IF(E144="",No, IF(ISERROR(MATCH(E144,'Calc|OH'!$H$24:$H$36,0)),Yes,No)) -> No | X144: 0 | Y144: 0 | Z144: 0 | AA144: 0 | AB144: 0 | AC144: 0 | AD144: =IF(ISERROR(MATCH($K144,'Input|Historical'!$C$80:$C$100,0)),0, INDEX('Input|Historical'!$P$80:$P$100,MATCH($K144,'Input|Historical'!$C$80:$C$100,0))) -> 0 | AE144: =IF(ISERROR(MATCH($K144,'Input|Historical'!$C$80:$C$100,0)),0, INDEX('Input|Historical'!$P$80:$P$100,MATCH($K144,'Input|Historical'!$C$80:$C$100,0))) -> 0 | AF144: =IF(ISERROR(MATCH($K144,'Input|Historical'!$C$80:$C$100,0)),0, INDEX('Input|Historical'!$P$80:$P$100,MATCH($K144,'Input|Historical'!$C$80:$C$100,0))) -> 0 | AH144: 0 | AL144: 0 | AM144: 0 | AN144: 0 | AO144: 0 | AP144: 0 | AS144: 0
C145: REFCL - COO | D145: A91 | E145: DZB | F145: SCS | G145: Augmentation [SCS] | H145: Augmentation: Subtransmission Substations, Switching Stations, Zone Substations [SCS] | I145: Subtransmission Substations, Switching Stations, Zone Substations [SCS] | J145: SCS - Subtransmission | K145: SCS - Subtransmission | L145: SCS - Subtransmission | M145: Distribution zone substations (excluding control, monitoring, communications and protection systems) | N145: Reinforcement (augex) | O145: Environmental, safety & legal | P145: Non-IT | Q145: Non-IT | R145: Non-IT | S145: $dollars | T145: CY 2018 | U145: 40 | V145: 0 | W145: =IF(E145="",No, IF(ISERROR(MATCH(E145,'Calc|OH'!$H$24:$H$36,0)),Yes,No)) -> Yes | X145: 0 | Y145: 0 | Z145: 0 | AA145: 0 | AB145: 0 | AC145: 0 | AD145: =IF(ISERROR(MATCH($K145,'Input|Historical'!$C$80:$C$100,0)),0, INDEX('Input|Historical'!$P$80:$P$100,MATCH($K145,'Input|Historical'!$C$80:$C$100,0))) -> 0 | AE145: =IF(ISERROR(MATCH($K145,'Input|Historical'!$C$80:$C$100,0)),0, INDEX('Input|Historical'!$P$80:$P$100,MATCH($K145,'Input|Historical'!$C$80:$C$100,0))) -> 0 | AF145: =IF(ISERROR(MATCH($K145,'Input|Historical'!$C$80:$C$100,0)),0, INDEX('Input|Historical'!$P$80:$P$100,MATCH($K145,'Input|Historical'!$C$80:$C$100,0))) -> 0 | AH145: 0 | AN145: 0 | AO145: 0 | AP145: 0 | AS145: 0
C146: REFCL - COO/KLO - New Greenvale ZSS - Land | D146: A91c | E146: DZC | F146: SCS | G146: Augmentation [SCS] | H146: Augmentation: Subtransmission Substations, Switching Stations, Zone Substations [SCS] | I146: Subtransmission Substations, Switching Stations, Zone Substations [SCS] | J146: SCS - Land | K146: SCS - Land | L146: SCS - Land | M146: Land | N146: Greenfield (augex) | O146: Environmental, safety & legal | P146: Non-IT | Q146: Non-IT | R146: Non-IT | S146: $dollars | T146: CY 2018 | U146: 0 | V146: 0 | W146: =IF(E146="",No, IF(ISERROR(MATCH(E146,'Calc|OH'!$H$24:$H$36,0)),Yes,No)) -> No | X146: 0 | Y146: 0 | Z146: 0 | AA146: 0 | AB146: 0 | AC146: 0 | AD146: =IF(ISERROR(MATCH($K146,'Input|Historical'!$C$80:$C$100,0)),0, INDEX('Input|Historical'!$P$80:$P$100,MATCH($K146,'Input|Historical'!$C$80:$C$100,0))) -> 0 | AE146: =IF(ISERROR(MATCH($K146,'Input|Historical'!$C$80:$C$100,0)),0, INDEX('Input|Historical'!$P$80:$P$100,MATCH($K146,'Input|Historical'!$C$80:$C$100,0))) -> 0 | AF146: =IF(ISERROR(MATCH($K146,'Input|Historical'!$C$80:$C$100,0)),0, INDEX('Input|Historical'!$P$80:$P$100,MATCH($K146,'Input|Historical'!$C$80:$C$100,0))) -> 0 | AH146: 0 | AN146: 0 | AO146: 0 | AP146: 0 | AS146: 0
C147: COO REFCL Feeder Works | D147: A224 | E147: DSI | F147: SCS | G147: Augmentation [SCS] | H147: Augmentation: HV Feeders [SCS] | I147: HV Feeders [SCS] | J147: SCS - Distribution system assets | K147: SCS - Distribution system assets | L147: SCS - Distribution system assets | M147: Distribution lines: Combination of above ground and underground | N147: Reinforcement (augex) | O147: Environmental, safety & legal | P147: Non-IT | Q147: Non-IT | R147: Non-IT | S147: $dollars | T147: CY 2018 | U147: 47.5 | V147: 0 | W147: =IF(E147="",No, IF(ISERROR(MATCH(E147,'Calc|OH'!$H$24:$H$36,0)),Yes,No)) -> Yes | X147: 0 | Y147: 0 | Z147: 0 | AA147: 0 | AB147: 0 | AC147: 0 | AD147: =IF(ISERROR(MATCH($K147,'Input|Historical'!$C$80:$C$100,0)),0, INDEX('Input|Historical'!$P$80:$P$100,MATCH($K147,'Input|Historical'!$C$80:$C$100,0))) -> 0 | AE147: =IF(ISERROR(MATCH($K147,'Input|Historical'!$C$80:$C$100,0)),0, INDEX('Input|Historical'!$P$80:$P$100,MATCH($K147,'Input|Historical'!$C$80:$C$100,0))) -> 0 | AF147: =IF(ISERROR(MATCH($K147,'Input|Historical'!$C$80:$C$100,0)),0, INDEX('Input|Historical'!$P$80:$P$100,MATCH($K147,'Input|Historical'!$C$80:$C$100,0))) -> 0 | AH147: 0 | AN147: 0 | AO147: 0 | AP147: 0 | AS147: 0
C148: FT ZSS Capacity Constraint | D148: A74 | E148: DZA | F148: SCS | G148: Augmentation [SCS] | H148: Augmentation: Subtransmission Substations, Switching Stations, Zone Substations [SCS] | I148: Subtransmission Substations, Switching Stations, Zone Substations [SCS] | J148: SCS - Subtransmission | K148: SCS - Subtransmission | L148: SCS - Subtransmission | M148: Distribution zone substations (excluding control, monitoring, communications and protection systems) | N148: Reinforcement (augex) | O148: Demand Driven | P148: Non-IT | Q148: Non-IT | R148: Non-IT | S148: $dollars | T148: CY 2018 | U148: 40 | V148: 0 | W148: =IF(E148="",No, IF(ISERROR(MATCH(E148,'Calc|OH'!$H$24:$H$36,0)),Yes,No)) -> Yes | X148: 0 | Y148: 0 | Z148: 0 | AA148: 0 | AB148: 0 | AC148: 0 | AD148: =IF(ISERROR(MATCH($K148,'Input|Historical'!$C$80:$C$100,0)),0, INDEX('Input|Historical'!$P$80:$P$100,MATCH($K148,'Input|Historical'!$C$80:$C$100,0))) -> 0 | AE148: =IF(ISERROR(MATCH($K148,'Input|Historical'!$C$80:$C$100,0)),0, INDEX('Input|Historical'!$P$80:$P$100,MATCH($K148,'Input|Historical'!$C$80:$C$100,0))) -> 0 | AF148: =IF(ISERROR(MATCH($K148,'Input|Historical'!$C$80:$C$100,0)),0, INDEX('Input|Historical'!$P$80:$P$100,MATCH($K148,'Input|Historical'!$C$80:$C$100,0))) -> 0 | AH148: 0 | AL148: 0 | AM148: 0 | AN148: 0 | AO148: 0 | AP148: 0 | AS148: 0
C149: P Conversion Stage 6 (PTN) - Zone Substation | D149: A88 | E149: DZA | F149: SCS | G149: Augmentation [SCS] | H149: Augmentation: Subtransmission Substations, Switching Stations, Zone Substations [SCS] | I149: Subtransmission Substations, Switching Stations, Zone Substations [SCS] | J149: SCS - Subtransmission | K149: SCS - Subtransmission | L149: SCS - Subtransmission | M149: Distribution zone substations (excluding control, monitoring, communications and protection systems) | N149: Reinforcement (augex) | O149: Demand Driven | P149: Non-IT | Q149: Non-IT | R149: Non-IT | S149: $dollars | T149: CY 2018 | U149: 40 | V149: 0 | W149: =IF(E149="",No, IF(ISERROR(MATCH(E149,'Calc|OH'!$H$24:$H$36,0)),Yes,No)) -> Yes | X149: 0 | Y149: 0 | Z149: 0 | AA149: 0 | AB149: 0 | AC149: 0 | AD149: =IF(ISERROR(MATCH($K149,'Input|Historical'!$C$80:$C$100,0)),0, INDEX('Input|Historical'!$P$80:$P$100,MATCH($K149,'Input|Historical'!$C$80:$C$100,0))) -> 0 | AE149: =IF(ISERROR(MATCH($K149,'Input|Historical'!$C$80:$C$100,0)),0, INDEX('Input|Historical'!$P$80:$P$100,MATCH($K149,'Input|Historical'!$C$80:$C$100,0))) -> 0 | AF149: =IF(ISERROR(MATCH($K149,'Input|Historical'!$C$80:$C$100,0)),0, INDEX('Input|Historical'!$P$80:$P$100,MATCH($K149,'Input|Historical'!$C$80:$C$100,0))) -> 0 | AH149: 0 | AL149: 0 | AM149: 0 | AN149: 0 | AO149: 0 | AP149: 0 | AS149: 0
C150: Redevelop Zone Substation - SBY | D150: A89 | E150: DZA | F150: SCS | G150: Augmentation [SCS] | H150: Augmentation: Subtransmission Substations, Switching Stations, Zone Substations [SCS] | I150: Subtransmission Substations, Switching Stations, Zone Substations [SCS] | J150: SCS - Subtransmission | K150: SCS - Subtransmission | L150: SCS - Subtransmission | M150: Distribution zone substations (excluding control, monitoring, communications and protection systems) | N150: Reinforcement (augex) | O150: Demand Driven | P150: Non-IT | Q150: Non-IT | R150: Non-IT | S150: $dollars | T150: CY 2018 | U150: 40 | V150: 0 | W150: =IF(E150="",No, IF(ISERROR(MATCH(E150,'Calc|OH'!$H$24:$H$36,0)),Yes,No)) -> Yes | X150: 0 | Y150: 0 | Z150: 0 | AA150: 0 | AB150: 0 | AC150: 0 | AD150: =IF(ISERROR(MATCH($K150,'Input|Historical'!$C$80:$C$100,0)),0, INDEX('Input|Historical'!$P$80:$P$100,MATCH($K150,'Input|Historical'!$C$80:$C$100,0))) -> 0 | AE150: =IF(ISERROR(MATCH($K150,'Input|Historical'!$C$80:$C$100,0)),0, INDEX('Input|Historical'!$P$80:$P$100,MATCH($K150,'Input|Historical'!$C$80:$C$100,0))) -> 0 | AF150: =IF(ISERROR(MATCH($K150,'Input|Historical'!$C$80:$C$100,0)),0, INDEX('Input|Historical'!$P$80:$P$100,MATCH($K150,'Input|Historical'!$C$80:$C$100,0))) -> 0 | AH150: 0 | AL150: 0 | AM150: 0 | AN150: 0 | AO150: 0 | AP150: 0 | AS150: 0
C151: Zone Substion Process Bus Extension - PTN | D151: A248 | E151: DZB | F151: SCS | G151: Augmentation [SCS] | H151: Augmentation: Subtransmission Substations, Switching Stations, Zone Substations [SCS] | I151: Subtransmission Substations, Switching Stations, Zone Substations [SCS] | J151: SCS - Subtransmission | K151: SCS - Subtransmission | L151: SCS - Subtransmission | M151: Distribution zone substations (excluding control, monitoring, communications and protection systems) | N151: Reinforcement (augex) | O151: Demand Driven | P151: Non-IT | Q151: Non-IT | R151: Non-IT | S151: $dollars | T151: CY 2018 | U151: 40 | V151: 0 | W151: =IF(E151="",No, IF(ISERROR(MATCH(E151,'Calc|OH'!$H$24:$H$36,0)),Yes,No)) -> Yes | X151: 0 | Y151: 0 | Z151: 0 | AA151: 0 | AB151: 0 | AC151: 0 | AD151: =IF(ISERROR(MATCH($K151,'Input|Historical'!$C$80:$C$100,0)),0, INDEX('Input|Historical'!$P$80:$P$100,MATCH($K151,'Input|Historical'!$C$80:$C$100,0))) -> 0 | AE151: =IF(ISERROR(MATCH($K151,'Input|Historical'!$C$80:$C$100,0)),0, INDEX('Input|Historical'!$P$80:$P$100,MATCH($K151,'Input|Historical'!$C$80:$C$100,0))) -> 0 | AF151: =IF(ISERROR(MATCH($K151,'Input|Historical'!$C$80:$C$100,0)),0, INDEX('Input|Historical'!$P$80:$P$100,MATCH($K151,'Input|Historical'!$C$80:$C$100,0))) -> 0 | AH151: 750000 | AL151: 300000 | AM151: 300000 | AN151: 150000 | AO151: 0 | AP151: 0 | AS151: 0
C152: New TTS-CN 66kV Line CB | D152: A249 | E152: DZA | F152: SCS | G152: Augmentation [SCS] | H152: Augmentation: Subtransmission Substations, Switching Stations, Zone Substations [SCS] | I152: Subtransmission Substations, Switching Stations, Zone Substations [SCS] | J152: SCS - Subtransmission | K152: SCS - Subtransmission | L152: SCS - Subtransmission | M152: Distribution zone substations (excluding control, monitoring, communications and protection systems) | N152: Reinforcement (augex) | O152: Demand Driven | P152: Non-IT | Q152: Non-IT | R152: Non-IT | S152: $dollars | T152: CY 2018 | U152: 40 | V152: 0 | W152: =IF(E152="",No, IF(ISERROR(MATCH(E152,'Calc|OH'!$H$24:$H$36,0)),Yes,No)) -> Yes | X152: 0 | Y152: 0 | Z152: 0 | AA152: 0 | AB152: 0 | AC152: 0 | AD152: =IF(ISERROR(MATCH($K152,'Input|Historical'!$C$80:$C$100,0)),0, INDEX('Input|Historical'!$P$80:$P$100,MATCH($K152,'Input|Historical'!$C$80:$C$100,0))) -> 0 | AE152: =IF(ISERROR(MATCH($K152,'Input|Historical'!$C$80:$C$100,0)),0, INDEX('Input|Historical'!$P$80:$P$100,MATCH($K152,'Input|Historical'!$C$80:$C$100,0))) -> 0 | AF152: =IF(ISERROR(MATCH($K152,'Input|Historical'!$C$80:$C$100,0)),0, INDEX('Input|Historical'!$P$80:$P$100,MATCH($K152,'Input|Historical'!$C$80:$C$100,0))) -> 0 | AH152: 256870.2331 | AL152: 0 | AM152: 256870.2331 | AN152: 0 | AO152: 0 | AP152: 0 | AS152: 0
C153: Install triple interceptors for Oil Containment - ST | D153: A268 | E153: DZB | F153: SCS | G153: Augmentation [SCS] | H153: Augmentation: Subtransmission Substations, Switching Stations, Zone Substations [SCS] | I153: Subtransmission Substations, Switching Stations, Zone Substations [SCS] | J153: SCS - Subtransmission | K153: SCS - Subtransmission | L153: SCS - Subtransmission | M153: Distribution zone substations (excluding control, monitoring, communications and protection systems) | N153: Reinforcement (augex) | O153: Environmental, safety & legal | P153: Non-IT | Q153: Non-IT | R153: Non-IT | S153: $dollars | T153: CY 2018 | U153: 40 | V153: 0 | W153: =IF(E153="",No, IF(ISERROR(MATCH(E153,'Calc|OH'!$H$24:$H$36,0)),Yes,No)) -> Yes | X153: 0 | Y153: 0 | Z153: 0 | AA153: 0 | AB153: 0 | AC153: 0 | AD153: =IF(ISERROR(MATCH($K153,'Input|Historical'!$C$80:$C$100,0)),0, INDEX('Input|Historical'!$P$80:$P$100,MATCH($K153,'Input|Historical'!$C$80:$C$100,0))) -> 0 | AE153: =IF(ISERROR(MATCH($K153,'Input|Historical'!$C$80:$C$100,0)),0, INDEX('Input|Historical'!$P$80:$P$100,MATCH($K153,'Input|Historical'!$C$80:$C$100,0))) -> 0 | AF153: =IF(ISERROR(MATCH($K153,'Input|Historical'!$C$80:$C$100,0)),0, INDEX('Input|Historical'!$P$80:$P$100,MATCH($K153,'Input|Historical'!$C$80:$C$100,0))) -> 0 | AH153: 0 | AL153: 0 | AM153: 0 | AN153: 0 | AO153: 0 | AP153: 0 | AS153: 0
C154: Install triple interceptors for Oil Containment - BY | D154: A82 | E154: DZB | F154: SCS | G154: Augmentation [SCS] | H154: Augmentation: Subtransmission Substations, Switching Stations, Zone Substations [SCS] | I154: Subtransmission Substations, Switching Stations, Zone Substations [SCS] | J154: SCS - Subtransmission | K154: SCS - Subtransmission | L154: SCS - Subtransmission | M154: Distribution zone substations (excluding control, monitoring, communications and protection systems) | N154: Reinforcement (augex) | O154: Environmental, safety & legal | P154: Non-IT | Q154: Non-IT | R154: Non-IT | S154: $dollars | T154: CY 2018 | U154: 40 | V154: 0 | W154: =IF(E154="",No, IF(ISERROR(MATCH(E154,'Calc|OH'!$H$24:$H$36,0)),Yes,No)) -> Yes | X154: 0 | Y154: 0 | Z154: 0 | AA154: 0 | AB154: 0 | AC154: 0 | AD154: =IF(ISERROR(MATCH($K154,'Input|Historical'!$C$80:$C$100,0)),0, INDEX('Input|Historical'!$P$80:$P$100,MATCH($K154,'Input|Historical'!$C$80:$C$100,0))) -> 0 | AE154: =IF(ISERROR(MATCH($K154,'Input|Historical'!$C$80:$C$100,0)),0, INDEX('Input|Historical'!$P$80:$P$100,MATCH($K154,'Input|Historical'!$C$80:$C$100,0))) -> 0 | AF154: =IF(ISERROR(MATCH($K154,'Input|Historical'!$C$80:$C$100,0)),0, INDEX('Input|Historical'!$P$80:$P$100,MATCH($K154,'Input|Historical'!$C$80:$C$100,0))) -> 0 | AH154: 312593.9645 | AL154: 0 | AM154: 0 | AN154: 156296.9823 | AO154: 156296.9823 | AP154: 0 | AS154: 0
C155: ST U/G Cable Replacement - WMTS-FT1 Oil Filled Cable | D155: A353 | E155: RUS | F155: SCS | G155: Replacement [SCS] | H155: Replacement: Underground Cables [SCS] | I155: Underground Cables [SCS] | J155: SCS - Subtransmission | K155: SCS - Subtransmission | L155: SCS - Subtransmission | M155: Distribution lines: Underground (incorporating cables, fittings and ground pad mounted transformers) | N155: Non-routine (repex/connections) | O155: Non Augex | P155: Non-IT | Q155: Non-IT | R155: Non-IT | S155: $dollars | T155: CY 2018 | U155: 50 | V155: 0 | W155: =IF(E155="",No, IF(ISERROR(MATCH(E155,'Calc|OH'!$H$24:$H$36,0)),Yes,No)) -> Yes | X155: 0 | Y155: 0 | Z155: 0 | AA155: 0 | AB155: 0 | AC155: 0 | AD155: =IF(ISERROR(MATCH($K155,'Input|Historical'!$C$80:$C$100,0)),0, INDEX('Input|Historical'!$P$80:$P$100,MATCH($K155,'Input|Historical'!$C$80:$C$100,0))) -> 0 | AE155: =IF(ISERROR(MATCH($K155,'Input|Historical'!$C$80:$C$100,0)),0, INDEX('Input|Historical'!$P$80:$P$100,MATCH($K155,'Input|Historical'!$C$80:$C$100,0))) -> 0 | AF155: =IF(ISERROR(MATCH($K155,'Input|Historical'!$C$80:$C$100,0)),0, INDEX('Input|Historical'!$P$80:$P$100,MATCH($K155,'Input|Historical'!$C$80:$C$100,0))) -> 0 | AH155: 0 | AL155: 0 | AM155: 0 | AN155: 0 | AO155: 0 | AP155: 0 | AS155: 0
C156: ST U/G Cable Replacement - BTS-FF Oil Filled Cables | D156: A353b | E156: RUS | F156: SCS | G156: Replacement [SCS] | H156: Replacement: Underground Cables [SCS] | I156: Underground Cables [SCS] | J156: SCS - Subtransmission | K156: SCS - Subtransmission | L156: SCS - Subtransmission | M156: Distribution lines: Underground (incorporating cables, fittings and ground pad mounted transformers) | N156: Non-routine (repex/connections) | O156: Non Augex | P156: Non-IT | Q156: Non-IT | R156: Non-IT | S156: $dollars | T156: CY 2018 | U156: 50 | V156: 0 | W156: =IF(E156="",No, IF(ISERROR(MATCH(E156,'Calc|OH'!$H$24:$H$36,0)),Yes,No)) -> Yes | X156: 0 | Y156: 0 | Z156: 0 | AA156: 0 | AB156: 0 | AC156: 0 | AD156: =IF(ISERROR(MATCH($K156,'Input|Historical'!$C$80:$C$100,0)),0, INDEX('Input|Historical'!$P$80:$P$100,MATCH($K156,'Input|Historical'!$C$80:$C$100,0))) -> 0 | AE156: =IF(ISERROR(MATCH($K156,'Input|Historical'!$C$80:$C$100,0)),0, INDEX('Input|Historical'!$P$80:$P$100,MATCH($K156,'Input|Historical'!$C$80:$C$100,0))) -> 0 | AF156: =IF(ISERROR(MATCH($K156,'Input|Historical'!$C$80:$C$100,0)),0, INDEX('Input|Historical'!$P$80:$P$100,MATCH($K156,'Input|Historical'!$C$80:$C$100,0))) -> 0 | AH156: 0 | AL156: 0 | AM156: 0 | AN156: 0 | AO156: 0 | AP156: 0 | AS156: 0
C157: Subtrans Comms and Prot | D157: A508 | E157: RCA | F157: SCS | G157: Replacement [SCS] | H157: Replacement: Scada Network Control Protections Systems [SCS] | I157: Scada Network Control Protections Systems - Comms infrastructure [SCS] | J157: SCS - Subtransmission | K157: SCS - Subtransmission | L157: SCS - Subtransmission | M157: Control, monitoring, communication and protection systems | N157: Routine (repex/connections) | O157: Non Augex | P157: Non-IT | Q157: Non-IT | R157: Non-IT | S157: $dollars | T157: CY 2018 | U157: 10 | V157: 0 | W157: =IF(E157="",No, IF(ISERROR(MATCH(E157,'Calc|OH'!$H$24:$H$36,0)),Yes,No)) -> Yes | X157: 0 | Y157: 0 | Z157: 0 | AA157: 0 | AB157: 0 | AC157: 0 | AD157: =IF(ISERROR(MATCH($K157,'Input|Historical'!$C$80:$C$100,0)),0, INDEX('Input|Historical'!$P$80:$P$100,MATCH($K157,'Input|Historical'!$C$80:$C$100,0))) -> 0 | AE157: =IF(ISERROR(MATCH($K157,'Input|Historical'!$C$80:$C$100,0)),0, INDEX('Input|Historical'!$P$80:$P$100,MATCH($K157,'Input|Historical'!$C$80:$C$100,0))) -> 0 | AF157: =IF(ISERROR(MATCH($K157,'Input|Historical'!$C$80:$C$100,0)),0, INDEX('Input|Historical'!$P$80:$P$100,MATCH($K157,'Input|Historical'!$C$80:$C$100,0))) -> 0 | AH157: 1000000 | AL157: 200000 | AM157: 200000 | AN157: 200000 | AO157: 200000 | AP157: 200000 | AS157: 0
C158: Replace Aged Relays BD | D158: A120 | E158: RCA | F158: SCS | G158: Replacement [SCS] | H158: Replacement: Scada Network Control Protections Systems [SCS] | I158: Scada Network Control Protections Systems - Protection systems [SCS] | J158: SCS - Subtransmission | K158: SCS - Subtransmission | L158: SCS - Subtransmission | M158: Control, monitoring, communication and protection systems | N158: Non-routine (repex/connections) | O158: Non Augex | P158: Non-IT | Q158: Non-IT | R158: Non-IT | S158: $dollars | T158: CY 2018 | U158: 10 | V158: 0 | W158: =IF(E158="",No, IF(ISERROR(MATCH(E158,'Calc|OH'!$H$24:$H$36,0)),Yes,No)) -> Yes | X158: 0 | Y158: 0 | Z158: 0 | AA158: 0 | AB158: 0 | AC158: 0 | AD158: =IF(ISERROR(MATCH($K158,'Input|Historical'!$C$80:$C$100,0)),0, INDEX('Input|Historical'!$P$80:$P$100,MATCH($K158,'Input|Historical'!$C$80:$C$100,0))) -> 0 | AE158: =IF(ISERROR(MATCH($K158,'Input|Historical'!$C$80:$C$100,0)),0, INDEX('Input|Historical'!$P$80:$P$100,MATCH($K158,'Input|Historical'!$C$80:$C$100,0))) -> 0 | AF158: =IF(ISERROR(MATCH($K158,'Input|Historical'!$C$80:$C$100,0)),0, INDEX('Input|Historical'!$P$80:$P$100,MATCH($K158,'Input|Historical'!$C$80:$C$100,0))) -> 0 | AH158: 0 | AL158: 0 | AM158: 0 | AN158: 0 | AO158: 0 | AP158: 0 | AS158: 0
C159: Replace BY 22kV Feeder Relays | D159: A124 | E159: RCA | F159: SCS | G159: Replacement [SCS] | H159: Replacement: Scada Network Control Protections Systems [SCS] | I159: Scada Network Control Protections Systems - Protection systems [SCS] | J159: SCS - Subtransmission | K159: SCS - Subtransmission | L159: SCS - Subtransmission | M159: Control, monitoring, communication and protection systems | N159: Non-routine (repex/connections) | O159: Non Augex | P159: Non-IT | Q159: Non-IT | R159: Non-IT | S159: $dollars | T159: CY 2018 | U159: 10 | V159: 0 | W159: =IF(E159="",No, IF(ISERROR(MATCH(E159,'Calc|OH'!$H$24:$H$36,0)),Yes,No)) -> Yes | X159: 0 | Y159: 0 | Z159: 0 | AA159: 0 | AB159: 0 | AC159: 0 | AD159: =IF(ISERROR(MATCH($K159,'Input|Historical'!$C$80:$C$100,0)),0, INDEX('Input|Historical'!$P$80:$P$100,MATCH($K159,'Input|Historical'!$C$80:$C$100,0))) -> 0 | AE159: =IF(ISERROR(MATCH($K159,'Input|Historical'!$C$80:$C$100,0)),0, INDEX('Input|Historical'!$P$80:$P$100,MATCH($K159,'Input|Historical'!$C$80:$C$100,0))) -> 0 | AF159: =IF(ISERROR(MATCH($K159,'Input|Historical'!$C$80:$C$100,0)),0, INDEX('Input|Historical'!$P$80:$P$100,MATCH($K159,'Input|Historical'!$C$80:$C$100,0))) -> 0 | AH159: 650000 | AL159: 650000 | AM159: 0 | AN159: 0 | AO159: 0 | AP159: 0 | AS159: 0
C160: Replace CN Relays | D160: A125 | E160: RCA | F160: SCS | G160: Replacement [SCS] | H160: Replacement: Scada Network Control Protections Systems [SCS] | I160: Scada Network Control Protections Systems - Protection systems [SCS] | J160: SCS - Subtransmission | K160: SCS - Subtransmission | L160: SCS - Subtransmission | M160: Control, monitoring, communication and protection systems | N160: Non-routine (repex/connections) | O160: Non Augex | P160: Non-IT | Q160: Non-IT | R160: Non-IT | S160: $dollars | T160: CY 2018 | U160: 10 | V160: 0 | W160: =IF(E160="",No, IF(ISERROR(MATCH(E160,'Calc|OH'!$H$24:$H$36,0)),Yes,No)) -> Yes | X160: 0 | Y160: 0 | Z160: 0 | AA160: 0 | AB160: 0 | AC160: 0 | AD160: =IF(ISERROR(MATCH($K160,'Input|Historical'!$C$80:$C$100,0)),0, INDEX('Input|Historical'!$P$80:$P$100,MATCH($K160,'Input|Historical'!$C$80:$C$100,0))) -> 0 | AE160: =IF(ISERROR(MATCH($K160,'Input|Historical'!$C$80:$C$100,0)),0, INDEX('Input|Historical'!$P$80:$P$100,MATCH($K160,'Input|Historical'!$C$80:$C$100,0))) -> 0 | AF160: =IF(ISERROR(MATCH($K160,'Input|Historical'!$C$80:$C$100,0)),0, INDEX('Input|Historical'!$P$80:$P$100,MATCH($K160,'Input|Historical'!$C$80:$C$100,0))) -> 0 | AH160: 4667556.959 | AL160: 134212.5311 | AM160: 2833778.48 | AN160: 1699565.948 | AO160: 0 | AP160: 0 | AS160: 0
C161: Relay Replacement at Footscray West (FW) | D161: A126 | E161: RCA | F161: SCS | G161: Replacement [SCS] | H161: Replacement: Scada Network Control Protections Systems [SCS] | I161: Scada Network Control Protections Systems - Protection systems [SCS] | J161: SCS - Subtransmission | K161: SCS - Subtransmission | L161: SCS - Subtransmission | M161: Control, monitoring, communication and protection systems | N161: Non-routine (repex/connections) | O161: Non Augex | P161: Non-IT | Q161: Non-IT | R161: Non-IT | S161: $dollars | T161: CY 2018 | U161: 10 | V161: 0 | W161: =IF(E161="",No, IF(ISERROR(MATCH(E161,'Calc|OH'!$H$24:$H$36,0)),Yes,No)) -> Yes | X161: 0 | Y161: 0 | Z161: 0 | AA161: 0 | AB161: 0 | AC161: 0 | AD161: =IF(ISERROR(MATCH($K161,'Input|Historical'!$C$80:$C$100,0)),0, INDEX('Input|Historical'!$P$80:$P$100,MATCH($K161,'Input|Historical'!$C$80:$C$100,0))) -> 0 | AE161: =IF(ISERROR(MATCH($K161,'Input|Historical'!$C$80:$C$100,0)),0, INDEX('Input|Historical'!$P$80:$P$100,MATCH($K161,'Input|Historical'!$C$80:$C$100,0))) -> 0 | AF161: =IF(ISERROR(MATCH($K161,'Input|Historical'!$C$80:$C$100,0)),0, INDEX('Input|Historical'!$P$80:$P$100,MATCH($K161,'Input|Historical'!$C$80:$C$100,0))) -> 0 | AH161: 1887516.4 | AL161: 1887516.4 | AM161: 0 | AN161: 0 | AO161: 0 | AP161: 0 | AS161: 0
C162: Replace NH NEI (incl TTS) Relays | D162: A128 | E162: RCA | F162: SCS | G162: Replacement [SCS] | H162: Replacement: Scada Network Control Protections Systems [SCS] | I162: Scada Network Control Protections Systems - Protection systems [SCS] | J162: SCS - Subtransmission | K162: SCS - Subtransmission | L162: SCS - Subtransmission | M162: Control, monitoring, communication and protection systems | N162: Non-routine (repex/connections) | O162: Non Augex | P162: Non-IT | Q162: Non-IT | R162: Non-IT | S162: $dollars | T162: CY 2018 | U162: 10 | V162: 0 | W162: =IF(E162="",No, IF(ISERROR(MATCH(E162,'Calc|OH'!$H$24:$H$36,0)),Yes,No)) -> Yes | X162: 0 | Y162: 0 | Z162: 0 | AA162: 0 | AB162: 0 | AC162: 0 | AD162: =IF(ISERROR(MATCH($K162,'Input|Historical'!$C$80:$C$100,0)),0, INDEX('Input|Historical'!$P$80:$P$100,MATCH($K162,'Input|Historical'!$C$80:$C$100,0))) -> 0 | AE162: =IF(ISERROR(MATCH($K162,'Input|Historical'!$C$80:$C$100,0)),0, INDEX('Input|Historical'!$P$80:$P$100,MATCH($K162,'Input|Historical'!$C$80:$C$100,0))) -> 0 | AF162: =IF(ISERROR(MATCH($K162,'Input|Historical'!$C$80:$C$100,0)),0, INDEX('Input|Historical'!$P$80:$P$100,MATCH($K162,'Input|Historical'!$C$80:$C$100,0))) -> 0 | AH162: 2136777 | AL162: 0 | AM162: 0 | AN162: 0 | AO162: 943388.5 | AP162: 1193388.5 | AS162: 0
C163: Replace ZSS battery banks and chargers | D163: A133 | E163: RCA | F163: SCS | G163: Replacement [SCS] | H163: Replacement: Scada Network Control Protections Systems [SCS] | I163: Scada Network Control Protections Systems - Protection systems [SCS] | J163: SCS - Subtransmission | K163: SCS - Subtransmission | L163: SCS - Subtransmission | M163: Control, monitoring, communication and protection systems | N163: Non-routine (repex/connections) | O163: Non Augex | P163: Non-IT | Q163: Non-IT | R163: Non-IT | S163: $dollars | T163: CY 2018 | U163: 10 | V163: 0 | W163: =IF(E163="",No, IF(ISERROR(MATCH(E163,'Calc|OH'!$H$24:$H$36,0)),Yes,No)) -> Yes | X163: 0 | Y163: 0 | Z163: 0 | AA163: 0 | AB163: 0 | AC163: 0 | AD163: =IF(ISERROR(MATCH($K163,'Input|Historical'!$C$80:$C$100,0)),0, INDEX('Input|Historical'!$P$80:$P$100,MATCH($K163,'Input|Historical'!$C$80:$C$100,0))) -> 0 | AE163: =IF(ISERROR(MATCH($K163,'Input|Historical'!$C$80:$C$100,0)),0, INDEX('Input|Historical'!$P$80:$P$100,MATCH($K163,'Input|Historical'!$C$80:$C$100,0))) -> 0 | AF163: =IF(ISERROR(MATCH($K163,'Input|Historical'!$C$80:$C$100,0)),0, INDEX('Input|Historical'!$P$80:$P$100,MATCH($K163,'Input|Historical'!$C$80:$C$100,0))) -> 0 | AH163: 2108000 | AL163: 441500 | AM163: 397000 | AN163: 496000 | AO163: 535500 | AP163: 238000 | AS163: 0
C164: Communications pole top radio replacement | D164: A46 | E164: RCA | F164: SCS | G164: Replacement [SCS] | H164: Replacement: Scada Network Control Protections Systems [SCS] | I164: Scada Network Control Protections Systems - Comms infrastructure [SCS] | J164: SCS - Subtransmission | K164: SCS - Subtransmission | L164: SCS - Subtransmission | M164: Control, monitoring, communication and protection systems | N164: Routine (repex/connections) | O164: Non Augex | P164: Non-IT | Q164: Non-IT | R164: Non-IT | S164: $dollars | T164: CY 2018 | U164: 10 | V164: 0 | W164: =IF(E164="",No, IF(ISERROR(MATCH(E164,'Calc|OH'!$H$24:$H$36,0)),Yes,No)) -> Yes | X164: 0 | Y164: 0 | Z164: 0 | AA164: 0 | AB164: 0 | AC164: 0 | AD164: =IF(ISERROR(MATCH($K164,'Input|Historical'!$C$80:$C$100,0)),0, INDEX('Input|Historical'!$P$80:$P$100,MATCH($K164,'Input|Historical'!$C$80:$C$100,0))) -> 0 | AE164: =IF(ISERROR(MATCH($K164,'Input|Historical'!$C$80:$C$100,0)),0, INDEX('Input|Historical'!$P$80:$P$100,MATCH($K164,'Input|Historical'!$C$80:$C$100,0))) -> 0 | AF164: =IF(ISERROR(MATCH($K164,'Input|Historical'!$C$80:$C$100,0)),0, INDEX('Input|Historical'!$P$80:$P$100,MATCH($K164,'Input|Historical'!$C$80:$C$100,0))) -> 0 | AH164: 393500 | AL164: 92000 | AM164: 52000 | AN164: 20000 | AO164: 102000 | AP164: 127500 | AS164: 0
C165: ZSS VT and CT Replacement - BD | D165: A52 | E165: RCA | F165: SCS | G165: Replacement [SCS] | H165: Replacement: Scada Network Control Protections Systems [SCS] | I165: Scada Network Control Protections Systems - Comms infrastructure [SCS] | J165: SCS - Subtransmission | K165: SCS - Subtransmission | L165: SCS - Subtransmission | M165: Control, monitoring, communication and protection systems | N165: Non-routine (repex/connections) | O165: Non Augex | P165: Non-IT | Q165: Non-IT | R165: Non-IT | S165: $dollars | T165: CY 2018 | U165: 10 | V165: 0 | W165: =IF(E165="",No, IF(ISERROR(MATCH(E165,'Calc|OH'!$H$24:$H$36,0)),Yes,No)) -> Yes | X165: 0 | Y165: 0 | Z165: 0 | AA165: 0 | AB165: 0 | AC165: 0 | AD165: =IF(ISERROR(MATCH($K165,'Input|Historical'!$C$80:$C$100,0)),0, INDEX('Input|Historical'!$P$80:$P$100,MATCH($K165,'Input|Historical'!$C$80:$C$100,0))) -> 0 | AE165: =IF(ISERROR(MATCH($K165,'Input|Historical'!$C$80:$C$100,0)),0, INDEX('Input|Historical'!$P$80:$P$100,MATCH($K165,'Input|Historical'!$C$80:$C$100,0))) -> 0 | AF165: =IF(ISERROR(MATCH($K165,'Input|Historical'!$C$80:$C$100,0)),0, INDEX('Input|Historical'!$P$80:$P$100,MATCH($K165,'Input|Historical'!$C$80:$C$100,0))) -> 0 | AH165: 161005.1874 | AL165: 80502.5937 | AM165: 80502.5937 | AN165: 0 | AO165: 0 | AP165: 0 | AS165: 0
C166: Replace all EOF PQ Meters | D166: A68 | E166: RCA | F166: SCS | G166: Replacement [SCS] | H166: Replacement: Scada Network Control Protections Systems [SCS] | I166: Scada Network Control Protections Systems - Other [SCS] | J166: SCS - Distribution system assets | K166: SCS - Distribution system assets | L166: SCS - Distribution system assets | M166: Control, monitoring, communication and protection systems | N166: Non-routine (repex/connections) | O166: Non Augex | P166: Non-IT | Q166: Non-IT | R166: Non-IT | S166: $dollars | T166: CY 2018 | U166: 10 | V166: 0 | W166: =IF(E166="",No, IF(ISERROR(MATCH(E166,'Calc|OH'!$H$24:$H$36,0)),Yes,No)) -> Yes | X166: 0 | Y166: 0 | Z166: 0 | AA166: 0 | AB166: 0 | AC166: 0 | AD166: =IF(ISERROR(MATCH($K166,'Input|Historical'!$C$80:$C$100,0)),0, INDEX('Input|Historical'!$P$80:$P$100,MATCH($K166,'Input|Historical'!$C$80:$C$100,0))) -> 0 | AE166: =IF(ISERROR(MATCH($K166,'Input|Historical'!$C$80:$C$100,0)),0, INDEX('Input|Historical'!$P$80:$P$100,MATCH($K166,'Input|Historical'!$C$80:$C$100,0))) -> 0 | AF166: =IF(ISERROR(MATCH($K166,'Input|Historical'!$C$80:$C$100,0)),0, INDEX('Input|Historical'!$P$80:$P$100,MATCH($K166,'Input|Historical'!$C$80:$C$100,0))) -> 0 | AH166: 701362.4427 | AL166: 701362.4427 | AM166: 0 | AN166: 0 | AO166: 0 | AP166: 0 | AS166: 0
C167: Replace Aged Relays -NS | D167: A71 | E167: RCA | F167: SCS | G167: Replacement [SCS] | H167: Replacement: Scada Network Control Protections Systems [SCS] | I167: Scada Network Control Protections Systems - Protection systems [SCS] | J167: SCS - Subtransmission | K167: SCS - Subtransmission | L167: SCS - Subtransmission | M167: Control, monitoring, communication and protection systems | N167: Non-routine (repex/connections) | O167: Non Augex | P167: Non-IT | Q167: Non-IT | R167: Non-IT | S167: $dollars | T167: CY 2018 | U167: 10 | V167: 0 | W167: =IF(E167="",No, IF(ISERROR(MATCH(E167,'Calc|OH'!$H$24:$H$36,0)),Yes,No)) -> Yes | X167: 0 | Y167: 0 | Z167: 0 | AA167: 0 | AB167: 0 | AC167: 0 | AD167: =IF(ISERROR(MATCH($K167,'Input|Historical'!$C$80:$C$100,0)),0, INDEX('Input|Historical'!$P$80:$P$100,MATCH($K167,'Input|Historical'!$C$80:$C$100,0))) -> 0 | AE167: =IF(ISERROR(MATCH($K167,'Input|Historical'!$C$80:$C$100,0)),0, INDEX('Input|Historical'!$P$80:$P$100,MATCH($K167,'Input|Historical'!$C$80:$C$100,0))) -> 0 | AF167: =IF(ISERROR(MATCH($K167,'Input|Historical'!$C$80:$C$100,0)),0, INDEX('Input|Historical'!$P$80:$P$100,MATCH($K167,'Input|Historical'!$C$80:$C$100,0))) -> 0 | AH167: 1800000 | AL167: 0 | AM167: 0 | AN167: 0 | AO167: 0 | AP167: 1800000 | AS167: 0
C168: PQ meter replacement – NT | D168: A232 | E168: RCA | F168: SCS | G168: Replacement [SCS] | H168: Replacement: Scada Network Control Protections Systems [SCS] | I168: Scada Network Control Protections Systems - Other [SCS] | J168: SCS - Subtransmission | K168: SCS - Subtransmission | L168: SCS - Subtransmission | M168: Control, monitoring, communication and protection systems | N168: Non-routine (repex/connections) | O168: Non Augex | P168: Non-IT | Q168: Non-IT | R168: Non-IT | S168: $dollars | T168: CY 2018 | U168: 10 | V168: 0 | W168: =IF(E168="",No, IF(ISERROR(MATCH(E168,'Calc|OH'!$H$24:$H$36,0)),Yes,No)) -> Yes | X168: 0 | Y168: 0 | Z168: 0 | AA168: 0 | AB168: 0 | AC168: 0 | AD168: =IF(ISERROR(MATCH($K168,'Input|Historical'!$C$80:$C$100,0)),0, INDEX('Input|Historical'!$P$80:$P$100,MATCH($K168,'Input|Historical'!$C$80:$C$100,0))) -> 0 | AE168: =IF(ISERROR(MATCH($K168,'Input|Historical'!$C$80:$C$100,0)),0, INDEX('Input|Historical'!$P$80:$P$100,MATCH($K168,'Input|Historical'!$C$80:$C$100,0))) -> 0 | AF168: =IF(ISERROR(MATCH($K168,'Input|Historical'!$C$80:$C$100,0)),0, INDEX('Input|Historical'!$P$80:$P$100,MATCH($K168,'Input|Historical'!$C$80:$C$100,0))) -> 0 | AH168: 0 | AL168: 0 | AM168: 0 | AN168: 0 | AO168: 0 | AP168: 0 | AS168: 0
C169: Purchase Secondary Spares | D169: A242 | E169: RCA | F169: SCS | G169: Replacement [SCS] | H169: Replacement: Scada Network Control Protections Systems [SCS] | I169: Scada Network Control Protections Systems - Protection systems [SCS] | J169: SCS - Subtransmission | K169: SCS - Subtransmission | L169: SCS - Subtransmission | M169: Control, monitoring, communication and protection systems | N169: Routine (repex/connections) | O169: Non Augex | P169: Non-IT | Q169: Non-IT | R169: Non-IT | S169: $dollars | T169: CY 2018 | U169: 10 | V169: 0 | W169: =IF(E169="",No, IF(ISERROR(MATCH(E169,'Calc|OH'!$H$24:$H$36,0)),Yes,No)) -> Yes | X169: 0 | Y169: 0 | Z169: 0 | AA169: 0 | AB169: 0 | AC169: 0 | AD169: =IF(ISERROR(MATCH($K169,'Input|Historical'!$C$80:$C$100,0)),0, INDEX('Input|Historical'!$P$80:$P$100,MATCH($K169,'Input|Historical'!$C$80:$C$100,0))) -> 0 | AE169: =IF(ISERROR(MATCH($K169,'Input|Historical'!$C$80:$C$100,0)),0, INDEX('Input|Historical'!$P$80:$P$100,MATCH($K169,'Input|Historical'!$C$80:$C$100,0))) -> 0 | AF169: =IF(ISERROR(MATCH($K169,'Input|Historical'!$C$80:$C$100,0)),0, INDEX('Input|Historical'!$P$80:$P$100,MATCH($K169,'Input|Historical'!$C$80:$C$100,0))) -> 0 | AH169: 159400.5184 | AL169: 53133.51838 | AM169: 53133.5 | AN169: 53133.5 | AO169: 0 | AP169: 0 | AS169: 0
C170: P&C relays secure access management solution | D170: A252 | E170: RCA | F170: SCS | G170: Replacement [SCS] | H170: Replacement: Scada Network Control Protections Systems [SCS] | I170: Scada Network Control Protections Systems - Protection systems [SCS] | J170: SCS - Subtransmission | K170: SCS - Subtransmission | L170: SCS - Subtransmission | M170: Control, monitoring, communication and protection systems | N170: Non-routine (repex/connections) | O170: Non Augex | P170: Non-IT | Q170: Non-IT | R170: Non-IT | S170: $dollars | T170: CY 2018 | U170: 10 | V170: 0 | W170: =IF(E170="",No, IF(ISERROR(MATCH(E170,'Calc|OH'!$H$24:$H$36,0)),Yes,No)) -> Yes | X170: 0 | Y170: 0 | Z170: 0 | AA170: 0 | AB170: 0 | AC170: 0 | AD170: =IF(ISERROR(MATCH($K170,'Input|Historical'!$C$80:$C$100,0)),0, INDEX('Input|Historical'!$P$80:$P$100,MATCH($K170,'Input|Historical'!$C$80:$C$100,0))) -> 0 | AE170: =IF(ISERROR(MATCH($K170,'Input|Historical'!$C$80:$C$100,0)),0, INDEX('Input|Historical'!$P$80:$P$100,MATCH($K170,'Input|Historical'!$C$80:$C$100,0))) -> 0 | AF170: =IF(ISERROR(MATCH($K170,'Input|Historical'!$C$80:$C$100,0)),0, INDEX('Input|Historical'!$P$80:$P$100,MATCH($K170,'Input|Historical'!$C$80:$C$100,0))) -> 0 | AH170: 1328337.96 | AL170: 531335.1838 | AM170: 531335.1838 | AN170: 265667.5919 | AO170: 0 | AP170: 0 | AS170: 0
C171: PSCN WAN (IP network) upgrade | D171: A379 | E171: RCA | F171: SCS | G171: Replacement [SCS] | H171: Replacement: Scada Network Control Protections Systems [SCS] | I171: Scada Network Control Protections Systems - Comms infrastructure [SCS] | J171: SCS - Subtransmission | K171: SCS - Subtransmission | L171: SCS - Subtransmission | M171: Control, monitoring, communication and protection systems | N171: Non-routine (repex/connections) | O171: Non Augex | P171: Non-IT | Q171: Non-IT | R171: Non-IT | S171: $dollars | T171: CY 2018 | U171: 10 | V171: 0 | W171: =IF(E171="",No, IF(ISERROR(MATCH(E171,'Calc|OH'!$H$24:$H$36,0)),Yes,No)) -> Yes | X171: 0 | Y171: 0 | Z171: 0 | AA171: 0 | AB171: 0 | AC171: 0 | AD171: =IF(ISERROR(MATCH($K171,'Input|Historical'!$C$80:$C$100,0)),0, INDEX('Input|Historical'!$P$80:$P$100,MATCH($K171,'Input|Historical'!$C$80:$C$100,0))) -> 0 | AE171: =IF(ISERROR(MATCH($K171,'Input|Historical'!$C$80:$C$100,0)),0, INDEX('Input|Historical'!$P$80:$P$100,MATCH($K171,'Input|Historical'!$C$80:$C$100,0))) -> 0 | AF171: =IF(ISERROR(MATCH($K171,'Input|Historical'!$C$80:$C$100,0)),0, INDEX('Input|Historical'!$P$80:$P$100,MATCH($K171,'Input|Historical'!$C$80:$C$100,0))) -> 0 | AH171: 800000 | AL171: 200000 | AM171: 400000 | AN171: 200000 | AO171: 0 | AP171: 0 | AS171: 0
C172: Replace COMM's Equipment at BTS & KTS &HB (7 MUX, 3 SW) | D172: A380 | E172: RCA | F172: SCS | G172: Replacement [SCS] | H172: Replacement: Scada Network Control Protections Systems [SCS] | I172: Scada Network Control Protections Systems - Comms infrastructure [SCS] | J172: SCS - Subtransmission | K172: SCS - Subtransmission | L172: SCS - Subtransmission | M172: Control, monitoring, communication and protection systems | N172: Non-routine (repex/connections) | O172: Non Augex | P172: Non-IT | Q172: Non-IT | R172: Non-IT | S172: $dollars | T172: CY 2018 | U172: 10 | V172: 0 | W172: =IF(E172="",No, IF(ISERROR(MATCH(E172,'Calc|OH'!$H$24:$H$36,0)),Yes,No)) -> Yes | X172: 0 | Y172: 0 | Z172: 0 | AA172: 0 | AB172: 0 | AC172: 0 | AD172: =IF(ISERROR(MATCH($K172,'Input|Historical'!$C$80:$C$100,0)),0, INDEX('Input|Historical'!$P$80:$P$100,MATCH($K172,'Input|Historical'!$C$80:$C$100,0))) -> 0 | AE172: =IF(ISERROR(MATCH($K172,'Input|Historical'!$C$80:$C$100,0)),0, INDEX('Input|Historical'!$P$80:$P$100,MATCH($K172,'Input|Historical'!$C$80:$C$100,0))) -> 0 | AF172: =IF(ISERROR(MATCH($K172,'Input|Historical'!$C$80:$C$100,0)),0, INDEX('Input|Historical'!$P$80:$P$100,MATCH($K172,'Input|Historical'!$C$80:$C$100,0))) -> 0 | AH172: 330000 | AL172: 0 | AM172: 0 | AN172: 0 | AO172: 165000 | AP172: 165000 | AS172: 0
C173: Replace Aged Relays - CS | D173: A259 | E173: RCA | F173: SCS | G173: Replacement [SCS] | H173: Replacement: Scada Network Control Protections Systems [SCS] | I173: Scada Network Control Protections Systems - Protection systems [SCS] | J173: SCS - Subtransmission | K173: SCS - Subtransmission | L173: SCS - Subtransmission | M173: Control, monitoring, communication and protection systems | N173: Non-routine (repex/connections) | O173: Non Augex | P173: Non-IT | Q173: Non-IT | R173: Non-IT | S173: $dollars | T173: CY 2018 | U173: 10 | V173: 0 | W173: =IF(E173="",No, IF(ISERROR(MATCH(E173,'Calc|OH'!$H$24:$H$36,0)),Yes,No)) -> Yes | X173: 0 | Y173: 0 | Z173: 0 | AA173: 0 | AB173: 0 | AC173: 0 | AD173: =IF(ISERROR(MATCH($K173,'Input|Historical'!$C$80:$C$100,0)),0, INDEX('Input|Historical'!$P$80:$P$100,MATCH($K173,'Input|Historical'!$C$80:$C$100,0))) -> 0 | AE173: =IF(ISERROR(MATCH($K173,'Input|Historical'!$C$80:$C$100,0)),0, INDEX('Input|Historical'!$P$80:$P$100,MATCH($K173,'Input|Historical'!$C$80:$C$100,0))) -> 0 | AF173: =IF(ISERROR(MATCH($K173,'Input|Historical'!$C$80:$C$100,0)),0, INDEX('Input|Historical'!$P$80:$P$100,MATCH($K173,'Input|Historical'!$C$80:$C$100,0))) -> 0 | AH173: 6033648.181 | AL173: 0 | AM173: 0 | AN173: 1006681.686 | AO173: 2770278.351 | AP173: 2256688.144 | AS173: 0
C174: ZSS Property Minor CAPEX Works | D174: A207 | E174: RSA | F174: SCS | G174: Replacement [SCS] | H174: Replacement: Other - other [SCS] | I174: Other - other [SCS] | J174: SCS - Subtransmission | K174: SCS - Subtransmission | L174: SCS - Subtransmission | M174: Distribution zone substations (excluding control, monitoring, communications and protection systems) | N174: Routine (repex/connections) | O174: Non Augex | P174: Non-IT | Q174: Non-IT | R174: Non-IT | S174: $dollars | T174: CY 2018 | U174: 40 | V174: 0 | W174: =IF(E174="",No, IF(ISERROR(MATCH(E174,'Calc|OH'!$H$24:$H$36,0)),Yes,No)) -> Yes | X174: 0 | Y174: 0 | Z174: 0 | AA174: 0 | AB174: 0 | AC174: 0 | AD174: =IF(ISERROR(MATCH($K174,'Input|Historical'!$C$80:$C$100,0)),0, INDEX('Input|Historical'!$P$80:$P$100,MATCH($K174,'Input|Historical'!$C$80:$C$100,0))) -> 0 | AE174: =IF(ISERROR(MATCH($K174,'Input|Historical'!$C$80:$C$100,0)),0, INDEX('Input|Historical'!$P$80:$P$100,MATCH($K174,'Input|Historical'!$C$80:$C$100,0))) -> 0 | AF174: =IF(ISERROR(MATCH($K174,'Input|Historical'!$C$80:$C$100,0)),0, INDEX('Input|Historical'!$P$80:$P$100,MATCH($K174,'Input|Historical'!$C$80:$C$100,0))) -> 0 | AH174: 490581.579 | AL174: 98459.84443 | AM174: 98459.84443 | AN174: 98116.3158 | AO174: 97772.78718 | AP174: 97772.78718 | AS174: 0
C175: Control Building - CN | D175: A178 | E175: RSA | F175: SCS | G175: Replacement [SCS] | H175: Replacement: Other - other [SCS] | I175: Other - other [SCS] | J175: SCS - Subtransmission | K175: SCS - Subtransmission | L175: SCS - Subtransmission | M175: Distribution zone substations (excluding control, monitoring, communications and protection systems) | N175: Non-routine (repex/connections) | O175: Non Augex | P175: Non-IT | Q175: Non-IT | R175: Non-IT | S175: $dollars | T175: CY 2018 | U175: 40 | V175: 0 | W175: =IF(E175="",No, IF(ISERROR(MATCH(E175,'Calc|OH'!$H$24:$H$36,0)),Yes,No)) -> Yes | X175: 0 | Y175: 0 | Z175: 0 | AA175: 0 | AB175: 0 | AC175: 0 | AD175: =IF(ISERROR(MATCH($K175,'Input|Historical'!$C$80:$C$100,0)),0, INDEX('Input|Historical'!$P$80:$P$100,MATCH($K175,'Input|Historical'!$C$80:$C$100,0))) -> 0 | AE175: =IF(ISERROR(MATCH($K175,'Input|Historical'!$C$80:$C$100,0)),0, INDEX('Input|Historical'!$P$80:$P$100,MATCH($K175,'Input|Historical'!$C$80:$C$100,0))) -> 0 | AF175: =IF(ISERROR(MATCH($K175,'Input|Historical'!$C$80:$C$100,0)),0, INDEX('Input|Historical'!$P$80:$P$100,MATCH($K175,'Input|Historical'!$C$80:$C$100,0))) -> 0 | AH175: 982762.4207 | AL175: 0 | AM175: 982762.4207 | AN175: 0 | AO175: 0 | AP175: 0 | AS175: 0
C176: No.1 Transformer enclosure roof replacement - FW | D176: A182 | E176: RSA | F176: SCS | G176: Replacement [SCS] | H176: Replacement: Other - other [SCS] | I176: Other - other [SCS] | J176: SCS - Subtransmission | K176: SCS - Subtransmission | L176: SCS - Subtransmission | M176: Distribution zone substations (excluding control, monitoring, communications and protection systems) | N176: Non-routine (repex/connections) | O176: Non Augex | P176: Non-IT | Q176: Non-IT | R176: Non-IT | S176: $dollars | T176: CY 2018 | U176: 40 | V176: 0 | W176: =IF(E176="",No, IF(ISERROR(MATCH(E176,'Calc|OH'!$H$24:$H$36,0)),Yes,No)) -> Yes | X176: 0 | Y176: 0 | Z176: 0 | AA176: 0 | AB176: 0 | AC176: 0 | AD176: =IF(ISERROR(MATCH($K176,'Input|Historical'!$C$80:$C$100,0)),0, INDEX('Input|Historical'!$P$80:$P$100,MATCH($K176,'Input|Historical'!$C$80:$C$100,0))) -> 0 | AE176: =IF(ISERROR(MATCH($K176,'Input|Historical'!$C$80:$C$100,0)),0, INDEX('Input|Historical'!$P$80:$P$100,MATCH($K176,'Input|Historical'!$C$80:$C$100,0))) -> 0 | AF176: =IF(ISERROR(MATCH($K176,'Input|Historical'!$C$80:$C$100,0)),0, INDEX('Input|Historical'!$P$80:$P$100,MATCH($K176,'Input|Historical'!$C$80:$C$100,0))) -> 0 | AH176: 0 | AL176: 0 | AM176: 0 | AN176: 0 | AO176: 0 | AP176: 0 | AS176: 0
C177: No.1 Transformer enclosure roof replacement - HB | D177: A184 | E177: RSA | F177: SCS | G177: Replacement [SCS] | H177: Replacement: Other - other [SCS] | I177: Other - other [SCS] | J177: SCS - Subtransmission | K177: SCS - Subtransmission | L177: SCS - Subtransmission | M177: Distribution zone substations (excluding control, monitoring, communications and protection systems) | N177: Non-routine (repex/connections) | O177: Non Augex | P177: Non-IT | Q177: Non-IT | R177: Non-IT | S177: $dollars | T177: CY 2018 | U177: 40 | V177: 0 | W177: =IF(E177="",No, IF(ISERROR(MATCH(E177,'Calc|OH'!$H$24:$H$36,0)),Yes,No)) -> Yes | X177: 0 | Y177: 0 | Z177: 0 | AA177: 0 | AB177: 0 | AC177: 0 | AD177: =IF(ISERROR(MATCH($K177,'Input|Historical'!$C$80:$C$100,0)),0, INDEX('Input|Historical'!$P$80:$P$100,MATCH($K177,'Input|Historical'!$C$80:$C$100,0))) -> 0 | AE177: =IF(ISERROR(MATCH($K177,'Input|Historical'!$C$80:$C$100,0)),0, INDEX('Input|Historical'!$P$80:$P$100,MATCH($K177,'Input|Historical'!$C$80:$C$100,0))) -> 0 | AF177: =IF(ISERROR(MATCH($K177,'Input|Historical'!$C$80:$C$100,0)),0, INDEX('Input|Historical'!$P$80:$P$100,MATCH($K177,'Input|Historical'!$C$80:$C$100,0))) -> 0 | AH177: 54143 | AL177: 54143 | AM177: 0 | AN177: 0 | AO177: 0 | AP177: 0 | AS177: 0
C178: Replace FE Switchgear | D178: A190 | E178: RSA | F178: SCS | G178: Replacement [SCS] | H178: Replacement: Switchgear [SCS] | I178: Switchgear [SCS] | J178: SCS - Subtransmission | K178: SCS - Subtransmission | L178: SCS - Subtransmission | M178: Distribution zone substations (excluding control, monitoring, communications and protection systems) | N178: Non-routine (repex/connections) | O178: Non Augex | P178: Non-IT | Q178: Non-IT | R178: Non-IT | S178: $dollars | T178: CY 2018 | U178: 40 | V178: 0 | W178: =IF(E178="",No, IF(ISERROR(MATCH(E178,'Calc|OH'!$H$24:$H$36,0)),Yes,No)) -> Yes | X178: 0 | Y178: 0 | Z178: 0 | AA178: 0 | AB178: 0 | AC178: 0 | AD178: =IF(ISERROR(MATCH($K178,'Input|Historical'!$C$80:$C$100,0)),0, INDEX('Input|Historical'!$P$80:$P$100,MATCH($K178,'Input|Historical'!$C$80:$C$100,0))) -> 0 | AE178: =IF(ISERROR(MATCH($K178,'Input|Historical'!$C$80:$C$100,0)),0, INDEX('Input|Historical'!$P$80:$P$100,MATCH($K178,'Input|Historical'!$C$80:$C$100,0))) -> 0 | AF178: =IF(ISERROR(MATCH($K178,'Input|Historical'!$C$80:$C$100,0)),0, INDEX('Input|Historical'!$P$80:$P$100,MATCH($K178,'Input|Historical'!$C$80:$C$100,0))) -> 0 | AH178: 466665.0107 | AL178: 466665.0107 | AM178: 0 | AN178: 0 | AO178: 0 | AP178: 0 | AS178: 0
C179: Switchboard Replacement - FW | D179: A212 | E179: RSA | F179: SCS | G179: Replacement [SCS] | H179: Replacement: Switchgear [SCS] | I179: Switchgear [SCS] | J179: SCS - Subtransmission | K179: SCS - Subtransmission | L179: SCS - Subtransmission | M179: Distribution zone substations (excluding control, monitoring, communications and protection systems) | N179: Non-routine (repex/connections) | O179: Non Augex | P179: Non-IT | Q179: Non-IT | R179: Non-IT | S179: $dollars | T179: CY 2018 | U179: 40 | V179: 0 | W179: =IF(E179="",No, IF(ISERROR(MATCH(E179,'Calc|OH'!$H$24:$H$36,0)),Yes,No)) -> Yes | X179: 0 | Y179: 0 | Z179: 0 | AA179: 0 | AB179: 0 | AC179: 0 | AD179: =IF(ISERROR(MATCH($K179,'Input|Historical'!$C$80:$C$100,0)),0, INDEX('Input|Historical'!$P$80:$P$100,MATCH($K179,'Input|Historical'!$C$80:$C$100,0))) -> 0 | AE179: =IF(ISERROR(MATCH($K179,'Input|Historical'!$C$80:$C$100,0)),0, INDEX('Input|Historical'!$P$80:$P$100,MATCH($K179,'Input|Historical'!$C$80:$C$100,0))) -> 0 | AF179: =IF(ISERROR(MATCH($K179,'Input|Historical'!$C$80:$C$100,0)),0, INDEX('Input|Historical'!$P$80:$P$100,MATCH($K179,'Input|Historical'!$C$80:$C$100,0))) -> 0 | AH179: 2527695.6 | AL179: 2527695.6 | AM179: 0 | AN179: 0 | AO179: 0 | AP179: 0 | AS179: 0
C180: Replace CN 66kV 1-2 Bus-Tie CB | D180: A191 | E180: RSA | F180: SCS | G180: Replacement [SCS] | H180: Replacement: Switchgear [SCS] | I180: Switchgear [SCS] | J180: SCS - Subtransmission | K180: SCS - Subtransmission | L180: SCS - Subtransmission | M180: Distribution zone substations (excluding control, monitoring, communications and protection systems) | N180: Non-routine (repex/connections) | O180: Non Augex | P180: Non-IT | Q180: Non-IT | R180: Non-IT | S180: $dollars | T180: CY 2018 | U180: 40 | V180: 0 | W180: =IF(E180="",No, IF(ISERROR(MATCH(E180,'Calc|OH'!$H$24:$H$36,0)),Yes,No)) -> Yes | X180: 0 | Y180: 0 | Z180: 0 | AA180: 0 | AB180: 0 | AC180: 0 | AD180: =IF(ISERROR(MATCH($K180,'Input|Historical'!$C$80:$C$100,0)),0, INDEX('Input|Historical'!$P$80:$P$100,MATCH($K180,'Input|Historical'!$C$80:$C$100,0))) -> 0 | AE180: =IF(ISERROR(MATCH($K180,'Input|Historical'!$C$80:$C$100,0)),0, INDEX('Input|Historical'!$P$80:$P$100,MATCH($K180,'Input|Historical'!$C$80:$C$100,0))) -> 0 | AF180: =IF(ISERROR(MATCH($K180,'Input|Historical'!$C$80:$C$100,0)),0, INDEX('Input|Historical'!$P$80:$P$100,MATCH($K180,'Input|Historical'!$C$80:$C$100,0))) -> 0 | AH180: 312385.2085 | AL180: 0 | AM180: 312385.2085 | AN180: 0 | AO180: 0 | AP180: 0 | AS180: 0
C181: Replace 66kV CB's (1) - FE | D181: A192 | E181: RSA | F181: SCS | G181: Replacement [SCS] | H181: Replacement: Switchgear [SCS] | I181: Switchgear [SCS] | J181: SCS - Subtransmission | K181: SCS - Subtransmission | L181: SCS - Subtransmission | M181: Distribution zone substations (excluding control, monitoring, communications and protection systems) | N181: Non-routine (repex/connections) | O181: Non Augex | P181: Non-IT | Q181: Non-IT | R181: Non-IT | S181: $dollars | T181: CY 2018 | U181: 40 | V181: 0 | W181: =IF(E181="",No, IF(ISERROR(MATCH(E181,'Calc|OH'!$H$24:$H$36,0)),Yes,No)) -> Yes | X181: 0 | Y181: 0 | Z181: 0 | AA181: 0 | AB181: 0 | AC181: 0 | AD181: =IF(ISERROR(MATCH($K181,'Input|Historical'!$C$80:$C$100,0)),0, INDEX('Input|Historical'!$P$80:$P$100,MATCH($K181,'Input|Historical'!$C$80:$C$100,0))) -> 0 | AE181: =IF(ISERROR(MATCH($K181,'Input|Historical'!$C$80:$C$100,0)),0, INDEX('Input|Historical'!$P$80:$P$100,MATCH($K181,'Input|Historical'!$C$80:$C$100,0))) -> 0 | AF181: =IF(ISERROR(MATCH($K181,'Input|Historical'!$C$80:$C$100,0)),0, INDEX('Input|Historical'!$P$80:$P$100,MATCH($K181,'Input|Historical'!$C$80:$C$100,0))) -> 0 | AH181: 0 | AL181: 0 | AM181: 0 | AN181: 0 | AO181: 0 | AP181: 0 | AS181: 0
C182: Replace 66kV CB's (1) - HB | D182: A48 | E182: RSA | F182: SCS | G182: Replacement [SCS] | H182: Replacement: Switchgear [SCS] | I182: Switchgear [SCS] | J182: SCS - Subtransmission | K182: SCS - Subtransmission | L182: SCS - Subtransmission | M182: Distribution zone substations (excluding control, monitoring, communications and protection systems) | N182: Non-routine (repex/connections) | O182: Non Augex | P182: Non-IT | Q182: Non-IT | R182: Non-IT | S182: $dollars | T182: CY 2018 | U182: 40 | V182: 0 | W182: =IF(E182="",No, IF(ISERROR(MATCH(E182,'Calc|OH'!$H$24:$H$36,0)),Yes,No)) -> Yes | X182: 0 | Y182: 0 | Z182: 0 | AA182: 0 | AB182: 0 | AC182: 0 | AD182: =IF(ISERROR(MATCH($K182,'Input|Historical'!$C$80:$C$100,0)),0, INDEX('Input|Historical'!$P$80:$P$100,MATCH($K182,'Input|Historical'!$C$80:$C$100,0))) -> 0 | AE182: =IF(ISERROR(MATCH($K182,'Input|Historical'!$C$80:$C$100,0)),0, INDEX('Input|Historical'!$P$80:$P$100,MATCH($K182,'Input|Historical'!$C$80:$C$100,0))) -> 0 | AF182: =IF(ISERROR(MATCH($K182,'Input|Historical'!$C$80:$C$100,0)),0, INDEX('Input|Historical'!$P$80:$P$100,MATCH($K182,'Input|Historical'!$C$80:$C$100,0))) -> 0 | AH182: 0 | AL182: 0 | AM182: 0 | AN182: 0 | AO182: 0 | AP182: 0 | AS182: 0
C183: Replace 66kV CB's (2) - FW | D183: A194 | E183: RSA | F183: SCS | G183: Replacement [SCS] | H183: Replacement: Switchgear [SCS] | I183: Switchgear [SCS] | J183: SCS - Subtransmission | K183: SCS - Subtransmission | L183: SCS - Subtransmission | M183: Distribution zone substations (excluding control, monitoring, communications and protection systems) | N183: Non-routine (repex/connections) | O183: Non Augex | P183: Non-IT | Q183: Non-IT | R183: Non-IT | S183: $dollars | T183: CY 2018 | U183: 40 | V183: 0 | W183: =IF(E183="",No, IF(ISERROR(MATCH(E183,'Calc|OH'!$H$24:$H$36,0)),Yes,No)) -> Yes | X183: 0 | Y183: 0 | Z183: 0 | AA183: 0 | AB183: 0 | AC183: 0 | AD183: =IF(ISERROR(MATCH($K183,'Input|Historical'!$C$80:$C$100,0)),0, INDEX('Input|Historical'!$P$80:$P$100,MATCH($K183,'Input|Historical'!$C$80:$C$100,0))) -> 0 | AE183: =IF(ISERROR(MATCH($K183,'Input|Historical'!$C$80:$C$100,0)),0, INDEX('Input|Historical'!$P$80:$P$100,MATCH($K183,'Input|Historical'!$C$80:$C$100,0))) -> 0 | AF183: =IF(ISERROR(MATCH($K183,'Input|Historical'!$C$80:$C$100,0)),0, INDEX('Input|Historical'!$P$80:$P$100,MATCH($K183,'Input|Historical'!$C$80:$C$100,0))) -> 0 | AH183: 0 | AL183: 0 | AM183: 0 | AN183: 0 | AO183: 0 | AP183: 0 | AS183: 0
C184: Replace Capacitor cans | D184: A196 | E184: RSA | F184: SCS | G184: Replacement [SCS] | H184: Replacement: Other - other [SCS] | I184: Other - other [SCS] | J184: SCS - Subtransmission | K184: SCS - Subtransmission | L184: SCS - Subtransmission | M184: Distribution zone substations (excluding control, monitoring, communications and protection systems) | N184: Routine (repex/connections) | O184: Non Augex | P184: Non-IT | Q184: Non-IT | R184: Non-IT | S184: $dollars | T184: CY 2018 | U184: 40 | V184: 0 | W184: =IF(E184="",No, IF(ISERROR(MATCH(E184,'Calc|OH'!$H$24:$H$36,0)),Yes,No)) -> Yes | X184: 0 | Y184: 0 | Z184: 0 | AA184: 0 | AB184: 0 | AC184: 0 | AD184: =IF(ISERROR(MATCH($K184,'Input|Historical'!$C$80:$C$100,0)),0, INDEX('Input|Historical'!$P$80:$P$100,MATCH($K184,'Input|Historical'!$C$80:$C$100,0))) -> 0 | AE184: =IF(ISERROR(MATCH($K184,'Input|Historical'!$C$80:$C$100,0)),0, INDEX('Input|Historical'!$P$80:$P$100,MATCH($K184,'Input|Historical'!$C$80:$C$100,0))) -> 0 | AF184: =IF(ISERROR(MATCH($K184,'Input|Historical'!$C$80:$C$100,0)),0, INDEX('Input|Historical'!$P$80:$P$100,MATCH($K184,'Input|Historical'!$C$80:$C$100,0))) -> 0 | AH184: 50000 | AL184: 10000 | AM184: 10000 | AN184: 10000 | AO184: 10000 | AP184: 10000 | AS184: 0
C185: Replace transformer bushings | D185: A199 | E185: RSA | F185: SCS | G185: Replacement [SCS] | H185: Replacement: Transformers [SCS] | I185: Transformers [SCS] | J185: SCS - Subtransmission | K185: SCS - Subtransmission | L185: SCS - Subtransmission | M185: Distribution zone substations (excluding control, monitoring, communications and protection systems) | N185: Non-routine (repex/connections) | O185: Non Augex | P185: Non-IT | Q185: Non-IT | R185: Non-IT | S185: $dollars | T185: CY 2018 | U185: 40 | V185: 0 | W185: =IF(E185="",No, IF(ISERROR(MATCH(E185,'Calc|OH'!$H$24:$H$36,0)),Yes,No)) -> Yes | X185: 0 | Y185: 0 | Z185: 0 | AA185: 0 | AB185: 0 | AC185: 0 | AD185: =IF(ISERROR(MATCH($K185,'Input|Historical'!$C$80:$C$100,0)),0, INDEX('Input|Historical'!$P$80:$P$100,MATCH($K185,'Input|Historical'!$C$80:$C$100,0))) -> 0 | AE185: =IF(ISERROR(MATCH($K185,'Input|Historical'!$C$80:$C$100,0)),0, INDEX('Input|Historical'!$P$80:$P$100,MATCH($K185,'Input|Historical'!$C$80:$C$100,0))) -> 0 | AF185: =IF(ISERROR(MATCH($K185,'Input|Historical'!$C$80:$C$100,0)),0, INDEX('Input|Historical'!$P$80:$P$100,MATCH($K185,'Input|Historical'!$C$80:$C$100,0))) -> 0 | AH185: 150000 | AL185: 30000 | AM185: 30000 | AN185: 30000 | AO185: 30000 | AP185: 30000 | AS185: 0
C186: Replace ES Transformers | D186: A200 | E186: RSA | F186: SCS | G186: Replacement [SCS] | H186: Replacement: Transformers [SCS] | I186: Transformers [SCS] | J186: SCS - Subtransmission | K186: SCS - Subtransmission | L186: SCS - Subtransmission | M186: Distribution zone substations (excluding control, monitoring, communications and protection systems) | N186: Non-routine (repex/connections) | O186: Non Augex | P186: Non-IT | Q186: Non-IT | R186: Non-IT | S186: $dollars | T186: CY 2018 | U186: 40 | V186: 0 | W186: =IF(E186="",No, IF(ISERROR(MATCH(E186,'Calc|OH'!$H$24:$H$36,0)),Yes,No)) -> Yes | X186: 0 | Y186: 0 | Z186: 0 | AA186: 0 | AB186: 0 | AC186: 0 | AD186: =IF(ISERROR(MATCH($K186,'Input|Historical'!$C$80:$C$100,0)),0, INDEX('Input|Historical'!$P$80:$P$100,MATCH($K186,'Input|Historical'!$C$80:$C$100,0))) -> 0 | AE186: =IF(ISERROR(MATCH($K186,'Input|Historical'!$C$80:$C$100,0)),0, INDEX('Input|Historical'!$P$80:$P$100,MATCH($K186,'Input|Historical'!$C$80:$C$100,0))) -> 0 | AF186: =IF(ISERROR(MATCH($K186,'Input|Historical'!$C$80:$C$100,0)),0, INDEX('Input|Historical'!$P$80:$P$100,MATCH($K186,'Input|Historical'!$C$80:$C$100,0))) -> 0 | AH186: 0 | AL186: 0 | AM186: 0 | AN186: 0 | AO186: 0 | AP186: 0 | AS186: 0
C187: FF Transformer Replacements | D187: A201 | E187: RSA | F187: SCS | G187: Replacement [SCS] | H187: Replacement: Transformers [SCS] | I187: Transformers [SCS] | J187: SCS - Subtransmission | K187: SCS - Subtransmission | L187: SCS - Subtransmission | M187: Distribution zone substations (excluding control, monitoring, communications and protection systems) | N187: Non-routine (repex/connections) | O187: Non Augex | P187: Non-IT | Q187: Non-IT | R187: Non-IT | S187: $dollars | T187: CY 2018 | U187: 40 | V187: 0 | W187: =IF(E187="",No, IF(ISERROR(MATCH(E187,'Calc|OH'!$H$24:$H$36,0)),Yes,No)) -> Yes | X187: 0 | Y187: 0 | Z187: 0 | AA187: 0 | AB187: 0 | AC187: 0 | AD187: =IF(ISERROR(MATCH($K187,'Input|Historical'!$C$80:$C$100,0)),0, INDEX('Input|Historical'!$P$80:$P$100,MATCH($K187,'Input|Historical'!$C$80:$C$100,0))) -> 0 | AE187: =IF(ISERROR(MATCH($K187,'Input|Historical'!$C$80:$C$100,0)),0, INDEX('Input|Historical'!$P$80:$P$100,MATCH($K187,'Input|Historical'!$C$80:$C$100,0))) -> 0 | AF187: =IF(ISERROR(MATCH($K187,'Input|Historical'!$C$80:$C$100,0)),0, INDEX('Input|Historical'!$P$80:$P$100,MATCH($K187,'Input|Historical'!$C$80:$C$100,0))) -> 0 | AH187: 0 | AL187: 0 | AM187: 0 | AN187: 0 | AO187: 0 | AP187: 0 | AS187: 0
C188: Replace HB Transformers | D188: A202 | E188: RSA | F188: SCS | G188: Replacement [SCS] | H188: Replacement: Transformers [SCS] | I188: Transformers [SCS] | J188: SCS - Subtransmission | K188: SCS - Subtransmission | L188: SCS - Subtransmission | M188: Distribution zone substations (excluding control, monitoring, communications and protection systems) | N188: Non-routine (repex/connections) | O188: Non Augex | P188: Non-IT | Q188: Non-IT | R188: Non-IT | S188: $dollars | T188: CY 2018 | U188: 40 | V188: 0 | W188: =IF(E188="",No, IF(ISERROR(MATCH(E188,'Calc|OH'!$H$24:$H$36,0)),Yes,No)) -> Yes | X188: 0 | Y188: 0 | Z188: 0 | AA188: 0 | AB188: 0 | AC188: 0 | AD188: =IF(ISERROR(MATCH($K188,'Input|Historical'!$C$80:$C$100,0)),0, INDEX('Input|Historical'!$P$80:$P$100,MATCH($K188,'Input|Historical'!$C$80:$C$100,0))) -> 0 | AE188: =IF(ISERROR(MATCH($K188,'Input|Historical'!$C$80:$C$100,0)),0, INDEX('Input|Historical'!$P$80:$P$100,MATCH($K188,'Input|Historical'!$C$80:$C$100,0))) -> 0 | AF188: =IF(ISERROR(MATCH($K188,'Input|Historical'!$C$80:$C$100,0)),0, INDEX('Input|Historical'!$P$80:$P$100,MATCH($K188,'Input|Historical'!$C$80:$C$100,0))) -> 0 | AH188: 2045513 | AL188: 2045513 | AM188: 0 | AN188: 0 | AO188: 0 | AP188: 0 | AS188: 0
C189: Upgrade zone substation earth grids | D189: A204 | E189: RSA | F189: SCS | G189: Replacement [SCS] | H189: Replacement: Other - other [SCS] | I189: Other - other [SCS] | J189: SCS - Subtransmission | K189: SCS - Subtransmission | L189: SCS - Subtransmission | M189: Distribution zone substations (excluding control, monitoring, communications and protection systems) | N189: Routine (repex/connections) | O189: Non Augex | P189: Non-IT | Q189: Non-IT | R189: Non-IT | S189: $dollars | T189: CY 2018 | U189: 40 | V189: 0 | W189: =IF(E189="",No, IF(ISERROR(MATCH(E189,'Calc|OH'!$H$24:$H$36,0)),Yes,No)) -> Yes | X189: 0 | Y189: 0 | Z189: 0 | AA189: 0 | AB189: 0 | AC189: 0 | AD189: =IF(ISERROR(MATCH($K189,'Input|Historical'!$C$80:$C$100,0)),0, INDEX('Input|Historical'!$P$80:$P$100,MATCH($K189,'Input|Historical'!$C$80:$C$100,0))) -> 0 | AE189: =IF(ISERROR(MATCH($K189,'Input|Historical'!$C$80:$C$100,0)),0, INDEX('Input|Historical'!$P$80:$P$100,MATCH($K189,'Input|Historical'!$C$80:$C$100,0))) -> 0 | AF189: =IF(ISERROR(MATCH($K189,'Input|Historical'!$C$80:$C$100,0)),0, INDEX('Input|Historical'!$P$80:$P$100,MATCH($K189,'Input|Historical'!$C$80:$C$100,0))) -> 0 | AH189: 461038.7952 | AL189: 92465.8514 | AM189: 92465.8514 | AN189: 92465.8514 | AO189: 91820.62051 | AP189: 91820.62051 | AS189: 0
C190: Replace FE Fence | D190: A470 | E190: RSA | F190: SCS | G190: Replacement [SCS] | H190: Replacement: Other - other [SCS] | I190: Other - other [SCS] | J190: SCS - Subtransmission | K190: SCS - Subtransmission | L190: SCS - Subtransmission | M190: Distribution zone substations (excluding control, monitoring, communications and protection systems) | N190: Non-routine (repex/connections) | O190: Non Augex | P190: Non-IT | Q190: Non-IT | R190: Non-IT | S190: $dollars | T190: CY 2018 | U190: 40 | V190: 0 | W190: =IF(E190="",No, IF(ISERROR(MATCH(E190,'Calc|OH'!$H$24:$H$36,0)),Yes,No)) -> Yes | X190: 0 | Y190: 0 | Z190: 0 | AA190: 0 | AB190: 0 | AC190: 0 | AD190: =IF(ISERROR(MATCH($K190,'Input|Historical'!$C$80:$C$100,0)),0, INDEX('Input|Historical'!$P$80:$P$100,MATCH($K190,'Input|Historical'!$C$80:$C$100,0))) -> 0 | AE190: =IF(ISERROR(MATCH($K190,'Input|Historical'!$C$80:$C$100,0)),0, INDEX('Input|Historical'!$P$80:$P$100,MATCH($K190,'Input|Historical'!$C$80:$C$100,0))) -> 0 | AF190: =IF(ISERROR(MATCH($K190,'Input|Historical'!$C$80:$C$100,0)),0, INDEX('Input|Historical'!$P$80:$P$100,MATCH($K190,'Input|Historical'!$C$80:$C$100,0))) -> 0 | AH190: 0 | AL190: 0 | AM190: 0 | AN190: 0 | AO190: 0 | AP190: 0 | AS190: 0
C191: 10yr Testing of ZSS Earth Grids | D191: A12 | E191: RSA | F191: SCS | G191: Replacement [SCS] | H191: Replacement: Other - other [SCS] | I191: Other - other [SCS] | J191: SCS - Subtransmission | K191: SCS - Subtransmission | L191: SCS - Subtransmission | M191: Distribution zone substations (excluding control, monitoring, communications and protection systems) | N191: Routine (repex/connections) | O191: Non Augex | P191: Non-IT | Q191: Non-IT | R191: Non-IT | S191: $dollars | T191: CY 2018 | U191: 40 | V191: 0 | W191: =IF(E191="",No, IF(ISERROR(MATCH(E191,'Calc|OH'!$H$24:$H$36,0)),Yes,No)) -> Yes | X191: 0 | Y191: 0 | Z191: 0 | AA191: 0 | AB191: 0 | AC191: 0 | AD191: =IF(ISERROR(MATCH($K191,'Input|Historical'!$C$80:$C$100,0)),0, INDEX('Input|Historical'!$P$80:$P$100,MATCH($K191,'Input|Historical'!$C$80:$C$100,0))) -> 0 | AE191: =IF(ISERROR(MATCH($K191,'Input|Historical'!$C$80:$C$100,0)),0, INDEX('Input|Historical'!$P$80:$P$100,MATCH($K191,'Input|Historical'!$C$80:$C$100,0))) -> 0 | AF191: =IF(ISERROR(MATCH($K191,'Input|Historical'!$C$80:$C$100,0)),0, INDEX('Input|Historical'!$P$80:$P$100,MATCH($K191,'Input|Historical'!$C$80:$C$100,0))) -> 0 | AH191: 263024.543 | AL191: 52789.09094 | AM191: 52789.09094 | AN191: 52604.9086 | AO191: 52420.72627 | AP191: 52420.72627 | AS191: 0
C192: Transformer Oil Regeneration | D192: A14 | E192: RSA | F192: SCS | G192: Replacement [SCS] | H192: Replacement: Transformers [SCS] | I192: Transformers [SCS] | J192: SCS - Subtransmission | K192: SCS - Subtransmission | L192: SCS - Subtransmission | M192: Distribution zone substations (excluding control, monitoring, communications and protection systems) | N192: Non-routine (repex/connections) | O192: Non Augex | P192: Non-IT | Q192: Non-IT | R192: Non-IT | S192: $dollars | T192: CY 2018 | U192: 40 | V192: 0 | W192: =IF(E192="",No, IF(ISERROR(MATCH(E192,'Calc|OH'!$H$24:$H$36,0)),Yes,No)) -> Yes | X192: 0 | Y192: 0 | Z192: 0 | AA192: 0 | AB192: 0 | AC192: 0 | AD192: =IF(ISERROR(MATCH($K192,'Input|Historical'!$C$80:$C$100,0)),0, INDEX('Input|Historical'!$P$80:$P$100,MATCH($K192,'Input|Historical'!$C$80:$C$100,0))) -> 0 | AE192: =IF(ISERROR(MATCH($K192,'Input|Historical'!$C$80:$C$100,0)),0, INDEX('Input|Historical'!$P$80:$P$100,MATCH($K192,'Input|Historical'!$C$80:$C$100,0))) -> 0 | AF192: =IF(ISERROR(MATCH($K192,'Input|Historical'!$C$80:$C$100,0)),0, INDEX('Input|Historical'!$P$80:$P$100,MATCH($K192,'Input|Historical'!$C$80:$C$100,0))) -> 0 | AH192: 315629.4516 | AL192: 79183.63641 | AM192: 79183.63641 | AN192: 0 | AO192: 78631.08941 | AP192: 78631.08941 | AS192: 0
C193: Control Room Roof Replacement | D193: A168 | E193: RSA | F193: SCS | G193: Replacement [SCS] | H193: Replacement: Other - other [SCS] | I193: Other - other [SCS] | J193: SCS - Subtransmission | K193: SCS - Subtransmission | L193: SCS - Subtransmission | M193: Distribution zone substations (excluding control, monitoring, communications and protection systems) | N193: Routine (repex/connections) | O193: Non Augex | P193: Non-IT | Q193: Non-IT | R193: Non-IT | S193: $dollars | T193: CY 2018 | U193: 40 | V193: 0 | W193: =IF(E193="",No, IF(ISERROR(MATCH(E193,'Calc|OH'!$H$24:$H$36,0)),Yes,No)) -> Yes | X193: 0 | Y193: 0 | Z193: 0 | AA193: 0 | AB193: 0 | AC193: 0 | AD193: =IF(ISERROR(MATCH($K193,'Input|Historical'!$C$80:$C$100,0)),0, INDEX('Input|Historical'!$P$80:$P$100,MATCH($K193,'Input|Historical'!$C$80:$C$100,0))) -> 0 | AE193: =IF(ISERROR(MATCH($K193,'Input|Historical'!$C$80:$C$100,0)),0, INDEX('Input|Historical'!$P$80:$P$100,MATCH($K193,'Input|Historical'!$C$80:$C$100,0))) -> 0 | AF193: =IF(ISERROR(MATCH($K193,'Input|Historical'!$C$80:$C$100,0)),0, INDEX('Input|Historical'!$P$80:$P$100,MATCH($K193,'Input|Historical'!$C$80:$C$100,0))) -> 0 | AH193: 228836.8079 | AL193: 57209.20197 | AM193: 114418.4039 | AN193: 57209.20197 | AO193: 0 | AP193: 0 | AS193: 0
C194: Replace 66kV Brown Insulators | D194: A16 | E194: RSA | F194: SCS | G194: Replacement [SCS] | H194: Replacement: Switchgear [SCS] | I194: Switchgear [SCS] | J194: SCS - Subtransmission | K194: SCS - Subtransmission | L194: SCS - Subtransmission | M194: Distribution zone substations (excluding control, monitoring, communications and protection systems) | N194: Routine (repex/connections) | O194: Non Augex | P194: Non-IT | Q194: Non-IT | R194: Non-IT | S194: $dollars | T194: CY 2018 | U194: 40 | V194: 0 | W194: =IF(E194="",No, IF(ISERROR(MATCH(E194,'Calc|OH'!$H$24:$H$36,0)),Yes,No)) -> Yes | X194: 0 | Y194: 0 | Z194: 0 | AA194: 0 | AB194: 0 | AC194: 0 | AD194: =IF(ISERROR(MATCH($K194,'Input|Historical'!$C$80:$C$100,0)),0, INDEX('Input|Historical'!$P$80:$P$100,MATCH($K194,'Input|Historical'!$C$80:$C$100,0))) -> 0 | AE194: =IF(ISERROR(MATCH($K194,'Input|Historical'!$C$80:$C$100,0)),0, INDEX('Input|Historical'!$P$80:$P$100,MATCH($K194,'Input|Historical'!$C$80:$C$100,0))) -> 0 | AF194: =IF(ISERROR(MATCH($K194,'Input|Historical'!$C$80:$C$100,0)),0, INDEX('Input|Historical'!$P$80:$P$100,MATCH($K194,'Input|Historical'!$C$80:$C$100,0))) -> 0 | AH194: 394813.088 | AL194: 79183.63641 | AM194: 79183.63641 | AN194: 79183.63641 | AO194: 78631.08941 | AP194: 78631.08941 | AS194: 0
